Workbook

Sheet Mandals (hidden)
Y1: 16 | Z1: =LOOKUP(Y1,Y3:Z25,Z3:Z25) -> Nellore District | AA1: 5 | AF1: 10 | AG1: =LOOKUP(AF1,AF3:AG25,AG3:AG25) -> Krishan District
B2: Adilabad | C2: Ananthapur | D2: Chittoor District | E2: East godavari District | F2: Guntur District | G2: Hyderabad District | H2: kaddapah District | I2: Kareemnagar District | J2: Khammam District | K2: Krishan District | L2: Kurnool District | M2: Mahaboobnagar District | N2: Medak District | O2: Nalgonda District | P2: Nizamabad District | Q2: Nellore District | R2: Prakasam District | S2: Ranga reddy District | T2: Sreekakulam District | U2: Visakhapatnam District | V2: Vizianagaram District | W2: Warangal District | X2: West godavari District | Y2: S.No | Z2: Districts | AA2: =LOOKUP(AA1,Y3:Y68,AA3:AA68) -> Balayapalli | AC2: 5 | AD2: =LOOKUP(AC2,Y3:AA68,AA3:AA68) -> Balayapalli | AF2: S.No | AG2: Districts
A3: 1 | B3: Adilabad | C3: Agali | D3: B Kothakota | E3: Addateegala | F3: Achampeta | H3: Atlur | I3: Bheemadevarpalle | J3: Aswapuram | K3: A Konduru | L3: Adoni | M3: Achampeta | N3: Alladurg | O3: Alair | P3: Armur | Q3: Allur | R3: Addanki | S3: Balanagar | T3: Amadalavalasa | U3: Anakapalli | V3: Badangi | W3: Atmakur | X3: Achanta | Y3: 1 | Z3: Adilabad | AA3: =HLOOKUP($Z$1,$B$2:$X$68,AB3,FALSE) -> Allur | AB3: 2 | AF3: 1 | AG3: Adilabad
A4: 2 | B4: Narnoor | C4: Amadagur | D4: Baireddi Palle | E4: Ainavilli | F4: Amaravathi | H4: B Kodur | I4: Boinpalle | J4: Aswaraopeta | K4: Agiripalle | L4: Allagadda | M4: Addakal | N4: Andole | O4: Anumula | P4: Balkonda | Q4: Ananthasagaram | R4: Ardhaveedu | S4: Bantaram | T4: Battili | U4: Anandapuram | V4: Balajipeta | W4: Bachannapeta | X4: Akiveedu | Y4: 2 | Z4: Ananthapur | AA4: Ananthasagaram | AB4: 3 | AF4: 2 | AG4: Anathapuram
A5: 3 | B5: Bela | C5: Amarapuram | D5: Bangarupalem | E5: Alamuru | F5: Amruthalur | H5: Badvel | I5: Chandurthi | J5: Bayyaram | K5: Avanigadda | L5: Alur | M5: Aiza | N5: Chegunta | O5: Atmakur | P5: Banswada | Q5: Anumasamudrampeta | R5: Ballikuruva | S5: Basheerabad | T5: Bhamini | U5: Ananthagiri | V5: Bhoghapuram | W5: Bhupalpalle | X5: Attili | Y5: 3 | Z5: Chittoor District | AA5: Anumasamudrampeta | AB5: 4 | AF5: 3 | AG5: Chittoor District
A6: 4 | B6: Boath | C6: Anantapur | D6: Buchinaidu Khandriga | E6: Allavaram | F6: Bapatla | H6: Brahmamgarimattam | I6: Choppadandi | J6: Bhadrachalam | K6: Bantumilli | L6: Aspari | M6: Alampur | N6: Chinna Kodur | O6: Atmakur | P6: Bheemgal | Q6: Atmakur | R6: Bestavaripeta | S6: Chevella | T6: Burja | U6: Araku Valley | V6: Bobbili | W6: Chennaraopet | X6: Bheemavaram | Y6: 4 | Z6: East godavari District | AA6: Atmakur | AB6: 5 | AF6: 4 | AG6: West godavari District
A7: 5 | B7: Dilawarpur | C7: Atmakur | D7: Chandragiri | E7: Amalapuram | F7: Bellamkonda | H7: Chakrayapet | I7: Dharmapuri | J7: Bonakal | K7: Bapulapadu | L7: Atmakur | M7: Amangal | N7: Doultabad | O7: Bhuvanagiri | P7: Bhiknur | Q7: Balayapalli | R7: Chadrasekara Puram | S7: Dharur | T7: Etcherla | U7: Atchutapuram | V7: Bondapalle | W7: Cheriyal | X7: Bhimadole | Y7: 5 | Z7: Guntur District | AA7: Balayapalli | AB7: 6 | AF7: 5 | AG7: Guntur District
A8: 6 | B8: Jainad | C8: Bathalapalle | D8: Chinnagottigallu | E8: Ambajipeta | F8: Bhattiprolu | H8: Chapad | I8: Dharmaram | J8: Burgampadu | K8: Challapalli | L8: Banaganapalle | M8: Amrabad | N8: Dubbak | O8: Bibinagar | P8: Bichkunda | Q8: Bogole | R8: Chimakurthi | S8: Domah | T8: Ganguvari Singadam | U8: Bheemunipatnam | V8: Chintalavalasa | W8: Chityal | X8: Buttayagudem | Y8: 6 | Z8: Hyderabad District | AA8: Bogole | AB8: 7 | AF8: 6 | AG8: Hyderabad District
A9: 7 | B9: Kaddampeddur | C9: Beluguppa | D9: Chittoor | E9: Anaparthy | F9: Bollapalle | H9: Chennur | I9: Ellanthakunta | J9: Chandrugonda | K9: Chandarlapadu | L9: Bandi Atmakur | M9: Atmakur | N9: Eddumailaram | O9: Bommalaramaram | P9: Birkoor | Q9: Buchireddipalem | R9: Chinaganjam | S9: Gandeed | T9: Kaligapatnam | U9: Butchayyapeta | V9: Cheepurupalle | W9: Devaruppula | X9: Chagallu | Y9: 7 | Z9: Kaddapah District | AA9: Buchireddipalem | AB9: 8 | AF9: 7 | AG9: Kaddapah District
A10: 8 | B10: Khanpur | C10: Bommanahal | D10: Chowdepalle | E10: Atreyapuram | F10: Chebrole | H10: ChinnaChowk | I10: Gambhiraopet | J10: Cherla | K10: Chatrai | L10: Bethamcherla | M10: Balanagar | N10: Gajwel | O10: Chandam Pet | P10: Bodhan | Q10: Chejerla | R10: Chirala | S10: Ghatkesar | T10: Hiramandalam | U10: Cheedikada | V10: Dattirajeru | W10: Dharmasagar | X10: Chintalapudi | Y10: 8 | Z10: Kareemnagar District | AA10: Chejerla | AB10: 9 | AF10: 8 | AG10: Kareemnagar District
A11: 9 | B11: Kuntala | C11: Brahmasamudram | D11: Gangadhara Nellore | E11: Biccavolu | F11: Cherukupalle | H11: Chinnamandem | I11: Gangadhara | J11: Chinthakani | K11: G Konduru | L11: Bugganipalle | M11: Balmoor | N11: Hathnoora | O11: Chandur | P11: Dhar Palle | Q11: Chillakur | R11: Cumbum | S11: Hayathnagar | T11: Ichchapuram | U11: Chintapalle | V11: Denkada | W11: Dornakal | X11: Denduluru | Y11: 9 | Z11: Khammam District | AA11: Chillakur | AB11: 10 | AF11: 9 | AG11: Khammam District
A12: 10 | B12: Mamda | C12: Bukkapatnam | D12: Gangavaram | E12: Devipatnam | F12: Chilakaluripet | H12: Chintha Kommadinne | I12: Gollapalle | J12: Chintur | K12: Gampalagudem | L12: C.Belagal | M12: Bhoothpur | N12: Jagdevpur | O12: Chilkur | P12: Dich Palle | Q12: Chittamur | R12: Darsi | S12: Ibrahimpatam | T12: Jalumuru | U12: Chodavaram | V12: Gajapathinagaram | W12: Duggondi | X12: Devarapalle | Y12: 10 | Z12: Krishan District | AA12: Chittamur | AB12: 11 | AF12: 10 | AG12: Krishan District
A13: 11 | B13: Rebbana | C13: Bukkarayasamudram | D13: Gudi Palle | E13: Gandepalle | F13: Dachepalle | H13: Chitvel | I13: Husnabad | J13: Dammapeta | K13: Gannavaram | L13: Chagalamarri | M13: Bijinapalle | N13: Jharasangam | O13: Chintha Palle | P13: Domakonda | Q13: Dagadarthi | R13: Donakonda | S13: Kandukur | T13: Kanchili | U13: Devarapalle | V13: Gantyada | W13: Eturnagaram | X13: Dwaraka Tirumala | Y13: 11 | Z13: Kurnool District | AA13: Dagadarthi | AB13: 12 | AF13: 11 | AG13: Kurnool District
A14: 12 | B14: Talamadugu | C14: Chenne Kothapalle | D14: Gudipala | E14: Gangavaram | F14: Duggirala | H14: Cuddapah | I14: Huzurabad | J14: Dummugudem | K14: Ghantasala | L14: Chippagiri | M14: Bomraspeta | N14: Jinnaram | O14: Chityala | P14: Gandhari | Q14: Dakkili | R14: Dornala | S14: Keesara | T14: Kaviti | U14: Dumbriguda | V14: Garividi | W14: Geesugonda | X14: Eluru | Y14: 12 | Z14: Mahaboobnagar District | AA14: Dakkili | AB14: 13 | AF14: 12 | AG14: Mahaboobnagar District
A15: 13 | B15: Tiryani | C15: Chilamathur | D15: Gurramkonda | E15: Gokavaram | F15: Durgi | H15: Duvvur | I15: Ibrahimpatnam | J15: Enkuru | K15: Gudivada | L15: Devanakonda | M15: Chinna Chinta Kunta | N15: Kalher | O15: Chivvemla | P15: Jakranpalle | Q15: Doravarisatram | R15: Giddaluru | S15: Kulkacharla | T15: Kotabommili | U15: Gajuwaka | V15: Garugubilli | W15: Ghanapur | X15: Ganapavaram | Y15: 13 | Z15: Medak District | AA15: Doravarisatram | AB15: 14 | AF15: 13 | AG15: Medak District
A16: 14 | B16: Asifabad | C16: D.Hirchal | D16: Irala | E16: Gollaprolu | F16: Edlapadu | H16: Galiveedu | I16: Jagtial | J16: Garla | K16: Gudlavalleru | L16: Dhone | M16: Damaragidda | N16: Kohir | O16: Choutuppal | P16: Jukkal | Q16: Duttalur | R16: Gudluru | S16: Maheswaram | T16: Kothuru | U16: Gangaraju Madugula | V16: Gummalakshmipuram | W16: Ghanpur(Stn) | X16: Gopalapuram | Y16: 14 | Z16: Nalgonda District | AA16: Duttalur | AB16: 15 | AF16: 14 | AG16: Nalgonda District
A17: 15 | B17: Bellampalle | C17: Dharmavaram | D17: K V P Puram | E17: I.Polavaram | F17: Guntur | H17: Gopavaram | I17: Jammikunta | J17: Gundala | K17: Gudur | L17: Dornipadu | M17: Devarkadara | N17: Kondapak | O17: Dameracherla | P17: Kamareddy | Q17: Gudur | R17: Hanumanthunipadu | S17: Malkajgiri | T17: Laveru | U17: Golugonda | V17: Gurla | W17: Govindaraopet | X17: Iragavaram | Y17: 15 | Z17: Nizamabad District | AA17: Gudur | AB17: 16 | AF17: 15 | AG17: Nizamabad District
A18: 16 | B18: Chennur | C18: Gandlapenta | D18: Kalakada | E18: Jaggampeta | F18: Gurazala | H18: Jammalamadugu • | I18: Julapalle | J18: Julurpad | K18: Ibrahimpatnam | L18: Gadivemula | M18: Dhanwada | N18: Kondapur | O18: Devarakonda | P18: Kammar Palle | Q18: Indukurpet | R18: Inkollu | S18: Manchal | T18: Mandasa | U18: Gudem Kothaveedhi | V18: Jami | W18: Gudur | X18: Jangareddigudem | Y18: 16 | Z18: Nellore District | AA18: Indukurpet | AB18: 17 | AF18: 16 | AG18: Nellore District
A19: 17 | B19: Gudihathnur | C19: Garladinne | D19: Kalikiri | E19: Kadiam | F19: Ipuru | H19: Kalasapadu | I19: Kamalapur | J19: Kalluru | K19: Jaggayyapeta | L19: Gonegandla | M19: Dharur | N19: Kowdipalle | O19: Garide Palle | P19: Kotgiri | Q19: Jaladanki | R19: Janakavaram Panguluru | S19: Marpalle | T19: Meilaputti | U19: Hukumpeta | V19: Jiyyamma Valasa | W19: Hanamkonda | X19: Jeelugumilli | Y19: 17 | Z19: Prakasam District | AA19: Jaladanki | AB19: 18 | AF19: 17 | AG19: Prakasam District
A20: 18 | B20: Jainoor | C20: Gooty | D20: Kambhamvaripalle | E20: Kajuluru | F20: Kakumanu | H20: Kamalapuram | I20: Kamanpur | J20: Karepalli | K20: Kaikalur | L20: Gospadu | M20: Doulatabad | N20: Kulcharam | O20: Gundala | P20: Lingampet | Q20: Kaligiri | R20: Kandukur | S20: Medchal | T20: Nandigam | U20: K Kotapadu | V20: Komarada | W20: Hasanparthy | X20: Kalla | Y20: 18 | Z20: Ranga reddy District | AA20: Kaligiri | AB20: 19 | AF20: 18 | AG20: Ranga reddy District
A21: 19 | B21: Kagaz Nagar | C21: Gorantla | D21: Karvetinagar | E21: Kakinada(Rural) | F21: Karempudi | H21: Khajipet | I21: Karimnagar | J21: Khammam Rural | K21: Kalidindi | L21: Gudur | M21: Farooqnagar | N21: Manoor | O21: Gundla Palle | P21: Machareddy | Q21: Kaluvoya | R21: Kanigiri | S21: Moinabad | T21: Narasannapeta | U21: Kasimkota | V21: Kothavalasa | W21: Jangaon | X21: Kamavarapukota | Y21: 19 | Z21: Sreekakulam District | AA21: Kaluvoya | AB21: 20 | AF21: 19 | AG21: Sreekakulam District
A22: 20 | B22: Kotapalle | C22: Gudibanda | D22: Kuppam | E22: Kakinada(Urban) | F22: Karlapalem | H22: Kodur | I22: Kataram | J22: Khammam Urban | K22: Kanchika Cherla | L22: Halaharvi | M22: Gadwal | N22: Medak | O22: Gurrampode | P22: Madnur | Q22: Kavali | R22: Karamchedu | S22: Mominpet | T22: Palakonda | U22: Kotauratla | V22: Kurupam | W22: Kesamudram | X22: Kovvur | Y22: 20 | Z22: Visakhapatnam District | AA22: Kavali | AB22: 21 | AF22: 20 | AG22: Visakhapatnam District
A23: 21 | B23: Laxmanchanda | C23: Gummagatta | D23: Kurabalakota | E23: Kapileswarapuram | F23: Kollipara | H23: Kondapuram | I23: Kathlapur | J23: Konijerla | K23: Kankipadu | L23: Holagunda | M23: Ghanpur | N23: Mirdoddi | O23: Huzurnagar | P23: Makloor | Q23: Kodavalur | R23: Komarolu | S23: Nawabpet | T23: Palasa | U23: Koyyuru | V23: Lakkavarapukota | W23: Khanapur | X23: Koyyalagudem | Y23: 21 | Z23: Vizianagaram District | AA23: Kodavalur | AB23: 22 | AF23: 21 | AG23: Vizianagaram District
A24: 22 | B24: Mancherial | C24: Guntakal | D24: Mandanpalle | E24: Karapa | F24: Kollur | H24: Lakkireddipalle • | I24: Kesavapatnam | J24: Kothagudem | K24: Koduru | L24: Jupadu Bungalow | M24: Ghattu | N24: Mulug | O24: Jaji Reddi Gudem | P24: Mortad | Q24: Kondapuram | R24: Konakanamitla | S24: Pargi | T24: Pathapatnam | U24: Madugula | V24: Makkuva | W24: Kodakandla | X24: Lingapalem | Y24: 22 | Z24: Warangal District | AA24: Kondapuram | AB24: 23 | AF24: 22 | AG24: Warangal District
A25: 23 | B25: Nennal | C25: Hindupur | D25: Mulakalacheruvu | E25: Katrenikona | F25: Krosuru | H25: Lingala | I25: Kodimial | J25: Kukunoor | K25: Kruthivennu | L25: Kallur | M25: Gopalpeta | N25: Munpalle | O25: Kangal | P25: Naga Reddipet | Q25: Kota | R25: Kondapi | S25: Peddemul | T25: Polaki | U25: Makavarapalem | V25: Mentada | W25: Kothagudem | X25: Mogalthur | Y25: 23 | Z25: West godavari District | AA25: Kota | AB25: 24 | AF25: 23 | AG25: West godavari District
A26: 24 | B26: Sarangapur | C26: Kadiri | D26: Nagalapuram | E26: Kirlampudi | F26: Machavaram | H26: Muddanur | I26: Koheda | J26: Kunavaram | K26: Machilipatnam | L26: Kodumur | M26: Hanwada | N26: Nanganur | O26: Kattangoor | P26: Nandipet | Q26: Kovur | R26: Korisapadu | S26: Pudur | T26: Ponduru | U26: Munagapaka | V26: Merakamudidam | W26: Kuravi | X26: Nallajerla | Y26: 24 | AA26: Kovur | AB26: 25
A27: 25 | B27: Tamsi | C27: Kalyandurg | D27: Nagari | E27: Korukonda | F27: Macherla | H27: Mylavaram | I27: Konaraopeta | J27: Kusumanchi | K27: Mandavalli | L27: Koilkuntla | M27: Itikyal | N27: Narayankhed | O27: Kethepalle | P27: Navipet | Q27: Manubolu | R27: Kothapatnam | S27: Quthbullapur | T27: Rajam | U27: Munchingiputtu | V27: Nellimarla | W27: Lingala Ghanpur | X27: Narasapuram | Y27: 25 | AA27: Manubolu | AB27: 26
A28: 26 | B28: Utnur | C28: Kambadur | D28: Narayanavanam | E28: Kotananduru | F28: Mangalagiri | H28: Mydukur | I28: Koratla | J28: Madhira | K28: Mopidevi | L28: Kolimigundla | M28: Jadcherla | N28: Narsapur | O28: Kodad | P28: Nizam Sagar | Q28: Marripadu | R28: Kurichedu | S28: Rajendranagar | T28: Ranastalam | U28: Nakkapalli | V28: Pachipenta | W28: Maddur | X28: Nidadavole | Y28: 26 | AA28: Marripadu | AB28: 27
A29: 27 | B29: Bazarhathnoor | C29: Kanaganapalle | D29: Nimmanapalle | E29: Kothapalle | F29: Medikonduru | H29: Nandalur | I29: Mahadevpur | J29: Manuguru | K29: Movva | L29: Kosigi | M29: Kalwakurthy | N29: Nyalkal | O29: M Turkapalle | P29: Nizamabad | Q29: Muthukur | R29: Lingasamudram | S29: Saroornagar | T29: Regidiamadalavalasa | U29: Narsipatnam | V29: Parvathipuram | W29: Mahabubabad | X29: Nidamarru | Y29: 27 | AA29: Muthukur | AB29: 28
A30: 28 | B30: Bhainsa | C30: Kanekal | D30: Nindra | E30: Kothapeta | F30: Muppalla | H30: Obulavaripalle | I30: Malharrao | J30: Mudigonda | K30: Mudinepalli | L30: Kothapalle | M30: Keshampeta | N30: Papannapet | O30: Marri Guda | P30: Pitlam | Q30: Naidupeta | R30: Maddipadu | S30: Serilingampalle | T30: Santhabommali | U30: Nathavaram | V30: Pusapatirega | W30: Mangapet | X30: Palacole | Y30: 28 | AA30: Naidupeta | AB30: 29
A31: 29 | B31: Dahegaon | C31: Kothacheruvu | D31: Pakala | E31: Malikipuram | F31: Nadendla | H31: Peddamudium • | I31: Mallapur | J31: Mulakalapalle | K31: Musunuru | L31: Kowthalam | M31: Kodair | N31: Patancheru | O31: Mattampalle | P31: Ranjal | Q31: Nellore | R31: Markapur | S31: Shabad | T31: Santhakaviti | U31: Paderu | V31: Ramabhadrapuram | W31: Maripeda | X31: Palakoderu | Y31: 29 | AA31: Nellore | AB31: 30
A32: 30 | B32: Ichoda | C32: Kudair | D32: Palamaner | E32: Mamidikuduru | F32: Nagaram | H32: Penagaluru | I32: Mallial | J32: Nelakondapalle | K32: Mylavaram | L32: Krishnagiri | M32: Kodangal | N32: Pulkal | O32: Mellachervu | P32: Sadasivanagar | Q32: Ojili | R32: Marripudi | S32: Shamirpet | T32: Saravakota | U32: Padmanabham | V32: Salur | W32: Mogullapalle | X32: Pedapadu | Y32: 30 | AA32: Ojili | AB32: 31
A33: 31 | B33: Jaipur | C33: Kundurpi | D33: Palasamudram | E33: Mandapeta | F33: Nakarikallu | H33: Pendlimarri | I33: Manakondur | J33: Palawancha | K33: Nagayalanka | L33: Kurnool | M33: Koilkonda | N33: Raikode | O33: Miryalaguda | P33: Sirkonda | Q33: Pellakur | R33: Martur | S33: Shamshabad | T33: Sarubujjili | U33: Paravada | V33: Seethanagaram | W33: Mulug | X33: Pedavegi | Y33: 31 | AA33: Pellakur | AB33: 32
A34: 32 | B34: Kasipet | C34: Lepakshi | D34: Pedda Panjani | E34: Maredumilli | F34: Narasaraopeta | H34: Porumamilla | I34: Manthani | J34: Penuballi | K34: Nandigama | L34: Maddikera East | M34: Kollapur | N34: Ramachandrapuram | O34: Mothey | P34: Tadwai | Q34: Podlakur | R34: Mundlamuru | S34: Shankarpalle | T34: Seethampeta | U34: Payakaraopeta | V34: Srungavarapukota | W34: Nallabelly | X34: Pentapadu | Y34: 32 | AA34: Podlakur | AB34: 33
A35: 33 | B35: Kouthala | C35: Mudigubba | D35: Peddamandyam | E35: Mummidivaram | F35: Nizampatnam | H35: Proddutur | I35: Medipalle | J35: Pinapaka | K35: Nandivada | L35: Mahanandi | M35: Kondurg | N35: Ramayampet | O35: Mothkur | P35: Varni | Q35: Rapur | R35: Naguluppalapadu | S35: Tandur | T35: Sompeta | U35: Pedabayalu | V35: Therlam | W35: Narmetta | X35: Penugonda | Y35: 33 | AA35: Rapur | AB35: 34
A36: 34 | B36: Lohesra | C36: Nallacheruvu | D36: Peddathippasamudram | E36: P Gannavaram | F36: Nuzendla | H36: Pulivendla | I36: Metpalle | J36: Sathupalle | K36: Nuzvid | L36: Mantralayam | M36: Kosgi | N36: Regode | O36: Munagala | P36: Velpur | Q36: Sangam | R36: Ongole | S36: Uppal | T36: Srikakulam | U36: Pedagantyada | V36: Vepada | W36: Narsampet | X36: Penumantra | Y36: 34 | AA36: Sangam | AB36: 35
A37: 35 | B37: Mandamarri | C37: Nallamada | D37: Penumuru | E37: Pamarru | F37: Pedakakani | H37: Pullampeta | I37: Mustabad | J37: Singareni | K37: Pamarru | L37: Midthur | M37: Kothakota | N37: Sadasivpet | O37: Munugode | P37: Yeda Palle | Q37: Seetharamapuram | R37: Pamur | S37: Vikarabad | T37: Tekkali | U37: Pendurthi | V37: Vizianagaram | W37: Narsimhulapet | X37: Peravali | Y37: 35 | AA37: Seetharamapuram | AB37: 36
A38: 36 | B38: Neradigonda | C38: Nambulipulikunta | D38: Pichatur | E38: Pedapudi | F38: Pedakurapadu | H38: Railway Koduru • | I38: Mutharam Mahadevpur | J38: Thallada | K38: Pamidimukkala | L38: Nandavaram | M38: Kothur | N38: Sangareddy | O38: Nadigudem | P38: Yellareddy | Q38: Sullurpeta | R38: Parchur | S38: Yacharam | T38: Vajrapukothuru | U38: Rambilli | W38: Nekkonda | X38: Poduru | Y38: 36 | AA38: Sullurpeta | AB38: 37
A39: 37 | B39: Sirpur (T) | C39: Narpala | D39: Pileru | E39: Peddapuram | F39: Phirangipuram | H39: Rajampet | I39: Mutharam Manthani | J39: Thirumalayapalem | K39: Pedana | L39: Nandi Kotkur | M39: Lingal | N39: Shankarampet (A) | O39: Nakrekal | Q39: Sydapuram | R39: Pedaaraveedu | S39: Yelal | T39: Vangara | U39: Ravikamatham | W39: Nellikudur | X39: Polavaram | Y39: 37 | AA39: Sydapuram | AB39: 38
A40: 38 | B40: Tandur | C40: Obuladevaracheruvu | D40: Pulicherla | E40: Pithapuram | F40: Piduguralla | H40: Raju Palem | I40: Odela | J40: Vararamachandrapuram | K40: Pedaparupudi | L40: Nandyal | M40: Maddur | N40: Shankarampet (R) | O40: Nalgonda | Q40: Tada | R40: Pedacherlopalle | T40: Veeraghattam | U40: Rolugunta | W40: Palakurthi | X40: T Narasapuram | Y40: 38 | AA40: Tada | AB40: 39
A41: 39 | B41: Vemanpalle | C41: Pamidi | D41: Punganur | E41: Prathipadu | F41: Pittalavanipalem | H41: Ramapuram | I41: Peddapalle | J41: Velairpad | K41: Penamaluru | L41: Orvakal | M41: Madgul | N41: Shivampet | O41: Nampalle | Q41: Thotapalligudur | R41: Podili | U41: S Rayavaram | W41: Parkal | X41: Tadepalligudem | Y41: 39 | AA41: Thotapalligudur | AB41: 40
A42: 40 | B42: Bejjur | C42: Parigi | D42: Puthalapattu | E42: Rajahmundry (Urban) | F42: Ponnur | H42: Rayachoti | I42: Pegadapalle | J42: Vemsoor | K42: Penuganchiprolu | L42: Owk | M42: Maganoor | N42: Siddipet | O42: Narayanapur | Q42: Udayagiri | R42: Ponnaluru | U42: Sabbavaram | W42: Parvathagiri | X42: Tanuku | Y42: 40 | AA42: Udayagiri | AB42: 41
A43: 41 | B43: Bheemini | C43: Peddapappur | D43: Puttur | E43: Rajahmundry(Rural) | F43: Prathipadu | H43: S Mydukur | I43: Raikal | J43: Venkatapuram | K43: Reddigudem | L43: Pagidyala | M43: Mahbubnagar | N43: Tekmal | O43: Narketpalle | Q43: Vakadu | R43: Pullalacheruvu | U43: Visakhapatnam | W43: Raghunatha Palle | X43: Thallapudi | Y43: 41 | AA43: Vakadu | AB43: 42
A44: 42 | B44: Dandepalle | C44: Peddavadugur | D44: Rama Kuppam | E44: Rajanagaram | F44: Rajupalem | H44: Sambepalle | I44: Ramadugu | J44: Wazeed | K44: Thotlavalluru | L44: Pamulapadu | M44: Makthal | N44: Tupran | O44: Nered Cherla | Q44: Varikuntapadu | R44: Racherla | U44: Visakhapatnam(U) | W44: Raiparthy | X44: Undi | Y44: 42 | AA44: Varikuntapadu | AB44: 43
A45: 43 | B45: Inderavelly | C45: Penu Konda | D45: Ramachandrapuram | E45: Rajavommangi | F45: Rentacrintala | H45: Sidhout | I45: Ramagundam | J45: Wyra | K45: Tiruvuru | L45: Panyam | M45: Maldakal | N45: Wargal | O45: Nidamanur | Q45: Venkatachalam | R45: Santhamaguluru | U45: Yelamanchili | W45: Regonda | X45: Undrajavaram | Y45: 43 | AA45: Venkatachalam | AB45: 44
A46: 44 | B46: Jannaram | C46: Putlur | D46: Ramasamudram | E46: Ramachandrapuram | F46: Repalle | H46: Simhadripuram • | I46: Saidapur | J46: Yellandu | K46: Unguturu | L46: Pattikanda | M46: Manopadu | N46: Yeldurthy | O46: Nuthankal | Q46: Venkatagiri | R46: Santhanuthlapadu | W46: Sangem | X46: Unguturu | Y46: 44 | AA46: Venkatagiri | AB46: 45
A47: 45 | B47: Kerameri | C47: Puttaparthi | D47: Renigunta | E47: Rampachodavaram | F47: Rompicherla | H47: T Sundupalle | I47: Sarangapur | J47: Yerrupalem | K47: Vatsavai | L47: Peapally | M47: Midjil | N47: Zahirabad | O47: Pedda Adiserlapalle | Q47: Vidavalur | R47: Singarayakonda | W47: Shayampet | X47: Veeravasaram | Y47: 45 | AA47: Vidavalur | AB47: 46
A48: 46 | B48: Kubeer | C48: Ramagiri | D48: Rompicherla | E48: Rangampeta | F48: Sattenapalle | H48: Thandur | I48: Sirsilla | K48: Veerullapadu | L48: Pedda Kadubur | M48: Nagar Kurnool | O48: Peddavura | Q48: Vinjamur | R48: Tangutur | W48: Tadvai | X48: Yelamanchili | Y48: 46 | AA48: Vinjamur | AB48: 47
A49: 47 | B49: Luxettipet | C49: Raptadu | D49: Santhi Puram | E49: Ravula Palem | F49: Savalyapuram | H49: Vallur | I49: Srirampur | K49: Vijayawada Rural | L49: Rudravaram | M49: Narayanpet | O49: Penpahad | R49: Tarlapadu | W49: Thorrur | Y49: 47 | AA49: 0 | AB49: 48
A50: 48 | B50: Mudhole | C50: Roddam | D50: Satyavedu | E50: Rayavaram | F50: Tadikonda | H50: Veeraballe | I50: Sultanabad | K50: Vijayawada Urban | L50: Sanjamala | M50: Narva | O50: Pochampalle | R50: Thallur | W50: Venkatapur | Y50: 48 | AA50: 0 | AB50: 49
A51: 49 | B51: Nirmal | C51: Rolla | D51: Sodam | E51: Razole | F51: Tenali | H51: Veerapunayunipalle • | I51: Thimmapur | K51: Vissannapet | L51: Sirvel | M51: Nawabpet | O51: Rajapet | R51: Tripuranthakam | W51: Wardhannapet | Y51: 49 | AA51: 0 | AB51: 50
A52: 50 | B52: Sirpur (U) | C52: Settur | D52: Somala | E52: Sakhinetipalle | F52: Thadepalle | H52: Vempalle | I52: Veenavanka | K52: Vuyyuru | L52: Srisailam | M52: Pangal | O52: Ramannapeta | R52: Ulavapadu | W52: Zaffergadh | Y52: 50 | AA52: 0 | AB52: 51
A53: 51 | B53: Tanur | C53: Singanamala | D53: Srikalahasti | E53: Samalkota | F53: Thullur | H53: Vemula | I53: Velgatoor | L53: Tuggali | M53: Pebbair | O53: Saligouraram | R53: Veligandla | Y53: 51 | AA53: 0 | AB53: 52
A54: 52 | B54: Wankdi | C54: Somandepalle | D54: Srirangarajapuram | E54: Sankhavaram | F54: Tsundur | H54: Vontimitta | I54: Vemulawada | L54: Uyyalawada | M54: Peddakothapalle | O54: Suryapet | R54: Vetapalem | Y54: 52 | AA54: 0 | AB54: 53
A55: 53 | C55: Tadimarri | D55: Thamballapalle | E55: Seethanagaram | F55: Vatticherukuru | H55: Yerraguntla | I55: Yella Reddi Peta | L55: Veldurthi | M55: Peddamandadi | O55: Thipparthi | R55: Voletivaripalem | Y55: 53 | AA55: 0 | AB55: 54
A56: 54 | C56: Tadpatri | D56: Thavanampalle | E56: Thallarevu | F56: Veldurthi | L56: Velgodu | M56: Tadoor | O56: Thirumalagiri | R56: Yeddanapudi | Y56: 54 | AA56: 0 | AB56: 55
A57: 55 | C57: Talupula | D57: Thottambedu | E57: Thondangi | F57: Vemuru | L57: Yemmiganur | M57: Talakondapalle | O57: Thripuraram | R57: Yerragondapalem | Y57: 55 | AA57: 0 | AB57: 56
A58: 56 | C58: Tanakal | D58: Tirupati Rural | E58: Tuni | F58: Vinukonda | M58: Telkapalle | O58: Thunga Thurthi | R58: Zarugumilli | Y58: 56 | AA58: 0 | AB58: 57
A59: 57 | C59: Uravakonda | D59: Tirupati Urban | E59: Uppalaguptam | M59: Thimmajipeta | O59: Valigonda | Y59: 57 | AA59: 0 | AB59: 58
A60: 58 | C60: Vajrakarur | D60: Vadamalapeta | E60: Y Ramavaram | M60: Uppununthala | O60: Vemulapalle | Y60: 58 | AA60: 0 | AB60: 59
A61: 59 | C61: Vidapanakal | D61: Varadaiahpalem | E61: Yeleswaram | M61: Utkoor | O61: Yadagirigutta | Y61: 59 | AA61: 0 | AB61: 60
A62: 60 | C62: Yadiki | D62: Vayalpad | M62: Vangoor | Y62: 60 | AA62: 0 | AB62: 61
A63: 61 | C63: Yellanur | D63: Veduru Kuppam | M63: Veepangandla | Y63: 61 | AA63: 0 | AB63: 62
A64: 62 | C64: Rayadurga | D64: Venkatagiri Kota | M64: Veldanda | Y64: 62 | AA64: 0 | AB64: 63
A65: 63 | C65: Madakasira | D65: Vijaya Puram | M65: Waddepalle | Y65: 63 | AA65: 0 | AB65: 64
A66: 64 | D66: Yadamari | M66: Wanaparthy | Y66: 64 | AA66: 0 | AB66: 65
A67: 65 | D67: Yerpedu | Y67: 65 | AA67: =HLOOKUP($Z$1,$B$2:$X$68,AB67,FALSE) -> 0 | AB67: 66
A68: 66 | D68: Yerravaripalem | Y68: 66 | AA68: =HLOOKUP($Z$1,$B$2:$X$68,AB68,FALSE) -> 0 | AB68: 67
R88: 15 | W88: 15 | AB88: 15
R89: 1 | W89: 1 | AB89: 1
R90: 2 | W90: 2 | AB90: 2
R91: 3 | W91: 3 | AB91: 3
R92: 4 | W92: 4 | AB92: 4
R93: 5 | W93: 5 | AB93: 5
R94: 6 | W94: 6 | AB94: 6
R95: 7 | W95: 7 | AB95: 7
R96: 8 | W96: 8 | AB96: 8
R97: 9 | W97: 9 | AB97: 147
R98: 10 | W98: 10 | AB98: 10
R99: 11 | W99: 11 | AB99: 11
R100: 12 | W100: 12 | AB100: 12
R101: 13 | W101: 13 | AB101: 13
R102: 14 | W102: 14 | AB102: 14
R103: 15 | W103: 15 | AB103: 15
R104: 16 | W104: 16 | AB104: 16
R105: 17 | W105: 17 | AB105: 17
R106: 18 | W106: 18 | AB106: 18
R107: 19 | W107: 19 | AB107: 19
R108: 20 | W108: 20 | AB108: 20
R109: 21 | W109: 21 | AB109: 21
R110: 22 | W110: 22 | AB110: 22
R111: 23 | W111: 23 | AB111: 23
R112: 24 | W112: 24 | AB112: 24
R113: 25 | W113: 25 | AB113: 25
R114: 26 | W114: 26 | AB114: 26
R115: 27 | W115: 27 | AB115: 27
R116: 28 | W116: 28 | AB116: 28
R117: 29 | W117: 29 | AB117: 29
R118: 30 | W118: 30 | AB118: 30
R119: 31 | W119: 31 | AB119: 31

Sheet Code (hidden)
A1: 1 | F1: DDO Details
A2: 1 | B2: Sri. | F2: 1 | H2: =LOOKUP(A1,A2:B4,B2:B4) -> Sri. | I2: 15 | J2: Bill month | K2: =J27&"-"&J28 -> NOVEMBER-2012
A3: 2 | B3: Smt. | F3: 2 | H3: =Home!D4 -> P.Subbarayudu | I3: 16 | J3: Cell No | K3: =Home!L8 -> 9676511485 | P3: 1 | Q3: 2 | R3: 3 | S3: 4 | T3: 5 | U3: 6 | V3: 7 | Z3: 8 | AA3: 9 | AB3: 10 | AC3: 11 | AD3: 12 | AE3: 13 | AF3: 14 | AG3: 15 | AH3: 16 | AI3: 17 | AJ3: 18 | AK3: 19 | AL3: 20 | AM3: 21 | AN3: 22 | AO3: 23 | AP3: 24 | AQ3: 25 | AR3: 26 | AS3: 27 | AT3: 30 | AU3: 31 | AV3: 32 | AW3: 33 | AX3: 34 | AY3: 35 | AZ3: 36 | BA3: 37 | BB3: 38 | BC3: 39 | BD3: 40 | BE3: 41 | BF3: 42 | BG3: 43 | BH3: 44 | BI3: 45 | BJ3: 46 | BK3: 47 | BL3: 48 | BM3: 49 | BN3: 50 | BO3: 51 | BP3: 52 | BQ3: 53 | BR3: 54 | BS3: 55 | BT3: 56 | BU3: 57 | BV3: 58 | BW3: 59 | BX3: 60 | BY3: 61 | BZ3: 62 | CA3: 63 | CB3: 64 | CC3: 65 | CD3: 66 | CE3: 67 | CF3: 68 | CG3: 69 | CH3: 70 | CI3: 71 | CJ3: 72 | CK3: 73 | CL3: 74 | CM3: 75 | CN3: 76 | CO3: 77 | CP3: 78 | CQ3: 79 | CR3: 80 | CS3: 81 | CT3: 82 | CU3: 83 | CV3: 84 | CW3: 85 | CX3: 86 | CY3: 87 | CZ3: 88 | DA3: 89 | DB3: 90 | DC3: 91 | DD3: 92 | DE3: 93 | DF3: 94 | DG3: 95 | DH3: 96 | DI3: 97 | DJ3: 98 | DK3: 99
A4: 3 | B4: Kum. | D4: 1 | E4: =LOOKUP(D4,C5:D7,D5:D7) -> S/o | F4: 3 | H4: =LOOKUP(A18,A19:B33,B19:B33) -> B.A.,B.Ed | I4: 17 | J4: Messenger | K4: =Home!D15 -> G.Bhasker | P4: One | Q4: Two | R4: Three | S4: Four | T4: Five | U4: Six | V4: Seven | Z4: Eight | AA4: Nine | AB4: Ten | AC4: Eleven | AD4: Twelve | AE4: Thirteen | AF4: Fourteen | AG4: Fifteen | AH4: Sixteen | AI4: Seventeen | AJ4: Eighteen | AK4: Nineteen | AL4: Twenty | AM4: Twenty one | AN4: Twenty two | AO4: Twenty three | AP4: Twenty four | AQ4: Twenty five | AR4: Twenty six | AS4: Twenty seven | AT4: Thirty | AU4: Thirty one | AV4: Thirty two | AW4: Thirty three | AX4: Thirty four | AY4: Thirty five | AZ4: Thirty six | BA4: Thirty seven | BB4: Thirty eight | BC4: Thirty nine | BD4: Forty | BE4: Forty one | BF4: Forty two | BG4: Forty three | BH4: Forty four | BI4: Forty five | BJ4: Forty six | BK4: Forty seven | BL4: Forty eight | BM4: Forty nine | BN4: Fifty | BO4: Fifty one | BP4: Fifty two | BQ4: Fifty three | BR4: Fifty four | BS4: Fifty five | BT4: Fifty six | BU4: Fifty seven | BV4: Fifty eight | BW4: Fifty nine | BX4: sixty | BY4: Sixty one | BZ4: Sixty two | CA4: Sixty three | CB4: Sixty four | CC4: Sixty five | CD4: Sixty six | CE4: Sixty seven | CF4: Sixty eight | CG4: Sixty nine | CH4: Seventy | CI4: Seventy one | CJ4: Seventy two | CK4: Seventy three | CL4: Seventy four | CM4: Seventy five | CN4: Seventy six | CO4: Seventy seven | CP4: Seventy eight | CQ4: Seventy nine | CR4: Eighty | CS4: Eighty one | CT4: Eighty two | CU4: Eighty three | CV4: Eighty four | CW4: Eighty five | CX4: Eighty six | CY4: Eighty seven | CZ4: Eighty eight | DA4: Eighty nine | DB4: Ninety | DC4: Ninety one | DD4: Ninety two | DE4: Ninety three | DF4: Ninety four | DG4: Ninety five | DH4: Ninety six | DI4: Ninety seven | DJ4: Ninety eight | DK4: Ninety nine
A5: 7 | C5: 1 | D5: S/o | F5: 4 | H5: =LOOKUP(A5,A6:B17,B6:B17) -> Head Master | I5: 18 | J5: Nessenger desig | K5: =Home!J15 -> SA(Maths)
A6: 1 | B6: Assistant Director | C6: 2 | D6: D/o | F6: 5 | H6: =Mandals!Z1 -> Nellore District | I6: 19 | J6: bill number | K6: =IF(LEN(Home!$D$8)=4,Home!$D$8,IF(LEN(Home!$D$8)=3,"0"&Home!$D$8,IF(LEN(Home!$D$8)=2,"00"&Home!$D$8,"000"&Home!$D$8))) -> 0012 | O6: ='ANNEXURE-I'!F404 -> 459639 | P6: =IF(O6="","",CONCATENATE(AE6," rupees only")) -> Four Lakhs Fifty nine Thousand Six Hundred and Thirty nine rupees only | Q6: =INT(O6/100000) -> 4 | R6: =INT(O6/1000-Q6*100) -> 59 | S6: =INT(O6/100-Q6*1000-R6*10) -> 6 | T6: =INT(O6-Q6*100000-R6*1000-S6*100) -> 39 | U6: =IF(Q6=0,"",LOOKUP(Q6,P3:DL3,P4:DL4)) -> Four | V6: =IF(R6=0,"",LOOKUP(R6,P3:DL3,P4:DL4)) -> Fifty nine | W6: =IF(S6=0,"",LOOKUP(S6,P3:DL3,P4:DL4)) -> Six | X6: =IF(T6=0,"",LOOKUP(T6,P3:DL3,P4:DL4)) -> Thirty nine | Y6: =IF(AND(S6=0,T6=0),1,2) -> 2 | Z6: =IF(T6=0,3,4) -> 4 | AA6: =IF(OR(Y6=1,Z6=3),5,6) -> 6 | AB6: =IF(Q6>1," Lakhs ",IF(Q6>0," Lakh ","")) -> Lakhs | AC6: =IF(R6>0," Thousand ","") -> Thousand | AD6: =IF(S6>0," Hundred ","") -> Hundred | AE6: =IF(O6=0,"Zero",IF(O6>0,TRIM(CONCATENATE(U6,AB6,V6,AC6,W6,AD6,IF(AND(O6>100,AA6=6)," and ",""),X6)),"")) -> Four Lakhs Fifty nine Thousand Six Hundred and Thirty nine
A7: 2 | B7: Deputy Director | C7: 3 | D7: W/o | F7: 6 | H7: =Mandals!AD2 -> Balayapalli | I7: 20 | J7: Procedings No | K7: =Home!D9 -> 0 | O7: =APGLI!K401 -> 8535 | P7: =IF(O7="","",CONCATENATE(AE7," rupees only")) -> Eight Thousand Five Hundred and Thirty five rupees only | Q7: =INT(O7/100000) -> 0 | R7: =INT(O7/1000-Q7*100) -> 8 | S7: =INT(O7/100-Q7*1000-R7*10) -> 5 | T7: =INT(O7-Q7*100000-R7*1000-S7*100) -> 35 | U7: =IF(Q7=0,"",LOOKUP(Q7,P3:DL3,P4:DL4)) ->  | V7: =IF(R7=0,"",LOOKUP(R7,P3:DL3,P4:DL4)) -> Eight | W7: =IF(S7=0,"",LOOKUP(S7,P3:DL3,P4:DL4)) -> Five | X7: =IF(T7=0,"",LOOKUP(T7,P3:DL3,P4:DL4)) -> Thirty five | Y7: =IF(AND(S7=0,T7=0),1,2) -> 2 | Z7: =IF(T7=0,3,4) -> 4 | AA7: =IF(OR(Y7=1,Z7=3),5,6) -> 6 | AB7: =IF(Q7>1," Lakhs ",IF(Q7>0," Lakh ","")) ->  | AC7: =IF(R7>0," Thousand ","") -> Thousand | AD7: =IF(S7>0," Hundred ","") -> Hundred | AE7: =IF(O7=0,"Zero",IF(O7>0,TRIM(CONCATENATE(U7,AB7,V7,AC7,W7,AD7,IF(AND(O7>100,AA7=6)," and ",""),X7)),"")) -> Eight Thousand Five Hundred and Thirty five
A8: 3 | B8: Deputy Educational Officer | F8: 7 | G8: Treasury Bank | H8: =Home!J7 -> SBI,Venkatagiri | I8: 21 | J8: Procedings date | K8: =A53&"-"&B53&"-"&LOOKUP(C53,A55:C57,C55:C57) -> 26-11-2012 | O8: =GIS!G401 -> 1050 | P8: One Thousand and Fifty rupees only | Q8: 0 | R8: 1 | S8: 0 | T8: 50 | U8: =IF(Q8=0,"",LOOKUP(Q8,P3:DL3,P4:DL4)) ->  | V8: =IF(R8=0,"",LOOKUP(R8,P3:DL3,P4:DL4)) -> One | W8: =IF(S8=0,"",LOOKUP(S8,P3:DL3,P4:DL4)) ->  | X8: =IF(T8=0,"",LOOKUP(T8,P3:DL3,P4:DL4)) -> Fifty | Y8: 2 | Z8: 4 | AA8: 6 | AC8: Thousand | AE8: One Thousand and Fifty
A9: 4 | B9: Deputy Inspector of Schools | F9: 8 | H9: =Home!K4 -> 08100308031 | O9: =PTax!F401 -> 3400 | P9: Three Thousand Four Hundred rupees only | Q9: 0 | R9: 3 | S9: 4 | T9: 0 | U9: =IF(Q9=0,"",LOOKUP(Q9,P3:DL3,P4:DL4)) ->  | V9: =IF(R9=0,"",LOOKUP(R9,P3:DL3,P4:DL4)) -> Three | W9: =IF(S9=0,"",LOOKUP(S9,P3:DL3,P4:DL4)) -> Four | X9: =IF(T9=0,"",LOOKUP(T9,P3:DL3,P4:DL4)) ->  | Y9: 2 | Z9: 3 | AA9: 5 | AC9: Thousand | AD9: Hundred | AE9: Three Thousand Four Hundred
A10: 5 | B10: Gazetted H.M. Gr-I | F10: 9 | G10: Working | H10: =F107 -> ZPPHS,Balayapalli | O10: =FA!F401 -> 0 | P10: Zero rupees only | Q10: 0 | R10: 0 | S10: 0 | T10: 0 | U10: =IF(Q10=0,"",LOOKUP(Q10,P3:DL3,P4:DL4)) ->  | V10: =IF(R10=0,"",LOOKUP(R10,P3:DL3,P4:DL4)) ->  | W10: =IF(S10=0,"",LOOKUP(S10,P3:DL3,P4:DL4)) ->  | X10: =IF(T10=0,"",LOOKUP(T10,P3:DL3,P4:DL4)) ->  | Y10: 1 | Z10: 3 | AA10: 5 | AE10: Zero
A11: 6 | B11: Gazetted H.M. Gr-II | F11: 10 | G11: Head of A/c | H11: =IF(H12=B38,B35,B36) -> 2202-02-191-05-010 | O11: =ZPPF!L406 -> 52900 | P11: Fifty two Thousand Nine Hundred rupees only | Q11: 0 | R11: 52 | S11: 9 | T11: 0 | U11: =IF(Q11=0,"",LOOKUP(Q11,P3:DL3,P4:DL4)) ->  | V11: =IF(R11=0,"",LOOKUP(R11,P3:DL3,P4:DL4)) -> Fifty two | W11: =IF(S11=0,"",LOOKUP(S11,P3:DL3,P4:DL4)) -> Nine | X11: =IF(T11=0,"",LOOKUP(T11,P3:DL3,P4:DL4)) ->  | Y11: 2 | Z11: 3 | AA11: 5 | AC11: Thousand | AD11: Hundred | AE11: Fifty two Thousand Nine Hundred
A12: 7 | B12: Head Master | F12: 11 | H12: =LOOKUP(A37,A38:B39,B38:B39) -> Secondary Education | O12: =GPF!G413 -> 0 | P12: Zero rupees only | Q12: 0 | R12: 0 | S12: 0 | T12: 0 | U12: =IF(Q12=0,"",LOOKUP(Q12,P3:DL3,P4:DL4)) ->  | V12: =IF(R12=0,"",LOOKUP(R12,P3:DL3,P4:DL4)) ->  | W12: =IF(S12=0,"",LOOKUP(S12,P3:DL3,P4:DL4)) ->  | X12: =IF(T12=0,"",LOOKUP(T12,P3:DL3,P4:DL4)) ->  | Y12: 1 | Z12: 3 | AA12: 5 | AE12: Zero
A13: 8 | B13: Head Mistress | F13: 12 | G13: DA | H13: =IF(Home!E11>0,Home!E11,LOOKUP(J17,H17:I22,I17:I22)) -> 0.47936 | I13: 1 | J13: FA | K13: =J29 -> 10 | O13: =CPS!N420 -> 2595 | P13: Two Thousand Five Hundred and Ninety five rupees only | Q13: 0 | R13: 2 | S13: 5 | T13: 95 | U13: =IF(Q13=0,"",LOOKUP(Q13,P3:DL3,P4:DL4)) ->  | V13: =IF(R13=0,"",LOOKUP(R13,P3:DL3,P4:DL4)) -> Two | W13: =IF(S13=0,"",LOOKUP(S13,P3:DL3,P4:DL4)) -> Five | X13: =IF(T13=0,"",LOOKUP(T13,P3:DL3,P4:DL4)) -> Ninety five | Y13: 2 | Z13: 4 | AA13: 6 | AC13: Thousand | AD13: Hundred | AE13: Two Thousand Five Hundred and Ninety five
A14: 9 | B14: Mandal Educational Officer | F14: 13 | G14: HRA | H14: =LOOKUP(J20,K17:L22,L17:L22) -> 0.12 | I14: 2 | J14: ZPPF | O14: =LIC!G407 -> 14097 | P14: Fourteen Thousand and Ninety seven rupees only | Q14: 0 | R14: 14 | S14: 0 | T14: 97 | U14: =IF(Q14=0,"",LOOKUP(Q14,P3:DL3,P4:DL4)) ->  | V14: =IF(R14=0,"",LOOKUP(R14,P3:DL3,P4:DL4)) -> Fourteen | W14: =IF(S14=0,"",LOOKUP(S14,P3:DL3,P4:DL4)) ->  | X14: =IF(T14=0,"",LOOKUP(T14,P3:DL3,P4:DL4)) -> Ninety seven | Y14: 2 | Z14: 4 | AA14: 6 | AC14: Thousand | AE14: Fourteen Thousand and Ninety seven
A15: 10 | B15: Principal | F15: 14 | G15: Bill date&Month | H15: =C17&"-"&D17&"-"&LOOKUP(E17,C19:E21,E19:E21) -> 26-11-2012 | I15: 3 | N15: Income Tax | O15: =I.TAx!G401 -> 0 | P15: Zero rupees only | Q15: 0 | R15: 0 | S15: 0 | T15: 0 | U15: =IF(Q15=0,"",LOOKUP(Q15,P3:DL3,P4:DL4)) ->  | V15: =IF(R15=0,"",LOOKUP(R15,P3:DL3,P4:DL4)) ->  | W15: =IF(S15=0,"",LOOKUP(S15,P3:DL3,P4:DL4)) ->  | X15: =IF(T15=0,"",LOOKUP(T15,P3:DL3,P4:DL4)) ->  | Y15: 1 | Z15: 3 | AA15: 5 | AE15: Zero
A16: 11 | B16: Project Officer | H16: DA | J16: DA | K16: HRA | N16: NET | O16: ='47-OUTER'!I56 -> 473736 | P16: Four Lakhs Seventy three Thousand Seven Hundred and Thirty six rupees only | Q16: 4 | R16: 73 | S16: 7 | T16: 36 | U16: =IF(Q16=0,"",LOOKUP(Q16,P3:DL3,P4:DL4)) -> Four | V16: =IF(R16=0,"",LOOKUP(R16,P3:DL3,P4:DL4)) -> Seventy three | W16: =IF(S16=0,"",LOOKUP(S16,P3:DL3,P4:DL4)) -> Seven | X16: =IF(T16=0,"",LOOKUP(T16,P3:DL3,P4:DL4)) -> Thirty six | Y16: 2 | Z16: 4 | AA16: 6 | AB16: Lakhs | AC16: Thousand | AD16: Hundred | AE16: Four Lakhs Seventy three Thousand Seven Hundred and Thirty six
A17: 12 | B17: R.J.D.S.E. | C17: 26 | D17: 11 | E17: 1 | H17: 1 | I17: 0.16264 | J17: 6 | K17: 1 | L17: 0.1 | N17: Under RS | O17: =O16+1 -> 473737 | P17: Four Lakhs Seventy three Thousand Seven Hundred and Thirty seven rupees only | Q17: 4 | R17: 73 | S17: 7 | T17: 37 | U17: =IF(Q17=0,"",LOOKUP(Q17,P3:DL3,P4:DL4)) -> Four | V17: =IF(R17=0,"",LOOKUP(R17,P3:DL3,P4:DL4)) -> Seventy three | W17: =IF(S17=0,"",LOOKUP(S17,P3:DL3,P4:DL4)) -> Seven | X17: =IF(T17=0,"",LOOKUP(T17,P3:DL3,P4:DL4)) -> Thirty seven | Y17: 2 | Z17: 4 | AA17: 6 | AB17: Lakhs | AC17: Thousand | AD17: Hundred | AE17: Four Lakhs Seventy three Thousand Seven Hundred and Thirty seven
A18: 1 | C18: Bill Date | F18: 1 | G18: 0 | H18: 2 | I18: 0.24824 | K18: 2 | L18: 0.12 | N18: LIC | O18: ='LIC Details'!F3980 -> 14097 | P18: Fourteen Thousand and Ninety seven rupees only | Q18: 0 | R18: 14 | S18: 0 | T18: 97 | U18: =IF(Q18=0,"",LOOKUP(Q18,P3:DL3,P4:DL4)) ->  | V18: =IF(R18=0,"",LOOKUP(R18,P3:DL3,P4:DL4)) -> Fourteen | W18: =IF(S18=0,"",LOOKUP(S18,P3:DL3,P4:DL4)) ->  | X18: =IF(T18=0,"",LOOKUP(T18,P3:DL3,P4:DL4)) -> Ninety seven | Y18: 2 | Z18: 4 | AA18: 6 | AC18: Thousand | AE18: Fourteen Thousand and Ninety seven
A19: 1 | B19: B.A.,B.Ed | C19: 1 | D19: JANUARY | E19: 2012 | F19: 2 | G19: 3600 | H19: 3 | I19: =I18+5.136% -> 0.2996 | J19: HRA | K19: 3 | L19: 0.125 | N19: EWF | O19: =EWF!F401 -> 0 | P19: Zero rupees only | Q19: 0 | R19: 0 | S19: 0 | T19: 0 | U19: =IF(Q19=0,"",LOOKUP(Q19,P3:DL3,P4:DL4)) ->  | V19: =IF(R19=0,"",LOOKUP(R19,P3:DL3,P4:DL4)) ->  | W19: =IF(S19=0,"",LOOKUP(S19,P3:DL3,P4:DL4)) ->  | X19: =IF(T19=0,"",LOOKUP(T19,P3:DL3,P4:DL4)) ->  | Y19: 1 | Z19: 3 | AA19: 5 | AE19: Zero
A20: 2 | B20: B.Com.,B.Ed | C20: 2 | D20: FEBRUARY | E20: 2013 | F20: 3 | G20: 4400 | H20: 4 | I20: 0.35952 | J20: 2 | K20: 4 | L20: 0.145 | N20: CM RF | O20: ='CM relief'!F401 -> 0 | P20: Zero rupees only | Q20: 0 | R20: 0 | S20: 0 | T20: 0 | U20: =IF(Q20=0,"",LOOKUP(Q20,P3:DL3,P4:DL4)) ->  | V20: =IF(R20=0,"",LOOKUP(R20,P3:DL3,P4:DL4)) ->  | W20: =IF(S20=0,"",LOOKUP(S20,P3:DL3,P4:DL4)) ->  | X20: =IF(T20=0,"",LOOKUP(T20,P3:DL3,P4:DL4)) ->  | Y20: 1 | Z20: 3 | AA20: 5 | AE20: Zero
A21: 3 | B21: B.Sc.,B.Ed | C21: 3 | D21: MARCH | E21: 2014 | F21: 4 | G21: 4500 | H21: 5 | I21: 0.41944 | K21: 5 | L21: 0.2 | O21: =Home!Q14-(LOOKUP(Home!H11,Paybil!B7:AM403,Paybil!AG7:AG403)+LOOKUP(Home!H11,Paybil!B7:AM403,Paybil!AJ7:AJ403)) -> 18775 | P21: Eighteen Thousand Seven Hundred and Seventy five rupees only | Q21: 0 | R21: 18 | S21: 7 | T21: 75 | U21: =IF(Q21=0,"",LOOKUP(Q21,P3:DL3,P4:DL4)) ->  | V21: =IF(R21=0,"",LOOKUP(R21,P3:DL3,P4:DL4)) -> Eighteen | W21: =IF(S21=0,"",LOOKUP(S21,P3:DL3,P4:DL4)) -> Seven | X21: =IF(T21=0,"",LOOKUP(T21,P3:DL3,P4:DL4)) -> Seventy five | Y21: 2 | Z21: 4 | AA21: 6 | AC21: Thousand | AD21: Hundred | AE21: Eighteen Thousand Seven Hundred and Seventy five
A22: 4 | B22: B.A.,M.Ed | C22: 4 | D22: APRIL | F22: 5 | G22: 5400 | H22: 6 | I22: 0.47936 | K22: 6 | L22: 0.3
A23: 5 | B23: B.Com.,M.Ed | C23: 5 | D23: MAY | F23: 6 | G23: 6700
A24: 6 | B24: B.Sc.,M.Ed | C24: 6 | D24: JUNE | F24: 7 | G24: 6900
A25: 7 | B25: M.A.,B.Ed | C25: 7 | D25: JULY | F25: 8 | G25: 7100 | H25: Bill Month | I25: 1 | J25: =LOOKUP(I25,H26:I50,I26:I50) -> 2012-11-01
A26: 8 | B26: M.Com.,B.Ed | C26: 8 | D26: AUGUST | F26: 9 | G26: 7300 | H26: 1 | I26: 2012-11-01 | J26: =MONTH(J25) -> 11
A27: 9 | B27: M.Sc.,B.Ed | C27: 9 | D27: SEPTEMBER | F27: 10 | G27: 7520 | H27: 2 | I27: 2012-12-01 | J27: =LOOKUP(J26,C19:D30,D19:D30) -> NOVEMBER
A28: 10 | B28: M.A.,M.Ed | C28: 10 | D28: OCTOBER | F28: 11 | G28: 7740 | H28: 3 | I28: 2013-01-01 | J28: =YEAR(J25) -> 2012 | L28: =LOOKUP(J26,L29:N40,N29:N40) -> 30 | P28: 2 | Q28: =LOOKUP(P28,P29:Q31,Q29:Q31) -> Smt. | R28: =LOOKUP(P28,P29:R31,R29:R31) -> her
A29: 11 | B29: M.Com.,M.Ed | C29: 11 | D29: NOVEMBER | F29: 12 | G29: 7960 | H29: 4 | I29: 2013-02-01 | J29: 10 | L29: 1 | M29: Jan | N29: 31 | P29: 1 | Q29: Sri. | R29: his
A30: 12 | B30: M.Sc.,M.Ed | C30: 12 | D30: DECEMBER | F30: 13 | G30: 8200 | H30: 5 | I30: 2013-03-01 | J30: 1 | L30: 2 | M30: Feb | N30: =IF(J28=2012,29,28) -> 29 | P30: 2 | Q30: Smt. | R30: her
A31: 13 | B31: M.Sc.,M.Ed.,M.Phil | C31: 13 | F31: 14 | G31: 8440 | H31: 6 | I31: 2013-04-01 | J31: 2 | L31: 3 | M31: Mar | N31: 31 | P31: 3 | Q31: Kum. | R31: her
A32: 14 | B32: M.A.,M.Ed.,M.Phil | C32: 14 | F32: 15 | G32: 8680 | H32: 7 | I32: 2013-05-01 | J32: 3 | L32: 4 | M32: Apr | N32: 30
A33: 15 | B33: M.Com.,M.Ed.,M.Phil | C33: 15 | F33: 16 | G33: 8940 | H33: 8 | I33: 2013-06-01 | J33: 4 | L33: 5 | M33: May | N33: 31
C34: 16 | F34: 17 | G34: 9200 | H34: 9 | I34: 2013-07-01 | J34: 5 | L34: 6 | M34: Jun | N34: 30
A35: 1 | B35: 2202-01-191-05-010 | C35: 17 | F35: 18 | G35: 9460 | H35: 10 | I35: 2013-08-01 | J35: 6 | L35: 7 | M35: Jul | N35: 31
A36: 2 | B36: 2202-02-191-05-010 | C36: 18 | F36: 19 | G36: 9740 | H36: 11 | I36: 2013-09-01 | J36: 7 | L36: 8 | M36: Aug | N36: 31
A37: 2 | C37: 19 | F37: 20 | G37: 10020 | H37: 12 | I37: 2013-10-01 | J37: 8 | L37: 9 | M37: Sep | N37: 30
A38: 1 | B38: Primary Education | C38: 20 | F38: 21 | G38: 10300 | H38: 13 | I38: 2013-11-01 | J38: 9 | L38: 10 | M38: Oct | N38: 31
A39: 2 | B39: Secondary Education | C39: 21 | F39: 22 | G39: 10600 | H39: 14 | I39: 2013-12-01 | J39: 10 | L39: 11 | M39: Nov | N39: 30
C40: 22 | F40: 23 | G40: 10900 | H40: 15 | I40: 2014-01-01 | L40: 12 | M40: Dec | N40: 31
C41: 23 | F41: 24 | G41: 11200 | H41: 16 | I41: 2014-02-01 | L41: 13
C42: 24 | F42: 25 | G42: 11530 | H42: 17 | I42: 2014-03-01 | L42: 14
C43: 25 | F43: 26 | G43: 11860 | H43: 18 | I43: 2014-04-01 | L43: 15
C44: 26 | F44: 27 | G44: 12190 | H44: 19 | I44: 2014-05-01 | L44: 16 | Q44: Basic pay | R44: FPI | S44: Add Incre | T44: HMA | U44: CA | V44: DA | W44: HRA | Y44: Total | Z44: PT
C45: 27 | F45: 28 | G45: 12550 | H45: 20 | I45: 2014-06-01 | L45: 17 | N45: ='Empolyees Details'!N4 -> 0 | O45: =$L$28 -> 30 | P45: =IF(N45=0,O45,N45) -> 30 | Q45: ='Empolyees Details'!O4 -> 23650 | R45: ='Empolyees Details'!P4 -> 35 | S45: ='Empolyees Details'!Q4 -> 60 | T45: ='Empolyees Details'!R4 -> 0 | U45: ='Empolyees Details'!S4 -> 0 | V45: =ROUND(Q45*$H$13,0) -> 11337 | W45: =ROUND(Q45*$H$14,0) -> 2838 | Y45: =SUM(Q45:X45) -> 37920 | Z45: =IF(Y45>20000,200,IF(Y45>15000,150,IF(Y45>10000,100,IF(Y45>6000,80,IF(Y45>5000,60,IF(Y45>4000,45,IF(Y45>3000,35,IF(Y45>2000,25,0)))))))) -> 200 | AA45: =P45/O45 -> 1
C46: 28 | F46: 29 | G46: 12910 | H46: 21 | I46: 2014-07-01 | L46: 18 | N46: ='Empolyees Details'!N5 -> 0 | O46: =$L$28 -> 30 | P46: =IF(N46=0,O46,N46) -> 30 | Q46: ='Empolyees Details'!O5 -> 17540 | R46: ='Empolyees Details'!P5 -> 0 | S46: ='Empolyees Details'!Q5 -> 0 | T46: ='Empolyees Details'!R5 -> 0 | U46: ='Empolyees Details'!S5 -> 0 | V46: =ROUND(Q46*$H$13,0) -> 8408 | W46: =ROUND(Q46*$H$14,0) -> 2105 | Y46: =SUM(Q46:X46) -> 28053 | Z46: =IF(Y46>20000,200,IF(Y46>15000,150,IF(Y46>10000,100,IF(Y46>6000,80,IF(Y46>5000,60,IF(Y46>4000,45,IF(Y46>3000,35,IF(Y46>2000,25,0)))))))) -> 200 | AA46: =P46/O46 -> 1
C47: 29 | F47: 30 | G47: 13270 | H47: 22 | I47: 2014-08-01 | L47: 19 | N47: ='Empolyees Details'!N6 -> 0 | O47: 30 | P47: 30 | Q47: ='Empolyees Details'!O6 -> 17540 | R47: ='Empolyees Details'!P6 -> 0 | S47: ='Empolyees Details'!Q6 -> 0 | T47: ='Empolyees Details'!R6 -> 0 | U47: ='Empolyees Details'!S6 -> 0 | V47: 8408 | W47: 2105 | Y47: 28053 | Z47: 200 | AA47: 1
C48: 30 | F48: 31 | G48: 13660 | H48: 23 | I48: 2014-09-01 | L48: 20 | N48: ='Empolyees Details'!N7 -> 0 | O48: 30 | P48: 30 | Q48: ='Empolyees Details'!O7 -> 17540 | R48: ='Empolyees Details'!P7 -> 0 | S48: ='Empolyees Details'!Q7 -> 0 | T48: ='Empolyees Details'!R7 -> 0 | U48: ='Empolyees Details'!S7 -> 0 | V48: 8408 | W48: 2105 | Y48: 28053 | Z48: 200 | AA48: 1
C49: 31 | F49: 32 | G49: 14050 | H49: 24 | I49: 2014-10-01 | L49: 21 | N49: ='Empolyees Details'!N8 -> 0 | O49: 30 | P49: 30 | Q49: ='Empolyees Details'!O8 -> 16150 | R49: ='Empolyees Details'!P8 -> 0 | S49: ='Empolyees Details'!Q8 -> 0 | T49: ='Empolyees Details'!R8 -> 0 | U49: ='Empolyees Details'!S8 -> 0 | V49: 7742 | W49: 1938 | Y49: 25830 | Z49: 200 | AA49: 1
F50: 33 | G50: 14440 | H50: 25 | I50: 2014-11-01 | L50: 22 | N50: ='Empolyees Details'!N9 -> 0 | O50: 30 | P50: 30 | Q50: ='Empolyees Details'!O9 -> 16150 | R50: ='Empolyees Details'!P9 -> 0 | S50: ='Empolyees Details'!Q9 -> 0 | T50: ='Empolyees Details'!R9 -> 0 | U50: ='Empolyees Details'!S9 -> 0 | V50: 7742 | W50: 1938 | Y50: 25830 | Z50: 200 | AA50: 1
F51: 34 | G51: 14860 | L51: 23 | N51: ='Empolyees Details'!N10 -> 0 | O51: 30 | P51: 30 | Q51: ='Empolyees Details'!O10 -> 23650 | R51: ='Empolyees Details'!P10 -> 0 | S51: ='Empolyees Details'!Q10 -> 205 | T51: ='Empolyees Details'!R10 -> 0 | U51: ='Empolyees Details'!S10 -> 0 | V51: 11337 | W51: 2838 | Y51: 38030 | Z51: 200 | AA51: 1
C52: =LOOKUP(C53,A55:C57,C55:C57) -> 2012 | F52: 35 | G52: 15280 | L52: 24 | N52: ='Empolyees Details'!N11 -> 0 | O52: 30 | P52: 30 | Q52: ='Empolyees Details'!O11 -> 20110 | R52: ='Empolyees Details'!P11 -> 0 | S52: ='Empolyees Details'!Q11 -> 100 | T52: ='Empolyees Details'!R11 -> 0 | U52: ='Empolyees Details'!S11 -> 0 | V52: 9640 | W52: 2413 | Y52: 32263 | Z52: 200 | AA52: 1
A53: 26 | B53: 11 | C53: 1 | F53: 36 | G53: 15700 | L53: 25 | N53: ='Empolyees Details'!N12 -> 0 | O53: 30 | P53: 30 | Q53: ='Empolyees Details'!O12 -> 17540 | R53: ='Empolyees Details'!P12 -> 0 | S53: ='Empolyees Details'!Q12 -> 0 | T53: ='Empolyees Details'!R12 -> 0 | U53: ='Empolyees Details'!S12 -> 0 | V53: 8408 | W53: 2105 | Y53: 28053 | Z53: 200 | AA53: 1
A54: Proce date | F54: 37 | G54: 16150 | L54: 26 | N54: ='Empolyees Details'!N13 -> 0 | O54: 30 | P54: 30 | Q54: ='Empolyees Details'!O13 -> 17050 | R54: ='Empolyees Details'!P13 -> 0 | S54: ='Empolyees Details'!Q13 -> 0 | T54: ='Empolyees Details'!R13 -> 0 | U54: ='Empolyees Details'!S13 -> 0 | V54: 8173 | W54: 2046 | Y54: 27269 | Z54: 200 | AA54: 1
A55: 1 | B55: JANUARY | C55: 2012 | F55: 38 | G55: 16600 | L55: 27 | N55: ='Empolyees Details'!N14 -> 0 | O55: 30 | P55: 30 | Q55: ='Empolyees Details'!O14 -> 16150 | R55: ='Empolyees Details'!P14 -> 0 | S55: ='Empolyees Details'!Q14 -> 0 | T55: ='Empolyees Details'!R14 -> 0 | U55: ='Empolyees Details'!S14 -> 0 | V55: 7742 | W55: 1938 | Y55: 25830 | Z55: 200 | AA55: 1
A56: 2 | B56: FEBRUARY | C56: 2013 | F56: 39 | G56: 17050 | L56: 28 | N56: ='Empolyees Details'!N15 -> 0 | O56: 30 | P56: 30 | Q56: ='Empolyees Details'!O15 -> 31550 | R56: ='Empolyees Details'!P15 -> 35 | S56: ='Empolyees Details'!Q15 -> 0 | T56: ='Empolyees Details'!R15 -> 0 | U56: ='Empolyees Details'!S15 -> 0 | V56: 15124 | W56: 3786 | Y56: 50495 | Z56: 200 | AA56: 1
A57: 3 | B57: MARCH | C57: 2014 | F57: 40 | G57: 17540 | L57: 29 | N57: ='Empolyees Details'!N16 -> 0 | O57: 30 | P57: 30 | Q57: ='Empolyees Details'!O16 -> 28450 | R57: ='Empolyees Details'!P16 -> 35 | S57: ='Empolyees Details'!Q16 -> 0 | T57: ='Empolyees Details'!R16 -> 0 | U57: ='Empolyees Details'!S16 -> 0 | V57: 13638 | W57: 3414 | Y57: 45537 | Z57: 200 | AA57: 1
A58: 4 | B58: APRIL | F58: 41 | G58: 18030 | L58: 30 | N58: ='Empolyees Details'!N17 -> 0 | O58: 30 | P58: 30 | Q58: ='Empolyees Details'!O17 -> 23040 | R58: ='Empolyees Details'!P17 -> 0 | S58: ='Empolyees Details'!Q17 -> 35 | T58: ='Empolyees Details'!R17 -> 0 | U58: ='Empolyees Details'!S17 -> 0 | V58: 11044 | W58: 2765 | Y58: 36884 | Z58: 200 | AA58: 1
A59: 5 | B59: MAY | F59: 42 | G59: 18520 | L59: 31 | N59: ='Empolyees Details'!N18 -> 0 | O59: 30 | P59: 30 | Q59: ='Empolyees Details'!O18 -> 23040 | R59: ='Empolyees Details'!P18 -> 0 | S59: ='Empolyees Details'!Q18 -> 70 | T59: ='Empolyees Details'!R18 -> 0 | U59: ='Empolyees Details'!S18 -> 0 | V59: 11044 | W59: 2765 | Y59: 36919 | Z59: 200 | AA59: 1
A60: 6 | B60: JUNE | F60: 43 | G60: 19050 | N60: ='Empolyees Details'!N19 -> 0 | O60: 30 | P60: 30 | Q60: ='Empolyees Details'!O19 -> 12910 | R60: ='Empolyees Details'!P19 -> 0 | S60: ='Empolyees Details'!Q19 -> 0 | T60: ='Empolyees Details'!R19 -> 0 | U60: ='Empolyees Details'!S19 -> 0 | V60: 6189 | W60: 1549 | Y60: 20648 | Z60: 200 | AA60: 1
A61: 7 | B61: JULY | F61: 44 | G61: 19580 | N61: ='Empolyees Details'!N20 -> 0 | O61: 30 | P61: 30 | Q61: ='Empolyees Details'!O20 -> 16600 | R61: ='Empolyees Details'!P20 -> 0 | S61: ='Empolyees Details'!Q20 -> 0 | T61: ='Empolyees Details'!R20 -> 0 | U61: ='Empolyees Details'!S20 -> 0 | V61: 7957 | W61: 1992 | Y61: 26549 | Z61: 200 | AA61: 1
A62: 8 | B62: AUGUST | F62: 45 | G62: 20110 | N62: ='Empolyees Details'!N21 -> 0 | O62: 30 | P62: 30 | Q62: ='Empolyees Details'!O21 -> 0 | R62: ='Empolyees Details'!P21 -> 0 | S62: ='Empolyees Details'!Q21 -> 0 | T62: ='Empolyees Details'!R21 -> 0 | U62: ='Empolyees Details'!S21 -> 0 | V62: 0 | W62: 0 | Y62: 0 | Z62: 0 | AA62: 1
A63: 9 | B63: SEPTEMBER | F63: 46 | G63: 20680 | N63: ='Empolyees Details'!N22 -> 0 | O63: 30 | P63: 30 | Q63: ='Empolyees Details'!O22 -> 0 | R63: ='Empolyees Details'!P22 -> 0 | S63: ='Empolyees Details'!Q22 -> 0 | T63: ='Empolyees Details'!R22 -> 0 | U63: ='Empolyees Details'!S22 -> 0 | V63: 0 | W63: 0 | Y63: 0 | Z63: 0 | AA63: 1
A64: 10 | B64: OCTOBER | F64: 47 | G64: 21250 | N64: ='Empolyees Details'!N23 -> 0 | O64: 30 | P64: 30 | Q64: ='Empolyees Details'!O23 -> 0 | R64: ='Empolyees Details'!P23 -> 0 | S64: ='Empolyees Details'!Q23 -> 0 | T64: ='Empolyees Details'!R23 -> 0 | U64: ='Empolyees Details'!S23 -> 0 | V64: 0 | W64: 0 | Y64: 0 | Z64: 0 | AA64: 1
A65: 11 | B65: NOVEMBER | F65: 48 | G65: 21820 | N65: ='Empolyees Details'!N24 -> 0 | O65: 30 | P65: 30 | Q65: ='Empolyees Details'!O24 -> 0 | R65: ='Empolyees Details'!P24 -> 0 | S65: ='Empolyees Details'!Q24 -> 0 | T65: ='Empolyees Details'!R24 -> 0 | U65: ='Empolyees Details'!S24 -> 0 | V65: 0 | W65: 0 | Y65: 0 | Z65: 0 | AA65: 1
A66: 12 | B66: DECEMBER | F66: 49 | G66: 22430 | N66: ='Empolyees Details'!N25 -> 0 | O66: 30 | P66: 30 | Q66: ='Empolyees Details'!O25 -> 0 | R66: ='Empolyees Details'!P25 -> 0 | S66: ='Empolyees Details'!Q25 -> 0 | T66: ='Empolyees Details'!R25 -> 0 | U66: ='Empolyees Details'!S25 -> 0 | V66: 0 | W66: 0 | Y66: 0 | Z66: 0 | AA66: 1
A67: 13 | F67: 50 | G67: 23040 | N67: ='Empolyees Details'!N26 -> 0 | O67: 30 | P67: 30 | Q67: ='Empolyees Details'!O26 -> 0 | R67: ='Empolyees Details'!P26 -> 0 | S67: ='Empolyees Details'!Q26 -> 0 | T67: ='Empolyees Details'!R26 -> 0 | U67: ='Empolyees Details'!S26 -> 0 | V67: 0 | W67: 0 | Y67: 0 | Z67: 0 | AA67: 1
A68: 14 | F68: 51 | G68: 23650 | N68: ='Empolyees Details'!N27 -> 0 | O68: 30 | P68: 30 | Q68: ='Empolyees Details'!O27 -> 0 | R68: ='Empolyees Details'!P27 -> 0 | S68: ='Empolyees Details'!Q27 -> 0 | T68: ='Empolyees Details'!R27 -> 0 | U68: ='Empolyees Details'!S27 -> 0 | V68: 0 | W68: 0 | Y68: 0 | Z68: 0 | AA68: 1
A69: 15 | F69: 52 | G69: 24300 | N69: ='Empolyees Details'!N28 -> 0 | O69: 30 | P69: 30 | Q69: ='Empolyees Details'!O28 -> 0 | R69: ='Empolyees Details'!P28 -> 0 | S69: ='Empolyees Details'!Q28 -> 0 | T69: ='Empolyees Details'!R28 -> 0 | U69: ='Empolyees Details'!S28 -> 0 | V69: 0 | W69: 0 | Y69: 0 | Z69: 0 | AA69: 1
A70: 16 | F70: 53 | G70: 24950 | N70: ='Empolyees Details'!N29 -> 0 | O70: 30 | P70: 30 | Q70: ='Empolyees Details'!O29 -> 0 | R70: ='Empolyees Details'!P29 -> 0 | S70: ='Empolyees Details'!Q29 -> 0 | T70: ='Empolyees Details'!R29 -> 0 | U70: ='Empolyees Details'!S29 -> 0 | V70: 0 | W70: 0 | Y70: 0 | Z70: 0 | AA70: 1
A71: 17 | F71: 54 | G71: 25600 | N71: ='Empolyees Details'!N30 -> 0 | O71: 30 | P71: 30 | Q71: ='Empolyees Details'!O30 -> 0 | R71: ='Empolyees Details'!P30 -> 0 | S71: ='Empolyees Details'!Q30 -> 0 | T71: ='Empolyees Details'!R30 -> 0 | U71: ='Empolyees Details'!S30 -> 0 | V71: 0 | W71: 0 | Y71: 0 | Z71: 0 | AA71: 1
A72: 18 | F72: 55 | G72: 26300 | N72: ='Empolyees Details'!N31 -> 0 | O72: 30 | P72: 30 | Q72: ='Empolyees Details'!O31 -> 0 | R72: ='Empolyees Details'!P31 -> 0 | S72: ='Empolyees Details'!Q31 -> 0 | T72: ='Empolyees Details'!R31 -> 0 | U72: ='Empolyees Details'!S31 -> 0 | V72: 0 | W72: 0 | Y72: 0 | Z72: 0 | AA72: 1
A73: 19 | F73: 56 | G73: 27000 | N73: ='Empolyees Details'!N32 -> 0 | O73: 30 | P73: 30 | Q73: ='Empolyees Details'!O32 -> 0 | R73: ='Empolyees Details'!P32 -> 0 | S73: ='Empolyees Details'!Q32 -> 0 | T73: ='Empolyees Details'!R32 -> 0 | U73: ='Empolyees Details'!S32 -> 0 | V73: 0 | W73: 0 | Y73: 0 | Z73: 0 | AA73: 1
A74: 20 | F74: 57 | G74: 27700 | N74: ='Empolyees Details'!N33 -> 0 | O74: 30 | P74: 30 | Q74: ='Empolyees Details'!O33 -> 0 | R74: ='Empolyees Details'!P33 -> 0 | S74: ='Empolyees Details'!Q33 -> 0 | T74: ='Empolyees Details'!R33 -> 0 | U74: ='Empolyees Details'!S33 -> 0 | V74: 0 | W74: 0 | Y74: 0 | Z74: 0 | AA74: 1
A75: 21 | F75: 58 | G75: 28450 | N75: ='Empolyees Details'!N34 -> 0 | O75: 30 | P75: 30 | Q75: ='Empolyees Details'!O34 -> 0 | R75: ='Empolyees Details'!P34 -> 0 | S75: ='Empolyees Details'!Q34 -> 0 | T75: ='Empolyees Details'!R34 -> 0 | U75: ='Empolyees Details'!S34 -> 0 | V75: 0 | W75: 0 | Y75: 0 | Z75: 0 | AA75: 1
A76: 22 | F76: 59 | G76: 29200 | N76: ='Empolyees Details'!N35 -> 0 | O76: 30 | P76: 30 | Q76: ='Empolyees Details'!O35 -> 0 | R76: ='Empolyees Details'!P35 -> 0 | S76: ='Empolyees Details'!Q35 -> 0 | T76: ='Empolyees Details'!R35 -> 0 | U76: ='Empolyees Details'!S35 -> 0 | V76: 0 | W76: 0 | Y76: 0 | Z76: 0 | AA76: 1
A77: 23 | F77: 60 | G77: 29950 | N77: ='Empolyees Details'!N36 -> 0 | O77: 30 | P77: 30 | Q77: ='Empolyees Details'!O36 -> 0 | R77: ='Empolyees Details'!P36 -> 0 | S77: ='Empolyees Details'!Q36 -> 0 | T77: ='Empolyees Details'!R36 -> 0 | U77: ='Empolyees Details'!S36 -> 0 | V77: 0 | W77: 0 | Y77: 0 | Z77: 0 | AA77: 1
A78: 24 | F78: 61 | G78: 30750 | N78: ='Empolyees Details'!N37 -> 0 | O78: 30 | P78: 30 | Q78: ='Empolyees Details'!O37 -> 0 | R78: ='Empolyees Details'!P37 -> 0 | S78: ='Empolyees Details'!Q37 -> 0 | T78: ='Empolyees Details'!R37 -> 0 | U78: ='Empolyees Details'!S37 -> 0 | V78: 0 | W78: 0 | Y78: 0 | Z78: 0 | AA78: 1
A79: 25 | F79: 62 | G79: 31550 | N79: ='Empolyees Details'!N38 -> 0 | O79: 30 | P79: 30 | Q79: ='Empolyees Details'!O38 -> 0 | R79: ='Empolyees Details'!P38 -> 0 | S79: ='Empolyees Details'!Q38 -> 0 | T79: ='Empolyees Details'!R38 -> 0 | U79: ='Empolyees Details'!S38 -> 0 | V79: 0 | W79: 0 | Y79: 0 | Z79: 0 | AA79: 1
A80: 26 | F80: 63 | G80: 32350 | N80: ='Empolyees Details'!N39 -> 0 | O80: 30 | P80: 30 | Q80: ='Empolyees Details'!O39 -> 0 | R80: ='Empolyees Details'!P39 -> 0 | S80: ='Empolyees Details'!Q39 -> 0 | T80: ='Empolyees Details'!R39 -> 0 | U80: ='Empolyees Details'!S39 -> 0 | V80: 0 | W80: 0 | Y80: 0 | Z80: 0 | AA80: 1
A81: 27 | F81: 64 | G81: 33200 | N81: ='Empolyees Details'!N40 -> 0 | O81: 30 | P81: 30 | Q81: ='Empolyees Details'!O40 -> 0 | R81: ='Empolyees Details'!P40 -> 0 | S81: ='Empolyees Details'!Q40 -> 0 | T81: ='Empolyees Details'!R40 -> 0 | U81: ='Empolyees Details'!S40 -> 0 | V81: 0 | W81: 0 | Y81: 0 | Z81: 0 | AA81: 1
A82: 28 | F82: 65 | G82: 34050 | N82: ='Empolyees Details'!N41 -> 0 | O82: 30 | P82: 30 | Q82: ='Empolyees Details'!O41 -> 0 | R82: ='Empolyees Details'!P41 -> 0 | S82: ='Empolyees Details'!Q41 -> 0 | T82: ='Empolyees Details'!R41 -> 0 | U82: ='Empolyees Details'!S41 -> 0 | V82: 0 | W82: 0 | Y82: 0 | Z82: 0 | AA82: 1
A83: 29 | D83: 6700 | F83: 66 | G83: 34900 | N83: ='Empolyees Details'!N42 -> 0 | O83: 30 | P83: 30 | Q83: ='Empolyees Details'!O42 -> 0 | R83: ='Empolyees Details'!P42 -> 0 | S83: ='Empolyees Details'!Q42 -> 0 | T83: ='Empolyees Details'!R42 -> 0 | U83: ='Empolyees Details'!S42 -> 0 | V83: 0 | W83: 0 | Y83: 0 | Z83: 0 | AA83: 1
A84: 30 | D84: 6900 | F84: 67 | G84: 35800 | N84: ='Empolyees Details'!N43 -> 0 | O84: 30 | P84: 30 | Q84: ='Empolyees Details'!O43 -> 0 | R84: ='Empolyees Details'!P43 -> 0 | S84: ='Empolyees Details'!Q43 -> 0 | T84: ='Empolyees Details'!R43 -> 0 | U84: ='Empolyees Details'!S43 -> 0 | V84: 0 | W84: 0 | Y84: 0 | Z84: 0 | AA84: 1
A85: 31 | D85: 7100 | F85: 68 | G85: 36700 | N85: ='Empolyees Details'!N44 -> 0 | O85: 30 | P85: 30 | Q85: ='Empolyees Details'!O44 -> 0 | R85: ='Empolyees Details'!P44 -> 0 | S85: ='Empolyees Details'!Q44 -> 0 | T85: ='Empolyees Details'!R44 -> 0 | U85: ='Empolyees Details'!S44 -> 0 | V85: 0 | W85: 0 | Y85: 0 | Z85: 0 | AA85: 1
B86: 4 | C86: 7520 | D86: 7300 | F86: 69 | G86: 37600 | N86: ='Empolyees Details'!N45 -> 0 | O86: 30 | P86: 30 | Q86: ='Empolyees Details'!O45 -> 0 | R86: ='Empolyees Details'!P45 -> 0 | S86: ='Empolyees Details'!Q45 -> 0 | T86: ='Empolyees Details'!R45 -> 0 | U86: ='Empolyees Details'!S45 -> 0 | V86: 0 | W86: 0 | Y86: 0 | Z86: 0 | AA86: 1
B87: 5 | C87: 7740 | D87: 7520 | F87: 70 | G87: 38570 | N87: ='Empolyees Details'!N46 -> 0 | O87: 30 | P87: 30 | Q87: ='Empolyees Details'!O46 -> 0 | R87: ='Empolyees Details'!P46 -> 0 | S87: ='Empolyees Details'!Q46 -> 0 | T87: ='Empolyees Details'!R46 -> 0 | U87: ='Empolyees Details'!S46 -> 0 | V87: 0 | W87: 0 | Y87: 0 | Z87: 0 | AA87: 1
B88: 6 | C88: 7960 | D88: 7740 | F88: 71 | G88: 39540 | N88: ='Empolyees Details'!N47 -> 0 | O88: 30 | P88: 30 | Q88: ='Empolyees Details'!O47 -> 0 | R88: ='Empolyees Details'!P47 -> 0 | S88: ='Empolyees Details'!Q47 -> 0 | T88: ='Empolyees Details'!R47 -> 0 | U88: ='Empolyees Details'!S47 -> 0 | V88: 0 | W88: 0 | Y88: 0 | Z88: 0 | AA88: 1
B89: 7 | C89: 8200 | D89: 7960 | F89: 72 | G89: 40510 | N89: ='Empolyees Details'!N48 -> 0 | O89: 30 | P89: 30 | Q89: ='Empolyees Details'!O48 -> 0 | R89: ='Empolyees Details'!P48 -> 0 | S89: ='Empolyees Details'!Q48 -> 0 | T89: ='Empolyees Details'!R48 -> 0 | U89: ='Empolyees Details'!S48 -> 0 | V89: 0 | W89: 0 | Y89: 0 | Z89: 0 | AA89: 1
B90: 8 | C90: 8440 | D90: 8200 | F90: 73 | G90: 41550 | N90: ='Empolyees Details'!N49 -> 0 | O90: 30 | P90: 30 | Q90: ='Empolyees Details'!O49 -> 0 | R90: ='Empolyees Details'!P49 -> 0 | S90: ='Empolyees Details'!Q49 -> 0 | T90: ='Empolyees Details'!R49 -> 0 | U90: ='Empolyees Details'!S49 -> 0 | V90: 0 | W90: 0 | Y90: 0 | Z90: 0 | AA90: 1
B91: 9 | C91: 8680 | D91: 8440 | F91: 74 | G91: 42590 | H91: 1 | I91: jan | J91: 1 | N91: ='Empolyees Details'!N50 -> 0 | O91: 30 | P91: 30 | Q91: ='Empolyees Details'!O50 -> 0 | R91: ='Empolyees Details'!P50 -> 0 | S91: ='Empolyees Details'!Q50 -> 0 | T91: ='Empolyees Details'!R50 -> 0 | U91: ='Empolyees Details'!S50 -> 0 | V91: 0 | W91: 0 | Y91: 0 | Z91: 0 | AA91: 1
B92: 10 | C92: 8940 | D92: 8680 | F92: 75 | G92: 43630 | H92: 2 | I92: feb | J92: 1 | N92: ='Empolyees Details'!N51 -> 0 | O92: 30 | P92: 30 | Q92: ='Empolyees Details'!O51 -> 0 | R92: ='Empolyees Details'!P51 -> 0 | S92: ='Empolyees Details'!Q51 -> 0 | T92: ='Empolyees Details'!R51 -> 0 | U92: ='Empolyees Details'!S51 -> 0 | V92: 0 | W92: 0 | Y92: 0 | Z92: 0 | AA92: 1
B93: 11 | C93: 9200 | D93: 8940 | F93: 76 | G93: 44740 | H93: 3 | I93: mar | J93: 1 | N93: ='Empolyees Details'!N52 -> 0 | O93: 30 | P93: 30 | Q93: ='Empolyees Details'!O52 -> 0 | R93: ='Empolyees Details'!P52 -> 0 | S93: ='Empolyees Details'!Q52 -> 0 | T93: ='Empolyees Details'!R52 -> 0 | U93: ='Empolyees Details'!S52 -> 0 | V93: 0 | W93: 0 | Y93: 0 | Z93: 0 | AA93: 1
B94: 12 | C94: 9460 | D94: 9200 | F94: 77 | G94: 45850 | H94: 4 | I94: apr | J94: 1 | N94: ='Empolyees Details'!N53 -> 0 | O94: 30 | P94: 30 | Q94: ='Empolyees Details'!O53 -> 0 | R94: ='Empolyees Details'!P53 -> 0 | S94: ='Empolyees Details'!Q53 -> 0 | T94: ='Empolyees Details'!R53 -> 0 | U94: ='Empolyees Details'!S53 -> 0 | V94: 0 | W94: 0 | Y94: 0 | Z94: 0 | AA94: 1
B95: 13 | C95: 9740 | D95: 9460 | F95: 78 | G95: 46960 | H95: 5 | I95: may | J95: 1 | N95: ='Empolyees Details'!N54 -> 0 | O95: 30 | P95: 30 | Q95: ='Empolyees Details'!O54 -> 0 | R95: ='Empolyees Details'!P54 -> 0 | S95: ='Empolyees Details'!Q54 -> 0 | T95: ='Empolyees Details'!R54 -> 0 | U95: ='Empolyees Details'!S54 -> 0 | V95: 0 | W95: 0 | Y95: 0 | Z95: 0 | AA95: 1
B96: 14 | C96: 10020 | D96: 9740 | F96: 79 | G96: 48160 | H96: 6 | I96: jun | J96: 1 | N96: ='Empolyees Details'!N55 -> 0 | O96: 30 | P96: 30 | Q96: ='Empolyees Details'!O55 -> 0 | R96: ='Empolyees Details'!P55 -> 0 | S96: ='Empolyees Details'!Q55 -> 0 | T96: ='Empolyees Details'!R55 -> 0 | U96: ='Empolyees Details'!S55 -> 0 | V96: 0 | W96: 0 | Y96: 0 | Z96: 0 | AA96: 1
B97: 15 | C97: 10300 | D97: 10020 | F97: 80 | G97: 49360 | H97: 7 | I97: jul | J97: 1 | N97: ='Empolyees Details'!N56 -> 0 | O97: 30 | P97: 30 | Q97: ='Empolyees Details'!O56 -> 0 | R97: ='Empolyees Details'!P56 -> 0 | S97: ='Empolyees Details'!Q56 -> 0 | T97: ='Empolyees Details'!R56 -> 0 | U97: ='Empolyees Details'!S56 -> 0 | V97: 0 | W97: 0 | Y97: 0 | Z97: 0 | AA97: 1
B98: 16 | C98: 10600 | D98: 10300 | F98: 81 | G98: 50560 | H98: 8 | I98: aug | J98: 1 | N98: ='Empolyees Details'!N57 -> 0 | O98: 30 | P98: 30 | Q98: ='Empolyees Details'!O57 -> 0 | R98: ='Empolyees Details'!P57 -> 0 | S98: ='Empolyees Details'!Q57 -> 0 | T98: ='Empolyees Details'!R57 -> 0 | U98: ='Empolyees Details'!S57 -> 0 | V98: 0 | W98: 0 | Y98: 0 | Z98: 0 | AA98: 1
B99: 17 | C99: 10900 | D99: 10600 | F99: 82 | G99: 51760 | H99: 9 | I99: sep | J99: 1 | N99: ='Empolyees Details'!N58 -> 0 | O99: 30 | P99: 30 | Q99: ='Empolyees Details'!O58 -> 0 | R99: ='Empolyees Details'!P58 -> 0 | S99: ='Empolyees Details'!Q58 -> 0 | T99: ='Empolyees Details'!R58 -> 0 | U99: ='Empolyees Details'!S58 -> 0 | V99: 0 | W99: 0 | Y99: 0 | Z99: 0 | AA99: 1
B100: 18 | C100: 11200 | D100: 10900 | F100: 83 | G100: 53060 | H100: 10 | I100: oct | J100: 1 | N100: ='Empolyees Details'!N59 -> 0 | O100: 30 | P100: 30 | Q100: ='Empolyees Details'!O59 -> 0 | R100: ='Empolyees Details'!P59 -> 0 | S100: ='Empolyees Details'!Q59 -> 0 | T100: ='Empolyees Details'!R59 -> 0 | U100: ='Empolyees Details'!S59 -> 0 | V100: 0 | W100: 0 | Y100: 0 | Z100: 0 | AA100: 1
B101: 19 | C101: 11530 | D101: 11200 | F101: 84 | G101: 54360 | H101: 11 | I101: nov | J101: 1 | N101: ='Empolyees Details'!N60 -> 0 | O101: 30 | P101: 30 | Q101: ='Empolyees Details'!O60 -> 0 | R101: ='Empolyees Details'!P60 -> 0 | S101: ='Empolyees Details'!Q60 -> 0 | T101: ='Empolyees Details'!R60 -> 0 | U101: ='Empolyees Details'!S60 -> 0 | V101: 0 | W101: 0 | Y101: 0 | Z101: 0 | AA101: 1
B102: 20 | C102: 11860 | D102: 11530 | F102: 85 | G102: 55660 | H102: 12 | I102: dec | J102: 1 | N102: ='Empolyees Details'!N61 -> 0 | O102: 30 | P102: 30 | Q102: ='Empolyees Details'!O61 -> 0 | R102: ='Empolyees Details'!P61 -> 0 | S102: ='Empolyees Details'!Q61 -> 0 | T102: ='Empolyees Details'!R61 -> 0 | U102: ='Empolyees Details'!S61 -> 0 | V102: 0 | W102: 0 | Y102: 0 | Z102: 0 | AA102: 1
B103: 21 | C103: 12190 | D103: 11860 | E103: Salary certificate | N103: ='Empolyees Details'!N62 -> 0 | O103: 30 | P103: 30 | Q103: ='Empolyees Details'!O62 -> 0 | R103: ='Empolyees Details'!P62 -> 0 | S103: ='Empolyees Details'!Q62 -> 0 | T103: ='Empolyees Details'!R62 -> 0 | U103: ='Empolyees Details'!S62 -> 0 | V103: 0 | W103: 0 | Y103: 0 | Z103: 0 | AA103: 1
B104: 22 | C104: 12550 | D104: 12190 | F104: =Home!H11 -> 4 | N104: ='Empolyees Details'!N63 -> 0 | O104: 30 | P104: 30 | Q104: ='Empolyees Details'!O63 -> 0 | R104: ='Empolyees Details'!P63 -> 0 | S104: ='Empolyees Details'!Q63 -> 0 | T104: ='Empolyees Details'!R63 -> 0 | U104: ='Empolyees Details'!S63 -> 0 | V104: 0 | W104: 0 | Y104: 0 | Z104: 0 | AA104: 1
B105: 23 | C105: 12910 | D105: 12550 | F105: =Home!Q3 -> G.Bhaskar | G105: 2 | H105: =LOOKUP(G105,G106:H109,H106:H109) -> ZPPHS | N105: ='Empolyees Details'!N64 -> 0 | O105: 30 | P105: 30 | Q105: ='Empolyees Details'!O64 -> 0 | R105: ='Empolyees Details'!P64 -> 0 | S105: ='Empolyees Details'!Q64 -> 0 | T105: ='Empolyees Details'!R64 -> 0 | U105: ='Empolyees Details'!S64 -> 0 | V105: 0 | W105: 0 | Y105: 0 | Z105: 0 | AA105: 1
B106: 24 | C106: 13270 | D106: 12910 | F106: =LOOKUP(F104,'Empolyees Details'!B4:E1048576,'Empolyees Details'!E4:E1048576) -> 0 | G106: 1 | H106: MRC | N106: ='Empolyees Details'!N65 -> 0 | O106: 30 | P106: 30 | Q106: ='Empolyees Details'!O65 -> 0 | R106: ='Empolyees Details'!P65 -> 0 | S106: ='Empolyees Details'!Q65 -> 0 | T106: ='Empolyees Details'!R65 -> 0 | U106: ='Empolyees Details'!S65 -> 0 | V106: 0 | W106: 0 | Y106: 0 | Z106: 0 | AA106: 1
B107: 25 | C107: 13660 | D107: 13270 | F107: =IF(H105="MRC",F106,H110) -> ZPPHS,Balayapalli | G107: 2 | H107: ZPPHS | N107: ='Empolyees Details'!N66 -> 0 | O107: 30 | P107: 30 | Q107: ='Empolyees Details'!O66 -> 0 | R107: ='Empolyees Details'!P66 -> 0 | S107: ='Empolyees Details'!Q66 -> 0 | T107: ='Empolyees Details'!R66 -> 0 | U107: ='Empolyees Details'!S66 -> 0 | V107: 0 | W107: 0 | Y107: 0 | Z107: 0 | AA107: 1
B108: 26 | C108: 14050 | D108: 13660 | E108: Join Date | F108: =LOOKUP(F104,'Empolyees Details'!B4:V1048576,'Empolyees Details'!U4:U1048576) -> 2009-02-02 | G108: 3 | H108: ZPPGHS | N108: ='Empolyees Details'!N67 -> 0 | O108: 30 | P108: 30 | Q108: ='Empolyees Details'!O67 -> 0 | R108: ='Empolyees Details'!P67 -> 0 | S108: ='Empolyees Details'!Q67 -> 0 | T108: ='Empolyees Details'!R67 -> 0 | U108: ='Empolyees Details'!S67 -> 0 | V108: 0 | W108: 0 | Y108: 0 | Z108: 0 | AA108: 1
B109: 27 | C109: 14440 | D109: 14050 | E109: Date of Birth | F109: =LOOKUP(F104,'Empolyees Details'!B4:V1048576,'Empolyees Details'!V4:V1048576) -> 1972-06-12 | G109: 4 | H109: ZPPBHS | N109: ='Empolyees Details'!N68 -> 0 | O109: 30 | P109: 30 | Q109: ='Empolyees Details'!O68 -> 0 | R109: ='Empolyees Details'!P68 -> 0 | S109: ='Empolyees Details'!Q68 -> 0 | T109: ='Empolyees Details'!R68 -> 0 | U109: ='Empolyees Details'!S68 -> 0 | V109: 0 | W109: 0 | Y109: 0 | Z109: 0 | AA109: 1
B110: 28 | C110: 14860 | D110: 14440 | E110: Retirement date | F110: =LOOKUP(F104,'Empolyees Details'!B4:V1048576,'Empolyees Details'!V4:V1048576) -> 1972-06-12 | H110: =H105&","&Home!H5 -> ZPPHS,Balayapalli | N110: ='Empolyees Details'!N69 -> 0 | O110: =$L$28 -> 30 | P110: =IF(N110=0,O110,N110) -> 30 | Q110: ='Empolyees Details'!O69 -> 0 | R110: ='Empolyees Details'!P69 -> 0 | S110: ='Empolyees Details'!Q69 -> 0 | T110: ='Empolyees Details'!R69 -> 0 | U110: ='Empolyees Details'!S69 -> 0 | V110: =ROUND(Q110*$H$13,0) -> 0 | W110: =ROUND(Q110*$H$14,0) -> 0 | Y110: =SUM(Q110:X110) -> 0 | Z110: =IF(Y110>20000,200,IF(Y110>15000,150,IF(Y110>10000,100,IF(Y110>6000,80,IF(Y110>5000,60,IF(Y110>4000,45,IF(Y110>3000,35,IF(Y110>2000,25,0)))))))) -> 0 | AA110: =P110/O110 -> 1
B111: 29 | C111: 15280 | D111: 14860 | E111: Designation | F111: =LOOKUP(F104,'Empolyees Details'!B4:E1048576,'Empolyees Details'!D4:D1048576) -> SA(Maths) | N111: ='Empolyees Details'!N70 -> 0 | O111: 30 | P111: 30 | Q111: ='Empolyees Details'!O70 -> 0 | R111: ='Empolyees Details'!P70 -> 0 | S111: ='Empolyees Details'!Q70 -> 0 | T111: ='Empolyees Details'!R70 -> 0 | U111: ='Empolyees Details'!S70 -> 0 | V111: 0 | W111: 0 | Y111: 0 | Z111: 0 | AA111: 1
B112: 30 | C112: 15700 | D112: 15280 | F112: =LOOKUP(F104,'Empolyees Details'!B4:E1048576,'Empolyees Details'!E4:E1048576) -> 0 | N112: ='Empolyees Details'!N71 -> 0 | O112: 30 | P112: 30 | Q112: ='Empolyees Details'!O71 -> 0 | R112: ='Empolyees Details'!P71 -> 0 | S112: ='Empolyees Details'!Q71 -> 0 | T112: ='Empolyees Details'!R71 -> 0 | U112: ='Empolyees Details'!S71 -> 0 | V112: 0 | W112: 0 | Y112: 0 | Z112: 0 | AA112: 1
B113: 31 | C113: 16150 | D113: 15700 | N113: ='Empolyees Details'!N72 -> 0 | O113: 30 | P113: 30 | Q113: ='Empolyees Details'!O72 -> 0 | R113: ='Empolyees Details'!P72 -> 0 | S113: ='Empolyees Details'!Q72 -> 0 | T113: ='Empolyees Details'!R72 -> 0 | U113: ='Empolyees Details'!S72 -> 0 | V113: 0 | W113: 0 | Y113: 0 | Z113: 0 | AA113: 1
B114: 32 | C114: 16600 | D114: 16150 | N114: ='Empolyees Details'!N73 -> 0 | O114: 30 | P114: 30 | Q114: ='Empolyees Details'!O73 -> 0 | R114: ='Empolyees Details'!P73 -> 0 | S114: ='Empolyees Details'!Q73 -> 0 | T114: ='Empolyees Details'!R73 -> 0 | U114: ='Empolyees Details'!S73 -> 0 | V114: 0 | W114: 0 | Y114: 0 | Z114: 0 | AA114: 1
B115: 33 | C115: 17050 | D115: 16600 | N115: ='Empolyees Details'!N74 -> 0 | O115: 30 | P115: 30 | Q115: ='Empolyees Details'!O74 -> 0 | R115: ='Empolyees Details'!P74 -> 0 | S115: ='Empolyees Details'!Q74 -> 0 | T115: ='Empolyees Details'!R74 -> 0 | U115: ='Empolyees Details'!S74 -> 0 | V115: 0 | W115: 0 | Y115: 0 | Z115: 0 | AA115: 1
B116: 34 | C116: 17540 | D116: 17050 | N116: ='Empolyees Details'!N75 -> 0 | O116: 30 | P116: 30 | Q116: ='Empolyees Details'!O75 -> 0 | R116: ='Empolyees Details'!P75 -> 0 | S116: ='Empolyees Details'!Q75 -> 0 | T116: ='Empolyees Details'!R75 -> 0 | U116: ='Empolyees Details'!S75 -> 0 | V116: 0 | W116: 0 | Y116: 0 | Z116: 0 | AA116: 1
B117: 35 | C117: 18030 | D117: 17540 | N117: ='Empolyees Details'!N76 -> 0 | O117: 30 | P117: 30 | Q117: ='Empolyees Details'!O76 -> 0 | R117: ='Empolyees Details'!P76 -> 0 | S117: ='Empolyees Details'!Q76 -> 0 | T117: ='Empolyees Details'!R76 -> 0 | U117: ='Empolyees Details'!S76 -> 0 | V117: 0 | W117: 0 | Y117: 0 | Z117: 0 | AA117: 1
B118: 36 | C118: 18520 | D118: 18030 | N118: ='Empolyees Details'!N77 -> 0 | O118: 30 | P118: 30 | Q118: ='Empolyees Details'!O77 -> 0 | R118: ='Empolyees Details'!P77 -> 0 | S118: ='Empolyees Details'!Q77 -> 0 | T118: ='Empolyees Details'!R77 -> 0 | U118: ='Empolyees Details'!S77 -> 0 | V118: 0 | W118: 0 | Y118: 0 | Z118: 0 | AA118: 1
B119: 37 | C119: 19050 | D119: 18520 | N119: ='Empolyees Details'!N78 -> 0 | O119: 30 | P119: 30 | Q119: ='Empolyees Details'!O78 -> 0 | R119: ='Empolyees Details'!P78 -> 0 | S119: ='Empolyees Details'!Q78 -> 0 | T119: ='Empolyees Details'!R78 -> 0 | U119: ='Empolyees Details'!S78 -> 0 | V119: 0 | W119: 0 | Y119: 0 | Z119: 0 | AA119: 1
B120: 38 | C120: 19580 | D120: 19050 | N120: ='Empolyees Details'!N79 -> 0 | O120: 30 | P120: 30 | Q120: ='Empolyees Details'!O79 -> 0 | R120: ='Empolyees Details'!P79 -> 0 | S120: ='Empolyees Details'!Q79 -> 0 | T120: ='Empolyees Details'!R79 -> 0 | U120: ='Empolyees Details'!S79 -> 0 | V120: 0 | W120: 0 | Y120: 0 | Z120: 0 | AA120: 1
B121: 39 | C121: 20110 | D121: 19580 | N121: ='Empolyees Details'!N80 -> 0 | O121: 30 | P121: 30 | Q121: ='Empolyees Details'!O80 -> 0 | R121: ='Empolyees Details'!P80 -> 0 | S121: ='Empolyees Details'!Q80 -> 0 | T121: ='Empolyees Details'!R80 -> 0 | U121: ='Empolyees Details'!S80 -> 0 | V121: 0 | W121: 0 | Y121: 0 | Z121: 0 | AA121: 1
B122: 40 | C122: 20680 | D122: 20110 | N122: ='Empolyees Details'!N81 -> 0 | O122: 30 | P122: 30 | Q122: ='Empolyees Details'!O81 -> 0 | R122: ='Empolyees Details'!P81 -> 0 | S122: ='Empolyees Details'!Q81 -> 0 | T122: ='Empolyees Details'!R81 -> 0 | U122: ='Empolyees Details'!S81 -> 0 | V122: 0 | W122: 0 | Y122: 0 | Z122: 0 | AA122: 1
B123: 41 | C123: 21250 | D123: 20680 | N123: ='Empolyees Details'!N82 -> 0 | O123: 30 | P123: 30 | Q123: ='Empolyees Details'!O82 -> 0 | R123: ='Empolyees Details'!P82 -> 0 | S123: ='Empolyees Details'!Q82 -> 0 | T123: ='Empolyees Details'!R82 -> 0 | U123: ='Empolyees Details'!S82 -> 0 | V123: 0 | W123: 0 | Y123: 0 | Z123: 0 | AA123: 1
B124: 42 | C124: 21820 | D124: 21250 | N124: ='Empolyees Details'!N83 -> 0 | O124: 30 | P124: 30 | Q124: ='Empolyees Details'!O83 -> 0 | R124: ='Empolyees Details'!P83 -> 0 | S124: ='Empolyees Details'!Q83 -> 0 | T124: ='Empolyees Details'!R83 -> 0 | U124: ='Empolyees Details'!S83 -> 0 | V124: 0 | W124: 0 | Y124: 0 | Z124: 0 | AA124: 1
B125: 43 | C125: 22430 | D125: 21820 | N125: ='Empolyees Details'!N84 -> 0 | O125: 30 | P125: 30 | Q125: ='Empolyees Details'!O84 -> 0 | R125: ='Empolyees Details'!P84 -> 0 | S125: ='Empolyees Details'!Q84 -> 0 | T125: ='Empolyees Details'!R84 -> 0 | U125: ='Empolyees Details'!S84 -> 0 | V125: 0 | W125: 0 | Y125: 0 | Z125: 0 | AA125: 1
B126: 44 | C126: 23040 | D126: 22430 | N126: ='Empolyees Details'!N85 -> 0 | O126: 30 | P126: 30 | Q126: ='Empolyees Details'!O85 -> 0 | R126: ='Empolyees Details'!P85 -> 0 | S126: ='Empolyees Details'!Q85 -> 0 | T126: ='Empolyees Details'!R85 -> 0 | U126: ='Empolyees Details'!S85 -> 0 | V126: 0 | W126: 0 | Y126: 0 | Z126: 0 | AA126: 1
B127: 45 | C127: 23650 | D127: 23040 | N127: ='Empolyees Details'!N86 -> 0 | O127: 30 | P127: 30 | Q127: ='Empolyees Details'!O86 -> 0 | R127: ='Empolyees Details'!P86 -> 0 | S127: ='Empolyees Details'!Q86 -> 0 | T127: ='Empolyees Details'!R86 -> 0 | U127: ='Empolyees Details'!S86 -> 0 | V127: 0 | W127: 0 | Y127: 0 | Z127: 0 | AA127: 1
B128: 46 | C128: 24300 | D128: 23650 | N128: ='Empolyees Details'!N87 -> 0 | O128: 30 | P128: 30 | Q128: ='Empolyees Details'!O87 -> 0 | R128: ='Empolyees Details'!P87 -> 0 | S128: ='Empolyees Details'!Q87 -> 0 | T128: ='Empolyees Details'!R87 -> 0 | U128: ='Empolyees Details'!S87 -> 0 | V128: 0 | W128: 0 | Y128: 0 | Z128: 0 | AA128: 1
B129: 47 | C129: 24950 | D129: 24300 | N129: ='Empolyees Details'!N88 -> 0 | O129: 30 | P129: 30 | Q129: ='Empolyees Details'!O88 -> 0 | R129: ='Empolyees Details'!P88 -> 0 | S129: ='Empolyees Details'!Q88 -> 0 | T129: ='Empolyees Details'!R88 -> 0 | U129: ='Empolyees Details'!S88 -> 0 | V129: 0 | W129: 0 | Y129: 0 | Z129: 0 | AA129: 1
B130: 48 | C130: 25600 | D130: 24950 | N130: ='Empolyees Details'!N89 -> 0 | O130: 30 | P130: 30 | Q130: ='Empolyees Details'!O89 -> 0 | R130: ='Empolyees Details'!P89 -> 0 | S130: ='Empolyees Details'!Q89 -> 0 | T130: ='Empolyees Details'!R89 -> 0 | U130: ='Empolyees Details'!S89 -> 0 | V130: 0 | W130: 0 | Y130: 0 | Z130: 0 | AA130: 1
B131: 49 | C131: 26300 | D131: 25600 | N131: ='Empolyees Details'!N90 -> 0 | O131: 30 | P131: 30 | Q131: ='Empolyees Details'!O90 -> 0 | R131: ='Empolyees Details'!P90 -> 0 | S131: ='Empolyees Details'!Q90 -> 0 | T131: ='Empolyees Details'!R90 -> 0 | U131: ='Empolyees Details'!S90 -> 0 | V131: 0 | W131: 0 | Y131: 0 | Z131: 0 | AA131: 1
B132: 50 | C132: 27000 | D132: 26300 | N132: ='Empolyees Details'!N91 -> 0 | O132: 30 | P132: 30 | Q132: ='Empolyees Details'!O91 -> 0 | R132: ='Empolyees Details'!P91 -> 0 | S132: ='Empolyees Details'!Q91 -> 0 | T132: ='Empolyees Details'!R91 -> 0 | U132: ='Empolyees Details'!S91 -> 0 | V132: 0 | W132: 0 | Y132: 0 | Z132: 0 | AA132: 1
B133: 51 | C133: 27700 | D133: 27000 | N133: ='Empolyees Details'!N92 -> 0 | O133: 30 | P133: 30 | Q133: ='Empolyees Details'!O92 -> 0 | R133: ='Empolyees Details'!P92 -> 0 | S133: ='Empolyees Details'!Q92 -> 0 | T133: ='Empolyees Details'!R92 -> 0 | U133: ='Empolyees Details'!S92 -> 0 | V133: 0 | W133: 0 | Y133: 0 | Z133: 0 | AA133: 1
B134: 52 | C134: 28450 | D134: 27700 | N134: ='Empolyees Details'!N93 -> 0 | O134: 30 | P134: 30 | Q134: ='Empolyees Details'!O93 -> 0 | R134: ='Empolyees Details'!P93 -> 0 | S134: ='Empolyees Details'!Q93 -> 0 | T134: ='Empolyees Details'!R93 -> 0 | U134: ='Empolyees Details'!S93 -> 0 | V134: 0 | W134: 0 | Y134: 0 | Z134: 0 | AA134: 1
B135: 53 | C135: 29200 | D135: 28450 | N135: ='Empolyees Details'!N94 -> 0 | O135: 30 | P135: 30 | Q135: ='Empolyees Details'!O94 -> 0 | R135: ='Empolyees Details'!P94 -> 0 | S135: ='Empolyees Details'!Q94 -> 0 | T135: ='Empolyees Details'!R94 -> 0 | U135: ='Empolyees Details'!S94 -> 0 | V135: 0 | W135: 0 | Y135: 0 | Z135: 0 | AA135: 1
B136: 54 | C136: 29950 | D136: 29200 | N136: ='Empolyees Details'!N95 -> 0 | O136: 30 | P136: 30 | Q136: ='Empolyees Details'!O95 -> 0 | R136: ='Empolyees Details'!P95 -> 0 | S136: ='Empolyees Details'!Q95 -> 0 | T136: ='Empolyees Details'!R95 -> 0 | U136: ='Empolyees Details'!S95 -> 0 | V136: 0 | W136: 0 | Y136: 0 | Z136: 0 | AA136: 1
B137: 55 | C137: 30750 | D137: 29950 | N137: ='Empolyees Details'!N96 -> 0 | O137: 30 | P137: 30 | Q137: ='Empolyees Details'!O96 -> 0 | R137: ='Empolyees Details'!P96 -> 0 | S137: ='Empolyees Details'!Q96 -> 0 | T137: ='Empolyees Details'!R96 -> 0 | U137: ='Empolyees Details'!S96 -> 0 | V137: 0 | W137: 0 | Y137: 0 | Z137: 0 | AA137: 1
B138: 56 | C138: 31550 | D138: 30750 | N138: ='Empolyees Details'!N97 -> 0 | O138: 30 | P138: 30 | Q138: ='Empolyees Details'!O97 -> 0 | R138: ='Empolyees Details'!P97 -> 0 | S138: ='Empolyees Details'!Q97 -> 0 | T138: ='Empolyees Details'!R97 -> 0 | U138: ='Empolyees Details'!S97 -> 0 | V138: 0 | W138: 0 | Y138: 0 | Z138: 0 | AA138: 1
B139: 57 | C139: 32350 | D139: 31550 | N139: ='Empolyees Details'!N98 -> 0 | O139: 30 | P139: 30 | Q139: ='Empolyees Details'!O98 -> 0 | R139: ='Empolyees Details'!P98 -> 0 | S139: ='Empolyees Details'!Q98 -> 0 | T139: ='Empolyees Details'!R98 -> 0 | U139: ='Empolyees Details'!S98 -> 0 | V139: 0 | W139: 0 | Y139: 0 | Z139: 0 | AA139: 1
B140: 58 | C140: 33200 | D140: 32350 | N140: ='Empolyees Details'!N99 -> 0 | O140: 30 | P140: 30 | Q140: ='Empolyees Details'!O99 -> 0 | R140: ='Empolyees Details'!P99 -> 0 | S140: ='Empolyees Details'!Q99 -> 0 | T140: ='Empolyees Details'!R99 -> 0 | U140: ='Empolyees Details'!S99 -> 0 | V140: 0 | W140: 0 | Y140: 0 | Z140: 0 | AA140: 1
B141: 59 | C141: 34050 | D141: 33200 | N141: ='Empolyees Details'!N100 -> 0 | O141: 30 | P141: 30 | Q141: ='Empolyees Details'!O100 -> 0 | R141: ='Empolyees Details'!P100 -> 0 | S141: ='Empolyees Details'!Q100 -> 0 | T141: ='Empolyees Details'!R100 -> 0 | U141: ='Empolyees Details'!S100 -> 0 | V141: 0 | W141: 0 | Y141: 0 | Z141: 0 | AA141: 1
B142: 60 | C142: 34900 | D142: 34050 | N142: ='Empolyees Details'!N101 -> 0 | O142: 30 | P142: 30 | Q142: ='Empolyees Details'!O101 -> 0 | R142: ='Empolyees Details'!P101 -> 0 | S142: ='Empolyees Details'!Q101 -> 0 | T142: ='Empolyees Details'!R101 -> 0 | U142: ='Empolyees Details'!S101 -> 0 | V142: 0 | W142: 0 | Y142: 0 | Z142: 0 | AA142: 1
B143: 61 | C143: 35800 | D143: 34900 | N143: ='Empolyees Details'!N102 -> 0 | O143: 30 | P143: 30 | Q143: ='Empolyees Details'!O102 -> 0 | R143: ='Empolyees Details'!P102 -> 0 | S143: ='Empolyees Details'!Q102 -> 0 | T143: ='Empolyees Details'!R102 -> 0 | U143: ='Empolyees Details'!S102 -> 0 | V143: 0 | W143: 0 | Y143: 0 | Z143: 0 | AA143: 1
B144: 62 | C144: 36700 | D144: 35800 | N144: ='Empolyees Details'!N103 -> 0 | O144: 30 | P144: 30 | Q144: ='Empolyees Details'!O103 -> 0 | R144: ='Empolyees Details'!P103 -> 0 | S144: ='Empolyees Details'!Q103 -> 0 | T144: ='Empolyees Details'!R103 -> 0 | U144: ='Empolyees Details'!S103 -> 0 | V144: 0 | W144: 0 | Y144: 0 | Z144: 0 | AA144: 1
B145: 63 | C145: 37600 | D145: 36700 | N145: ='Empolyees Details'!N104 -> 0 | O145: 30 | P145: 30 | Q145: ='Empolyees Details'!O104 -> 0 | R145: ='Empolyees Details'!P104 -> 0 | S145: ='Empolyees Details'!Q104 -> 0 | T145: ='Empolyees Details'!R104 -> 0 | U145: ='Empolyees Details'!S104 -> 0 | V145: 0 | W145: 0 | Y145: 0 | Z145: 0 | AA145: 1
B146: 64 | C146: 38570 | D146: 37600 | N146: ='Empolyees Details'!N105 -> 0 | O146: 30 | P146: 30 | Q146: ='Empolyees Details'!O105 -> 0 | R146: ='Empolyees Details'!P105 -> 0 | S146: ='Empolyees Details'!Q105 -> 0 | T146: ='Empolyees Details'!R105 -> 0 | U146: ='Empolyees Details'!S105 -> 0 | V146: 0 | W146: 0 | Y146: 0 | Z146: 0 | AA146: 1
B147: 65 | C147: 39540 | D147: 38570 | N147: ='Empolyees Details'!N106 -> 0 | O147: 30 | P147: 30 | Q147: ='Empolyees Details'!O106 -> 0 | R147: ='Empolyees Details'!P106 -> 0 | S147: ='Empolyees Details'!Q106 -> 0 | T147: ='Empolyees Details'!R106 -> 0 | U147: ='Empolyees Details'!S106 -> 0 | V147: 0 | W147: 0 | Y147: 0 | Z147: 0 | AA147: 1
B148: 66 | C148: 40510 | D148: 39540 | N148: ='Empolyees Details'!N107 -> 0 | O148: 30 | P148: 30 | Q148: ='Empolyees Details'!O107 -> 0 | R148: ='Empolyees Details'!P107 -> 0 | S148: ='Empolyees Details'!Q107 -> 0 | T148: ='Empolyees Details'!R107 -> 0 | U148: ='Empolyees Details'!S107 -> 0 | V148: 0 | W148: 0 | Y148: 0 | Z148: 0 | AA148: 1
B149: 67 | C149: 41550 | D149: 40510 | N149: ='Empolyees Details'!N108 -> 0 | O149: 30 | P149: 30 | Q149: ='Empolyees Details'!O108 -> 0 | R149: ='Empolyees Details'!P108 -> 0 | S149: ='Empolyees Details'!Q108 -> 0 | T149: ='Empolyees Details'!R108 -> 0 | U149: ='Empolyees Details'!S108 -> 0 | V149: 0 | W149: 0 | Y149: 0 | Z149: 0 | AA149: 1
B150: 68 | C150: 42590 | D150: 41550 | N150: ='Empolyees Details'!N109 -> 0 | O150: 30 | P150: 30 | Q150: ='Empolyees Details'!O109 -> 0 | R150: ='Empolyees Details'!P109 -> 0 | S150: ='Empolyees Details'!Q109 -> 0 | T150: ='Empolyees Details'!R109 -> 0 | U150: ='Empolyees Details'!S109 -> 0 | V150: 0 | W150: 0 | Y150: 0 | Z150: 0 | AA150: 1
B151: 69 | C151: 43630 | D151: 42590 | N151: ='Empolyees Details'!N110 -> 0 | O151: 30 | P151: 30 | Q151: ='Empolyees Details'!O110 -> 0 | R151: ='Empolyees Details'!P110 -> 0 | S151: ='Empolyees Details'!Q110 -> 0 | T151: ='Empolyees Details'!R110 -> 0 | U151: ='Empolyees Details'!S110 -> 0 | V151: 0 | W151: 0 | Y151: 0 | Z151: 0 | AA151: 1
B152: 70 | C152: 44740 | D152: 43630 | N152: ='Empolyees Details'!N111 -> 0 | O152: 30 | P152: 30 | Q152: ='Empolyees Details'!O111 -> 0 | R152: ='Empolyees Details'!P111 -> 0 | S152: ='Empolyees Details'!Q111 -> 0 | T152: ='Empolyees Details'!R111 -> 0 | U152: ='Empolyees Details'!S111 -> 0 | V152: 0 | W152: 0 | Y152: 0 | Z152: 0 | AA152: 1
B153: 71 | C153: 45850 | D153: 44740 | N153: ='Empolyees Details'!N112 -> 0 | O153: 30 | P153: 30 | Q153: ='Empolyees Details'!O112 -> 0 | R153: ='Empolyees Details'!P112 -> 0 | S153: ='Empolyees Details'!Q112 -> 0 | T153: ='Empolyees Details'!R112 -> 0 | U153: ='Empolyees Details'!S112 -> 0 | V153: 0 | W153: 0 | Y153: 0 | Z153: 0 | AA153: 1
B154: 72 | C154: 46960 | D154: 45850 | N154: ='Empolyees Details'!N113 -> 0 | O154: 30 | P154: 30 | Q154: ='Empolyees Details'!O113 -> 0 | R154: ='Empolyees Details'!P113 -> 0 | S154: ='Empolyees Details'!Q113 -> 0 | T154: ='Empolyees Details'!R113 -> 0 | U154: ='Empolyees Details'!S113 -> 0 | V154: 0 | W154: 0 | Y154: 0 | Z154: 0 | AA154: 1
B155: 73 | C155: 48160 | D155: 46960 | N155: ='Empolyees Details'!N114 -> 0 | O155: 30 | P155: 30 | Q155: ='Empolyees Details'!O114 -> 0 | R155: ='Empolyees Details'!P114 -> 0 | S155: ='Empolyees Details'!Q114 -> 0 | T155: ='Empolyees Details'!R114 -> 0 | U155: ='Empolyees Details'!S114 -> 0 | V155: 0 | W155: 0 | Y155: 0 | Z155: 0 | AA155: 1
B156: 74 | C156: 49360 | D156: 48160 | N156: ='Empolyees Details'!N115 -> 0 | O156: 30 | P156: 30 | Q156: ='Empolyees Details'!O115 -> 0 | R156: ='Empolyees Details'!P115 -> 0 | S156: ='Empolyees Details'!Q115 -> 0 | T156: ='Empolyees Details'!R115 -> 0 | U156: ='Empolyees Details'!S115 -> 0 | V156: 0 | W156: 0 | Y156: 0 | Z156: 0 | AA156: 1
B157: 75 | C157: 50560 | D157: 49360 | N157: ='Empolyees Details'!N116 -> 0 | O157: 30 | P157: 30 | Q157: ='Empolyees Details'!O116 -> 0 | R157: ='Empolyees Details'!P116 -> 0 | S157: ='Empolyees Details'!Q116 -> 0 | T157: ='Empolyees Details'!R116 -> 0 | U157: ='Empolyees Details'!S116 -> 0 | V157: 0 | W157: 0 | Y157: 0 | Z157: 0 | AA157: 1
B158: 76 | C158: 51760 | D158: 50560 | N158: ='Empolyees Details'!N117 -> 0 | O158: 30 | P158: 30 | Q158: ='Empolyees Details'!O117 -> 0 | R158: ='Empolyees Details'!P117 -> 0 | S158: ='Empolyees Details'!Q117 -> 0 | T158: ='Empolyees Details'!R117 -> 0 | U158: ='Empolyees Details'!S117 -> 0 | V158: 0 | W158: 0 | Y158: 0 | Z158: 0 | AA158: 1
B159: 77 | C159: 53060 | D159: 51760 | N159: ='Empolyees Details'!N118 -> 0 | O159: 30 | P159: 30 | Q159: ='Empolyees Details'!O118 -> 0 | R159: ='Empolyees Details'!P118 -> 0 | S159: ='Empolyees Details'!Q118 -> 0 | T159: ='Empolyees Details'!R118 -> 0 | U159: ='Empolyees Details'!S118 -> 0 | V159: 0 | W159: 0 | Y159: 0 | Z159: 0 | AA159: 1
B160: 78 | C160: 54360 | D160: 53060 | N160: ='Empolyees Details'!N119 -> 0 | O160: 30 | P160: 30 | Q160: ='Empolyees Details'!O119 -> 0 | R160: ='Empolyees Details'!P119 -> 0 | S160: ='Empolyees Details'!Q119 -> 0 | T160: ='Empolyees Details'!R119 -> 0 | U160: ='Empolyees Details'!S119 -> 0 | V160: 0 | W160: 0 | Y160: 0 | Z160: 0 | AA160: 1
B161: 79 | C161: 55660 | D161: 54360 | N161: ='Empolyees Details'!N120 -> 0 | O161: 30 | P161: 30 | Q161: ='Empolyees Details'!O120 -> 0 | R161: ='Empolyees Details'!P120 -> 0 | S161: ='Empolyees Details'!Q120 -> 0 | T161: ='Empolyees Details'!R120 -> 0 | U161: ='Empolyees Details'!S120 -> 0 | V161: 0 | W161: 0 | Y161: 0 | Z161: 0 | AA161: 1
B162: 80 | D162: 55660 | N162: ='Empolyees Details'!N121 -> 0 | O162: 30 | P162: 30 | Q162: ='Empolyees Details'!O121 -> 0 | R162: ='Empolyees Details'!P121 -> 0 | S162: ='Empolyees Details'!Q121 -> 0 | T162: ='Empolyees Details'!R121 -> 0 | U162: ='Empolyees Details'!S121 -> 0 | V162: 0 | W162: 0 | Y162: 0 | Z162: 0 | AA162: 1
N163: ='Empolyees Details'!N122 -> 0 | O163: 30 | P163: 30 | Q163: ='Empolyees Details'!O122 -> 0 | R163: ='Empolyees Details'!P122 -> 0 | S163: ='Empolyees Details'!Q122 -> 0 | T163: ='Empolyees Details'!R122 -> 0 | U163: ='Empolyees Details'!S122 -> 0 | V163: 0 | W163: 0 | Y163: 0 | Z163: 0 | AA163: 1
A164: SERVICE YEARS | E164: D O B | F164: Age | G164: Complete Age | H164: Retired on | J164: Retirement month | K164: =TODAY() -> 2012-11-13 | N164: ='Empolyees Details'!N123 -> 0 | O164: 30 | P164: 30 | Q164: ='Empolyees Details'!O123 -> 0 | R164: ='Empolyees Details'!P123 -> 0 | S164: ='Empolyees Details'!Q123 -> 0 | T164: ='Empolyees Details'!R123 -> 0 | U164: ='Empolyees Details'!S123 -> 0 | V164: 0 | W164: 0 | Y164: 0 | Z164: 0 | AA164: 1
A165: ='Empolyees Details'!U4 -> 39844 | B165: =TODAY() -> 2012-11-13 | C165: =YEAR(B165)-YEAR(A165)-IF(OR(MONTH(B165)<MONTH(A165),AND(MONTH(B165)=MONTH(A165),DAY(B165)<DAY(A165))),1,0)&" years, "&MONTH(B165)-MONTH(A165)+IF(AND(MONTH(B165)<=MONTH(A165),DAY(B165)<DAY(A165)),11,IF(AND(MONTH(B165)<MONTH(A165),DAY(B165)>=DAY(A165)),12,IF(AND(MONTH(B165)>MONTH(A165),DAY(B165)<DAY(A165)),-1)))&" months,"&(B165)-DATE(YEAR(B165),MONTH(B165)-IF(DAY(B165)<DAY(A165),1,0),DAY(A165))&" days" -> 3 years, 9 months,13 days | D165: =YEAR(B165)-YEAR(A165)-IF(OR(MONTH(B165)<MONTH(A165),AND(MONTH(B165)=MONTH(A165),DAY(B165)<DAY(A165))),1,0) -> 3 | E165: ='Empolyees Details'!V4 -> 1959-07-01 | F165: =YEAR(B165)-YEAR(E165)-IF(OR(MONTH(B165)<MONTH(E165),AND(MONTH(B165)=MONTH(E165),DAY(B165)<DAY(E165))),1,0)&" years, "&MONTH(B165)-MONTH(E165)+IF(AND(MONTH(B165)<=MONTH(E165),DAY(B165)<DAY(E165)),11,IF(AND(MONTH(B165)<MONTH(E165),DAY(B165)>=DAY(E165)),12,IF(AND(MONTH(B165)>MONTH(E165),DAY(B165)<DAY(E165)),-1)))&" months,"&(B165)-DATE(YEAR(B165),MONTH(B165)-IF(DAY(B165)<DAY(E165),1,0),DAY(E165))&" days" -> 53 years, 4 months,12 days | G165: =YEAR(B165)-YEAR(E165)-IF(OR(MONTH(B165)<MONTH(E165),AND(MONTH(B165)=MONTH(E165),DAY(B165)<DAY(E165))),1,0) -> 53 | H165: =DAY(E165)&"-"&MONTH(E165)&"-"&YEAR(E165)+58 -> 1-7-2017 | I165: =IF(DAY(E165)=1,LOOKUP(J165-1,$K$165:$L$176,$M$165:$M$176)&"-"&J165-1&"-"&YEAR(E165)+58,LOOKUP(J165,$K$165:$M$176,$M$165:$M$176)&"-"&J165&"-"&YEAR(E165)+58) -> 30-6-2017 | J165: =MONTH(E165) -> 7 | K165: 1 | L165: JAN | M165: 31 | N165: ='Empolyees Details'!N124 -> 0 | O165: 30 | P165: 30 | Q165: ='Empolyees Details'!O124 -> 0 | R165: ='Empolyees Details'!P124 -> 0 | S165: ='Empolyees Details'!Q124 -> 0 | T165: ='Empolyees Details'!R124 -> 0 | U165: ='Empolyees Details'!S124 -> 0 | V165: 0 | W165: 0 | Y165: 0 | Z165: 0 | AA165: 1
A166: ='Empolyees Details'!U5 -> 39846 | B166: =TODAY() -> 2012-11-13 | C166: =YEAR(B166)-YEAR(A166)-IF(OR(MONTH(B166)<MONTH(A166),AND(MONTH(B166)=MONTH(A166),DAY(B166)<DAY(A166))),1,0)&" years, "&MONTH(B166)-MONTH(A166)+IF(AND(MONTH(B166)<=MONTH(A166),DAY(B166)<DAY(A166)),11,IF(AND(MONTH(B166)<MONTH(A166),DAY(B166)>=DAY(A166)),12,IF(AND(MONTH(B166)>MONTH(A166),DAY(B166)<DAY(A166)),-1)))&" months,"&(B166)-DATE(YEAR(B166),MONTH(B166)-IF(DAY(B166)<DAY(A166),1,0),DAY(A166))&" days" -> 3 years, 9 months,11 days | D166: =YEAR(B166)-YEAR(A166)-IF(OR(MONTH(B166)<MONTH(A166),AND(MONTH(B166)=MONTH(A166),DAY(B166)<DAY(A166))),1,0) -> 3 | E166: ='Empolyees Details'!V5 -> 1968-01-03 | F166: =YEAR(B166)-YEAR(E166)-IF(OR(MONTH(B166)<MONTH(E166),AND(MONTH(B166)=MONTH(E166),DAY(B166)<DAY(E166))),1,0)&" years, "&MONTH(B166)-MONTH(E166)+IF(AND(MONTH(B166)<=MONTH(E166),DAY(B166)<DAY(E166)),11,IF(AND(MONTH(B166)<MONTH(E166),DAY(B166)>=DAY(E166)),12,IF(AND(MONTH(B166)>MONTH(E166),DAY(B166)<DAY(E166)),-1)))&" months,"&(B166)-DATE(YEAR(B166),MONTH(B166)-IF(DAY(B166)<DAY(E166),1,0),DAY(E166))&" days" -> 44 years, 10 months,10 days | G166: =YEAR(B166)-YEAR(E166)-IF(OR(MONTH(B166)<MONTH(E166),AND(MONTH(B166)=MONTH(E166),DAY(B166)<DAY(E166))),1,0) -> 44 | H166: =DAY(E166)&"-"&MONTH(E166)&"-"&YEAR(E166)+58 -> 3-1-2026 | I166: =IF(DAY(E166)=1,LOOKUP(J166-1,$K$165:$L$176,$M$165:$M$176)&"-"&J166-1&"-"&YEAR(E166)+58,LOOKUP(J166,$K$165:$M$176,$M$165:$M$176)&"-"&J166&"-"&YEAR(E166)+58) -> 31-1-2026 | J166: =MONTH(E166) -> 1 | K166: 2 | L166: FEB | M166: =IF(YEAR(K164)=2012,29,28) -> 29 | N166: ='Empolyees Details'!N125 -> 0 | O166: 30 | P166: 30 | Q166: ='Empolyees Details'!O125 -> 0 | R166: ='Empolyees Details'!P125 -> 0 | S166: ='Empolyees Details'!Q125 -> 0 | T166: ='Empolyees Details'!R125 -> 0 | U166: ='Empolyees Details'!S125 -> 0 | V166: 0 | W166: 0 | Y166: 0 | Z166: 0 | AA166: 1
A167: ='Empolyees Details'!U6 -> 39846 | B167: 2012-11-13 | C167: 3 years, 9 months,11 days | D167: 3 | E167: ='Empolyees Details'!V6 -> 1971-06-06 | F167: 41 years, 5 months,7 days | G167: 41 | H167: 6-6-2029 | I167: =IF(DAY(E167)=1,LOOKUP(J167-1,$K$165:$L$176,$M$165:$M$176)&"-"&J167-1&"-"&YEAR(E167)+58,LOOKUP(J167,$K$165:$M$176,$M$165:$M$176)&"-"&J167&"-"&YEAR(E167)+58) -> 30-6-2029 | J167: 6 | K167: 3 | L167: MAR | M167: 31 | N167: ='Empolyees Details'!N126 -> 0 | O167: 30 | P167: 30 | Q167: ='Empolyees Details'!O126 -> 0 | R167: ='Empolyees Details'!P126 -> 0 | S167: ='Empolyees Details'!Q126 -> 0 | T167: ='Empolyees Details'!R126 -> 0 | U167: ='Empolyees Details'!S126 -> 0 | V167: 0 | W167: 0 | Y167: 0 | Z167: 0 | AA167: 1
A168: ='Empolyees Details'!U7 -> 39846 | B168: 2012-11-13 | C168: 3 years, 9 months,11 days | D168: 3 | E168: ='Empolyees Details'!V7 -> 1972-06-12 | F168: 40 years, 5 months,1 days | G168: 40 | H168: 12-6-2030 | I168: 30-6-2030 | J168: 6 | K168: 4 | L168: APR | M168: 30 | N168: ='Empolyees Details'!N127 -> 0 | O168: 30 | P168: 30 | Q168: ='Empolyees Details'!O127 -> 0 | R168: ='Empolyees Details'!P127 -> 0 | S168: ='Empolyees Details'!Q127 -> 0 | T168: ='Empolyees Details'!R127 -> 0 | U168: ='Empolyees Details'!S127 -> 0 | V168: 0 | W168: 0 | Y168: 0 | Z168: 0 | AA168: 1
A169: ='Empolyees Details'!U8 -> 39846 | B169: 2012-11-13 | C169: 3 years, 9 months,11 days | D169: 3 | E169: ='Empolyees Details'!V8 -> 1975-02-28 | F169: 37 years, 8 months,16 days | G169: 37 | H169: 28-2-2033 | I169: 29-2-2033 | J169: 2 | K169: 5 | L169: MAY | M169: 31 | N169: ='Empolyees Details'!N128 -> 0 | O169: 30 | P169: 30 | Q169: ='Empolyees Details'!O128 -> 0 | R169: ='Empolyees Details'!P128 -> 0 | S169: ='Empolyees Details'!Q128 -> 0 | T169: ='Empolyees Details'!R128 -> 0 | U169: ='Empolyees Details'!S128 -> 0 | V169: 0 | W169: 0 | Y169: 0 | Z169: 0 | AA169: 1
A170: ='Empolyees Details'!U9 -> 39846 | B170: 2012-11-13 | C170: 3 years, 9 months,11 days | D170: 3 | E170: ='Empolyees Details'!V9 -> 1979-06-02 | F170: 33 years, 5 months,11 days | G170: 33 | H170: 2-6-2037 | I170: 30-6-2037 | J170: 6 | K170: 6 | L170: JUN | M170: 30 | N170: ='Empolyees Details'!N129 -> 0 | O170: 30 | P170: 30 | Q170: ='Empolyees Details'!O129 -> 0 | R170: ='Empolyees Details'!P129 -> 0 | S170: ='Empolyees Details'!Q129 -> 0 | T170: ='Empolyees Details'!R129 -> 0 | U170: ='Empolyees Details'!S129 -> 0 | V170: 0 | W170: 0 | Y170: 0 | Z170: 0 | AA170: 1
A171: ='Empolyees Details'!U10 -> 37819 | B171: 2012-11-13 | C171: 9 years, 3 months,27 days | D171: 9 | E171: ='Empolyees Details'!V10 -> 1966-03-26 | F171: 46 years, 7 months,18 days | G171: 46 | H171: 26-3-2024 | I171: 31-3-2024 | J171: 3 | K171: 7 | L171: JUL | M171: 31 | N171: ='Empolyees Details'!N130 -> 0 | O171: 30 | P171: 30 | Q171: ='Empolyees Details'!O130 -> 0 | R171: ='Empolyees Details'!P130 -> 0 | S171: ='Empolyees Details'!Q130 -> 0 | T171: ='Empolyees Details'!R130 -> 0 | U171: ='Empolyees Details'!S130 -> 0 | V171: 0 | W171: 0 | Y171: 0 | Z171: 0 | AA171: 1
A172: ='Empolyees Details'!U11 -> 39846 | B172: 2012-11-13 | C172: 3 years, 9 months,11 days | D172: 3 | E172: ='Empolyees Details'!V11 -> 1963-10-05 | F172: 49 years, 1 months,8 days | G172: 49 | H172: 5-10-2021 | I172: 31-10-2021 | J172: 10 | K172: 8 | L172: AUG | M172: 31 | N172: ='Empolyees Details'!N131 -> 0 | O172: 30 | P172: 30 | Q172: ='Empolyees Details'!O131 -> 0 | R172: ='Empolyees Details'!P131 -> 0 | S172: ='Empolyees Details'!Q131 -> 0 | T172: ='Empolyees Details'!R131 -> 0 | U172: ='Empolyees Details'!S131 -> 0 | V172: 0 | W172: 0 | Y172: 0 | Z172: 0 | AA172: 1
A173: ='Empolyees Details'!U12 -> 38677 | B173: 2012-11-13 | C173: 6 years, 11 months,23 days | D173: 6 | E173: ='Empolyees Details'!V12 -> 1978-06-07 | F173: 34 years, 5 months,6 days | G173: 34 | H173: 7-6-2036 | I173: 30-6-2036 | J173: 6 | K173: 9 | L173: SEP | M173: 30 | N173: ='Empolyees Details'!N132 -> 0 | O173: 30 | P173: 30 | Q173: ='Empolyees Details'!O132 -> 0 | R173: ='Empolyees Details'!P132 -> 0 | S173: ='Empolyees Details'!Q132 -> 0 | T173: ='Empolyees Details'!R132 -> 0 | U173: ='Empolyees Details'!S132 -> 0 | V173: 0 | W173: 0 | Y173: 0 | Z173: 0 | AA173: 1
A174: ='Empolyees Details'!U13 -> 39846 | B174: 2012-11-13 | C174: 3 years, 9 months,11 days | D174: 3 | E174: ='Empolyees Details'!V13 -> 1968-08-09 | F174: 44 years, 3 months,4 days | G174: 44 | H174: 9-8-2026 | I174: 31-8-2026 | J174: 8 | K174: 10 | L174: OCT | M174: 31 | N174: ='Empolyees Details'!N133 -> 0 | O174: =$L$28 -> 30 | P174: =IF(N174=0,O174,N174) -> 30 | Q174: ='Empolyees Details'!O133 -> 0 | R174: ='Empolyees Details'!P133 -> 0 | S174: ='Empolyees Details'!Q133 -> 0 | T174: ='Empolyees Details'!R133 -> 0 | U174: ='Empolyees Details'!S133 -> 0 | V174: =ROUND(Q174*$H$13,0) -> 0 | W174: =ROUND(Q174*$H$14,0) -> 0 | Y174: =SUM(Q174:X174) -> 0 | Z174: =IF(Y174>20000,200,IF(Y174>15000,150,IF(Y174>10000,100,IF(Y174>6000,80,IF(Y174>5000,60,IF(Y174>4000,45,IF(Y174>3000,35,IF(Y174>2000,25,0)))))))) -> 0 | AA174: =P174/O174 -> 1
A175: ='Empolyees Details'!U14 -> 40016 | B175: 2012-11-13 | C175: 3 years, 3 months,22 days | D175: 3 | E175: ='Empolyees Details'!V14 -> 1962-05-20 | F175: 50 years, 5 months,24 days | G175: 50 | H175: 20-5-2020 | I175: 31-5-2020 | J175: 5 | K175: 11 | L175: NOV | M175: 30 | N175: ='Empolyees Details'!N134 -> 0 | O175: 30 | P175: 30 | Q175: ='Empolyees Details'!O134 -> 0 | R175: ='Empolyees Details'!P134 -> 0 | S175: ='Empolyees Details'!Q134 -> 0 | T175: ='Empolyees Details'!R134 -> 0 | U175: ='Empolyees Details'!S134 -> 0 | V175: 0 | W175: 0 | Y175: 0 | Z175: 0 | AA175: 1
A176: ='Empolyees Details'!U15 -> 37561 | B176: 2012-11-13 | C176: 10 years, 0 months,12 days | D176: 10 | E176: ='Empolyees Details'!V15 -> 1957-06-15 | F176: 55 years, 4 months,29 days | G176: 55 | H176: 15-6-2015 | I176: 30-6-2015 | J176: 6 | K176: 12 | L176: DEC | M176: 31 | N176: ='Empolyees Details'!N135 -> 0 | O176: 30 | P176: 30 | Q176: ='Empolyees Details'!O135 -> 0 | R176: ='Empolyees Details'!P135 -> 0 | S176: ='Empolyees Details'!Q135 -> 0 | T176: ='Empolyees Details'!R135 -> 0 | U176: ='Empolyees Details'!S135 -> 0 | V176: 0 | W176: 0 | Y176: 0 | Z176: 0 | AA176: 1
A177: ='Empolyees Details'!U16 -> 39846 | B177: 2012-11-13 | C177: 3 years, 9 months,11 days | D177: 3 | E177: ='Empolyees Details'!V16 -> 1959-01-15 | F177: 53 years, 9 months,29 days | G177: 53 | H177: 15-1-2017 | I177: =IF(DAY(E177)=1,LOOKUP(J177-1,$K$177:$L$188,$M$177:$M$188)&"-"&J177-1&"-"&YEAR(E177)+58,LOOKUP(J177,$K$177:$M$188,$M$177:$M$188)&"-"&J177&"-"&YEAR(E177)+58) -> 31-1-2017 | J177: 1 | K177: 1 | L177: JAN | M177: 31 | N177: ='Empolyees Details'!N136 -> 0 | O177: 30 | P177: 30 | Q177: ='Empolyees Details'!O136 -> 0 | R177: ='Empolyees Details'!P136 -> 0 | S177: ='Empolyees Details'!Q136 -> 0 | T177: ='Empolyees Details'!R136 -> 0 | U177: ='Empolyees Details'!S136 -> 0 | V177: 0 | W177: 0 | Y177: 0 | Z177: 0 | AA177: 1
A178: ='Empolyees Details'!U17 -> 37244 | B178: 2012-11-13 | C178: 10 years, 10 months,25 days | D178: 10 | E178: ='Empolyees Details'!V17 -> 1958-04-17 | F178: 54 years, 6 months,27 days | G178: 54 | H178: 17-4-2016 | I178: =IF(DAY(E178)=1,LOOKUP(J178-1,$K$177:$L$188,$M$177:$M$188)&"-"&J178-1&"-"&YEAR(E178)+58,LOOKUP(J178,$K$177:$M$188,$M$177:$M$188)&"-"&J178&"-"&YEAR(E178)+58) -> 30-4-2016 | J178: =MONTH(E178) -> 4 | K178: 2 | L178: FEB | M178: =IF(YEAR(K176)=2012,29,28) -> 28 | N178: ='Empolyees Details'!N137 -> 0 | O178: 30 | P178: 30 | Q178: ='Empolyees Details'!O137 -> 0 | R178: ='Empolyees Details'!P137 -> 0 | S178: ='Empolyees Details'!Q137 -> 0 | T178: ='Empolyees Details'!R137 -> 0 | U178: ='Empolyees Details'!S137 -> 0 | V178: 0 | W178: 0 | Y178: 0 | Z178: 0 | AA178: 1
A179: ='Empolyees Details'!U18 -> 40096 | B179: 2012-11-13 | C179: 3 years, 1 months,3 days | D179: 3 | E179: ='Empolyees Details'!V18 -> 1965-06-12 | F179: 47 years, 5 months,1 days | G179: 47 | H179: 12-6-2023 | I179: =IF(DAY(E179)=1,LOOKUP(J179-1,$K$177:$L$188,$M$177:$M$188)&"-"&J179-1&"-"&YEAR(E179)+58,LOOKUP(J179,$K$177:$M$188,$M$177:$M$188)&"-"&J179&"-"&YEAR(E179)+58) -> 30-6-2023 | J179: 6 | K179: 3 | L179: MAR | M179: 31 | N179: ='Empolyees Details'!N138 -> 0 | O179: 30 | P179: 30 | Q179: ='Empolyees Details'!O138 -> 0 | R179: ='Empolyees Details'!P138 -> 0 | S179: ='Empolyees Details'!Q138 -> 0 | T179: ='Empolyees Details'!R138 -> 0 | U179: ='Empolyees Details'!S138 -> 0 | V179: 0 | W179: 0 | Y179: 0 | Z179: 0 | AA179: 1
A180: ='Empolyees Details'!U19 -> 38671 | B180: 2012-11-13 | C180: 6 years, 11 months,29 days | D180: 6 | E180: ='Empolyees Details'!V19 -> 1972-12-01 | F180: 39 years, 11 months,12 days | G180: 39 | H180: 1-12-2030 | I180: 30-11-2030 | J180: 12 | K180: 4 | L180: APR | M180: 30 | N180: ='Empolyees Details'!N139 -> 0 | O180: 30 | P180: 30 | Q180: ='Empolyees Details'!O139 -> 0 | R180: ='Empolyees Details'!P139 -> 0 | S180: ='Empolyees Details'!Q139 -> 0 | T180: ='Empolyees Details'!R139 -> 0 | U180: ='Empolyees Details'!S139 -> 0 | V180: 0 | W180: 0 | Y180: 0 | Z180: 0 | AA180: 1
A181: ='Empolyees Details'!U20 -> 40996 | B181: 2012-11-13 | C181: 0 years, 7 months,16 days | D181: 0 | E181: ='Empolyees Details'!V20 -> 1968-07-01 | F181: 44 years, 4 months,12 days | G181: 44 | H181: 1-7-2026 | I181: 30-6-2026 | J181: 7 | K181: 5 | L181: MAY | M181: 31 | N181: ='Empolyees Details'!N140 -> 0 | O181: 30 | P181: 30 | Q181: ='Empolyees Details'!O140 -> 0 | R181: ='Empolyees Details'!P140 -> 0 | S181: ='Empolyees Details'!Q140 -> 0 | T181: ='Empolyees Details'!R140 -> 0 | U181: ='Empolyees Details'!S140 -> 0 | V181: 0 | W181: 0 | Y181: 0 | Z181: 0 | AA181: 1
A182: ='Empolyees Details'!U21 -> 0 | B182: 2012-11-13 | C182: 112 years, 10 months,13 days | D182: 112 | E182: ='Empolyees Details'!V21 -> 00:00:00 | F182: 112 years, 10 months,13 days | G182: 112 | H182: 0-1-1958 | I182: 31-1-1958 | J182: 1 | K182: 6 | L182: JUN | M182: 30 | N182: ='Empolyees Details'!N141 -> 0 | O182: 30 | P182: 30 | Q182: ='Empolyees Details'!O141 -> 0 | R182: ='Empolyees Details'!P141 -> 0 | S182: ='Empolyees Details'!Q141 -> 0 | T182: ='Empolyees Details'!R141 -> 0 | U182: ='Empolyees Details'!S141 -> 0 | V182: 0 | W182: 0 | Y182: 0 | Z182: 0 | AA182: 1
A183: ='Empolyees Details'!U22 -> 0 | B183: 2012-11-13 | C183: 112 years, 10 months,13 days | D183: 112 | E183: ='Empolyees Details'!V22 -> 00:00:00 | F183: 112 years, 10 months,13 days | G183: 112 | H183: 0-1-1958 | I183: 31-1-1958 | J183: 1 | K183: 7 | L183: JUL | M183: 31 | N183: ='Empolyees Details'!N142 -> 0 | O183: 30 | P183: 30 | Q183: ='Empolyees Details'!O142 -> 0 | R183: ='Empolyees Details'!P142 -> 0 | S183: ='Empolyees Details'!Q142 -> 0 | T183: ='Empolyees Details'!R142 -> 0 | U183: ='Empolyees Details'!S142 -> 0 | V183: 0 | W183: 0 | Y183: 0 | Z183: 0 | AA183: 1
A184: ='Empolyees Details'!U23 -> 0 | B184: 2012-11-13 | C184: 112 years, 10 months,13 days | D184: 112 | E184: ='Empolyees Details'!V23 -> 00:00:00 | F184: 112 years, 10 months,13 days | G184: 112 | H184: 0-1-1958 | I184: 31-1-1958 | J184: 1 | K184: 8 | L184: AUG | M184: 31 | N184: ='Empolyees Details'!N143 -> 0 | O184: 30 | P184: 30 | Q184: ='Empolyees Details'!O143 -> 0 | R184: ='Empolyees Details'!P143 -> 0 | S184: ='Empolyees Details'!Q143 -> 0 | T184: ='Empolyees Details'!R143 -> 0 | U184: ='Empolyees Details'!S143 -> 0 | V184: 0 | W184: 0 | Y184: 0 | Z184: 0 | AA184: 1
A185: ='Empolyees Details'!U24 -> 0 | B185: 2012-11-13 | C185: 112 years, 10 months,13 days | D185: 112 | E185: ='Empolyees Details'!V24 -> 00:00:00 | F185: 112 years, 10 months,13 days | G185: 112 | H185: 0-1-1958 | I185: 31-1-1958 | J185: 1 | K185: 9 | L185: SEP | M185: 30 | N185: ='Empolyees Details'!N144 -> 0 | O185: 30 | P185: 30 | Q185: ='Empolyees Details'!O144 -> 0 | R185: ='Empolyees Details'!P144 -> 0 | S185: ='Empolyees Details'!Q144 -> 0 | T185: ='Empolyees Details'!R144 -> 0 | U185: ='Empolyees Details'!S144 -> 0 | V185: 0 | W185: 0 | Y185: 0 | Z185: 0 | AA185: 1
A186: ='Empolyees Details'!U25 -> 0 | B186: 2012-11-13 | C186: 112 years, 10 months,13 days | D186: 112 | E186: ='Empolyees Details'!V25 -> 00:00:00 | F186: 112 years, 10 months,13 days | G186: 112 | H186: 0-1-1958 | I186: 31-1-1958 | J186: 1 | K186: 10 | L186: OCT | M186: 31 | N186: ='Empolyees Details'!N145 -> 0 | O186: 30 | P186: 30 | Q186: ='Empolyees Details'!O145 -> 0 | R186: ='Empolyees Details'!P145 -> 0 | S186: ='Empolyees Details'!Q145 -> 0 | T186: ='Empolyees Details'!R145 -> 0 | U186: ='Empolyees Details'!S145 -> 0 | V186: 0 | W186: 0 | Y186: 0 | Z186: 0 | AA186: 1
A187: ='Empolyees Details'!U26 -> 0 | B187: 2012-11-13 | C187: 112 years, 10 months,13 days | D187: 112 | E187: ='Empolyees Details'!V26 -> 00:00:00 | F187: 112 years, 10 months,13 days | G187: 112 | H187: 0-1-1958 | I187: 31-1-1958 | J187: 1 | K187: 11 | L187: NOV | M187: 30 | N187: ='Empolyees Details'!N146 -> 0 | O187: 30 | P187: 30 | Q187: ='Empolyees Details'!O146 -> 0 | R187: ='Empolyees Details'!P146 -> 0 | S187: ='Empolyees Details'!Q146 -> 0 | T187: ='Empolyees Details'!R146 -> 0 | U187: ='Empolyees Details'!S146 -> 0 | V187: 0 | W187: 0 | Y187: 0 | Z187: 0 | AA187: 1
A188: ='Empolyees Details'!U27 -> 0 | B188: 2012-11-13 | C188: 112 years, 10 months,13 days | D188: 112 | E188: ='Empolyees Details'!V27 -> 00:00:00 | F188: 112 years, 10 months,13 days | G188: 112 | H188: 0-1-1958 | I188: 31-1-1958 | J188: 1 | K188: 12 | L188: DEC | M188: 31 | N188: ='Empolyees Details'!N147 -> 0 | O188: 30 | P188: 30 | Q188: ='Empolyees Details'!O147 -> 0 | R188: ='Empolyees Details'!P147 -> 0 | S188: ='Empolyees Details'!Q147 -> 0 | T188: ='Empolyees Details'!R147 -> 0 | U188: ='Empolyees Details'!S147 -> 0 | V188: 0 | W188: 0 | Y188: 0 | Z188: 0 | AA188: 1
A189: ='Empolyees Details'!U28 -> 0 | B189: 2012-11-13 | C189: 112 years, 10 months,13 days | D189: 112 | E189: ='Empolyees Details'!V28 -> 00:00:00 | F189: 112 years, 10 months,13 days | G189: 112 | H189: 0-1-1958 | I189: =IF(DAY(E189)=1,LOOKUP(J189-1,$K$189:$L$200,$M$189:$M$200)&"-"&J189-1&"-"&YEAR(E189)+58,LOOKUP(J189,$K$189:$M$200,$M$189:$M$200)&"-"&J189&"-"&YEAR(E189)+58) -> 31-1-1958 | J189: =MONTH(E189) -> 1 | K189: 1 | L189: JAN | M189: 31 | N189: ='Empolyees Details'!N148 -> 0 | O189: 30 | P189: 30 | Q189: ='Empolyees Details'!O148 -> 0 | R189: ='Empolyees Details'!P148 -> 0 | S189: ='Empolyees Details'!Q148 -> 0 | T189: ='Empolyees Details'!R148 -> 0 | U189: ='Empolyees Details'!S148 -> 0 | V189: 0 | W189: 0 | Y189: 0 | Z189: 0 | AA189: 1
A190: ='Empolyees Details'!U29 -> 0 | B190: 2012-11-13 | C190: 112 years, 10 months,13 days | D190: 112 | E190: ='Empolyees Details'!V29 -> 00:00:00 | F190: 112 years, 10 months,13 days | G190: 112 | H190: 0-1-1958 | I190: =IF(DAY(E190)=1,LOOKUP(J190-1,$K$189:$L$200,$M$189:$M$200)&"-"&J190-1&"-"&YEAR(E190)+58,LOOKUP(J190,$K$189:$M$200,$M$189:$M$200)&"-"&J190&"-"&YEAR(E190)+58) -> 31-1-1958 | J190: 1 | K190: 2 | L190: FEB | M190: =IF(YEAR(K188)=2012,29,28) -> 28 | N190: ='Empolyees Details'!N149 -> 0 | O190: 30 | P190: 30 | Q190: ='Empolyees Details'!O149 -> 0 | R190: ='Empolyees Details'!P149 -> 0 | S190: ='Empolyees Details'!Q149 -> 0 | T190: ='Empolyees Details'!R149 -> 0 | U190: ='Empolyees Details'!S149 -> 0 | V190: 0 | W190: 0 | Y190: 0 | Z190: 0 | AA190: 1
A191: ='Empolyees Details'!U30 -> 0 | B191: 2012-11-13 | C191: 112 years, 10 months,13 days | D191: 112 | E191: ='Empolyees Details'!V30 -> 00:00:00 | F191: 112 years, 10 months,13 days | G191: 112 | H191: 0-1-1958 | I191: 31-1-1958 | J191: 1 | K191: 3 | L191: MAR | M191: 31 | N191: ='Empolyees Details'!N150 -> 0 | O191: 30 | P191: 30 | Q191: ='Empolyees Details'!O150 -> 0 | R191: ='Empolyees Details'!P150 -> 0 | S191: ='Empolyees Details'!Q150 -> 0 | T191: ='Empolyees Details'!R150 -> 0 | U191: ='Empolyees Details'!S150 -> 0 | V191: 0 | W191: 0 | Y191: 0 | Z191: 0 | AA191: 1
A192: ='Empolyees Details'!U31 -> 0 | B192: 2012-11-13 | C192: 112 years, 10 months,13 days | D192: 112 | E192: ='Empolyees Details'!V31 -> 00:00:00 | F192: 112 years, 10 months,13 days | G192: 112 | H192: 0-1-1958 | I192: 31-1-1958 | J192: 1 | K192: 4 | L192: APR | M192: 30 | N192: ='Empolyees Details'!N151 -> 0 | O192: 30 | P192: 30 | Q192: ='Empolyees Details'!O151 -> 0 | R192: ='Empolyees Details'!P151 -> 0 | S192: ='Empolyees Details'!Q151 -> 0 | T192: ='Empolyees Details'!R151 -> 0 | U192: ='Empolyees Details'!S151 -> 0 | V192: 0 | W192: 0 | Y192: 0 | Z192: 0 | AA192: 1
A193: ='Empolyees Details'!U32 -> 0 | B193: 2012-11-13 | C193: 112 years, 10 months,13 days | D193: 112 | E193: ='Empolyees Details'!V32 -> 00:00:00 | F193: 112 years, 10 months,13 days | G193: 112 | H193: 0-1-1958 | I193: 31-1-1958 | J193: 1 | K193: 5 | L193: MAY | M193: 31 | N193: ='Empolyees Details'!N152 -> 0 | O193: 30 | P193: 30 | Q193: ='Empolyees Details'!O152 -> 0 | R193: ='Empolyees Details'!P152 -> 0 | S193: ='Empolyees Details'!Q152 -> 0 | T193: ='Empolyees Details'!R152 -> 0 | U193: ='Empolyees Details'!S152 -> 0 | V193: 0 | W193: 0 | Y193: 0 | Z193: 0 | AA193: 1
A194: ='Empolyees Details'!U33 -> 0 | B194: 2012-11-13 | C194: 112 years, 10 months,13 days | D194: 112 | E194: ='Empolyees Details'!V33 -> 00:00:00 | F194: 112 years, 10 months,13 days | G194: 112 | H194: 0-1-1958 | I194: 31-1-1958 | J194: 1 | K194: 6 | L194: JUN | M194: 30 | N194: ='Empolyees Details'!N153 -> 0 | O194: 30 | P194: 30 | Q194: ='Empolyees Details'!O153 -> 0 | R194: ='Empolyees Details'!P153 -> 0 | S194: ='Empolyees Details'!Q153 -> 0 | T194: ='Empolyees Details'!R153 -> 0 | U194: ='Empolyees Details'!S153 -> 0 | V194: 0 | W194: 0 | Y194: 0 | Z194: 0 | AA194: 1
A195: ='Empolyees Details'!U34 -> 0 | B195: 2012-11-13 | C195: 112 years, 10 months,13 days | D195: 112 | E195: ='Empolyees Details'!V34 -> 00:00:00 | F195: 112 years, 10 months,13 days | G195: 112 | H195: 0-1-1958 | I195: 31-1-1958 | J195: 1 | K195: 7 | L195: JUL | M195: 31 | N195: ='Empolyees Details'!N154 -> 0 | O195: 30 | P195: 30 | Q195: ='Empolyees Details'!O154 -> 0 | R195: ='Empolyees Details'!P154 -> 0 | S195: ='Empolyees Details'!Q154 -> 0 | T195: ='Empolyees Details'!R154 -> 0 | U195: ='Empolyees Details'!S154 -> 0 | V195: 0 | W195: 0 | Y195: 0 | Z195: 0 | AA195: 1
A196: ='Empolyees Details'!U35 -> 0 | B196: 2012-11-13 | C196: 112 years, 10 months,13 days | D196: 112 | E196: ='Empolyees Details'!V35 -> 00:00:00 | F196: 112 years, 10 months,13 days | G196: 112 | H196: 0-1-1958 | I196: 31-1-1958 | J196: 1 | K196: 8 | L196: AUG | M196: 31 | N196: ='Empolyees Details'!N155 -> 0 | O196: 30 | P196: 30 | Q196: ='Empolyees Details'!O155 -> 0 | R196: ='Empolyees Details'!P155 -> 0 | S196: ='Empolyees Details'!Q155 -> 0 | T196: ='Empolyees Details'!R155 -> 0 | U196: ='Empolyees Details'!S155 -> 0 | V196: 0 | W196: 0 | Y196: 0 | Z196: 0 | AA196: 1
A197: ='Empolyees Details'!U36 -> 0 | B197: 2012-11-13 | C197: 112 years, 10 months,13 days | D197: 112 | E197: ='Empolyees Details'!V36 -> 00:00:00 | F197: 112 years, 10 months,13 days | G197: 112 | H197: 0-1-1958 | I197: 31-1-1958 | J197: 1 | K197: 9 | L197: SEP | M197: 30 | N197: ='Empolyees Details'!N156 -> 0 | O197: 30 | P197: 30 | Q197: ='Empolyees Details'!O156 -> 0 | R197: ='Empolyees Details'!P156 -> 0 | S197: ='Empolyees Details'!Q156 -> 0 | T197: ='Empolyees Details'!R156 -> 0 | U197: ='Empolyees Details'!S156 -> 0 | V197: 0 | W197: 0 | Y197: 0 | Z197: 0 | AA197: 1
A198: ='Empolyees Details'!U37 -> 0 | B198: 2012-11-13 | C198: 112 years, 10 months,13 days | D198: 112 | E198: ='Empolyees Details'!V37 -> 00:00:00 | F198: 112 years, 10 months,13 days | G198: 112 | H198: 0-1-1958 | I198: 31-1-1958 | J198: 1 | K198: 10 | L198: OCT | M198: 31 | N198: ='Empolyees Details'!N157 -> 0 | O198: 30 | P198: 30 | Q198: ='Empolyees Details'!O157 -> 0 | R198: ='Empolyees Details'!P157 -> 0 | S198: ='Empolyees Details'!Q157 -> 0 | T198: ='Empolyees Details'!R157 -> 0 | U198: ='Empolyees Details'!S157 -> 0 | V198: 0 | W198: 0 | Y198: 0 | Z198: 0 | AA198: 1
A199: ='Empolyees Details'!U38 -> 0 | B199: 2012-11-13 | C199: 112 years, 10 months,13 days | D199: 112 | E199: ='Empolyees Details'!V38 -> 00:00:00 | F199: 112 years, 10 months,13 days | G199: 112 | H199: 0-1-1958 | I199: 31-1-1958 | J199: 1 | K199: 11 | L199: NOV | M199: 30 | N199: ='Empolyees Details'!N158 -> 0 | O199: 30 | P199: 30 | Q199: ='Empolyees Details'!O158 -> 0 | R199: ='Empolyees Details'!P158 -> 0 | S199: ='Empolyees Details'!Q158 -> 0 | T199: ='Empolyees Details'!R158 -> 0 | U199: ='Empolyees Details'!S158 -> 0 | V199: 0 | W199: 0 | Y199: 0 | Z199: 0 | AA199: 1
A200: ='Empolyees Details'!U39 -> 0 | B200: 2012-11-13 | C200: 112 years, 10 months,13 days | D200: 112 | E200: ='Empolyees Details'!V39 -> 00:00:00 | F200: 112 years, 10 months,13 days | G200: 112 | H200: 0-1-1958 | I200: 31-1-1958 | J200: 1 | K200: 12 | L200: DEC | M200: 31 | N200: ='Empolyees Details'!N159 -> 0 | O200: 30 | P200: 30 | Q200: ='Empolyees Details'!O159 -> 0 | R200: ='Empolyees Details'!P159 -> 0 | S200: ='Empolyees Details'!Q159 -> 0 | T200: ='Empolyees Details'!R159 -> 0 | U200: ='Empolyees Details'!S159 -> 0 | V200: 0 | W200: 0 | Y200: 0 | Z200: 0 | AA200: 1
... 372 more rows

Sheet Home
C2: Salary Bill Software | P2: =IF(Home!H11=0,0,VLOOKUP($H$11,Paybil!$B$7:$AM$403,2)&" Salary") -> G.Bhaskar Salary
C3: DDO Details | P3: Name | Q3: =IF(H11=0," ",VLOOKUP($H$11,Paybil!$B$7:$AM$403,2)) -> G.Bhaskar
C4: DDO Name | D4: P.Subbarayudu | I4: DDO code | K4: 08100308031 | P4: Designation | Q4: =IF(H11=0," ",VLOOKUP($H$11,Paybil!$B$7:$AM$403,3)) -> SA(Maths)
C5: Desig | D5: Working Place | H5: Balayapalli | P5: Scale of Pay | Q5: =IF(H11=0," ",VLOOKUP($H$11,Paybil!$B$7:$AM$403,4)) -> 14860-39540
C6: District | E6: Mandal | H6: Bank Code | K6: 0 | L6: 9 | M6: 6 | N6: 9 | P6: Emp. Id | Q6: =IF(H11=0," ",VLOOKUP($H$11,Paybil!$B$7:$AM$403,5)) -> 0830475
C7: Sub-Treasury | D7: Venkatagiri | H7: Treasury Bank | J7: SBI,Venkatagiri | P7: Basic Pay | Q7: =IF(H11=0," ",VLOOKUP($H$11,Paybil!$B$7:$AM$403,6)) -> 17540
C8: Treasury Bill No | D8: 12 | F8: Bill Date | J8: DDO Cell N0 | L8: 9676511485 | P8: FPI | Q8: =IF(H11=0," ",VLOOKUP($H$11,Paybil!$B$7:$AM$403,7)) -> 0
C9: Incre Proce No | F9: Date | P9: HMA | Q9: =IF(H11=0," ",VLOOKUP($H$11,Paybil!$B$7:$AM$403,9)) -> 0
P10: AI | Q10: =IF(H11=0," ",VLOOKUP($H$11,Paybil!$B$7:$AM$403,11)) -> 0
C11: DA | F11: Your Serial No. | H11: 4 | P11: CA | Q11: =IF(H11=0," ",VLOOKUP($H$11,Paybil!$B$7:$AM$403,13)) -> 0
C12: HRA | P12: DA | Q12: =IF(H11=0," ",VLOOKUP($H$11,Paybil!$B$7:$AM$403,15)) -> 8408
C13: Bill Month | P13: HRA | Q13: =IF(H11=0," ",VLOOKUP($H$11,Paybil!$B$7:$AM$403,16)) -> 2105
P14: Gross | Q14: =SUM(Q7:Q13) -> 28053
C15: Messenger | D15: G.Bhasker | H15: Designation | J15: SA(Maths) | P15: APGLI+Loan | Q15: ="Total deductions:Rs."&SUM(R15:R24) -> Total deductions:Rs.9278 | R15: =IF(H11=0," ",VLOOKUP($H$11,Paybil!$B$7:$AM$403,19)+VLOOKUP($H$11,Paybil!$B$7:$AM$403,20)) -> 600
H16: Total salary Details | P16: ZPGPF+Loan | R16: =IF(H11=0," ",VLOOKUP($H$11,Paybil!B7:AM403,24)+VLOOKUP($H$11,Paybil!$B$7:$AM$403,26)) -> 5400
C17: Instalment No Festival Ad. | H17: Gross | J17: =Paybil!S404 -> 542216 | P17: GPF+ Loan
H18: Deductions | I18: Govt | J18: =Paybil!AG404 -> 68480 | P18: GIS | R18: =IF(H11=0," ",VLOOKUP($H$11,Paybil!$B$7:$AM$403,21)) -> 60
I19: Non Govt | J19: =Paybil!AI404+Paybil!AJ404+Paybil!AK404+Paybil!AL404 -> 14097 | P19: P Tax | R19: =IF(H11=0," ",VLOOKUP($H$11,Paybil!$B$7:$AM$403,22)) -> 200
H20: Deductions | J20: =J18+J19 -> 82577 | P20: F A | R20: =IF(H11=0," ",VLOOKUP($H$11,Paybil!$B$7:$AM$403,23)) -> 0
H21: Net | J21: =Paybil!AM404 -> 459639 | P21: Ad. I.Tax | R21: =IF(H11=0," ",VLOOKUP($H$11,Paybil!$B$7:$AM$403,28)) -> 0
P22: CPS+Arrears | R22: =IF(H11=0," ",VLOOKUP($H$11,Paybil!$B$7:$AM$403,29)+VLOOKUP($H$11,Paybil!$B$7:$AM$403,30)) -> 0
C23: Note:1.If somebody put a medical leave.Then enter no. of days in "Empolyees Details" page and column="working days" | P23: TWF/EWF/SWF | R23: =IF(H11=0," ",VLOOKUP($H$11,Paybil!$B$7:$AM$403,31)) -> 0
C24: Shedules | P24: LIC | R24: =IF(H11=0," ",VLOOKUP($H$11,Paybil!$B$7:$AM$403,35)) -> 3018
P25: NET | Q25: =Q14-SUM(Q15:R24) -> 18775
B26: Edit only in green color cells | F26: Who gave best suggections to improve this they are my best wellwishers. So,Please call and give ideas to improve | J26: Visit: | L26: http://www.ysrtf.com | Q26: Use Legal Pepar for Printing | X26: Use Legal Pepar for Printing

Sheet Salary Cer.
L1: =N14 -> 0 | M1: =ROUND(LOOKUP(#REF!,#REF!,#REF!)*N14,0) ->  | N1: =ROUND(LOOKUP(#REF!,M26:N27,N26:N27)*N14,0) ->  | O1: =L1+M1+N1+N17+N18+N19+N20+N21 -> 
L4: HOME
B5: =CONCATENATE(" This is certify that ",Code!Q28," ",Home!Q3, " ",Code!E4," ",N13," "," working as ",Code!F111," in this office ",Code!H10," and ",Code!R28," salary particulars are as follows for the month of ",UPPER(Code!K2)) -> This is certify that Smt. G.Bhaskar S/o G.Sivaramireddy working as SA(Maths) in this office ZPPHS,Balayapalli and her salary particulars are as follows for the month of NOVEMBER-2012
M7: 5
B9: Date of Joining in this cadre: | E9: Date Of Birth | G9: Retirement Date:
B10: =IF(Home!H11=0,0,Code!F108) -> 2009-02-02 | E10: =IF(Home!H11=0,0,Code!F109) -> 1972-06-12 | G10: =IF(Home!H11=0,0,LOOKUP(Code!F104,'Service Details'!B4:J400,'Service Details'!J4:J400)) -> 30-6-2030 | M10: Enter Details here
B12: Pay | G12: Deductions | L12: Employee Name | N12: =Home!Q3 -> G.Bhaskar
B13: Pay | C13: :: | D13: ="Rs."&Home!Q7 -> Rs.17540 | G13: =IF(Home!R16=0,IF(Home!Q15=0,Paybil!AD5,Paybil!Z5),Paybil!Y5) -> Z.P.P.F | H13: :: | I13: =IF(IF(Home!H11=0,0,IF(Home!R16=0,IF(Home!Q15=0,"Rs."&LOOKUP(Home!H11,Paybil!B7:AM403,Paybil!AD7:AD403),"Rs."&LOOKUP(Home!H11,Paybil!B7:AM403,Paybil!Z7:Z403)),"Rs."&LOOKUP(Home!H11,Paybil!B7:AM403,Paybil!Y7:Y403)))="Rs.0"," ",IF(Home!H11=0,0,IF(Home!R16=0,IF(Home!Q15=0,"Rs."&LOOKUP(Home!H11,Paybil!B7:AM403,Paybil!AD7:AD403),"Rs."&LOOKUP(Home!H11,Paybil!B7:AM403,Paybil!Z7:Z403)),"Rs."&LOOKUP(Home!H11,Paybil!B7:AM403,Paybil!Y7:Y403)))) -> Rs.3000 | N13: G.Sivaramireddy
B14: DA | C14: :: | D14: ="Rs."&Home!Q12 -> Rs.8408 | G14: =IF(Home!R16=0,IF(Home!Q15=0," ",Paybil!AB5),Paybil!AA5) -> Z.P P.F. Loan | H14: :: | I14: =IF(IF(Home!H11=0,0,IF(Home!R16=0,IF(Home!Q15=0," ","Rs."&LOOKUP(Home!H11,Paybil!B7:AM403,Paybil!AB7:AB403)),"Rs."&LOOKUP(Home!H11,Paybil!B7:AM403,Paybil!AA7:AA403)))="Rs.0"," ",IF(Home!H11=0,0,IF(Home!R16=0,IF(Home!Q15=0," ","Rs."&LOOKUP(Home!H11,Paybil!B7:AM403,Paybil!AB7:AB403)),"Rs."&LOOKUP(Home!H11,Paybil!B7:AM403,Paybil!AA7:AA403)))) -> Rs.2400
B15: HRA | C15: :: | D15: ="Rs."&Home!Q13 -> Rs.2105 | G15: Festival Advance | H15: :: | I15: =IF(IF(Home!H11=0,0,"Rs."&LOOKUP(Home!H11,Paybil!B7:AM403,Paybil!X7:X403))="Rs.0"," ",IF(Home!H11=0,0,"Rs."&LOOKUP(Home!H11,Paybil!B7:AM403,Paybil!X7:X403))) ->  | T15: =D29 -> 26-11-2012 | V15: =MONTH(T15) ->  | X15: =LOOKUP(V15,T21:AE21,T22:AE22) ->  | Y15: =YEAR(T15) -> 
B16: FPI | C16: :: | D16: =IF(Home!Q8=0,0,"Rs."&Home!Q8) -> 0 | G16: GIS | H16: :: | I16: =IF(IF(Home!H11=0,0,"Rs."&LOOKUP(Home!H11,Paybil!B7:AM403,Paybil!V7:V403))="Rs.0"," ",IF(Home!H11=0,0,"Rs."&LOOKUP(Home!H11,Paybil!B7:AM403,Paybil!V7:V403))) -> Rs.60
B17: CA | C17: :: | D17: =IF(Home!Q11=0,0,"Rs."&Home!Q11) -> 0 | G17: APGLI | H17: :: | I17: =IF(IF(Home!H11=0,0,"Rs."&LOOKUP(Home!H11,Paybil!B7:AM403,Paybil!T7:T403))="Rs.0"," ",IF(Home!H11=0,0,"Rs."&LOOKUP(Home!H11,Paybil!B7:AM403,Paybil!T7:T403))) -> Rs.600
B18: AI/PP | C18: :: | D18: =IF(Home!Q10=0,0,"Rs."&Home!Q10) -> 0 | G18: APGLI Loan | H18: :: | I18: =IF(IF(Home!H11=0,0,"Rs."&LOOKUP(Home!H11,Paybil!B7:AM403,Paybil!U7:U403))="Rs.0"," ",IF(Home!H11=0,0,"Rs."&LOOKUP(Home!H11,Paybil!B7:AM403,Paybil!U7:U403))) -> 
B19: Total | C19: :: | D19: =IF(Home!H11=0,0,"Rs."&Home!Q7+Home!Q8+Home!Q9+Home!Q10+Home!Q11+Home!Q12+Home!Q13) -> Rs.28053 | G19: LIC | H19: :: | I19: =IF(IF(Home!H11=0,0,"Rs."&LOOKUP(Home!H11,Paybil!B7:AM403,Paybil!AJ7:AJ403))="Rs.0"," ",IF(Home!H11=0,0,"Rs."&LOOKUP(Home!H11,Paybil!B7:AM403,Paybil!AJ7:AJ403))) -> Rs.3018
G20: P. Tax | H20: :: | I20: =IF(IF(Home!H11=0,0,"Rs."&LOOKUP(Home!H11,Paybil!B7:AM403,Paybil!W7:W403))="Rs.0"," ",IF(Home!H11=0,0,"Rs."&LOOKUP(Home!H11,Paybil!B7:AM403,Paybil!W7:W403))) -> Rs.200
G21: Income Tax | H21: :: | I21: =IF(IF(Home!H11=0,0,"Rs."&LOOKUP(Home!H11,Paybil!B7:AM403,Paybil!AC7:AC403))="Rs.0"," ",IF(Home!H11=0,0,"Rs."&LOOKUP(Home!H11,Paybil!B7:AM403,Paybil!AC7:AC403))) ->  | T21: 1 | U21: 2 | V21: 3 | W21: 4 | X21: 5 | Y21: 6 | Z21: 7 | AA21: 8 | AB21: 9 | AC21: 10 | AD21: 11 | AE21: 12
B22: Salary | C22: :: | D22: =D19 -> Rs.28053 | G22: TWF/EWF | H22: :: | I22: =IF(IF(Home!H11=0,0,"Rs."&LOOKUP(Home!H11,Paybil!B7:AM403,Paybil!AF7:AF403))="Rs.0"," ",IF(Home!H11=0,0,"Rs."&LOOKUP(Home!H11,Paybil!B7:AM403,Paybil!AF7:AF403))) ->  | T22: JANUARY | U22: FEBRUARY | V22: MARCH | W22: APRIL | X22: MAY | Y22: JUNE | Z22: JULY | AA22: AUGUST | AB22: SEPTEMBER | AC22: OCTOBER | AD22: NOVEMBER | AE22: DECEMBER
B23: Deductions | C23: :: | D23: =I23 -> Rs.9278 | G23: Total | H23: :: | I23: ="Rs."&LOOKUP(Home!H11,Paybil!B7:AM403,Paybil!AG7:AG403)+LOOKUP(Home!H11,Paybil!B7:AM403,Paybil!AJ7:AJ403) -> Rs.9278
B24: Net Total | C24: :: | D24: ="Rs."&Home!Q14-(LOOKUP(Home!H11,Paybil!B7:AM403,Paybil!AG7:AG403)+LOOKUP(Home!H11,Paybil!B7:AM403,Paybil!AJ7:AJ403)) -> Rs.18775
B26: ="(Rupees:"&Code!P21&")" -> (Rupees:Eighteen Thousand Seven Hundred and Seventy five rupees only)
T27: 31 | U27: 28 | V27: 31 | W27: 30 | X27: 31 | Y27: 30 | Z27: 31 | AA27: 31 | AB27: 30 | AC27: 31 | AD27: 30 | AE27: 31
B28: Place | C28: :: | D28: =Home!H5 -> Balayapalli
B29: Date | C29: :: | D29: =Code!H15 -> 26-11-2012
T31: =LOOKUP(X15,#REF!,T27:AE27) -> 
F34: Signature
F35: Designation
B37: visit:gsreddy.tk | L37: =O1-SUM(R14:R20) -> 

Sheet Empolyees Details
B2: S.No | C2: Name of the Teacher | D2: Catageory of the post | E2: School Name & Working Place | F2: Important A/C No.s | N2: Pay Details | W2: Deductions | AM2: Non Govt Deductions
F3: Scale of pay | G3: Emp. Id. | H3: Bank name | I3: Bank A/C No. | J3: ZPPF CPF | K3: GPF | L3: CPS(PRAN No.) | M3: APGLI | N3: Working Days | O3: Basic pay | P3: FPI/Spe. Pay | Q3: Add Incre | R3: HMA | S3: PHC | T3: Incre. Month | U3: Join date in this cadre | V3: Date of Birth | W3: A.P.G.L.I | X3: A.P.G.L.I LOAN | Y3: Festival Advance(FA) | Z3: FA Insatllment No | AA3: GIS | AB3: ZPPF | AC3: GPF | AD3: ZPPF Loan | AE3: Installment No | AF3: GPF Loan | AG3: Installment No | AH3: Incometax | AI3: CM relief fund | AJ3: CPS | AK3: CPS Arrears | AL3: TWF/EWF | AM3: SWF | AN3: Court | AO3: Bank Loan | AP3: LIC
B4: 1 | C4: P.Subbarayudu | D4: HM | F4: 18030-43630 | G4: 0816968 | H4: SBI,Gudur | I4: 30387038757 | J4: 13179 | O4: 23650 | P4: 35 | Q4: 60 | T4: Aug | U4: 2009-01-31 | V4: 1959-07-01 | AA4: 120 | AB4: 5000 | AI4: 0 | AJ4: 0 | AP4: ='LIC Details'!H10 -> 1498
B5: 2 | C5: K.Narendranadh | D5: SA(Maths) | F5: 14860-39540 | G5: 0828961 | H5: SBI,Venkatagiri | I5: 11280001647 | J5: 17721 | M5: L-2005080A & B | O5: 17540 | T5: Nov | U5: 2009-02-02 | V5: 1968-01-03 | W5: 600 | AA5: 60 | AB5: 1500 | AI5: 0 | AJ5: 0 | AP5: ='LIC Details'!H20 -> 408
B6: 3 | C6: S.Mallikarjuna | D6: SA(Maths) | F6: 14860-39540 | G6: 0829393 | H6: SBI,Venkatagiri | I6: 11280010903 | J6: 16961 | M6: L-2003606/ABC | O6: 17540 | T6: Nov | U6: 2009-02-02 | V6: 1971-06-06 | W6: 600 | AA6: 60 | AB6: 2500 | AI6: 0 | AJ6: 0 | AP6: ='LIC Details'!H30 -> 1668
B7: 4 | C7: G.Bhaskar | D7: SA(Maths) | F7: 14860-39540 | G7: 0830475 | H7: SBI,Venkatagiri | I7: 11280021267 | J7: 16534 | M7: L-2003793A&B | O7: 17540 | T7: Nov | U7: 2009-02-02 | V7: 1972-06-12 | W7: 600 | X7: 0 | AA7: 60 | AB7: 3000 | AD7: 2400 | AI7: 0 | AJ7: 0 | AP7: ='LIC Details'!H40 -> 3018
B8: 5 | C8: D.Lakshmidevi | D8: SA(PS) | F8: 14860-39540 | G8: 0830545 | H8: SBI,Venkatagiri | I8: 11280030985 | J8: 21779 | M8: L-2010139A | O8: 16150 | T8: Feb | U8: 2009-02-02 | V8: 1975-02-28 | W8: 600 | AA8: 60 | AB8: 2500 | AI8: 0 | AJ8: 0 | AP8: ='LIC Details'!H50 -> 1003
B9: 6 | C9: M.Karunakumari | D9: SA(PS) | F9: 14860-39540 | G9: 0829150 | H9: SBI,Venkatagiri | I9: 11280043565 | J9: 22229 | M9: L-2008906A & B | O9: 16150 | T9: Feb | U9: 2009-02-02 | V9: 1979-06-02 | W9: 600 | AA9: 60 | AB9: 5000 | AI9: 0 | AJ9: 0 | AP9: ='LIC Details'!H60 -> 1021
B10: 7 | C10: P.Radha Kumari | D10: SA(BS) | F10: 14860-39540 | G10: 0819153 | H10: SBI,Kavali | I10: 10905822872 | J10: 13597 | M10: L2004666ABC | O10: 23650 | Q10: =35+35+60+75 -> 205 | T10: Aug | U10: 2003-07-17 | V10: 1966-03-26 | W10: 750 | AA10: 60 | AB10: 5000 | AI10: 0 | AJ10: 0 | AP10: ='LIC Details'!H70 -> 0
B11: 8 | C11: V.Vishnumohanrao | D11: SA(BS) | F11: 14860-39540 | G11: 0801285 | H11: SBI,Gudur | I11: 10604371385 | J11: 12695 | M11: L-2003410A | O11: 20110 | Q11: 100 | T11: Aug | U11: 2009-02-02 | V11: 1963-10-05 | W11: 350 | AA11: 60 | AB11: 2000 | AI11: 0 | AJ11: 0 | AP11: ='LIC Details'!H80 -> 0
B12: 9 | C12: Ch.Seenaiah | D12: SA(Eng) | F12: 14860-39540 | G12: 0816847 | H12: SBI,Chennuru | I12: 30680070525 | L12: 110030779196 | M12: L-2010872A | O12: 17540 | T12: Nov | U12: 2005-11-21 | V12: 1978-06-07 | W12: 600 | AA12: 60 | AI12: 0 | AP12: ='LIC Details'!H90 -> 0
B13: 10 | C13: G.Uma | D13: SA(Eng) | F13: 14860-39540 | G13: 0829513 | H13: SBI,Venkatagiri | I13: 11280028467 | J13: 16895 | M13: L-2003558A | O13: 17050 | T13: Nov | U13: 2009-02-02 | V13: 1968-08-09 | W13: 600 | AA13: 60 | AB13: 2000 | AI13: 0 | AJ13: 0 | AP13: ='LIC Details'!H100 -> 1238
B14: 11 | C14: G.Saivijaya Kumar | D14: SA(Eng) | F14: 14860-39540 | G14: 0820993 | H14: SBI,Kovuru | I14: 11326968914 | J14: 18951 | M14: L-2006158A & B | O14: 16150 | T14: July | U14: 2009-07-22 | V14: 1962-05-20 | W14: 250 | AA14: 60 | AB14: 3000 | AI14: 0 | AJ14: 0 | AP14: ='LIC Details'!H110 -> 1866 | AR14: G.S.Reddy 9666570250
B15: 12 | C15: T.Subba Rao | D15: SA(Social) | F15: 14860-39540 | G15: 0830570 | H15: SBI,Venkatagiri | I15: 11280042889 | J15: 12642 | O15: 31550 | P15: 35 | T15: April | U15: 2002-11-01 | V15: 1957-06-15 | AA15: 60 | AB15: 8000 | AI15: 0 | AJ15: 0 | AP15: ='LIC Details'!H120 -> 0
B16: 13 | C16: D.Sivaramaiah | D16: SA(Social) | F16: 14860-39540 | G16: 0829389 | H16: SBI,Venkatagiri | I16: 11279996523 | J16: 13621 | M16: L-2000990A | O16: 28450 | P16: 35 | T16: April | U16: 2009-02-02 | V16: 1959-01-15 | W16: 450 | AA16: 60 | AB16: 2000 | AI16: 0 | AJ16: 0 | AP16: ='LIC Details'!H130 -> 1553
B17: 14 | C17: K.S.Kishore Kumar | D17: SA(Phy.Edu.) | F17: 15280-40510 | G17: 0813826 | H17: SBI,Gudur | I17: 10889620246 | J17: 12837 | M17: L-2002997AB | O17: 23040 | Q17: 35 | T17: July | U17: 2001-12-19 | V17: 1958-04-17 | W17: 200 | X17: 685 | AA17: 60 | AB17: 5000 | AP17: ='LIC Details'!H140 -> 0
B18: 15 | C18: N.Bharathy | D18: SA(Telugu) | F18: 14860-39540 | G18: 0813126 | H18: SBI,Gudur | I18: 10889619649 | J18: 14429 | M18: L-2002173 A&B | O18: 23040 | Q18: 70 | T18: Aug | U18: 2009-10-10 | V18: 1965-06-12 | W18: 750 | AA18: 60 | AB18: 2000 | AP18: ='LIC Details'!H150 -> 824 | AR18: Edit only in green color cells | AV18: Who gave best suggections to improve this they are my best wellwishers. So,Please call and give ideas to improve | AZ18: Visit: | BB18: http://www.gsreddy.tk | BG18: Use Legal Pepar for Printing
B19: 16 | C19: P.Mallikarjuna | D19: TP Gr.II | F19: 10900-31550 | G19: 0829505 | H19: SBI,Venkatagiri | I19: 11280061302 | J19: 23174 | M19: L-2010835A | O19: 12910 | T19: Nov | U19: 2005-11-15 | V19: 1972-12-01 | W19: 450 | AA19: 30 | AB19: 1000 | AI19: 0 | AJ19: 0 | AP19: ='LIC Details'!H160 -> 0
B20: 17 | C20: Syed.Khaja Mohiddin | D20: HP Gr II | F20: 14860-39540 | G20: 0806360 | H20: SBI,Nellore | I20: 10604418917 | J20: 17993 | M20: L-2008533-A | O20: 16600 | T20: April | U20: 2012-03-28 | V20: 1968-07-01 | W20: 450 | AA20: 60 | AB20: 1000 | AP20: ='LIC Details'!H170 -> 0
B21: 18 | N21: =IF(C21=0,0,$H$403) -> 0 | AP21: ='LIC Details'!H180 -> 0
B22: 19 | N22: 0 | AP22: ='LIC Details'!H190 -> 0
B23: 20 | N23: 0 | AP23: ='LIC Details'!H200 -> 0
B24: 21 | N24: 0 | AP24: ='LIC Details'!H210 -> 0 | AR24: Who gave best suggections to improve this they are my best wellwishers. So,Please call and give ideas to improve
B25: 22 | N25: 0 | AP25: ='LIC Details'!H220 -> 0
B26: 23 | N26: 0 | AP26: ='LIC Details'!H230 -> 0
B27: 24 | N27: 0 | AP27: ='LIC Details'!H240 -> 0
B28: 25 | N28: 0 | AP28: ='LIC Details'!H250 -> 0
B29: 26 | N29: 0 | AP29: ='LIC Details'!H260 -> 0
B30: 27 | N30: 0 | AP30: ='LIC Details'!H270 -> 0
B31: 28 | N31: 0 | AP31: ='LIC Details'!H280 -> 0
B32: 29 | N32: 0 | AP32: ='LIC Details'!H290 -> 0 | AR32: Visit:
B33: 30 | N33: 0 | AP33: ='LIC Details'!H300 -> 0
B34: 31 | N34: 0 | AP34: ='LIC Details'!H310 -> 0 | AR34: http://www.gsreddy.tk
B35: 32 | N35: 0 | AP35: ='LIC Details'!H320 -> 0
B36: 33 | N36: 0 | AP36: ='LIC Details'!H330 -> 0
B37: 34 | N37: 0 | AP37: ='LIC Details'!H340 -> 0
B38: 35 | N38: 0 | AP38: ='LIC Details'!H350 -> 0
B39: 36 | N39: 0 | AP39: ='LIC Details'!H360 -> 0
B40: 37 | N40: 0 | AP40: ='LIC Details'!H370 -> 0
B41: 38 | N41: 0 | AP41: ='LIC Details'!H380 -> 0
B42: 39 | N42: 0 | AP42: ='LIC Details'!H390 -> 0
B43: 40 | N43: 0 | AP43: ='LIC Details'!H400 -> 0
B44: 41 | N44: 0 | AP44: ='LIC Details'!H410 -> 0
B45: 42 | N45: 0 | AP45: ='LIC Details'!H420 -> 0
B46: 43 | N46: 0 | AP46: ='LIC Details'!H430 -> 0
B47: 44 | N47: 0 | AP47: ='LIC Details'!H440 -> 0
B48: 45 | N48: 0 | AP48: ='LIC Details'!H450 -> 0
B49: 46 | N49: 0 | AP49: ='LIC Details'!H460 -> 0
B50: 47 | N50: 0 | AP50: ='LIC Details'!H470 -> 0
B51: 48 | N51: 0 | AP51: ='LIC Details'!H480 -> 0
B52: 49 | N52: 0 | AP52: ='LIC Details'!H490 -> 0
B53: 50 | N53: 0 | AP53: ='LIC Details'!H500 -> 0
B54: 51 | N54: 0 | AP54: ='LIC Details'!H510 -> 0
B55: 52 | N55: 0 | AP55: ='LIC Details'!H520 -> 0
B56: 53 | N56: 0 | AP56: ='LIC Details'!H530 -> 0
B57: 54 | N57: 0 | AP57: ='LIC Details'!H540 -> 0
B58: 55 | N58: 0 | AP58: ='LIC Details'!H550 -> 0
B59: 56 | N59: 0 | AP59: ='LIC Details'!H560 -> 0
B60: 57 | N60: 0 | AP60: ='LIC Details'!H570 -> 0
B61: 58 | N61: 0 | AP61: ='LIC Details'!H580 -> 0
B62: 59 | N62: 0 | AP62: ='LIC Details'!H590 -> 0
B63: 60 | N63: 0 | AP63: ='LIC Details'!H600 -> 0
B64: 61 | N64: 0 | AP64: ='LIC Details'!H610 -> 0
B65: 62 | N65: 0 | AP65: ='LIC Details'!H620 -> 0
B66: 63 | N66: 0 | AP66: ='LIC Details'!H630 -> 0
B67: 64 | N67: 0 | AP67: ='LIC Details'!H640 -> 0
B68: 65 | N68: 0 | AP68: ='LIC Details'!H650 -> 0
B69: 66 | N69: =IF(C69=0,0,$H$403) -> 0 | AP69: ='LIC Details'!H660 -> 0
B70: 67 | N70: 0 | AP70: ='LIC Details'!H670 -> 0
B71: 68 | N71: 0 | AP71: ='LIC Details'!H680 -> 0
B72: 69 | N72: 0 | AP72: ='LIC Details'!H690 -> 0
B73: 70 | N73: 0 | AP73: ='LIC Details'!H700 -> 0
B74: 71 | N74: 0 | AP74: ='LIC Details'!H710 -> 0
B75: 72 | N75: 0 | AP75: ='LIC Details'!H720 -> 0
B76: 73 | N76: 0 | AP76: ='LIC Details'!H730 -> 0
B77: 74 | N77: 0 | AP77: ='LIC Details'!H740 -> 0
B78: 75 | N78: 0 | AP78: ='LIC Details'!H750 -> 0
B79: 76 | N79: 0 | AP79: ='LIC Details'!H760 -> 0
B80: 77 | N80: 0 | AP80: ='LIC Details'!H770 -> 0
B81: 78 | N81: 0 | AP81: ='LIC Details'!H780 -> 0
B82: 79 | N82: 0 | AP82: ='LIC Details'!H790 -> 0
B83: 80 | N83: 0 | AP83: ='LIC Details'!H800 -> 0
B84: 81 | N84: 0 | AP84: ='LIC Details'!H810 -> 0
B85: 82 | N85: 0 | AP85: ='LIC Details'!H820 -> 0
B86: 83 | N86: 0 | AP86: ='LIC Details'!H830 -> 0
B87: 84 | N87: 0 | AP87: ='LIC Details'!H840 -> 0
B88: 85 | N88: 0 | AP88: ='LIC Details'!H850 -> 0
B89: 86 | N89: 0 | AP89: ='LIC Details'!H860 -> 0
B90: 87 | N90: 0 | AP90: ='LIC Details'!H870 -> 0
B91: 88 | N91: 0 | AP91: ='LIC Details'!H880 -> 0
B92: 89 | N92: 0 | AP92: ='LIC Details'!H890 -> 0
B93: 90 | N93: 0 | AP93: ='LIC Details'!H900 -> 0
B94: 91 | N94: 0 | AP94: ='LIC Details'!H910 -> 0
B95: 92 | N95: 0 | AP95: ='LIC Details'!H920 -> 0
B96: 93 | N96: 0 | AP96: ='LIC Details'!H930 -> 0
B97: 94 | N97: 0 | AP97: ='LIC Details'!H940 -> 0
B98: 95 | N98: 0 | AP98: ='LIC Details'!H950 -> 0
B99: 96 | N99: 0 | AP99: ='LIC Details'!H960 -> 0
B100: 97 | N100: 0 | AP100: ='LIC Details'!H970 -> 0
B101: 98 | N101: 0 | AP101: ='LIC Details'!H980 -> 0
B102: 99 | N102: 0 | AP102: ='LIC Details'!H990 -> 0
B103: 100 | N103: 0 | AP103: ='LIC Details'!H1000 -> 0
B104: 101 | N104: 0 | AP104: ='LIC Details'!H1010 -> 0
B105: 102 | N105: 0 | AP105: ='LIC Details'!H1020 -> 0
B106: 103 | N106: 0 | AP106: ='LIC Details'!H1030 -> 0
B107: 104 | N107: 0 | AP107: ='LIC Details'!H1040 -> 0
B108: 105 | N108: 0 | AP108: ='LIC Details'!H1050 -> 0
B109: 106 | N109: 0 | AP109: ='LIC Details'!H1060 -> 0
B110: 107 | N110: 0 | AP110: ='LIC Details'!H1070 -> 0
B111: 108 | N111: 0 | AP111: ='LIC Details'!H1080 -> 0
B112: 109 | N112: 0 | AP112: ='LIC Details'!H1090 -> 0
B113: 110 | N113: 0 | AP113: ='LIC Details'!H1100 -> 0
B114: 111 | N114: 0 | AP114: ='LIC Details'!H1110 -> 0
B115: 112 | N115: 0 | AP115: ='LIC Details'!H1120 -> 0
B116: 113 | N116: 0 | AP116: ='LIC Details'!H1130 -> 0
B117: 114 | N117: 0 | AP117: ='LIC Details'!H1140 -> 0
B118: 115 | N118: 0 | AP118: ='LIC Details'!H1150 -> 0
B119: 116 | N119: 0 | AP119: ='LIC Details'!H1160 -> 0
B120: 117 | N120: 0 | AP120: ='LIC Details'!H1170 -> 0
B121: 118 | N121: 0 | AP121: ='LIC Details'!H1180 -> 0
B122: 119 | N122: 0 | AP122: ='LIC Details'!H1190 -> 0
B123: 120 | N123: 0 | AP123: ='LIC Details'!H1200 -> 0
B124: 121 | N124: 0 | AP124: ='LIC Details'!H1210 -> 0
B125: 122 | N125: 0 | AP125: ='LIC Details'!H1220 -> 0
B126: 123 | N126: 0 | AP126: ='LIC Details'!H1230 -> 0
B127: 124 | N127: 0 | AP127: ='LIC Details'!H1240 -> 0
B128: 125 | N128: 0 | AP128: ='LIC Details'!H1250 -> 0
B129: 126 | N129: 0 | AP129: ='LIC Details'!H1260 -> 0
B130: 127 | N130: 0 | AP130: ='LIC Details'!H1270 -> 0
B131: 128 | N131: 0 | AP131: ='LIC Details'!H1280 -> 0
B132: 129 | N132: 0 | AP132: ='LIC Details'!H1290 -> 0
B133: 130 | N133: =IF(C133=0,0,$H$403) -> 0 | AP133: ='LIC Details'!H1300 -> 0
B134: 131 | N134: 0 | AP134: ='LIC Details'!H1310 -> 0
B135: 132 | N135: 0 | AP135: ='LIC Details'!H1320 -> 0
B136: 133 | N136: 0 | AP136: ='LIC Details'!H1330 -> 0
B137: 134 | N137: 0 | AP137: ='LIC Details'!H1340 -> 0
B138: 135 | N138: 0 | AP138: ='LIC Details'!H1350 -> 0
B139: 136 | N139: 0 | AP139: ='LIC Details'!H1360 -> 0
B140: 137 | N140: 0 | AP140: ='LIC Details'!H1370 -> 0
B141: 138 | N141: 0 | AP141: ='LIC Details'!H1380 -> 0
B142: 139 | N142: 0 | AP142: ='LIC Details'!H1390 -> 0
B143: 140 | N143: 0 | AP143: ='LIC Details'!H1400 -> 0
B144: 141 | N144: 0 | AP144: ='LIC Details'!H1410 -> 0
B145: 142 | N145: 0 | AP145: ='LIC Details'!H1420 -> 0
B146: 143 | N146: 0 | AP146: ='LIC Details'!H1430 -> 0
B147: 144 | N147: 0 | AP147: ='LIC Details'!H1440 -> 0
B148: 145 | N148: 0 | AP148: ='LIC Details'!H1450 -> 0
B149: 146 | N149: 0 | AP149: ='LIC Details'!H1460 -> 0
B150: 147 | N150: 0 | AP150: ='LIC Details'!H1470 -> 0
B151: 148 | N151: 0 | AP151: ='LIC Details'!H1480 -> 0
B152: 149 | N152: 0 | AP152: ='LIC Details'!H1490 -> 0
B153: 150 | N153: 0 | AP153: ='LIC Details'!H1500 -> 0
B154: 151 | N154: 0 | AP154: ='LIC Details'!H1510 -> 0
B155: 152 | N155: 0 | AP155: ='LIC Details'!H1520 -> 0
B156: 153 | N156: 0 | AP156: ='LIC Details'!H1530 -> 0
B157: 154 | N157: 0 | AP157: ='LIC Details'!H1540 -> 0
B158: 155 | N158: 0 | AP158: ='LIC Details'!H1550 -> 0
B159: 156 | N159: 0 | AP159: ='LIC Details'!H1560 -> 0
B160: 157 | N160: 0 | AP160: ='LIC Details'!H1570 -> 0
B161: 158 | N161: 0 | AP161: ='LIC Details'!H1580 -> 0
B162: 159 | N162: 0 | AP162: ='LIC Details'!H1590 -> 0
B163: 160 | N163: 0 | AP163: ='LIC Details'!H1600 -> 0
B164: 161 | N164: 0 | AP164: ='LIC Details'!H1610 -> 0
B165: 162 | N165: 0 | AP165: ='LIC Details'!H1620 -> 0
B166: 163 | N166: 0 | AP166: ='LIC Details'!H1630 -> 0
B167: 164 | N167: 0 | AP167: ='LIC Details'!H1640 -> 0
B168: 165 | N168: 0 | AP168: ='LIC Details'!H1650 -> 0
B169: 166 | N169: 0 | AP169: ='LIC Details'!H1660 -> 0
B170: 167 | N170: 0 | AP170: ='LIC Details'!H1670 -> 0
B171: 168 | N171: 0 | AP171: ='LIC Details'!H1680 -> 0
B172: 169 | N172: 0 | AP172: ='LIC Details'!H1690 -> 0
B173: 170 | N173: 0 | AP173: ='LIC Details'!H1700 -> 0
B174: 171 | N174: 0 | AP174: ='LIC Details'!H1710 -> 0
B175: 172 | N175: 0 | AP175: ='LIC Details'!H1720 -> 0
B176: 173 | N176: 0 | AP176: ='LIC Details'!H1730 -> 0
B177: 174 | N177: 0 | AP177: ='LIC Details'!H1740 -> 0
B178: 175 | N178: 0 | AP178: ='LIC Details'!H1750 -> 0
B179: 176 | N179: 0 | AP179: ='LIC Details'!H1760 -> 0
B180: 177 | N180: 0 | AP180: ='LIC Details'!H1770 -> 0
B181: 178 | N181: 0 | AP181: ='LIC Details'!H1780 -> 0
B182: 179 | N182: 0 | AP182: ='LIC Details'!H1790 -> 0
B183: 180 | N183: 0 | AP183: ='LIC Details'!H1800 -> 0
B184: 181 | N184: 0 | AP184: ='LIC Details'!H1810 -> 0
B185: 182 | N185: 0 | AP185: ='LIC Details'!H1820 -> 0
B186: 183 | N186: 0 | AP186: ='LIC Details'!H1830 -> 0
B187: 184 | N187: 0 | AP187: ='LIC Details'!H1840 -> 0
B188: 185 | N188: 0 | AP188: ='LIC Details'!H1850 -> 0
B189: 186 | N189: 0 | AP189: ='LIC Details'!H1860 -> 0
B190: 187 | N190: 0 | AP190: ='LIC Details'!H1870 -> 0
B191: 188 | N191: 0 | AP191: ='LIC Details'!H1880 -> 0
B192: 189 | N192: 0 | AP192: ='LIC Details'!H1890 -> 0
B193: 190 | N193: 0 | AP193: ='LIC Details'!H1900 -> 0
B194: 191 | N194: 0 | AP194: ='LIC Details'!H1910 -> 0
B195: 192 | N195: 0 | AP195: ='LIC Details'!H1920 -> 0
B196: 193 | N196: 0 | AP196: ='LIC Details'!H1930 -> 0
B197: 194 | N197: =IF(C197=0,0,$H$403) -> 0 | AP197: ='LIC Details'!H1940 -> 0
B198: 195 | N198: 0 | AP198: ='LIC Details'!H1950 -> 0
B199: 196 | N199: 0 | AP199: ='LIC Details'!H1960 -> 0
B200: 197 | N200: 0 | AP200: ='LIC Details'!H1970 -> 0
B201: 198 | N201: 0 | AP201: ='LIC Details'!H1980 -> 0
... 199 more rows

Sheet 101
T2: APTC FORM 101 | AG2: G.S.Reddy 9666570250
T3: (See subsidiary Rule 2(W) under Treasury Rule 15: Govt Memo No:38907/Accounts/65-5,Dt:21-2-1963)
T6: DDO code: | U6: =$D$11 -> 08100308031 | Z6: Treasury/PAO code: | AB6: =D7 -> 0 | AC6: =E7 -> 8 | AD6: =F7 -> 1 | AE6: =G7 -> 0
B7: STO code | C7: : | D7: ='47-OUTER'!G7 -> 0 | E7: ='47-OUTER'!H7 -> 8 | F7: ='47-OUTER'!I7 -> 1 | G7: ='47-OUTER'!J7 -> 0 | J7: =CONCATENATE(" (For Treasury Use Only)") -> (For Treasury Use Only) | T7: DDO Designation: | V7: =CONCATENATE(Code!H5," ",Code!H110) -> Head Master ZPPHS,Balayapalli | AA7: =CONCATENATE("Treasury/PAO name:"," "," "," STO,",Home!D7) -> Treasury/PAO name: STO,Venkatagiri
J8: ="Date :.../..../"&'47-OUTER'!L5 -> Date :.../..../2012
B9: STO name | C9: : | D9: ="STO,"&Home!D7 -> STO,Venkatagiri | T9: To
J10: Trans ID:
B11: DDO code | C11: : | D11: =Home!$K$4 -> 08100308031 | T11: The Treasury office/Manager
T12: =Home!J7 -> SBI,Venkatagiri
B13: DDO Desigation | C13: : | D13: =Code!H5 -> Head Master | I13: =CONCATENATE("DDO Office Name:",Code!H110) -> DDO Office Name:ZPPHS,Balayapalli
B15: Bank branch code | C15: : | D15: =Home!K6&Home!L6&Home!M6&Home!N6 -> 0969 | J15: =CONCATENATE("Name:"," ",Home!J7) -> Name: SBI,Venkatagiri | T15: =CONCATENATE(" ","Please pay bill No.",Home!D8,"/",Code!J28," ","dated:",Code!H15, " ","for Rs.",'47-OUTER'!I56,"( Rupees in words:"," ",Code!P16," ",") to Smt./Sri.",Code!K4,",",Code!K5," ","for the office of the"," ",Home!H5," ","Whose specimen signature is attested here with.") -> Please pay bill No.12/2012 dated:26-11-2012 for Rs.473736( Rupees in words: Four Lakhs Seventy three Thousand Seven Hundred and Thirty six rupees only ) to Smt./Sri.G.Bhasker,SA(Maths) for the office of the Balayapalli Whose specimen signature is attested here with.
B17: Head of account | C17: : | D17: 2 | E17: 2 | F17: 0 | G17: 2 | I17: 0 | J17: ='47-OUTER'!G25 -> 2 | L17: 1 | M17: 9 | N17: 1 | P17: - | Q17: -
D19: (Major Head) | I19: (Sub-MH> | L19: (MinorHead) | P19: (Grp-SH)
E20: 0 | F20: 5 | I20: 0 | J20: 1 | K20: 0 | M20: - | N20: - | O20: -
D21: (Sub Head) | I21: (Det.Head) | L21: (Sub Det.Head)
B22: Non-Plan=N Plan=P | D22: N | E22: Charged=C Voted=V | H22: V | I22: Contingency fund MH/Service Major Head | N22: 2 | O22: 2 | P22: 0 | Q22: 2 | T22: Signature of the Govt. servent | AA22: Received the payment
B24: =CONCATENATE("Gross Rs."," ",'47-OUTER'!I54," ","Deductions Rs.",'47-OUTER'!I55," ","Net Rs.",'47-OUTER'!I56) -> Gross Rs. 542216 Deductions Rs.68480 Net Rs.473736
T25: =CONCATENATE("Date:",Code!H15) -> Date:26-11-2012 | AA25: =T25 -> Date:26-11-2012
B26: =Code!P16 -> Four Lakhs Seventy three Thousand Seven Hundred and Thirty six rupees only
B28: Messenger Name: | C28: =Home!D15 -> G.Bhasker | K28: Designation: | N28: =Home!$J$15 -> SA(Maths) | T28: Attested
B29: (As in APTC Form-101)
T30: Signature of the D.D.O | AA30: Signature of the Govt
B31: Specimen Signature of Messenger: 1) 2)
F32: 2)
Z33: Servant receiving the payment
B35: DDO Signature | E35: Attested | M35: STO Signature
E39: DDO Signature

Sheet 47-OUTER
C2: ="Payable At Sub-Treasury Office-"&UPPER(Home!D7) -> Payable At Sub-Treasury Office-VENKATAGIRI
C3: =Paybil!B2 -> PAY BILL FOR THE MONTH OF NOVEMBER-2012 FOR THE PERMANENT ESTABLISHMENT OF TEACHING STAFF ZPPHS BALAYAPALLI
C4: GOVERNMENT OF ANDHRA PRADESH A.P.T.C.Form - 47 | AB4: Put Round seal at left top corner
C5: Pay Bill for the Month & Year | G5: =Code!$J$27 -> NOVEMBER | L5: =Code!J28 -> 2012
C7: Treasury / P.A.O Code | G7: =LEFT($G$9,1) -> 0 | H7: =MID($G$9,2,1) -> 8 | I7: =MID($G$9,3,1) -> 1 | J7: =MID($G$9,4,1) -> 0 | R7: =CONCATENATE("(for Office use only)Date :.../..../",L5," Trans ID:") -> (for Office use only)Date :.../..../2012 Trans ID:
C9: D.D.O.Code | G9: =Code!$H$9 -> 08100308031
C11: DDO Designation | G11: =Code!H5 -> Head Master
G12: =Home!$H$5 -> Balayapalli | AX12: =#REF! ->  | AZ12: =MONTH(AX12) ->  | BB12: =LOOKUP(AZ12,AX18:BI18,AX19:BI19) ->  | BC12: =YEAR(AX12) -> 
B14: ="UNDER RUPEES:"&Code!P17 -> UNDER RUPEES:Four Lakhs Seventy three Thousand Seven Hundred and Thirty seven rupees only | C14: BANK CODE | G14: =Home!$K$6 -> 0 | H14: =Home!$L$6 -> 9 | I14: =Home!$M$6 -> 6 | J14: =Home!$N$6 -> 9 | Z14: G.S.Reddy 9666570250
C16: DDOs TBR No. | G16: =LEFT(Code!K6,1) -> 0 | H16: =MID(Code!K6,2,1) -> 0 | I16: =MID(Code!K6,3,1) -> 1 | J16: =MID(Code!K6,4,1) -> 2 | K16: =CONCATENATE("/",L5) -> /2012 | N16: ="District :"&Code!H6 -> District :Nellore District
N18: DDO Office Name : | S18: =Home!H5 -> Balayapalli | Z18: 1copy | AX18: 1 | AY18: 2 | AZ18: 3 | BA18: 4 | BB18: 5 | BC18: 6 | BD18: 7 | BE18: 8 | BF18: 9 | BG18: 10 | BH18: 11 | BI18: 12
N19: Name of the Bank : | S19: =Home!J7 -> SBI,Venkatagiri | AX19: JANUARY | AY19: FEBRUARY | AZ19: MARCH | BA19: APRIL | BB19: MAY | BC19: JUNE | BD19: JULY | BE19: AUGUST | BF19: SEPTEMBER | BG19: OCTOBER | BH19: NOVEMBER | BI19: DECEMBER
S21: Permanent / Temporary
C22: Head of Account | N22: Deducations | U22: Amount | AF22: Who gave best suggections to improve this they are my best wellwishers. So,Please call and give ideas to improve
C23: Major Head | F23: 2 | G23: 2 | H23: 0 | I23: 2 | J23: General Education | N23: 1 | O23: G.P.F | T23: Rs. | U23: =Paybil!Z404 -> 0
C25: Sub Major | F25: 0 | G25: =MID(Code!H11,7,1) -> 2 | I25: Secondary Education | N25: 2 | O25: APGLI & Loan | T25: Rs. | U25: =Paybil!T404+Paybil!U404 -> 8535 | AX25: JANUARY | AY25: FEBRUARY | AZ25: MARCH | BA25: APRIL | BB25: MAY | BC25: JUNE | BD25: JULY | BE25: AUGUST | BF25: SEPTEMBER | BG25: OCTOBER | BH25: NOVEMBER | BI25: DECEMBER
G26: 2
C27: Minor Head | F27: 1 | G27: 9 | H27: 1 | I27: Assistance to Local Bodies for Secondary Education | N27: 3 | O27: Group Insurance/AIS | T27: Rs. | U27: =Paybil!V404 -> 1050 | AX27: 31 | AY27: 28 | AZ27: 31 | BA27: 30 | BB27: 31 | BC27: 30 | BD27: 31 | BE27: 31 | BF27: 30 | BG27: 31 | BH27: 30 | BI27: 31
AB28: Who gave best suggections to improve this they are my best wellwishers. So,Please call and give ideas to improve
C29: Group Sub-Head | N29: 4 | O29: Professional Tax | T29: Rs. | U29: =Paybil!W404 -> 3400
C31: Sub Head | F31: 0 | G31: 5 | I31: =IF(G25="2","Teaching Grant to Zilla Praja Parishad ","Teaching Grant to Mandal Praja Parishad ") -> Teaching Grant to Zilla Praja Parishad | N31: 5 | O31: House Rent | T31: Rs. | AX31: =LOOKUP(BB12,AX25:BI25,AX27:BI27) -> 
C33: Detail Head | F33: 0 | G33: 1 | H33: 0 | I33: Salaries | N33: 6 | O33: Festival Adv.&APCO Adv. | T33: Rs. | U33: =Paybil!X404 -> 0
N34: 7 | O34: Educational Adv. | T34: Rs.
N35: 8 | O35: HBA (P) | T35: Rs. | AB35: Cell:9666570250
C36: Non-plan=N / Plan=P | G36: N | H36: Charged=C / Voted=V | M36: V | N36: 9 | O36: HBA (I) | T36: Rs. | AB36: Visit:
C37: Contingency Fund/MH | N37: 10 | O37: Car Adv.(P) | T37: Rs.
C38: Service Major Head | G38: =F23 -> 2 | H38: =G23 -> 2 | I38: 0 | J38: =I23 -> 2 | N38: 11 | O38: Car Adv.(I) | T38: Rs. | AB38: http://www.gsreddy.tk
N39: 12 | O39: Motor Cycle Adv.(P) | T39: Rs.
N40: 13 | O40: Motor Cycle Adv.(I) | T40: Rs.
C41: 011 - Pay | H41: Rs. | I41: =Paybil!G404 -> 338660 | N41: 14 | O41: Cycle Adv. | T41: Rs.
C42: 012-Allowances | H42: Rs. | I42: =Paybil!H404+Paybil!J404+Paybil!L404+Paybil!N404 -> 575 | N42: 15 | O42: Marriage Adv.(P) | T42: Rs.
C43: 013 - Dearness Allowances | H43: Rs. | I43: =Paybil!P404 -> 162341 | N43: 16 | O43: Marriage Adv.(I) | T43: Rs.
C44: 014-Interium Relief | H44: Rs. | N44: 17 | O44: Income Tax | T44: Rs. | U44: =Paybil!AC404 -> 0
C45: 016-H.R.A | H45: Rs. | I45: =Paybil!Q404 -> 40640 | N45: 18 | O45: Class IV GPF- D.T.O | T45: Rs.
H46: Rs. | N46: 19 | O46: EWF/TWF | T46: Rs. | U46: =Paybil!AF404 -> 0
H47: Rs. | N47: 20 | O47: ZPPF/ZPPF Loan | T47: Rs. | U47: =Paybil!Y404+Paybil!AA404 -> 52900
H48: Rs. | N48: 21 | O48: GPF Loan | T48: Rs. | U48: =Paybil!AB404 -> 0
H49: Rs. | N49: 22 | O49: CMRelief Fund | T49: Rs.
H50: Rs. | N50: 23 | O50: CPS | T50: Rs. | U50: =Paybil!AD404 -> 2595
H51: Rs. | N51: 24 | O51: CPS Arrear | T51: Rs. | U51: =Paybil!AE404 -> 0
H52: Rs. | N52: 25 | T52: Rs.
H53: Rs. | N53: Total Govt. Deducations | T53: Rs. | U53: =ROUND(SUM(U23+U25+U27+U29+U33+U44+U46+U47+U48+U45+U49+U50+U51+U52),0) -> 68480
C54: Gross Total | H54: Rs. | I54: =ROUND(SUM(I41:M53),0) -> 542216 | N54: Total Non-Govt.Deducations | T54: Rs. | U54: =Paybil!AJ404 -> 14097
C55: Less Govt. Deductions | H55: Rs. | I55: =ROUND(U53,0) -> 68480
C56: A.G.Nett Amount | H56: Rs. | I56: =I54-I55 -> 473736
C57: =CONCATENATE("A.G.Nett Amount in words : Rupees"," ",Code!P16) -> A.G.Nett Amount in words : Rupees Four Lakhs Seventy three Thousand Seven Hundred and Thirty six rupees only
U59: Drawing Officer
C60: FOR USE IN TREASURY / PAY & ACCOUNTS OFFICE ONLY
C61: Pay | D61: _________________ | I61: (Rupees ______________________________________________________
C62: _______________________________________________________ Only) by Cash / Cheque / Draft /
C63: Account credit as under and Rs.________________ (Rupees ___________________________________
C64: ____________________________________________ only) by adjustment.
F66: 1.Rs._________________ by transfer credit to the SB Accounts of the Employees (as per Annexure-I)
F68: 2.Rs._________________ by transfer credit to the DDO Account towards of Non-Govt.Deducations.
P69: Treasury Officer / Pay & Accounts Officer

Sheet Paybil
B2: =CONCATENATE("PAY BILL FOR THE MONTH OF"," ",Code!K2," ","FOR THE PERMANENT ESTABLISHMENT OF TEACHING STAFF"," ",UPPER(Code!H105)," ",UPPER(Home!H5)) -> PAY BILL FOR THE MONTH OF NOVEMBER-2012 FOR THE PERMANENT ESTABLISHMENT OF TEACHING STAFF ZPPHS BALAYAPALLI
G4: Present Pay and Allowances | T4: Deductions | AI4: Non-Govt Deduction | AM4: . | AO4: Password to Change gsreddy
B5: S.NO | C5: Name of the Teacher | D5: Catageory of the post | E5: Scale of Pay | F5: Employee ID | G5: Basic Pay | H5: F.P.I | I5: F.P.I | J5: H.M.A | K5: H.M.A | L5: A.I | M5: A.I | N5: PHC | O5: C.A | P5: =CONCATENATE("D.A"," ",Code!H13*100,"%") -> D.A 47.936% | Q5: =CONCATENATE("H.R.A"," ",Code!H14*100,"%") -> H.R.A 12% | R5: =CONCATENATE("I.R"," ",'Empolyees Details'!O23*100,"%") -> I.R 0% | S5: Gross Total | T5: A.P.G.L.I | U5: A.P.G.L.I LOAN | V5: G.I.S | W5: P.Tax | X5: Festival Advance | Y5: Z.P.P.F | Z5: G.P.F | AA5: Z.P P.F. Loan | AB5: G.P.F. Loan | AC5: Income Tax | AD5: CPS | AE5: CPS Arrears | AF5: TWF/EWF | AG5: TOTAL | AH5: NET | AI5: SWF | AJ5: LIC | AK5: ='Empolyees Details'!AN3 -> Court | AL5: ='Empolyees Details'!AO3 -> Bank Loan | AM5: NET salary
B7: =IF(AM7>0,1,0) -> 1 | C7: ='Empolyees Details'!C4 -> P.Subbarayudu | D7: ='Empolyees Details'!D4 -> HM | E7: ='Empolyees Details'!F4 -> 18030-43630 | F7: ='Empolyees Details'!G4 -> 0816968 | G7: =ROUND('Empolyees Details'!O4*Code!P45/Code!O45,0) -> 23650 | H7: =IF(OR(G7=3600,G7=4400,G7=4500,G7=5400,G7=0),0,ROUND('Empolyees Details'!P4*Code!AA45,0)) -> 35 | J7: =IF(G7=0,0,ROUND('Empolyees Details'!R4*Code!AA45,0)) -> 0 | L7: =IF(OR(G7=3600,G7=4400,G7=4500,G7=5400,G7=0),0,ROUND('Empolyees Details'!Q4*Code!AA45,0)) -> 60 | N7: =IF(OR(G7=3600,G7=4400,G7=4500,G7=5400),0,'Empolyees Details'!S4) -> 0 | P7: =IF(G7<5500,0,ROUND('Empolyees Details'!O4*Code!AA45*Code!$H$13,0)) -> 11337 | Q7: =IF(G7<5500,0,ROUND('Empolyees Details'!O4*Code!AA45*Code!$H$14,0)) -> 2838 | S7: =G7+H7+J7+L7+N7+P7+Q7 -> 37920 | T7: =IF(OR(G7=3600,G7=4400,G7=4500,G7=5400),0,IF(G7=0,0,'Empolyees Details'!W4)) -> 0 | U7: =IF(OR(G7=3600,G7=4400,G7=4500,G7=5400),0,IF(G7=0,0,'Empolyees Details'!X4)) -> 0 | V7: =IF(OR(G7=3600,G7=4400,G7=4500,G7=5400),0,IF(G7=0,0,'Empolyees Details'!AA4)) -> 120 | W7: =IF(Code!P45<15,0,IF(OR(G7=3600,G7=4400,G7=4500,G7=5400),0,IF(N7=0,IF(S7>20000,200,IF(S7>15000,150,IF(S7>10000,100,IF(S7>6000,80,IF(S7>5000,60,IF(S7>4000,45,IF(S7>3000,35,IF(S7>2000,25,0)))))))),0))) -> 200 | X7: =IF(OR(G7=3600,G7=4400,G7=4500,G7=5400),0,IF(G7=0,0,'Empolyees Details'!Y4)) -> 0 | Y7: =IF(OR(G7=3600,G7=4400,G7=4500,G7=5400),0,IF(G7=0,0,'Empolyees Details'!AB4)) -> 5000 | Z7: =IF(OR(G7=3600,G7=4400,G7=4500,G7=5400),0,IF(G7=0,0,'Empolyees Details'!AC4)) -> 0 | AA7: =IF(OR(G7=3600,G7=4400,G7=4500,G7=5400),0,IF(G7=0,0,'Empolyees Details'!AD4)) -> 0 | AB7: =IF(OR(G7=3600,G7=4400,G7=4500,G7=5400),0,IF(G7=0,0,'Empolyees Details'!AF4)) -> 0 | AC7: =IF(OR(G7=3600,G7=4400,G7=4500,G7=5400),0,IF(G7=0,0,'Empolyees Details'!AH4)) -> 0 | AD7: =IF(OR(G7=3600,G7=4400,G7=4500,G7=5400),0,IF(G7=0,0,CPS!L23)) -> 0 | AE7: =IF(OR(G7=3600,G7=4400,G7=4500,G7=5400),0,IF(G7=0,0,'Empolyees Details'!AK4)) -> 0 | AF7: =IF(OR(G7=3600,G7=4400,G7=4500,G7=5400),0,IF(G7=0,0,'Empolyees Details'!AL4)) -> 0 | AG7: =T7+U7+V7+W7+X7+Y7+Z7+AA7+AB7+AC7+AD7+AE7+AF7 -> 5320 | AH7: =S7-AG7 -> 32600 | AI7: =IF(OR(G7=3600,G7=4400,G7=4500,G7=5400),0,'Empolyees Details'!AM4) -> 0 | AJ7: =IF(G7=0,0,'Empolyees Details'!AP4) -> 1498 | AK7: =IF(OR(G7=3600,G7=4400,G7=4500,G7=5400),0,IF(G7=0,0,'Empolyees Details'!AN4)) -> 0 | AL7: =IF(OR(G7=3600,G7=4400,G7=4500,G7=5400),0,IF(G7=0,0,'Empolyees Details'!AO4)) -> 0 | AM7: =AH7-AJ7-AI7 -> 31102
B8: =IF(AM8>0,B7+1,B7) -> 2 | C8: ='Empolyees Details'!C5 -> K.Narendranadh | D8: ='Empolyees Details'!D5 -> SA(Maths) | E8: ='Empolyees Details'!F5 -> 14860-39540 | F8: ='Empolyees Details'!G5 -> 0828961 | G8: =ROUND('Empolyees Details'!O5*Code!P46/Code!O46,0) -> 17540 | H8: =IF(OR(G8=3600,G8=4400,G8=4500,G8=5400,G8=0),0,ROUND('Empolyees Details'!P5*Code!AA46,0)) -> 0 | J8: =IF(G8=0,0,ROUND('Empolyees Details'!R5*Code!AA46,0)) -> 0 | L8: =IF(OR(G8=3600,G8=4400,G8=4500,G8=5400,G8=0),0,ROUND('Empolyees Details'!Q5*Code!AA46,0)) -> 0 | N8: =IF(OR(G8=3600,G8=4400,G8=4500,G8=5400),0,'Empolyees Details'!S5) -> 0 | P8: =IF(G8<5500,0,ROUND('Empolyees Details'!O5*Code!AA46*Code!$H$13,0)) -> 8408 | Q8: =IF(G8<5500,0,ROUND('Empolyees Details'!O5*Code!AA46*Code!$H$14,0)) -> 2105 | S8: =G8+H8+J8+L8+N8+P8+Q8 -> 28053 | T8: =IF(OR(G8=3600,G8=4400,G8=4500,G8=5400),0,IF(G8=0,0,'Empolyees Details'!W5)) -> 600 | U8: =IF(OR(G8=3600,G8=4400,G8=4500,G8=5400),0,IF(G8=0,0,'Empolyees Details'!X5)) -> 0 | V8: =IF(OR(G8=3600,G8=4400,G8=4500,G8=5400),0,IF(G8=0,0,'Empolyees Details'!AA5)) -> 60 | W8: =IF(Code!P46<15,0,IF(OR(G8=3600,G8=4400,G8=4500,G8=5400),0,IF(N8=0,IF(S8>20000,200,IF(S8>15000,150,IF(S8>10000,100,IF(S8>6000,80,IF(S8>5000,60,IF(S8>4000,45,IF(S8>3000,35,IF(S8>2000,25,0)))))))),0))) -> 200 | X8: =IF(OR(G8=3600,G8=4400,G8=4500,G8=5400),0,IF(G8=0,0,'Empolyees Details'!Y5)) -> 0 | Y8: =IF(OR(G8=3600,G8=4400,G8=4500,G8=5400),0,IF(G8=0,0,'Empolyees Details'!AB5)) -> 1500 | Z8: =IF(OR(G8=3600,G8=4400,G8=4500,G8=5400),0,IF(G8=0,0,'Empolyees Details'!AC5)) -> 0 | AA8: =IF(OR(G8=3600,G8=4400,G8=4500,G8=5400),0,IF(G8=0,0,'Empolyees Details'!AD5)) -> 0 | AB8: =IF(OR(G8=3600,G8=4400,G8=4500,G8=5400),0,IF(G8=0,0,'Empolyees Details'!AF5)) -> 0 | AC8: =IF(OR(G8=3600,G8=4400,G8=4500,G8=5400),0,IF(G8=0,0,'Empolyees Details'!AH5)) -> 0 | AD8: =IF(OR(G8=3600,G8=4400,G8=4500,G8=5400),0,IF(G8=0,0,CPS!L24)) -> 0 | AE8: =IF(OR(G8=3600,G8=4400,G8=4500,G8=5400),0,IF(G8=0,0,'Empolyees Details'!AK5)) -> 0 | AF8: =IF(OR(G8=3600,G8=4400,G8=4500,G8=5400),0,IF(G8=0,0,'Empolyees Details'!AL5)) -> 0 | AG8: =T8+U8+V8+W8+X8+Y8+Z8+AA8+AB8+AC8+AD8+AE8+AF8 -> 2360 | AH8: =S8-AG8 -> 25693 | AI8: =IF(OR(G8=3600,G8=4400,G8=4500,G8=5400),0,'Empolyees Details'!AM5) -> 0 | AJ8: =IF(G8=0,0,'Empolyees Details'!AP5) -> 408 | AK8: =IF(OR(G8=3600,G8=4400,G8=4500,G8=5400),0,IF(G8=0,0,'Empolyees Details'!AN5)) -> 0 | AL8: =IF(OR(G8=3600,G8=4400,G8=4500,G8=5400),0,IF(G8=0,0,'Empolyees Details'!AO5)) -> 0 | AM8: =AH8-AJ8-AI8 -> 25285
B9: =IF(AM9>0,B8+1,B8) -> 3 | C9: ='Empolyees Details'!C6 -> S.Mallikarjuna | D9: ='Empolyees Details'!D6 -> SA(Maths) | E9: ='Empolyees Details'!F6 -> 14860-39540 | F9: ='Empolyees Details'!G6 -> 0829393 | G9: =ROUND('Empolyees Details'!O6*Code!P47/Code!O47,0) -> 17540 | H9: =IF(OR(G9=3600,G9=4400,G9=4500,G9=5400,G9=0),0,ROUND('Empolyees Details'!P6*Code!AA47,0)) -> 0 | J9: =IF(G9=0,0,ROUND('Empolyees Details'!R6*Code!AA47,0)) -> 0 | L9: =IF(OR(G9=3600,G9=4400,G9=4500,G9=5400,G9=0),0,ROUND('Empolyees Details'!Q6*Code!AA47,0)) -> 0 | N9: =IF(OR(G9=3600,G9=4400,G9=4500,G9=5400),0,'Empolyees Details'!S6) -> 0 | P9: =IF(G9<5500,0,ROUND('Empolyees Details'!O6*Code!AA47*Code!$H$13,0)) -> 8408 | Q9: =IF(G9<5500,0,ROUND('Empolyees Details'!O6*Code!AA47*Code!$H$14,0)) -> 2105 | S9: 28053 | T9: =IF(OR(G9=3600,G9=4400,G9=4500,G9=5400),0,IF(G9=0,0,'Empolyees Details'!W6)) -> 600 | U9: =IF(OR(G9=3600,G9=4400,G9=4500,G9=5400),0,IF(G9=0,0,'Empolyees Details'!X6)) -> 0 | V9: =IF(OR(G9=3600,G9=4400,G9=4500,G9=5400),0,IF(G9=0,0,'Empolyees Details'!AA6)) -> 60 | W9: =IF(Code!P47<15,0,IF(OR(G9=3600,G9=4400,G9=4500,G9=5400),0,IF(N9=0,IF(S9>20000,200,IF(S9>15000,150,IF(S9>10000,100,IF(S9>6000,80,IF(S9>5000,60,IF(S9>4000,45,IF(S9>3000,35,IF(S9>2000,25,0)))))))),0))) -> 200 | X9: =IF(OR(G9=3600,G9=4400,G9=4500,G9=5400),0,IF(G9=0,0,'Empolyees Details'!Y6)) -> 0 | Y9: =IF(OR(G9=3600,G9=4400,G9=4500,G9=5400),0,IF(G9=0,0,'Empolyees Details'!AB6)) -> 2500 | Z9: =IF(OR(G9=3600,G9=4400,G9=4500,G9=5400),0,IF(G9=0,0,'Empolyees Details'!AC6)) -> 0 | AA9: =IF(OR(G9=3600,G9=4400,G9=4500,G9=5400),0,IF(G9=0,0,'Empolyees Details'!AD6)) -> 0 | AB9: =IF(OR(G9=3600,G9=4400,G9=4500,G9=5400),0,IF(G9=0,0,'Empolyees Details'!AF6)) -> 0 | AC9: =IF(OR(G9=3600,G9=4400,G9=4500,G9=5400),0,IF(G9=0,0,'Empolyees Details'!AH6)) -> 0 | AD9: =IF(OR(G9=3600,G9=4400,G9=4500,G9=5400),0,IF(G9=0,0,CPS!L25)) -> 0 | AE9: =IF(OR(G9=3600,G9=4400,G9=4500,G9=5400),0,IF(G9=0,0,'Empolyees Details'!AK6)) -> 0 | AF9: =IF(OR(G9=3600,G9=4400,G9=4500,G9=5400),0,IF(G9=0,0,'Empolyees Details'!AL6)) -> 0 | AG9: 3360 | AH9: 24693 | AI9: =IF(OR(G9=3600,G9=4400,G9=4500,G9=5400),0,'Empolyees Details'!AM6) -> 0 | AJ9: =IF(G9=0,0,'Empolyees Details'!AP6) -> 1668 | AK9: =IF(OR(G9=3600,G9=4400,G9=4500,G9=5400),0,IF(G9=0,0,'Empolyees Details'!AN6)) -> 0 | AL9: =IF(OR(G9=3600,G9=4400,G9=4500,G9=5400),0,IF(G9=0,0,'Empolyees Details'!AO6)) -> 0 | AM9: 23025
B10: 4 | C10: ='Empolyees Details'!C7 -> G.Bhaskar | D10: ='Empolyees Details'!D7 -> SA(Maths) | E10: ='Empolyees Details'!F7 -> 14860-39540 | F10: ='Empolyees Details'!G7 -> 0830475 | G10: =ROUND('Empolyees Details'!O7*Code!P48/Code!O48,0) -> 17540 | H10: =IF(OR(G10=3600,G10=4400,G10=4500,G10=5400,G10=0),0,ROUND('Empolyees Details'!P7*Code!AA48,0)) -> 0 | J10: =IF(G10=0,0,ROUND('Empolyees Details'!R7*Code!AA48,0)) -> 0 | L10: =IF(OR(G10=3600,G10=4400,G10=4500,G10=5400,G10=0),0,ROUND('Empolyees Details'!Q7*Code!AA48,0)) -> 0 | N10: =IF(OR(G10=3600,G10=4400,G10=4500,G10=5400),0,'Empolyees Details'!S7) -> 0 | P10: =IF(G10<5500,0,ROUND('Empolyees Details'!O7*Code!AA48*Code!$H$13,0)) -> 8408 | Q10: =IF(G10<5500,0,ROUND('Empolyees Details'!O7*Code!AA48*Code!$H$14,0)) -> 2105 | S10: 28053 | T10: =IF(OR(G10=3600,G10=4400,G10=4500,G10=5400),0,IF(G10=0,0,'Empolyees Details'!W7)) -> 600 | U10: =IF(OR(G10=3600,G10=4400,G10=4500,G10=5400),0,IF(G10=0,0,'Empolyees Details'!X7)) -> 0 | V10: =IF(OR(G10=3600,G10=4400,G10=4500,G10=5400),0,IF(G10=0,0,'Empolyees Details'!AA7)) -> 60 | W10: =IF(Code!P48<15,0,IF(OR(G10=3600,G10=4400,G10=4500,G10=5400),0,IF(N10=0,IF(S10>20000,200,IF(S10>15000,150,IF(S10>10000,100,IF(S10>6000,80,IF(S10>5000,60,IF(S10>4000,45,IF(S10>3000,35,IF(S10>2000,25,0)))))))),0))) -> 200 | X10: =IF(OR(G10=3600,G10=4400,G10=4500,G10=5400),0,IF(G10=0,0,'Empolyees Details'!Y7)) -> 0 | Y10: =IF(OR(G10=3600,G10=4400,G10=4500,G10=5400),0,IF(G10=0,0,'Empolyees Details'!AB7)) -> 3000 | Z10: =IF(OR(G10=3600,G10=4400,G10=4500,G10=5400),0,IF(G10=0,0,'Empolyees Details'!AC7)) -> 0 | AA10: =IF(OR(G10=3600,G10=4400,G10=4500,G10=5400),0,IF(G10=0,0,'Empolyees Details'!AD7)) -> 2400 | AB10: =IF(OR(G10=3600,G10=4400,G10=4500,G10=5400),0,IF(G10=0,0,'Empolyees Details'!AF7)) -> 0 | AC10: =IF(OR(G10=3600,G10=4400,G10=4500,G10=5400),0,IF(G10=0,0,'Empolyees Details'!AH7)) -> 0 | AD10: =IF(OR(G10=3600,G10=4400,G10=4500,G10=5400),0,IF(G10=0,0,CPS!L26)) -> 0 | AE10: =IF(OR(G10=3600,G10=4400,G10=4500,G10=5400),0,IF(G10=0,0,'Empolyees Details'!AK7)) -> 0 | AF10: =IF(OR(G10=3600,G10=4400,G10=4500,G10=5400),0,IF(G10=0,0,'Empolyees Details'!AL7)) -> 0 | AG10: 6260 | AH10: 21793 | AI10: =IF(OR(G10=3600,G10=4400,G10=4500,G10=5400),0,'Empolyees Details'!AM7) -> 0 | AJ10: =IF(G10=0,0,'Empolyees Details'!AP7) -> 3018 | AK10: =IF(OR(G10=3600,G10=4400,G10=4500,G10=5400),0,IF(G10=0,0,'Empolyees Details'!AN7)) -> 0 | AL10: =IF(OR(G10=3600,G10=4400,G10=4500,G10=5400),0,IF(G10=0,0,'Empolyees Details'!AO7)) -> 0 | AM10: 18775
B11: 5 | C11: ='Empolyees Details'!C8 -> D.Lakshmidevi | D11: ='Empolyees Details'!D8 -> SA(PS) | E11: ='Empolyees Details'!F8 -> 14860-39540 | F11: ='Empolyees Details'!G8 -> 0830545 | G11: =ROUND('Empolyees Details'!O8*Code!P49/Code!O49,0) -> 16150 | H11: =IF(OR(G11=3600,G11=4400,G11=4500,G11=5400,G11=0),0,ROUND('Empolyees Details'!P8*Code!AA49,0)) -> 0 | J11: =IF(G11=0,0,ROUND('Empolyees Details'!R8*Code!AA49,0)) -> 0 | L11: =IF(OR(G11=3600,G11=4400,G11=4500,G11=5400,G11=0),0,ROUND('Empolyees Details'!Q8*Code!AA49,0)) -> 0 | N11: =IF(OR(G11=3600,G11=4400,G11=4500,G11=5400),0,'Empolyees Details'!S8) -> 0 | P11: =IF(G11<5500,0,ROUND('Empolyees Details'!O8*Code!AA49*Code!$H$13,0)) -> 7742 | Q11: =IF(G11<5500,0,ROUND('Empolyees Details'!O8*Code!AA49*Code!$H$14,0)) -> 1938 | S11: 25830 | T11: =IF(OR(G11=3600,G11=4400,G11=4500,G11=5400),0,IF(G11=0,0,'Empolyees Details'!W8)) -> 600 | U11: =IF(OR(G11=3600,G11=4400,G11=4500,G11=5400),0,IF(G11=0,0,'Empolyees Details'!X8)) -> 0 | V11: =IF(OR(G11=3600,G11=4400,G11=4500,G11=5400),0,IF(G11=0,0,'Empolyees Details'!AA8)) -> 60 | W11: =IF(Code!P49<15,0,IF(OR(G11=3600,G11=4400,G11=4500,G11=5400),0,IF(N11=0,IF(S11>20000,200,IF(S11>15000,150,IF(S11>10000,100,IF(S11>6000,80,IF(S11>5000,60,IF(S11>4000,45,IF(S11>3000,35,IF(S11>2000,25,0)))))))),0))) -> 200 | X11: =IF(OR(G11=3600,G11=4400,G11=4500,G11=5400),0,IF(G11=0,0,'Empolyees Details'!Y8)) -> 0 | Y11: =IF(OR(G11=3600,G11=4400,G11=4500,G11=5400),0,IF(G11=0,0,'Empolyees Details'!AB8)) -> 2500 | Z11: =IF(OR(G11=3600,G11=4400,G11=4500,G11=5400),0,IF(G11=0,0,'Empolyees Details'!AC8)) -> 0 | AA11: =IF(OR(G11=3600,G11=4400,G11=4500,G11=5400),0,IF(G11=0,0,'Empolyees Details'!AD8)) -> 0 | AB11: =IF(OR(G11=3600,G11=4400,G11=4500,G11=5400),0,IF(G11=0,0,'Empolyees Details'!AF8)) -> 0 | AC11: =IF(OR(G11=3600,G11=4400,G11=4500,G11=5400),0,IF(G11=0,0,'Empolyees Details'!AH8)) -> 0 | AD11: =IF(OR(G11=3600,G11=4400,G11=4500,G11=5400),0,IF(G11=0,0,CPS!L27)) -> 0 | AE11: =IF(OR(G11=3600,G11=4400,G11=4500,G11=5400),0,IF(G11=0,0,'Empolyees Details'!AK8)) -> 0 | AF11: =IF(OR(G11=3600,G11=4400,G11=4500,G11=5400),0,IF(G11=0,0,'Empolyees Details'!AL8)) -> 0 | AG11: 3360 | AH11: 22470 | AI11: =IF(OR(G11=3600,G11=4400,G11=4500,G11=5400),0,'Empolyees Details'!AM8) -> 0 | AJ11: =IF(G11=0,0,'Empolyees Details'!AP8) -> 1003 | AK11: =IF(OR(G11=3600,G11=4400,G11=4500,G11=5400),0,IF(G11=0,0,'Empolyees Details'!AN8)) -> 0 | AL11: =IF(OR(G11=3600,G11=4400,G11=4500,G11=5400),0,IF(G11=0,0,'Empolyees Details'!AO8)) -> 0 | AM11: 21467
B12: 6 | C12: ='Empolyees Details'!C9 -> M.Karunakumari | D12: ='Empolyees Details'!D9 -> SA(PS) | E12: ='Empolyees Details'!F9 -> 14860-39540 | F12: ='Empolyees Details'!G9 -> 0829150 | G12: =ROUND('Empolyees Details'!O9*Code!P50/Code!O50,0) -> 16150 | H12: =IF(OR(G12=3600,G12=4400,G12=4500,G12=5400,G12=0),0,ROUND('Empolyees Details'!P9*Code!AA50,0)) -> 0 | J12: =IF(G12=0,0,ROUND('Empolyees Details'!R9*Code!AA50,0)) -> 0 | L12: =IF(OR(G12=3600,G12=4400,G12=4500,G12=5400,G12=0),0,ROUND('Empolyees Details'!Q9*Code!AA50,0)) -> 0 | N12: =IF(OR(G12=3600,G12=4400,G12=4500,G12=5400),0,'Empolyees Details'!S9) -> 0 | P12: =IF(G12<5500,0,ROUND('Empolyees Details'!O9*Code!AA50*Code!$H$13,0)) -> 7742 | Q12: =IF(G12<5500,0,ROUND('Empolyees Details'!O9*Code!AA50*Code!$H$14,0)) -> 1938 | S12: 25830 | T12: =IF(OR(G12=3600,G12=4400,G12=4500,G12=5400),0,IF(G12=0,0,'Empolyees Details'!W9)) -> 600 | U12: =IF(OR(G12=3600,G12=4400,G12=4500,G12=5400),0,IF(G12=0,0,'Empolyees Details'!X9)) -> 0 | V12: =IF(OR(G12=3600,G12=4400,G12=4500,G12=5400),0,IF(G12=0,0,'Empolyees Details'!AA9)) -> 60 | W12: =IF(Code!P50<15,0,IF(OR(G12=3600,G12=4400,G12=4500,G12=5400),0,IF(N12=0,IF(S12>20000,200,IF(S12>15000,150,IF(S12>10000,100,IF(S12>6000,80,IF(S12>5000,60,IF(S12>4000,45,IF(S12>3000,35,IF(S12>2000,25,0)))))))),0))) -> 200 | X12: =IF(OR(G12=3600,G12=4400,G12=4500,G12=5400),0,IF(G12=0,0,'Empolyees Details'!Y9)) -> 0 | Y12: =IF(OR(G12=3600,G12=4400,G12=4500,G12=5400),0,IF(G12=0,0,'Empolyees Details'!AB9)) -> 5000 | Z12: =IF(OR(G12=3600,G12=4400,G12=4500,G12=5400),0,IF(G12=0,0,'Empolyees Details'!AC9)) -> 0 | AA12: =IF(OR(G12=3600,G12=4400,G12=4500,G12=5400),0,IF(G12=0,0,'Empolyees Details'!AD9)) -> 0 | AB12: =IF(OR(G12=3600,G12=4400,G12=4500,G12=5400),0,IF(G12=0,0,'Empolyees Details'!AF9)) -> 0 | AC12: =IF(OR(G12=3600,G12=4400,G12=4500,G12=5400),0,IF(G12=0,0,'Empolyees Details'!AH9)) -> 0 | AD12: =IF(OR(G12=3600,G12=4400,G12=4500,G12=5400),0,IF(G12=0,0,CPS!L28)) -> 0 | AE12: =IF(OR(G12=3600,G12=4400,G12=4500,G12=5400),0,IF(G12=0,0,'Empolyees Details'!AK9)) -> 0 | AF12: =IF(OR(G12=3600,G12=4400,G12=4500,G12=5400),0,IF(G12=0,0,'Empolyees Details'!AL9)) -> 0 | AG12: 5860 | AH12: 19970 | AI12: =IF(OR(G12=3600,G12=4400,G12=4500,G12=5400),0,'Empolyees Details'!AM9) -> 0 | AJ12: =IF(G12=0,0,'Empolyees Details'!AP9) -> 1021 | AK12: =IF(OR(G12=3600,G12=4400,G12=4500,G12=5400),0,IF(G12=0,0,'Empolyees Details'!AN9)) -> 0 | AL12: =IF(OR(G12=3600,G12=4400,G12=4500,G12=5400),0,IF(G12=0,0,'Empolyees Details'!AO9)) -> 0 | AM12: 18949
B13: 7 | C13: ='Empolyees Details'!C10 -> P.Radha Kumari | D13: ='Empolyees Details'!D10 -> SA(BS) | E13: ='Empolyees Details'!F10 -> 14860-39540 | F13: ='Empolyees Details'!G10 -> 0819153 | G13: =ROUND('Empolyees Details'!O10*Code!P51/Code!O51,0) -> 23650 | H13: =IF(OR(G13=3600,G13=4400,G13=4500,G13=5400,G13=0),0,ROUND('Empolyees Details'!P10*Code!AA51,0)) -> 0 | J13: =IF(G13=0,0,ROUND('Empolyees Details'!R10*Code!AA51,0)) -> 0 | L13: =IF(OR(G13=3600,G13=4400,G13=4500,G13=5400,G13=0),0,ROUND('Empolyees Details'!Q10*Code!AA51,0)) -> 205 | N13: =IF(OR(G13=3600,G13=4400,G13=4500,G13=5400),0,'Empolyees Details'!S10) -> 0 | P13: =IF(G13<5500,0,ROUND('Empolyees Details'!O10*Code!AA51*Code!$H$13,0)) -> 11337 | Q13: =IF(G13<5500,0,ROUND('Empolyees Details'!O10*Code!AA51*Code!$H$14,0)) -> 2838 | S13: 38030 | T13: =IF(OR(G13=3600,G13=4400,G13=4500,G13=5400),0,IF(G13=0,0,'Empolyees Details'!W10)) -> 750 | U13: =IF(OR(G13=3600,G13=4400,G13=4500,G13=5400),0,IF(G13=0,0,'Empolyees Details'!X10)) -> 0 | V13: =IF(OR(G13=3600,G13=4400,G13=4500,G13=5400),0,IF(G13=0,0,'Empolyees Details'!AA10)) -> 60 | W13: =IF(Code!P51<15,0,IF(OR(G13=3600,G13=4400,G13=4500,G13=5400),0,IF(N13=0,IF(S13>20000,200,IF(S13>15000,150,IF(S13>10000,100,IF(S13>6000,80,IF(S13>5000,60,IF(S13>4000,45,IF(S13>3000,35,IF(S13>2000,25,0)))))))),0))) -> 200 | X13: =IF(OR(G13=3600,G13=4400,G13=4500,G13=5400),0,IF(G13=0,0,'Empolyees Details'!Y10)) -> 0 | Y13: =IF(OR(G13=3600,G13=4400,G13=4500,G13=5400),0,IF(G13=0,0,'Empolyees Details'!AB10)) -> 5000 | Z13: =IF(OR(G13=3600,G13=4400,G13=4500,G13=5400),0,IF(G13=0,0,'Empolyees Details'!AC10)) -> 0 | AA13: =IF(OR(G13=3600,G13=4400,G13=4500,G13=5400),0,IF(G13=0,0,'Empolyees Details'!AD10)) -> 0 | AB13: =IF(OR(G13=3600,G13=4400,G13=4500,G13=5400),0,IF(G13=0,0,'Empolyees Details'!AF10)) -> 0 | AC13: =IF(OR(G13=3600,G13=4400,G13=4500,G13=5400),0,IF(G13=0,0,'Empolyees Details'!AH10)) -> 0 | AD13: =IF(OR(G13=3600,G13=4400,G13=4500,G13=5400),0,IF(G13=0,0,CPS!L29)) -> 0 | AE13: =IF(OR(G13=3600,G13=4400,G13=4500,G13=5400),0,IF(G13=0,0,'Empolyees Details'!AK10)) -> 0 | AF13: =IF(OR(G13=3600,G13=4400,G13=4500,G13=5400),0,IF(G13=0,0,'Empolyees Details'!AL10)) -> 0 | AG13: 6010 | AH13: 32020 | AI13: =IF(OR(G13=3600,G13=4400,G13=4500,G13=5400),0,'Empolyees Details'!AM10) -> 0 | AJ13: =IF(G13=0,0,'Empolyees Details'!AP10) -> 0 | AK13: =IF(OR(G13=3600,G13=4400,G13=4500,G13=5400),0,IF(G13=0,0,'Empolyees Details'!AN10)) -> 0 | AL13: =IF(OR(G13=3600,G13=4400,G13=4500,G13=5400),0,IF(G13=0,0,'Empolyees Details'!AO10)) -> 0 | AM13: 32020
B14: 8 | C14: ='Empolyees Details'!C11 -> V.Vishnumohanrao | D14: ='Empolyees Details'!D11 -> SA(BS) | E14: ='Empolyees Details'!F11 -> 14860-39540 | F14: ='Empolyees Details'!G11 -> 0801285 | G14: =ROUND('Empolyees Details'!O11*Code!P52/Code!O52,0) -> 20110 | H14: =IF(OR(G14=3600,G14=4400,G14=4500,G14=5400,G14=0),0,ROUND('Empolyees Details'!P11*Code!AA52,0)) -> 0 | J14: =IF(G14=0,0,ROUND('Empolyees Details'!R11*Code!AA52,0)) -> 0 | L14: =IF(OR(G14=3600,G14=4400,G14=4500,G14=5400,G14=0),0,ROUND('Empolyees Details'!Q11*Code!AA52,0)) -> 100 | N14: =IF(OR(G14=3600,G14=4400,G14=4500,G14=5400),0,'Empolyees Details'!S11) -> 0 | P14: =IF(G14<5500,0,ROUND('Empolyees Details'!O11*Code!AA52*Code!$H$13,0)) -> 9640 | Q14: =IF(G14<5500,0,ROUND('Empolyees Details'!O11*Code!AA52*Code!$H$14,0)) -> 2413 | S14: 32263 | T14: =IF(OR(G14=3600,G14=4400,G14=4500,G14=5400),0,IF(G14=0,0,'Empolyees Details'!W11)) -> 350 | U14: =IF(OR(G14=3600,G14=4400,G14=4500,G14=5400),0,IF(G14=0,0,'Empolyees Details'!X11)) -> 0 | V14: =IF(OR(G14=3600,G14=4400,G14=4500,G14=5400),0,IF(G14=0,0,'Empolyees Details'!AA11)) -> 60 | W14: =IF(Code!P52<15,0,IF(OR(G14=3600,G14=4400,G14=4500,G14=5400),0,IF(N14=0,IF(S14>20000,200,IF(S14>15000,150,IF(S14>10000,100,IF(S14>6000,80,IF(S14>5000,60,IF(S14>4000,45,IF(S14>3000,35,IF(S14>2000,25,0)))))))),0))) -> 200 | X14: =IF(OR(G14=3600,G14=4400,G14=4500,G14=5400),0,IF(G14=0,0,'Empolyees Details'!Y11)) -> 0 | Y14: =IF(OR(G14=3600,G14=4400,G14=4500,G14=5400),0,IF(G14=0,0,'Empolyees Details'!AB11)) -> 2000 | Z14: =IF(OR(G14=3600,G14=4400,G14=4500,G14=5400),0,IF(G14=0,0,'Empolyees Details'!AC11)) -> 0 | AA14: =IF(OR(G14=3600,G14=4400,G14=4500,G14=5400),0,IF(G14=0,0,'Empolyees Details'!AD11)) -> 0 | AB14: =IF(OR(G14=3600,G14=4400,G14=4500,G14=5400),0,IF(G14=0,0,'Empolyees Details'!AF11)) -> 0 | AC14: =IF(OR(G14=3600,G14=4400,G14=4500,G14=5400),0,IF(G14=0,0,'Empolyees Details'!AH11)) -> 0 | AD14: =IF(OR(G14=3600,G14=4400,G14=4500,G14=5400),0,IF(G14=0,0,CPS!L30)) -> 0 | AE14: =IF(OR(G14=3600,G14=4400,G14=4500,G14=5400),0,IF(G14=0,0,'Empolyees Details'!AK11)) -> 0 | AF14: =IF(OR(G14=3600,G14=4400,G14=4500,G14=5400),0,IF(G14=0,0,'Empolyees Details'!AL11)) -> 0 | AG14: 2610 | AH14: 29653 | AI14: =IF(OR(G14=3600,G14=4400,G14=4500,G14=5400),0,'Empolyees Details'!AM11) -> 0 | AJ14: =IF(G14=0,0,'Empolyees Details'!AP11) -> 0 | AK14: =IF(OR(G14=3600,G14=4400,G14=4500,G14=5400),0,IF(G14=0,0,'Empolyees Details'!AN11)) -> 0 | AL14: =IF(OR(G14=3600,G14=4400,G14=4500,G14=5400),0,IF(G14=0,0,'Empolyees Details'!AO11)) -> 0 | AM14: 29653
B15: 9 | C15: ='Empolyees Details'!C12 -> Ch.Seenaiah | D15: ='Empolyees Details'!D12 -> SA(Eng) | E15: ='Empolyees Details'!F12 -> 14860-39540 | F15: ='Empolyees Details'!G12 -> 0816847 | G15: =ROUND('Empolyees Details'!O12*Code!P53/Code!O53,0) -> 17540 | H15: =IF(OR(G15=3600,G15=4400,G15=4500,G15=5400,G15=0),0,ROUND('Empolyees Details'!P12*Code!AA53,0)) -> 0 | J15: =IF(G15=0,0,ROUND('Empolyees Details'!R12*Code!AA53,0)) -> 0 | L15: =IF(OR(G15=3600,G15=4400,G15=4500,G15=5400,G15=0),0,ROUND('Empolyees Details'!Q12*Code!AA53,0)) -> 0 | N15: =IF(OR(G15=3600,G15=4400,G15=4500,G15=5400),0,'Empolyees Details'!S12) -> 0 | P15: =IF(G15<5500,0,ROUND('Empolyees Details'!O12*Code!AA53*Code!$H$13,0)) -> 8408 | Q15: =IF(G15<5500,0,ROUND('Empolyees Details'!O12*Code!AA53*Code!$H$14,0)) -> 2105 | S15: 28053 | T15: =IF(OR(G15=3600,G15=4400,G15=4500,G15=5400),0,IF(G15=0,0,'Empolyees Details'!W12)) -> 600 | U15: =IF(OR(G15=3600,G15=4400,G15=4500,G15=5400),0,IF(G15=0,0,'Empolyees Details'!X12)) -> 0 | V15: =IF(OR(G15=3600,G15=4400,G15=4500,G15=5400),0,IF(G15=0,0,'Empolyees Details'!AA12)) -> 60 | W15: =IF(Code!P53<15,0,IF(OR(G15=3600,G15=4400,G15=4500,G15=5400),0,IF(N15=0,IF(S15>20000,200,IF(S15>15000,150,IF(S15>10000,100,IF(S15>6000,80,IF(S15>5000,60,IF(S15>4000,45,IF(S15>3000,35,IF(S15>2000,25,0)))))))),0))) -> 200 | X15: =IF(OR(G15=3600,G15=4400,G15=4500,G15=5400),0,IF(G15=0,0,'Empolyees Details'!Y12)) -> 0 | Y15: =IF(OR(G15=3600,G15=4400,G15=4500,G15=5400),0,IF(G15=0,0,'Empolyees Details'!AB12)) -> 0 | Z15: =IF(OR(G15=3600,G15=4400,G15=4500,G15=5400),0,IF(G15=0,0,'Empolyees Details'!AC12)) -> 0 | AA15: =IF(OR(G15=3600,G15=4400,G15=4500,G15=5400),0,IF(G15=0,0,'Empolyees Details'!AD12)) -> 0 | AB15: =IF(OR(G15=3600,G15=4400,G15=4500,G15=5400),0,IF(G15=0,0,'Empolyees Details'!AF12)) -> 0 | AC15: =IF(OR(G15=3600,G15=4400,G15=4500,G15=5400),0,IF(G15=0,0,'Empolyees Details'!AH12)) -> 0 | AD15: =IF(OR(G15=3600,G15=4400,G15=4500,G15=5400),0,IF(G15=0,0,CPS!L31)) -> 2595 | AE15: =IF(OR(G15=3600,G15=4400,G15=4500,G15=5400),0,IF(G15=0,0,'Empolyees Details'!AK12)) -> 0 | AF15: =IF(OR(G15=3600,G15=4400,G15=4500,G15=5400),0,IF(G15=0,0,'Empolyees Details'!AL12)) -> 0 | AG15: 3455 | AH15: 24598 | AI15: =IF(OR(G15=3600,G15=4400,G15=4500,G15=5400),0,'Empolyees Details'!AM12) -> 0 | AJ15: =IF(G15=0,0,'Empolyees Details'!AP12) -> 0 | AK15: =IF(OR(G15=3600,G15=4400,G15=4500,G15=5400),0,IF(G15=0,0,'Empolyees Details'!AN12)) -> 0 | AL15: =IF(OR(G15=3600,G15=4400,G15=4500,G15=5400),0,IF(G15=0,0,'Empolyees Details'!AO12)) -> 0 | AM15: 24598
B16: 10 | C16: ='Empolyees Details'!C13 -> G.Uma | D16: ='Empolyees Details'!D13 -> SA(Eng) | E16: ='Empolyees Details'!F13 -> 14860-39540 | F16: ='Empolyees Details'!G13 -> 0829513 | G16: =ROUND('Empolyees Details'!O13*Code!P54/Code!O54,0) -> 17050 | H16: =IF(OR(G16=3600,G16=4400,G16=4500,G16=5400,G16=0),0,ROUND('Empolyees Details'!P13*Code!AA54,0)) -> 0 | J16: =IF(G16=0,0,ROUND('Empolyees Details'!R13*Code!AA54,0)) -> 0 | L16: =IF(OR(G16=3600,G16=4400,G16=4500,G16=5400,G16=0),0,ROUND('Empolyees Details'!Q13*Code!AA54,0)) -> 0 | N16: =IF(OR(G16=3600,G16=4400,G16=4500,G16=5400),0,'Empolyees Details'!S13) -> 0 | P16: =IF(G16<5500,0,ROUND('Empolyees Details'!O13*Code!AA54*Code!$H$13,0)) -> 8173 | Q16: =IF(G16<5500,0,ROUND('Empolyees Details'!O13*Code!AA54*Code!$H$14,0)) -> 2046 | S16: 27269 | T16: =IF(OR(G16=3600,G16=4400,G16=4500,G16=5400),0,IF(G16=0,0,'Empolyees Details'!W13)) -> 600 | U16: =IF(OR(G16=3600,G16=4400,G16=4500,G16=5400),0,IF(G16=0,0,'Empolyees Details'!X13)) -> 0 | V16: =IF(OR(G16=3600,G16=4400,G16=4500,G16=5400),0,IF(G16=0,0,'Empolyees Details'!AA13)) -> 60 | W16: =IF(Code!P54<15,0,IF(OR(G16=3600,G16=4400,G16=4500,G16=5400),0,IF(N16=0,IF(S16>20000,200,IF(S16>15000,150,IF(S16>10000,100,IF(S16>6000,80,IF(S16>5000,60,IF(S16>4000,45,IF(S16>3000,35,IF(S16>2000,25,0)))))))),0))) -> 200 | X16: =IF(OR(G16=3600,G16=4400,G16=4500,G16=5400),0,IF(G16=0,0,'Empolyees Details'!Y13)) -> 0 | Y16: =IF(OR(G16=3600,G16=4400,G16=4500,G16=5400),0,IF(G16=0,0,'Empolyees Details'!AB13)) -> 2000 | Z16: =IF(OR(G16=3600,G16=4400,G16=4500,G16=5400),0,IF(G16=0,0,'Empolyees Details'!AC13)) -> 0 | AA16: =IF(OR(G16=3600,G16=4400,G16=4500,G16=5400),0,IF(G16=0,0,'Empolyees Details'!AD13)) -> 0 | AB16: =IF(OR(G16=3600,G16=4400,G16=4500,G16=5400),0,IF(G16=0,0,'Empolyees Details'!AF13)) -> 0 | AC16: =IF(OR(G16=3600,G16=4400,G16=4500,G16=5400),0,IF(G16=0,0,'Empolyees Details'!AH13)) -> 0 | AD16: =IF(OR(G16=3600,G16=4400,G16=4500,G16=5400),0,IF(G16=0,0,CPS!L32)) -> 0 | AE16: =IF(OR(G16=3600,G16=4400,G16=4500,G16=5400),0,IF(G16=0,0,'Empolyees Details'!AK13)) -> 0 | AF16: =IF(OR(G16=3600,G16=4400,G16=4500,G16=5400),0,IF(G16=0,0,'Empolyees Details'!AL13)) -> 0 | AG16: 2860 | AH16: 24409 | AI16: =IF(OR(G16=3600,G16=4400,G16=4500,G16=5400),0,'Empolyees Details'!AM13) -> 0 | AJ16: =IF(G16=0,0,'Empolyees Details'!AP13) -> 1238 | AK16: =IF(OR(G16=3600,G16=4400,G16=4500,G16=5400),0,IF(G16=0,0,'Empolyees Details'!AN13)) -> 0 | AL16: =IF(OR(G16=3600,G16=4400,G16=4500,G16=5400),0,IF(G16=0,0,'Empolyees Details'!AO13)) -> 0 | AM16: 23171
B17: 11 | C17: ='Empolyees Details'!C14 -> G.Saivijaya Kumar | D17: ='Empolyees Details'!D14 -> SA(Eng) | E17: ='Empolyees Details'!F14 -> 14860-39540 | F17: ='Empolyees Details'!G14 -> 0820993 | G17: =ROUND('Empolyees Details'!O14*Code!P55/Code!O55,0) -> 16150 | H17: =IF(OR(G17=3600,G17=4400,G17=4500,G17=5400,G17=0),0,ROUND('Empolyees Details'!P14*Code!AA55,0)) -> 0 | J17: =IF(G17=0,0,ROUND('Empolyees Details'!R14*Code!AA55,0)) -> 0 | L17: =IF(OR(G17=3600,G17=4400,G17=4500,G17=5400,G17=0),0,ROUND('Empolyees Details'!Q14*Code!AA55,0)) -> 0 | N17: =IF(OR(G17=3600,G17=4400,G17=4500,G17=5400),0,'Empolyees Details'!S14) -> 0 | P17: =IF(G17<5500,0,ROUND('Empolyees Details'!O14*Code!AA55*Code!$H$13,0)) -> 7742 | Q17: =IF(G17<5500,0,ROUND('Empolyees Details'!O14*Code!AA55*Code!$H$14,0)) -> 1938 | S17: 25830 | T17: =IF(OR(G17=3600,G17=4400,G17=4500,G17=5400),0,IF(G17=0,0,'Empolyees Details'!W14)) -> 250 | U17: =IF(OR(G17=3600,G17=4400,G17=4500,G17=5400),0,IF(G17=0,0,'Empolyees Details'!X14)) -> 0 | V17: =IF(OR(G17=3600,G17=4400,G17=4500,G17=5400),0,IF(G17=0,0,'Empolyees Details'!AA14)) -> 60 | W17: =IF(Code!P55<15,0,IF(OR(G17=3600,G17=4400,G17=4500,G17=5400),0,IF(N17=0,IF(S17>20000,200,IF(S17>15000,150,IF(S17>10000,100,IF(S17>6000,80,IF(S17>5000,60,IF(S17>4000,45,IF(S17>3000,35,IF(S17>2000,25,0)))))))),0))) -> 200 | X17: =IF(OR(G17=3600,G17=4400,G17=4500,G17=5400),0,IF(G17=0,0,'Empolyees Details'!Y14)) -> 0 | Y17: =IF(OR(G17=3600,G17=4400,G17=4500,G17=5400),0,IF(G17=0,0,'Empolyees Details'!AB14)) -> 3000 | Z17: =IF(OR(G17=3600,G17=4400,G17=4500,G17=5400),0,IF(G17=0,0,'Empolyees Details'!AC14)) -> 0 | AA17: =IF(OR(G17=3600,G17=4400,G17=4500,G17=5400),0,IF(G17=0,0,'Empolyees Details'!AD14)) -> 0 | AB17: =IF(OR(G17=3600,G17=4400,G17=4500,G17=5400),0,IF(G17=0,0,'Empolyees Details'!AF14)) -> 0 | AC17: =IF(OR(G17=3600,G17=4400,G17=4500,G17=5400),0,IF(G17=0,0,'Empolyees Details'!AH14)) -> 0 | AD17: =IF(OR(G17=3600,G17=4400,G17=4500,G17=5400),0,IF(G17=0,0,CPS!L33)) -> 0 | AE17: =IF(OR(G17=3600,G17=4400,G17=4500,G17=5400),0,IF(G17=0,0,'Empolyees Details'!AK14)) -> 0 | AF17: =IF(OR(G17=3600,G17=4400,G17=4500,G17=5400),0,IF(G17=0,0,'Empolyees Details'!AL14)) -> 0 | AG17: 3510 | AH17: 22320 | AI17: =IF(OR(G17=3600,G17=4400,G17=4500,G17=5400),0,'Empolyees Details'!AM14) -> 0 | AJ17: =IF(G17=0,0,'Empolyees Details'!AP14) -> 1866 | AK17: =IF(OR(G17=3600,G17=4400,G17=4500,G17=5400),0,IF(G17=0,0,'Empolyees Details'!AN14)) -> 0 | AL17: =IF(OR(G17=3600,G17=4400,G17=4500,G17=5400),0,IF(G17=0,0,'Empolyees Details'!AO14)) -> 0 | AM17: 20454
B18: 12 | C18: ='Empolyees Details'!C15 -> T.Subba Rao | D18: ='Empolyees Details'!D15 -> SA(Social) | E18: ='Empolyees Details'!F15 -> 14860-39540 | F18: ='Empolyees Details'!G15 -> 0830570 | G18: =ROUND('Empolyees Details'!O15*Code!P56/Code!O56,0) -> 31550 | H18: =IF(OR(G18=3600,G18=4400,G18=4500,G18=5400,G18=0),0,ROUND('Empolyees Details'!P15*Code!AA56,0)) -> 35 | J18: =IF(G18=0,0,ROUND('Empolyees Details'!R15*Code!AA56,0)) -> 0 | L18: =IF(OR(G18=3600,G18=4400,G18=4500,G18=5400,G18=0),0,ROUND('Empolyees Details'!Q15*Code!AA56,0)) -> 0 | N18: =IF(OR(G18=3600,G18=4400,G18=4500,G18=5400),0,'Empolyees Details'!S15) -> 0 | P18: =IF(G18<5500,0,ROUND('Empolyees Details'!O15*Code!AA56*Code!$H$13,0)) -> 15124 | Q18: =IF(G18<5500,0,ROUND('Empolyees Details'!O15*Code!AA56*Code!$H$14,0)) -> 3786 | S18: 50495 | T18: =IF(OR(G18=3600,G18=4400,G18=4500,G18=5400),0,IF(G18=0,0,'Empolyees Details'!W15)) -> 0 | U18: =IF(OR(G18=3600,G18=4400,G18=4500,G18=5400),0,IF(G18=0,0,'Empolyees Details'!X15)) -> 0 | V18: =IF(OR(G18=3600,G18=4400,G18=4500,G18=5400),0,IF(G18=0,0,'Empolyees Details'!AA15)) -> 60 | W18: =IF(Code!P56<15,0,IF(OR(G18=3600,G18=4400,G18=4500,G18=5400),0,IF(N18=0,IF(S18>20000,200,IF(S18>15000,150,IF(S18>10000,100,IF(S18>6000,80,IF(S18>5000,60,IF(S18>4000,45,IF(S18>3000,35,IF(S18>2000,25,0)))))))),0))) -> 200 | X18: =IF(OR(G18=3600,G18=4400,G18=4500,G18=5400),0,IF(G18=0,0,'Empolyees Details'!Y15)) -> 0 | Y18: =IF(OR(G18=3600,G18=4400,G18=4500,G18=5400),0,IF(G18=0,0,'Empolyees Details'!AB15)) -> 8000 | Z18: =IF(OR(G18=3600,G18=4400,G18=4500,G18=5400),0,IF(G18=0,0,'Empolyees Details'!AC15)) -> 0 | AA18: =IF(OR(G18=3600,G18=4400,G18=4500,G18=5400),0,IF(G18=0,0,'Empolyees Details'!AD15)) -> 0 | AB18: =IF(OR(G18=3600,G18=4400,G18=4500,G18=5400),0,IF(G18=0,0,'Empolyees Details'!AF15)) -> 0 | AC18: =IF(OR(G18=3600,G18=4400,G18=4500,G18=5400),0,IF(G18=0,0,'Empolyees Details'!AH15)) -> 0 | AD18: =IF(OR(G18=3600,G18=4400,G18=4500,G18=5400),0,IF(G18=0,0,CPS!L34)) -> 0 | AE18: =IF(OR(G18=3600,G18=4400,G18=4500,G18=5400),0,IF(G18=0,0,'Empolyees Details'!AK15)) -> 0 | AF18: =IF(OR(G18=3600,G18=4400,G18=4500,G18=5400),0,IF(G18=0,0,'Empolyees Details'!AL15)) -> 0 | AG18: 8260 | AH18: 42235 | AI18: =IF(OR(G18=3600,G18=4400,G18=4500,G18=5400),0,'Empolyees Details'!AM15) -> 0 | AJ18: =IF(G18=0,0,'Empolyees Details'!AP15) -> 0 | AK18: =IF(OR(G18=3600,G18=4400,G18=4500,G18=5400),0,IF(G18=0,0,'Empolyees Details'!AN15)) -> 0 | AL18: =IF(OR(G18=3600,G18=4400,G18=4500,G18=5400),0,IF(G18=0,0,'Empolyees Details'!AO15)) -> 0 | AM18: 42235
B19: 13 | C19: ='Empolyees Details'!C16 -> D.Sivaramaiah | D19: ='Empolyees Details'!D16 -> SA(Social) | E19: ='Empolyees Details'!F16 -> 14860-39540 | F19: ='Empolyees Details'!G16 -> 0829389 | G19: =ROUND('Empolyees Details'!O16*Code!P57/Code!O57,0) -> 28450 | H19: =IF(OR(G19=3600,G19=4400,G19=4500,G19=5400,G19=0),0,ROUND('Empolyees Details'!P16*Code!AA57,0)) -> 35 | J19: =IF(G19=0,0,ROUND('Empolyees Details'!R16*Code!AA57,0)) -> 0 | L19: =IF(OR(G19=3600,G19=4400,G19=4500,G19=5400,G19=0),0,ROUND('Empolyees Details'!Q16*Code!AA57,0)) -> 0 | N19: =IF(OR(G19=3600,G19=4400,G19=4500,G19=5400),0,'Empolyees Details'!S16) -> 0 | P19: =IF(G19<5500,0,ROUND('Empolyees Details'!O16*Code!AA57*Code!$H$13,0)) -> 13638 | Q19: =IF(G19<5500,0,ROUND('Empolyees Details'!O16*Code!AA57*Code!$H$14,0)) -> 3414 | S19: 45537 | T19: =IF(OR(G19=3600,G19=4400,G19=4500,G19=5400),0,IF(G19=0,0,'Empolyees Details'!W16)) -> 450 | U19: =IF(OR(G19=3600,G19=4400,G19=4500,G19=5400),0,IF(G19=0,0,'Empolyees Details'!X16)) -> 0 | V19: =IF(OR(G19=3600,G19=4400,G19=4500,G19=5400),0,IF(G19=0,0,'Empolyees Details'!AA16)) -> 60 | W19: =IF(Code!P57<15,0,IF(OR(G19=3600,G19=4400,G19=4500,G19=5400),0,IF(N19=0,IF(S19>20000,200,IF(S19>15000,150,IF(S19>10000,100,IF(S19>6000,80,IF(S19>5000,60,IF(S19>4000,45,IF(S19>3000,35,IF(S19>2000,25,0)))))))),0))) -> 200 | X19: =IF(OR(G19=3600,G19=4400,G19=4500,G19=5400),0,IF(G19=0,0,'Empolyees Details'!Y16)) -> 0 | Y19: =IF(OR(G19=3600,G19=4400,G19=4500,G19=5400),0,IF(G19=0,0,'Empolyees Details'!AB16)) -> 2000 | Z19: =IF(OR(G19=3600,G19=4400,G19=4500,G19=5400),0,IF(G19=0,0,'Empolyees Details'!AC16)) -> 0 | AA19: =IF(OR(G19=3600,G19=4400,G19=4500,G19=5400),0,IF(G19=0,0,'Empolyees Details'!AD16)) -> 0 | AB19: =IF(OR(G19=3600,G19=4400,G19=4500,G19=5400),0,IF(G19=0,0,'Empolyees Details'!AF16)) -> 0 | AC19: =IF(OR(G19=3600,G19=4400,G19=4500,G19=5400),0,IF(G19=0,0,'Empolyees Details'!AH16)) -> 0 | AD19: =IF(OR(G19=3600,G19=4400,G19=4500,G19=5400),0,IF(G19=0,0,CPS!L35)) -> 0 | AE19: =IF(OR(G19=3600,G19=4400,G19=4500,G19=5400),0,IF(G19=0,0,'Empolyees Details'!AK16)) -> 0 | AF19: =IF(OR(G19=3600,G19=4400,G19=4500,G19=5400),0,IF(G19=0,0,'Empolyees Details'!AL16)) -> 0 | AG19: 2710 | AH19: 42827 | AI19: =IF(OR(G19=3600,G19=4400,G19=4500,G19=5400),0,'Empolyees Details'!AM16) -> 0 | AJ19: =IF(G19=0,0,'Empolyees Details'!AP16) -> 1553 | AK19: =IF(OR(G19=3600,G19=4400,G19=4500,G19=5400),0,IF(G19=0,0,'Empolyees Details'!AN16)) -> 0 | AL19: =IF(OR(G19=3600,G19=4400,G19=4500,G19=5400),0,IF(G19=0,0,'Empolyees Details'!AO16)) -> 0 | AM19: 41274
B20: 14 | C20: ='Empolyees Details'!C17 -> K.S.Kishore Kumar | D20: ='Empolyees Details'!D17 -> SA(Phy.Edu.) | E20: ='Empolyees Details'!F17 -> 15280-40510 | F20: ='Empolyees Details'!G17 -> 0813826 | G20: =ROUND('Empolyees Details'!O17*Code!P58/Code!O58,0) -> 23040 | H20: =IF(OR(G20=3600,G20=4400,G20=4500,G20=5400,G20=0),0,ROUND('Empolyees Details'!P17*Code!AA58,0)) -> 0 | J20: =IF(G20=0,0,ROUND('Empolyees Details'!R17*Code!AA58,0)) -> 0 | L20: =IF(OR(G20=3600,G20=4400,G20=4500,G20=5400,G20=0),0,ROUND('Empolyees Details'!Q17*Code!AA58,0)) -> 35 | N20: =IF(OR(G20=3600,G20=4400,G20=4500,G20=5400),0,'Empolyees Details'!S17) -> 0 | P20: =IF(G20<5500,0,ROUND('Empolyees Details'!O17*Code!AA58*Code!$H$13,0)) -> 11044 | Q20: =IF(G20<5500,0,ROUND('Empolyees Details'!O17*Code!AA58*Code!$H$14,0)) -> 2765 | S20: 36884 | T20: =IF(OR(G20=3600,G20=4400,G20=4500,G20=5400),0,IF(G20=0,0,'Empolyees Details'!W17)) -> 200 | U20: =IF(OR(G20=3600,G20=4400,G20=4500,G20=5400),0,IF(G20=0,0,'Empolyees Details'!X17)) -> 685 | V20: =IF(OR(G20=3600,G20=4400,G20=4500,G20=5400),0,IF(G20=0,0,'Empolyees Details'!AA17)) -> 60 | W20: =IF(Code!P58<15,0,IF(OR(G20=3600,G20=4400,G20=4500,G20=5400),0,IF(N20=0,IF(S20>20000,200,IF(S20>15000,150,IF(S20>10000,100,IF(S20>6000,80,IF(S20>5000,60,IF(S20>4000,45,IF(S20>3000,35,IF(S20>2000,25,0)))))))),0))) -> 200 | X20: =IF(OR(G20=3600,G20=4400,G20=4500,G20=5400),0,IF(G20=0,0,'Empolyees Details'!Y17)) -> 0 | Y20: =IF(OR(G20=3600,G20=4400,G20=4500,G20=5400),0,IF(G20=0,0,'Empolyees Details'!AB17)) -> 5000 | Z20: =IF(OR(G20=3600,G20=4400,G20=4500,G20=5400),0,IF(G20=0,0,'Empolyees Details'!AC17)) -> 0 | AA20: =IF(OR(G20=3600,G20=4400,G20=4500,G20=5400),0,IF(G20=0,0,'Empolyees Details'!AD17)) -> 0 | AB20: =IF(OR(G20=3600,G20=4400,G20=4500,G20=5400),0,IF(G20=0,0,'Empolyees Details'!AF17)) -> 0 | AC20: =IF(OR(G20=3600,G20=4400,G20=4500,G20=5400),0,IF(G20=0,0,'Empolyees Details'!AH17)) -> 0 | AD20: =IF(OR(G20=3600,G20=4400,G20=4500,G20=5400),0,IF(G20=0,0,CPS!L36)) -> 0 | AE20: =IF(OR(G20=3600,G20=4400,G20=4500,G20=5400),0,IF(G20=0,0,'Empolyees Details'!AK17)) -> 0 | AF20: =IF(OR(G20=3600,G20=4400,G20=4500,G20=5400),0,IF(G20=0,0,'Empolyees Details'!AL17)) -> 0 | AG20: 6145 | AH20: 30739 | AI20: =IF(OR(G20=3600,G20=4400,G20=4500,G20=5400),0,'Empolyees Details'!AM17) -> 0 | AJ20: =IF(G20=0,0,'Empolyees Details'!AP17) -> 0 | AK20: =IF(OR(G20=3600,G20=4400,G20=4500,G20=5400),0,IF(G20=0,0,'Empolyees Details'!AN17)) -> 0 | AL20: =IF(OR(G20=3600,G20=4400,G20=4500,G20=5400),0,IF(G20=0,0,'Empolyees Details'!AO17)) -> 0 | AM20: 30739
B21: 15 | C21: ='Empolyees Details'!C18 -> N.Bharathy | D21: ='Empolyees Details'!D18 -> SA(Telugu) | E21: ='Empolyees Details'!F18 -> 14860-39540 | F21: ='Empolyees Details'!G18 -> 0813126 | G21: =ROUND('Empolyees Details'!O18*Code!P59/Code!O59,0) -> 23040 | H21: =IF(OR(G21=3600,G21=4400,G21=4500,G21=5400,G21=0),0,ROUND('Empolyees Details'!P18*Code!AA59,0)) -> 0 | J21: =IF(G21=0,0,ROUND('Empolyees Details'!R18*Code!AA59,0)) -> 0 | L21: =IF(OR(G21=3600,G21=4400,G21=4500,G21=5400,G21=0),0,ROUND('Empolyees Details'!Q18*Code!AA59,0)) -> 70 | N21: =IF(OR(G21=3600,G21=4400,G21=4500,G21=5400),0,'Empolyees Details'!S18) -> 0 | P21: =IF(G21<5500,0,ROUND('Empolyees Details'!O18*Code!AA59*Code!$H$13,0)) -> 11044 | Q21: =IF(G21<5500,0,ROUND('Empolyees Details'!O18*Code!AA59*Code!$H$14,0)) -> 2765 | S21: 36919 | T21: =IF(OR(G21=3600,G21=4400,G21=4500,G21=5400),0,IF(G21=0,0,'Empolyees Details'!W18)) -> 750 | U21: =IF(OR(G21=3600,G21=4400,G21=4500,G21=5400),0,IF(G21=0,0,'Empolyees Details'!X18)) -> 0 | V21: =IF(OR(G21=3600,G21=4400,G21=4500,G21=5400),0,IF(G21=0,0,'Empolyees Details'!AA18)) -> 60 | W21: =IF(Code!P59<15,0,IF(OR(G21=3600,G21=4400,G21=4500,G21=5400),0,IF(N21=0,IF(S21>20000,200,IF(S21>15000,150,IF(S21>10000,100,IF(S21>6000,80,IF(S21>5000,60,IF(S21>4000,45,IF(S21>3000,35,IF(S21>2000,25,0)))))))),0))) -> 200 | X21: =IF(OR(G21=3600,G21=4400,G21=4500,G21=5400),0,IF(G21=0,0,'Empolyees Details'!Y18)) -> 0 | Y21: =IF(OR(G21=3600,G21=4400,G21=4500,G21=5400),0,IF(G21=0,0,'Empolyees Details'!AB18)) -> 2000 | Z21: =IF(OR(G21=3600,G21=4400,G21=4500,G21=5400),0,IF(G21=0,0,'Empolyees Details'!AC18)) -> 0 | AA21: =IF(OR(G21=3600,G21=4400,G21=4500,G21=5400),0,IF(G21=0,0,'Empolyees Details'!AD18)) -> 0 | AB21: =IF(OR(G21=3600,G21=4400,G21=4500,G21=5400),0,IF(G21=0,0,'Empolyees Details'!AF18)) -> 0 | AC21: =IF(OR(G21=3600,G21=4400,G21=4500,G21=5400),0,IF(G21=0,0,'Empolyees Details'!AH18)) -> 0 | AD21: =IF(OR(G21=3600,G21=4400,G21=4500,G21=5400),0,IF(G21=0,0,CPS!L37)) -> 0 | AE21: =IF(OR(G21=3600,G21=4400,G21=4500,G21=5400),0,IF(G21=0,0,'Empolyees Details'!AK18)) -> 0 | AF21: =IF(OR(G21=3600,G21=4400,G21=4500,G21=5400),0,IF(G21=0,0,'Empolyees Details'!AL18)) -> 0 | AG21: 3010 | AH21: 33909 | AI21: =IF(OR(G21=3600,G21=4400,G21=4500,G21=5400),0,'Empolyees Details'!AM18) -> 0 | AJ21: =IF(G21=0,0,'Empolyees Details'!AP18) -> 824 | AK21: =IF(OR(G21=3600,G21=4400,G21=4500,G21=5400),0,IF(G21=0,0,'Empolyees Details'!AN18)) -> 0 | AL21: =IF(OR(G21=3600,G21=4400,G21=4500,G21=5400),0,IF(G21=0,0,'Empolyees Details'!AO18)) -> 0 | AM21: 33085
B22: 16 | C22: ='Empolyees Details'!C19 -> P.Mallikarjuna | D22: ='Empolyees Details'!D19 -> TP Gr.II | E22: ='Empolyees Details'!F19 -> 10900-31550 | F22: ='Empolyees Details'!G19 -> 0829505 | G22: =ROUND('Empolyees Details'!O19*Code!P60/Code!O60,0) -> 12910 | H22: =IF(OR(G22=3600,G22=4400,G22=4500,G22=5400,G22=0),0,ROUND('Empolyees Details'!P19*Code!AA60,0)) -> 0 | J22: =IF(G22=0,0,ROUND('Empolyees Details'!R19*Code!AA60,0)) -> 0 | L22: =IF(OR(G22=3600,G22=4400,G22=4500,G22=5400,G22=0),0,ROUND('Empolyees Details'!Q19*Code!AA60,0)) -> 0 | N22: =IF(OR(G22=3600,G22=4400,G22=4500,G22=5400),0,'Empolyees Details'!S19) -> 0 | P22: =IF(G22<5500,0,ROUND('Empolyees Details'!O19*Code!AA60*Code!$H$13,0)) -> 6189 | Q22: =IF(G22<5500,0,ROUND('Empolyees Details'!O19*Code!AA60*Code!$H$14,0)) -> 1549 | S22: 20648 | T22: =IF(OR(G22=3600,G22=4400,G22=4500,G22=5400),0,IF(G22=0,0,'Empolyees Details'!W19)) -> 450 | U22: =IF(OR(G22=3600,G22=4400,G22=4500,G22=5400),0,IF(G22=0,0,'Empolyees Details'!X19)) -> 0 | V22: =IF(OR(G22=3600,G22=4400,G22=4500,G22=5400),0,IF(G22=0,0,'Empolyees Details'!AA19)) -> 30 | W22: =IF(Code!P60<15,0,IF(OR(G22=3600,G22=4400,G22=4500,G22=5400),0,IF(N22=0,IF(S22>20000,200,IF(S22>15000,150,IF(S22>10000,100,IF(S22>6000,80,IF(S22>5000,60,IF(S22>4000,45,IF(S22>3000,35,IF(S22>2000,25,0)))))))),0))) -> 200 | X22: =IF(OR(G22=3600,G22=4400,G22=4500,G22=5400),0,IF(G22=0,0,'Empolyees Details'!Y19)) -> 0 | Y22: =IF(OR(G22=3600,G22=4400,G22=4500,G22=5400),0,IF(G22=0,0,'Empolyees Details'!AB19)) -> 1000 | Z22: =IF(OR(G22=3600,G22=4400,G22=4500,G22=5400),0,IF(G22=0,0,'Empolyees Details'!AC19)) -> 0 | AA22: =IF(OR(G22=3600,G22=4400,G22=4500,G22=5400),0,IF(G22=0,0,'Empolyees Details'!AD19)) -> 0 | AB22: =IF(OR(G22=3600,G22=4400,G22=4500,G22=5400),0,IF(G22=0,0,'Empolyees Details'!AF19)) -> 0 | AC22: =IF(OR(G22=3600,G22=4400,G22=4500,G22=5400),0,IF(G22=0,0,'Empolyees Details'!AH19)) -> 0 | AD22: =IF(OR(G22=3600,G22=4400,G22=4500,G22=5400),0,IF(G22=0,0,CPS!L38)) -> 0 | AE22: =IF(OR(G22=3600,G22=4400,G22=4500,G22=5400),0,IF(G22=0,0,'Empolyees Details'!AK19)) -> 0 | AF22: =IF(OR(G22=3600,G22=4400,G22=4500,G22=5400),0,IF(G22=0,0,'Empolyees Details'!AL19)) -> 0 | AG22: 1680 | AH22: 18968 | AI22: =IF(OR(G22=3600,G22=4400,G22=4500,G22=5400),0,'Empolyees Details'!AM19) -> 0 | AJ22: =IF(G22=0,0,'Empolyees Details'!AP19) -> 0 | AK22: =IF(OR(G22=3600,G22=4400,G22=4500,G22=5400),0,IF(G22=0,0,'Empolyees Details'!AN19)) -> 0 | AL22: =IF(OR(G22=3600,G22=4400,G22=4500,G22=5400),0,IF(G22=0,0,'Empolyees Details'!AO19)) -> 0 | AM22: 18968
B23: 17 | C23: ='Empolyees Details'!C20 -> Syed.Khaja Mohiddin | D23: ='Empolyees Details'!D20 -> HP Gr II | E23: ='Empolyees Details'!F20 -> 14860-39540 | F23: ='Empolyees Details'!G20 -> 0806360 | G23: =ROUND('Empolyees Details'!O20*Code!P61/Code!O61,0) -> 16600 | H23: =IF(OR(G23=3600,G23=4400,G23=4500,G23=5400,G23=0),0,ROUND('Empolyees Details'!P20*Code!AA61,0)) -> 0 | J23: =IF(G23=0,0,ROUND('Empolyees Details'!R20*Code!AA61,0)) -> 0 | L23: =IF(OR(G23=3600,G23=4400,G23=4500,G23=5400,G23=0),0,ROUND('Empolyees Details'!Q20*Code!AA61,0)) -> 0 | N23: =IF(OR(G23=3600,G23=4400,G23=4500,G23=5400),0,'Empolyees Details'!S20) -> 0 | P23: =IF(G23<5500,0,ROUND('Empolyees Details'!O20*Code!AA61*Code!$H$13,0)) -> 7957 | Q23: =IF(G23<5500,0,ROUND('Empolyees Details'!O20*Code!AA61*Code!$H$14,0)) -> 1992 | S23: 26549 | T23: =IF(OR(G23=3600,G23=4400,G23=4500,G23=5400),0,IF(G23=0,0,'Empolyees Details'!W20)) -> 450 | U23: =IF(OR(G23=3600,G23=4400,G23=4500,G23=5400),0,IF(G23=0,0,'Empolyees Details'!X20)) -> 0 | V23: =IF(OR(G23=3600,G23=4400,G23=4500,G23=5400),0,IF(G23=0,0,'Empolyees Details'!AA20)) -> 60 | W23: =IF(Code!P61<15,0,IF(OR(G23=3600,G23=4400,G23=4500,G23=5400),0,IF(N23=0,IF(S23>20000,200,IF(S23>15000,150,IF(S23>10000,100,IF(S23>6000,80,IF(S23>5000,60,IF(S23>4000,45,IF(S23>3000,35,IF(S23>2000,25,0)))))))),0))) -> 200 | X23: =IF(OR(G23=3600,G23=4400,G23=4500,G23=5400),0,IF(G23=0,0,'Empolyees Details'!Y20)) -> 0 | Y23: =IF(OR(G23=3600,G23=4400,G23=4500,G23=5400),0,IF(G23=0,0,'Empolyees Details'!AB20)) -> 1000 | Z23: =IF(OR(G23=3600,G23=4400,G23=4500,G23=5400),0,IF(G23=0,0,'Empolyees Details'!AC20)) -> 0 | AA23: =IF(OR(G23=3600,G23=4400,G23=4500,G23=5400),0,IF(G23=0,0,'Empolyees Details'!AD20)) -> 0 | AB23: =IF(OR(G23=3600,G23=4400,G23=4500,G23=5400),0,IF(G23=0,0,'Empolyees Details'!AF20)) -> 0 | AC23: =IF(OR(G23=3600,G23=4400,G23=4500,G23=5400),0,IF(G23=0,0,'Empolyees Details'!AH20)) -> 0 | AD23: =IF(OR(G23=3600,G23=4400,G23=4500,G23=5400),0,IF(G23=0,0,CPS!L39)) -> 0 | AE23: =IF(OR(G23=3600,G23=4400,G23=4500,G23=5400),0,IF(G23=0,0,'Empolyees Details'!AK20)) -> 0 | AF23: =IF(OR(G23=3600,G23=4400,G23=4500,G23=5400),0,IF(G23=0,0,'Empolyees Details'!AL20)) -> 0 | AG23: 1710 | AH23: 24839 | AI23: =IF(OR(G23=3600,G23=4400,G23=4500,G23=5400),0,'Empolyees Details'!AM20) -> 0 | AJ23: =IF(G23=0,0,'Empolyees Details'!AP20) -> 0 | AK23: =IF(OR(G23=3600,G23=4400,G23=4500,G23=5400),0,IF(G23=0,0,'Empolyees Details'!AN20)) -> 0 | AL23: =IF(OR(G23=3600,G23=4400,G23=4500,G23=5400),0,IF(G23=0,0,'Empolyees Details'!AO20)) -> 0 | AM23: =AH23-AJ23 -> 24839
B24: 17 | C24: ='Empolyees Details'!C21 -> 0 | D24: ='Empolyees Details'!D21 -> 0 | E24: ='Empolyees Details'!F21 -> 0 | F24: ='Empolyees Details'!G21 -> 0 | G24: =ROUND('Empolyees Details'!O21*Code!P62/Code!O62,0) -> 0 | H24: =IF(OR(G24=3600,G24=4400,G24=4500,G24=5400,G24=0),0,ROUND('Empolyees Details'!P21*Code!AA62,0)) -> 0 | J24: =IF(G24=0,0,ROUND('Empolyees Details'!R21*Code!AA62,0)) -> 0 | L24: =IF(OR(G24=3600,G24=4400,G24=4500,G24=5400,G24=0),0,ROUND('Empolyees Details'!Q21*Code!AA62,0)) -> 0 | N24: =IF(OR(G24=3600,G24=4400,G24=4500,G24=5400),0,'Empolyees Details'!S21) -> 0 | P24: =IF(G24<5500,0,ROUND('Empolyees Details'!O21*Code!AA62*Code!$H$13,0)) -> 0 | Q24: =IF(G24<5500,0,ROUND('Empolyees Details'!O21*Code!AA62*Code!$H$14,0)) -> 0 | S24: 0 | T24: =IF(OR(G24=3600,G24=4400,G24=4500,G24=5400),0,IF(G24=0,0,'Empolyees Details'!W21)) -> 0 | U24: =IF(OR(G24=3600,G24=4400,G24=4500,G24=5400),0,IF(G24=0,0,'Empolyees Details'!X21)) -> 0 | V24: =IF(OR(G24=3600,G24=4400,G24=4500,G24=5400),0,IF(G24=0,0,'Empolyees Details'!AA21)) -> 0 | W24: =IF(OR(G24=3600,G24=4400,G24=4500,G24=5400),0,IF(N24=0,IF(S24>20000,200,IF(S24>15000,150,IF(S24>10000,100,IF(S24>6000,80,IF(S24>5000,60,IF(S24>4000,45,IF(S24>3000,35,IF(S24>2000,25,0)))))))),0)) -> 0 | X24: =IF(OR(G24=3600,G24=4400,G24=4500,G24=5400),0,IF(G24=0,0,'Empolyees Details'!Y21)) -> 0 | Y24: =IF(OR(G24=3600,G24=4400,G24=4500,G24=5400),0,IF(G24=0,0,'Empolyees Details'!AB21)) -> 0 | Z24: =IF(OR(G24=3600,G24=4400,G24=4500,G24=5400),0,IF(G24=0,0,'Empolyees Details'!AC21)) -> 0 | AA24: =IF(OR(G24=3600,G24=4400,G24=4500,G24=5400),0,IF(G24=0,0,'Empolyees Details'!AD21)) -> 0 | AB24: =IF(OR(G24=3600,G24=4400,G24=4500,G24=5400),0,IF(G24=0,0,'Empolyees Details'!AF21)) -> 0 | AC24: =IF(OR(G24=3600,G24=4400,G24=4500,G24=5400),0,IF(G24=0,0,'Empolyees Details'!AH21)) -> 0 | AD24: =IF(OR(G24=3600,G24=4400,G24=4500,G24=5400),0,IF(G24=0,0,CPS!L40)) -> 0 | AE24: =IF(OR(G24=3600,G24=4400,G24=4500,G24=5400),0,IF(G24=0,0,'Empolyees Details'!AK21)) -> 0 | AF24: =IF(OR(G24=3600,G24=4400,G24=4500,G24=5400),0,IF(G24=0,0,'Empolyees Details'!AL21)) -> 0 | AG24: 0 | AH24: 0 | AI24: =IF(OR(G24=3600,G24=4400,G24=4500,G24=5400),0,'Empolyees Details'!AM21) -> 0 | AJ24: =IF(G24=0,0,'Empolyees Details'!AP21) -> 0 | AK24: =IF(OR(G24=3600,G24=4400,G24=4500,G24=5400),0,IF(G24=0,0,'Empolyees Details'!AN21)) -> 0 | AL24: =IF(OR(G24=3600,G24=4400,G24=4500,G24=5400),0,IF(G24=0,0,'Empolyees Details'!AO21)) -> 0 | AM24: 0
B25: 17 | C25: ='Empolyees Details'!C22 -> 0 | D25: ='Empolyees Details'!D22 -> 0 | E25: ='Empolyees Details'!F22 -> 0 | F25: ='Empolyees Details'!G22 -> 0 | G25: =ROUND('Empolyees Details'!O22*Code!P63/Code!O63,0) -> 0 | H25: =IF(OR(G25=3600,G25=4400,G25=4500,G25=5400,G25=0),0,ROUND('Empolyees Details'!P22*Code!AA63,0)) -> 0 | J25: =IF(G25=0,0,ROUND('Empolyees Details'!R22*Code!AA63,0)) -> 0 | L25: =IF(OR(G25=3600,G25=4400,G25=4500,G25=5400,G25=0),0,ROUND('Empolyees Details'!Q22*Code!AA63,0)) -> 0 | N25: =IF(OR(G25=3600,G25=4400,G25=4500,G25=5400),0,'Empolyees Details'!S22) -> 0 | P25: =IF(G25<5500,0,ROUND('Empolyees Details'!O22*Code!AA63*Code!$H$13,0)) -> 0 | Q25: =IF(G25<5500,0,ROUND('Empolyees Details'!O22*Code!AA63*Code!$H$14,0)) -> 0 | S25: 0 | T25: =IF(OR(G25=3600,G25=4400,G25=4500,G25=5400),0,IF(G25=0,0,'Empolyees Details'!W22)) -> 0 | U25: =IF(OR(G25=3600,G25=4400,G25=4500,G25=5400),0,IF(G25=0,0,'Empolyees Details'!X22)) -> 0 | V25: =IF(OR(G25=3600,G25=4400,G25=4500,G25=5400),0,IF(G25=0,0,'Empolyees Details'!AA22)) -> 0 | W25: 0 | X25: =IF(OR(G25=3600,G25=4400,G25=4500,G25=5400),0,IF(G25=0,0,'Empolyees Details'!Y22)) -> 0 | Y25: =IF(OR(G25=3600,G25=4400,G25=4500,G25=5400),0,IF(G25=0,0,'Empolyees Details'!AB22)) -> 0 | Z25: =IF(OR(G25=3600,G25=4400,G25=4500,G25=5400),0,IF(G25=0,0,'Empolyees Details'!AC22)) -> 0 | AA25: =IF(OR(G25=3600,G25=4400,G25=4500,G25=5400),0,IF(G25=0,0,'Empolyees Details'!AD22)) -> 0 | AB25: =IF(OR(G25=3600,G25=4400,G25=4500,G25=5400),0,IF(G25=0,0,'Empolyees Details'!AF22)) -> 0 | AC25: =IF(OR(G25=3600,G25=4400,G25=4500,G25=5400),0,IF(G25=0,0,'Empolyees Details'!AH22)) -> 0 | AD25: =IF(OR(G25=3600,G25=4400,G25=4500,G25=5400),0,IF(G25=0,0,CPS!L41)) -> 0 | AE25: =IF(OR(G25=3600,G25=4400,G25=4500,G25=5400),0,IF(G25=0,0,'Empolyees Details'!AK22)) -> 0 | AF25: =IF(OR(G25=3600,G25=4400,G25=4500,G25=5400),0,IF(G25=0,0,'Empolyees Details'!AL22)) -> 0 | AG25: 0 | AH25: 0 | AI25: =IF(OR(G25=3600,G25=4400,G25=4500,G25=5400),0,'Empolyees Details'!AM22) -> 0 | AJ25: =IF(G25=0,0,'Empolyees Details'!AP22) -> 0 | AK25: =IF(OR(G25=3600,G25=4400,G25=4500,G25=5400),0,IF(G25=0,0,'Empolyees Details'!AN22)) -> 0 | AL25: =IF(OR(G25=3600,G25=4400,G25=4500,G25=5400),0,IF(G25=0,0,'Empolyees Details'!AO22)) -> 0 | AM25: 0
B26: 17 | C26: ='Empolyees Details'!C23 -> 0 | D26: ='Empolyees Details'!D23 -> 0 | E26: ='Empolyees Details'!F23 -> 0 | F26: ='Empolyees Details'!G23 -> 0 | G26: =ROUND('Empolyees Details'!O23*Code!P64/Code!O64,0) -> 0 | H26: =IF(OR(G26=3600,G26=4400,G26=4500,G26=5400,G26=0),0,ROUND('Empolyees Details'!P23*Code!AA64,0)) -> 0 | J26: =IF(G26=0,0,ROUND('Empolyees Details'!R23*Code!AA64,0)) -> 0 | L26: =IF(OR(G26=3600,G26=4400,G26=4500,G26=5400,G26=0),0,ROUND('Empolyees Details'!Q23*Code!AA64,0)) -> 0 | N26: =IF(OR(G26=3600,G26=4400,G26=4500,G26=5400),0,'Empolyees Details'!S23) -> 0 | P26: =IF(G26<5500,0,ROUND('Empolyees Details'!O23*Code!AA64*Code!$H$13,0)) -> 0 | Q26: =IF(G26<5500,0,ROUND('Empolyees Details'!O23*Code!AA64*Code!$H$14,0)) -> 0 | S26: 0 | T26: =IF(OR(G26=3600,G26=4400,G26=4500,G26=5400),0,IF(G26=0,0,'Empolyees Details'!W23)) -> 0 | U26: =IF(OR(G26=3600,G26=4400,G26=4500,G26=5400),0,IF(G26=0,0,'Empolyees Details'!X23)) -> 0 | V26: =IF(OR(G26=3600,G26=4400,G26=4500,G26=5400),0,IF(G26=0,0,'Empolyees Details'!AA23)) -> 0 | W26: 0 | X26: =IF(OR(G26=3600,G26=4400,G26=4500,G26=5400),0,IF(G26=0,0,'Empolyees Details'!Y23)) -> 0 | Y26: =IF(OR(G26=3600,G26=4400,G26=4500,G26=5400),0,IF(G26=0,0,'Empolyees Details'!AB23)) -> 0 | Z26: =IF(OR(G26=3600,G26=4400,G26=4500,G26=5400),0,IF(G26=0,0,'Empolyees Details'!AC23)) -> 0 | AA26: =IF(OR(G26=3600,G26=4400,G26=4500,G26=5400),0,IF(G26=0,0,'Empolyees Details'!AD23)) -> 0 | AB26: =IF(OR(G26=3600,G26=4400,G26=4500,G26=5400),0,IF(G26=0,0,'Empolyees Details'!AF23)) -> 0 | AC26: =IF(OR(G26=3600,G26=4400,G26=4500,G26=5400),0,IF(G26=0,0,'Empolyees Details'!AH23)) -> 0 | AD26: =IF(OR(G26=3600,G26=4400,G26=4500,G26=5400),0,IF(G26=0,0,CPS!L42)) -> 0 | AE26: =IF(OR(G26=3600,G26=4400,G26=4500,G26=5400),0,IF(G26=0,0,'Empolyees Details'!AK23)) -> 0 | AF26: =IF(OR(G26=3600,G26=4400,G26=4500,G26=5400),0,IF(G26=0,0,'Empolyees Details'!AL23)) -> 0 | AG26: 0 | AH26: 0 | AI26: =IF(OR(G26=3600,G26=4400,G26=4500,G26=5400),0,'Empolyees Details'!AM23) -> 0 | AJ26: =IF(G26=0,0,'Empolyees Details'!AP23) -> 0 | AK26: =IF(OR(G26=3600,G26=4400,G26=4500,G26=5400),0,IF(G26=0,0,'Empolyees Details'!AN23)) -> 0 | AL26: =IF(OR(G26=3600,G26=4400,G26=4500,G26=5400),0,IF(G26=0,0,'Empolyees Details'!AO23)) -> 0 | AM26: 0
B27: 17 | C27: ='Empolyees Details'!C24 -> 0 | D27: ='Empolyees Details'!D24 -> 0 | E27: ='Empolyees Details'!F24 -> 0 | F27: ='Empolyees Details'!G24 -> 0 | G27: =ROUND('Empolyees Details'!O24*Code!P65/Code!O65,0) -> 0 | H27: =IF(OR(G27=3600,G27=4400,G27=4500,G27=5400,G27=0),0,ROUND('Empolyees Details'!P24*Code!AA65,0)) -> 0 | J27: =IF(G27=0,0,ROUND('Empolyees Details'!R24*Code!AA65,0)) -> 0 | L27: =IF(OR(G27=3600,G27=4400,G27=4500,G27=5400,G27=0),0,ROUND('Empolyees Details'!Q24*Code!AA65,0)) -> 0 | N27: =IF(OR(G27=3600,G27=4400,G27=4500,G27=5400),0,'Empolyees Details'!S24) -> 0 | P27: =IF(G27<5500,0,ROUND('Empolyees Details'!O24*Code!AA65*Code!$H$13,0)) -> 0 | Q27: =IF(G27<5500,0,ROUND('Empolyees Details'!O24*Code!AA65*Code!$H$14,0)) -> 0 | S27: 0 | T27: =IF(OR(G27=3600,G27=4400,G27=4500,G27=5400),0,IF(G27=0,0,'Empolyees Details'!W24)) -> 0 | U27: =IF(OR(G27=3600,G27=4400,G27=4500,G27=5400),0,IF(G27=0,0,'Empolyees Details'!X24)) -> 0 | V27: =IF(OR(G27=3600,G27=4400,G27=4500,G27=5400),0,IF(G27=0,0,'Empolyees Details'!AA24)) -> 0 | W27: 0 | X27: =IF(OR(G27=3600,G27=4400,G27=4500,G27=5400),0,IF(G27=0,0,'Empolyees Details'!Y24)) -> 0 | Y27: =IF(OR(G27=3600,G27=4400,G27=4500,G27=5400),0,IF(G27=0,0,'Empolyees Details'!AB24)) -> 0 | Z27: =IF(OR(G27=3600,G27=4400,G27=4500,G27=5400),0,IF(G27=0,0,'Empolyees Details'!AC24)) -> 0 | AA27: =IF(OR(G27=3600,G27=4400,G27=4500,G27=5400),0,IF(G27=0,0,'Empolyees Details'!AD24)) -> 0 | AB27: =IF(OR(G27=3600,G27=4400,G27=4500,G27=5400),0,IF(G27=0,0,'Empolyees Details'!AF24)) -> 0 | AC27: =IF(OR(G27=3600,G27=4400,G27=4500,G27=5400),0,IF(G27=0,0,'Empolyees Details'!AH24)) -> 0 | AD27: =IF(OR(G27=3600,G27=4400,G27=4500,G27=5400),0,IF(G27=0,0,CPS!L43)) -> 0 | AE27: =IF(OR(G27=3600,G27=4400,G27=4500,G27=5400),0,IF(G27=0,0,'Empolyees Details'!AK24)) -> 0 | AF27: =IF(OR(G27=3600,G27=4400,G27=4500,G27=5400),0,IF(G27=0,0,'Empolyees Details'!AL24)) -> 0 | AG27: 0 | AH27: 0 | AI27: =IF(OR(G27=3600,G27=4400,G27=4500,G27=5400),0,'Empolyees Details'!AM24) -> 0 | AJ27: =IF(G27=0,0,'Empolyees Details'!AP24) -> 0 | AK27: =IF(OR(G27=3600,G27=4400,G27=4500,G27=5400),0,IF(G27=0,0,'Empolyees Details'!AN24)) -> 0 | AL27: =IF(OR(G27=3600,G27=4400,G27=4500,G27=5400),0,IF(G27=0,0,'Empolyees Details'!AO24)) -> 0 | AM27: 0
B28: 17 | C28: ='Empolyees Details'!C25 -> 0 | D28: ='Empolyees Details'!D25 -> 0 | E28: ='Empolyees Details'!F25 -> 0 | F28: ='Empolyees Details'!G25 -> 0 | G28: =ROUND('Empolyees Details'!O25*Code!P66/Code!O66,0) -> 0 | H28: =IF(OR(G28=3600,G28=4400,G28=4500,G28=5400,G28=0),0,ROUND('Empolyees Details'!P25*Code!AA66,0)) -> 0 | J28: =IF(G28=0,0,ROUND('Empolyees Details'!R25*Code!AA66,0)) -> 0 | L28: =IF(OR(G28=3600,G28=4400,G28=4500,G28=5400,G28=0),0,ROUND('Empolyees Details'!Q25*Code!AA66,0)) -> 0 | N28: =IF(OR(G28=3600,G28=4400,G28=4500,G28=5400),0,'Empolyees Details'!S25) -> 0 | P28: =IF(G28<5500,0,ROUND('Empolyees Details'!O25*Code!AA66*Code!$H$13,0)) -> 0 | Q28: =IF(G28<5500,0,ROUND('Empolyees Details'!O25*Code!AA66*Code!$H$14,0)) -> 0 | S28: 0 | T28: =IF(OR(G28=3600,G28=4400,G28=4500,G28=5400),0,IF(G28=0,0,'Empolyees Details'!W25)) -> 0 | U28: =IF(OR(G28=3600,G28=4400,G28=4500,G28=5400),0,IF(G28=0,0,'Empolyees Details'!X25)) -> 0 | V28: =IF(OR(G28=3600,G28=4400,G28=4500,G28=5400),0,IF(G28=0,0,'Empolyees Details'!AA25)) -> 0 | W28: 0 | X28: =IF(OR(G28=3600,G28=4400,G28=4500,G28=5400),0,IF(G28=0,0,'Empolyees Details'!Y25)) -> 0 | Y28: =IF(OR(G28=3600,G28=4400,G28=4500,G28=5400),0,IF(G28=0,0,'Empolyees Details'!AB25)) -> 0 | Z28: =IF(OR(G28=3600,G28=4400,G28=4500,G28=5400),0,IF(G28=0,0,'Empolyees Details'!AC25)) -> 0 | AA28: =IF(OR(G28=3600,G28=4400,G28=4500,G28=5400),0,IF(G28=0,0,'Empolyees Details'!AD25)) -> 0 | AB28: =IF(OR(G28=3600,G28=4400,G28=4500,G28=5400),0,IF(G28=0,0,'Empolyees Details'!AF25)) -> 0 | AC28: =IF(OR(G28=3600,G28=4400,G28=4500,G28=5400),0,IF(G28=0,0,'Empolyees Details'!AH25)) -> 0 | AD28: =IF(OR(G28=3600,G28=4400,G28=4500,G28=5400),0,IF(G28=0,0,CPS!L44)) -> 0 | AE28: =IF(OR(G28=3600,G28=4400,G28=4500,G28=5400),0,IF(G28=0,0,'Empolyees Details'!AK25)) -> 0 | AF28: =IF(OR(G28=3600,G28=4400,G28=4500,G28=5400),0,IF(G28=0,0,'Empolyees Details'!AL25)) -> 0 | AG28: 0 | AH28: 0 | AI28: =IF(OR(G28=3600,G28=4400,G28=4500,G28=5400),0,'Empolyees Details'!AM25) -> 0 | AJ28: =IF(G28=0,0,'Empolyees Details'!AP25) -> 0 | AK28: =IF(OR(G28=3600,G28=4400,G28=4500,G28=5400),0,IF(G28=0,0,'Empolyees Details'!AN25)) -> 0 | AL28: =IF(OR(G28=3600,G28=4400,G28=4500,G28=5400),0,IF(G28=0,0,'Empolyees Details'!AO25)) -> 0 | AM28: 0
B29: 17 | C29: ='Empolyees Details'!C26 -> 0 | D29: ='Empolyees Details'!D26 -> 0 | E29: ='Empolyees Details'!F26 -> 0 | F29: ='Empolyees Details'!G26 -> 0 | G29: =ROUND('Empolyees Details'!O26*Code!P67/Code!O67,0) -> 0 | H29: =IF(OR(G29=3600,G29=4400,G29=4500,G29=5400,G29=0),0,ROUND('Empolyees Details'!P26*Code!AA67,0)) -> 0 | J29: =IF(G29=0,0,ROUND('Empolyees Details'!R26*Code!AA67,0)) -> 0 | L29: =IF(OR(G29=3600,G29=4400,G29=4500,G29=5400,G29=0),0,ROUND('Empolyees Details'!Q26*Code!AA67,0)) -> 0 | N29: =IF(OR(G29=3600,G29=4400,G29=4500,G29=5400),0,'Empolyees Details'!S26) -> 0 | P29: =IF(G29<5500,0,ROUND('Empolyees Details'!O26*Code!AA67*Code!$H$13,0)) -> 0 | Q29: =IF(G29<5500,0,ROUND('Empolyees Details'!O26*Code!AA67*Code!$H$14,0)) -> 0 | S29: 0 | T29: =IF(OR(G29=3600,G29=4400,G29=4500,G29=5400),0,IF(G29=0,0,'Empolyees Details'!W26)) -> 0 | U29: =IF(OR(G29=3600,G29=4400,G29=4500,G29=5400),0,IF(G29=0,0,'Empolyees Details'!X26)) -> 0 | V29: =IF(OR(G29=3600,G29=4400,G29=4500,G29=5400),0,IF(G29=0,0,'Empolyees Details'!AA26)) -> 0 | W29: 0 | X29: =IF(OR(G29=3600,G29=4400,G29=4500,G29=5400),0,IF(G29=0,0,'Empolyees Details'!Y26)) -> 0 | Y29: =IF(OR(G29=3600,G29=4400,G29=4500,G29=5400),0,IF(G29=0,0,'Empolyees Details'!AB26)) -> 0 | Z29: =IF(OR(G29=3600,G29=4400,G29=4500,G29=5400),0,IF(G29=0,0,'Empolyees Details'!AC26)) -> 0 | AA29: =IF(OR(G29=3600,G29=4400,G29=4500,G29=5400),0,IF(G29=0,0,'Empolyees Details'!AD26)) -> 0 | AB29: =IF(OR(G29=3600,G29=4400,G29=4500,G29=5400),0,IF(G29=0,0,'Empolyees Details'!AF26)) -> 0 | AC29: =IF(OR(G29=3600,G29=4400,G29=4500,G29=5400),0,IF(G29=0,0,'Empolyees Details'!AH26)) -> 0 | AD29: =IF(OR(G29=3600,G29=4400,G29=4500,G29=5400),0,IF(G29=0,0,CPS!L45)) -> 0 | AE29: =IF(OR(G29=3600,G29=4400,G29=4500,G29=5400),0,IF(G29=0,0,'Empolyees Details'!AK26)) -> 0 | AF29: =IF(OR(G29=3600,G29=4400,G29=4500,G29=5400),0,IF(G29=0,0,'Empolyees Details'!AL26)) -> 0 | AG29: 0 | AH29: 0 | AI29: =IF(OR(G29=3600,G29=4400,G29=4500,G29=5400),0,'Empolyees Details'!AM26) -> 0 | AJ29: =IF(G29=0,0,'Empolyees Details'!AP26) -> 0 | AK29: =IF(OR(G29=3600,G29=4400,G29=4500,G29=5400),0,IF(G29=0,0,'Empolyees Details'!AN26)) -> 0 | AL29: =IF(OR(G29=3600,G29=4400,G29=4500,G29=5400),0,IF(G29=0,0,'Empolyees Details'!AO26)) -> 0 | AM29: 0
B30: 17 | C30: ='Empolyees Details'!C27 -> 0 | D30: ='Empolyees Details'!D27 -> 0 | E30: ='Empolyees Details'!F27 -> 0 | F30: ='Empolyees Details'!G27 -> 0 | G30: =ROUND('Empolyees Details'!O27*Code!P68/Code!O68,0) -> 0 | H30: =IF(OR(G30=3600,G30=4400,G30=4500,G30=5400,G30=0),0,ROUND('Empolyees Details'!P27*Code!AA68,0)) -> 0 | J30: =IF(G30=0,0,ROUND('Empolyees Details'!R27*Code!AA68,0)) -> 0 | L30: =IF(OR(G30=3600,G30=4400,G30=4500,G30=5400,G30=0),0,ROUND('Empolyees Details'!Q27*Code!AA68,0)) -> 0 | N30: =IF(OR(G30=3600,G30=4400,G30=4500,G30=5400),0,'Empolyees Details'!S27) -> 0 | P30: =IF(G30<5500,0,ROUND('Empolyees Details'!O27*Code!AA68*Code!$H$13,0)) -> 0 | Q30: =IF(G30<5500,0,ROUND('Empolyees Details'!O27*Code!AA68*Code!$H$14,0)) -> 0 | S30: =G30+H30+J30+L30+N30+P30+Q30 -> 0 | T30: =IF(OR(G30=3600,G30=4400,G30=4500,G30=5400),0,IF(G30=0,0,'Empolyees Details'!W27)) -> 0 | U30: =IF(OR(G30=3600,G30=4400,G30=4500,G30=5400),0,IF(G30=0,0,'Empolyees Details'!X27)) -> 0 | V30: =IF(OR(G30=3600,G30=4400,G30=4500,G30=5400),0,IF(G30=0,0,'Empolyees Details'!AA27)) -> 0 | W30: =IF(OR(G30=3600,G30=4400,G30=4500,G30=5400),0,IF(N30=0,IF(S30>20000,200,IF(S30>15000,150,IF(S30>10000,100,IF(S30>6000,80,IF(S30>5000,60,IF(S30>4000,45,IF(S30>3000,35,IF(S30>2000,25,0)))))))),0)) -> 0 | X30: =IF(OR(G30=3600,G30=4400,G30=4500,G30=5400),0,IF(G30=0,0,'Empolyees Details'!Y27)) -> 0 | Y30: =IF(OR(G30=3600,G30=4400,G30=4500,G30=5400),0,IF(G30=0,0,'Empolyees Details'!AB27)) -> 0 | Z30: =IF(OR(G30=3600,G30=4400,G30=4500,G30=5400),0,IF(G30=0,0,'Empolyees Details'!AC27)) -> 0 | AA30: =IF(OR(G30=3600,G30=4400,G30=4500,G30=5400),0,IF(G30=0,0,'Empolyees Details'!AD27)) -> 0 | AB30: =IF(OR(G30=3600,G30=4400,G30=4500,G30=5400),0,IF(G30=0,0,'Empolyees Details'!AF27)) -> 0 | AC30: =IF(OR(G30=3600,G30=4400,G30=4500,G30=5400),0,IF(G30=0,0,'Empolyees Details'!AH27)) -> 0 | AD30: =IF(OR(G30=3600,G30=4400,G30=4500,G30=5400),0,IF(G30=0,0,CPS!L46)) -> 0 | AE30: =IF(OR(G30=3600,G30=4400,G30=4500,G30=5400),0,IF(G30=0,0,'Empolyees Details'!AK27)) -> 0 | AF30: =IF(OR(G30=3600,G30=4400,G30=4500,G30=5400),0,IF(G30=0,0,'Empolyees Details'!AL27)) -> 0 | AG30: =T30+U30+V30+W30+X30+Y30+Z30+AA30+AB30+AC30+AD30+AE30+AF30 -> 0 | AH30: =S30-AG30 -> 0 | AI30: =IF(OR(G30=3600,G30=4400,G30=4500,G30=5400),0,'Empolyees Details'!AM27) -> 0 | AJ30: =IF(G30=0,0,'Empolyees Details'!AP27) -> 0 | AK30: =IF(OR(G30=3600,G30=4400,G30=4500,G30=5400),0,IF(G30=0,0,'Empolyees Details'!AN27)) -> 0 | AL30: =IF(OR(G30=3600,G30=4400,G30=4500,G30=5400),0,IF(G30=0,0,'Empolyees Details'!AO27)) -> 0 | AM30: =AH30-AJ30 -> 0
B31: 17 | C31: ='Empolyees Details'!C28 -> 0 | D31: ='Empolyees Details'!D28 -> 0 | E31: ='Empolyees Details'!F28 -> 0 | F31: ='Empolyees Details'!G28 -> 0 | G31: =ROUND('Empolyees Details'!O28*Code!P69/Code!O69,0) -> 0 | H31: =IF(OR(G31=3600,G31=4400,G31=4500,G31=5400,G31=0),0,ROUND('Empolyees Details'!P28*Code!AA69,0)) -> 0 | J31: =IF(G31=0,0,ROUND('Empolyees Details'!R28*Code!AA69,0)) -> 0 | L31: =IF(OR(G31=3600,G31=4400,G31=4500,G31=5400,G31=0),0,ROUND('Empolyees Details'!Q28*Code!AA69,0)) -> 0 | N31: =IF(OR(G31=3600,G31=4400,G31=4500,G31=5400),0,'Empolyees Details'!S28) -> 0 | P31: =IF(G31<5500,0,ROUND('Empolyees Details'!O28*Code!AA69*Code!$H$13,0)) -> 0 | Q31: =IF(G31<5500,0,ROUND('Empolyees Details'!O28*Code!AA69*Code!$H$14,0)) -> 0 | S31: 0 | T31: =IF(OR(G31=3600,G31=4400,G31=4500,G31=5400),0,IF(G31=0,0,'Empolyees Details'!W28)) -> 0 | U31: =IF(OR(G31=3600,G31=4400,G31=4500,G31=5400),0,IF(G31=0,0,'Empolyees Details'!X28)) -> 0 | V31: =IF(OR(G31=3600,G31=4400,G31=4500,G31=5400),0,IF(G31=0,0,'Empolyees Details'!AA28)) -> 0 | W31: 0 | X31: =IF(OR(G31=3600,G31=4400,G31=4500,G31=5400),0,IF(G31=0,0,'Empolyees Details'!Y28)) -> 0 | Y31: =IF(OR(G31=3600,G31=4400,G31=4500,G31=5400),0,IF(G31=0,0,'Empolyees Details'!AB28)) -> 0 | Z31: =IF(OR(G31=3600,G31=4400,G31=4500,G31=5400),0,IF(G31=0,0,'Empolyees Details'!AC28)) -> 0 | AA31: =IF(OR(G31=3600,G31=4400,G31=4500,G31=5400),0,IF(G31=0,0,'Empolyees Details'!AD28)) -> 0 | AB31: =IF(OR(G31=3600,G31=4400,G31=4500,G31=5400),0,IF(G31=0,0,'Empolyees Details'!AF28)) -> 0 | AC31: =IF(OR(G31=3600,G31=4400,G31=4500,G31=5400),0,IF(G31=0,0,'Empolyees Details'!AH28)) -> 0 | AD31: =IF(OR(G31=3600,G31=4400,G31=4500,G31=5400),0,IF(G31=0,0,CPS!L47)) -> 0 | AE31: =IF(OR(G31=3600,G31=4400,G31=4500,G31=5400),0,IF(G31=0,0,'Empolyees Details'!AK28)) -> 0 | AF31: =IF(OR(G31=3600,G31=4400,G31=4500,G31=5400),0,IF(G31=0,0,'Empolyees Details'!AL28)) -> 0 | AG31: 0 | AH31: 0 | AI31: =IF(OR(G31=3600,G31=4400,G31=4500,G31=5400),0,'Empolyees Details'!AM28) -> 0 | AJ31: =IF(G31=0,0,'Empolyees Details'!AP28) -> 0 | AK31: =IF(OR(G31=3600,G31=4400,G31=4500,G31=5400),0,IF(G31=0,0,'Empolyees Details'!AN28)) -> 0 | AL31: =IF(OR(G31=3600,G31=4400,G31=4500,G31=5400),0,IF(G31=0,0,'Empolyees Details'!AO28)) -> 0 | AM31: 0
B32: 17 | C32: ='Empolyees Details'!C29 -> 0 | D32: ='Empolyees Details'!D29 -> 0 | E32: ='Empolyees Details'!F29 -> 0 | F32: ='Empolyees Details'!G29 -> 0 | G32: =ROUND('Empolyees Details'!O29*Code!P70/Code!O70,0) -> 0 | H32: =IF(OR(G32=3600,G32=4400,G32=4500,G32=5400,G32=0),0,ROUND('Empolyees Details'!P29*Code!AA70,0)) -> 0 | J32: =IF(G32=0,0,ROUND('Empolyees Details'!R29*Code!AA70,0)) -> 0 | L32: =IF(OR(G32=3600,G32=4400,G32=4500,G32=5400,G32=0),0,ROUND('Empolyees Details'!Q29*Code!AA70,0)) -> 0 | N32: =IF(OR(G32=3600,G32=4400,G32=4500,G32=5400),0,'Empolyees Details'!S29) -> 0 | P32: =IF(G32<5500,0,ROUND('Empolyees Details'!O29*Code!AA70*Code!$H$13,0)) -> 0 | Q32: =IF(G32<5500,0,ROUND('Empolyees Details'!O29*Code!AA70*Code!$H$14,0)) -> 0 | S32: 0 | T32: =IF(OR(G32=3600,G32=4400,G32=4500,G32=5400),0,IF(G32=0,0,'Empolyees Details'!W29)) -> 0 | U32: =IF(OR(G32=3600,G32=4400,G32=4500,G32=5400),0,IF(G32=0,0,'Empolyees Details'!X29)) -> 0 | V32: =IF(OR(G32=3600,G32=4400,G32=4500,G32=5400),0,IF(G32=0,0,'Empolyees Details'!AA29)) -> 0 | W32: 0 | X32: =IF(OR(G32=3600,G32=4400,G32=4500,G32=5400),0,IF(G32=0,0,'Empolyees Details'!Y29)) -> 0 | Y32: =IF(OR(G32=3600,G32=4400,G32=4500,G32=5400),0,IF(G32=0,0,'Empolyees Details'!AB29)) -> 0 | Z32: =IF(OR(G32=3600,G32=4400,G32=4500,G32=5400),0,IF(G32=0,0,'Empolyees Details'!AC29)) -> 0 | AA32: =IF(OR(G32=3600,G32=4400,G32=4500,G32=5400),0,IF(G32=0,0,'Empolyees Details'!AD29)) -> 0 | AB32: =IF(OR(G32=3600,G32=4400,G32=4500,G32=5400),0,IF(G32=0,0,'Empolyees Details'!AF29)) -> 0 | AC32: =IF(OR(G32=3600,G32=4400,G32=4500,G32=5400),0,IF(G32=0,0,'Empolyees Details'!AH29)) -> 0 | AD32: =IF(OR(G32=3600,G32=4400,G32=4500,G32=5400),0,IF(G32=0,0,CPS!L48)) -> 0 | AE32: =IF(OR(G32=3600,G32=4400,G32=4500,G32=5400),0,IF(G32=0,0,'Empolyees Details'!AK29)) -> 0 | AF32: =IF(OR(G32=3600,G32=4400,G32=4500,G32=5400),0,IF(G32=0,0,'Empolyees Details'!AL29)) -> 0 | AG32: 0 | AH32: 0 | AI32: =IF(OR(G32=3600,G32=4400,G32=4500,G32=5400),0,'Empolyees Details'!AM29) -> 0 | AJ32: =IF(G32=0,0,'Empolyees Details'!AP29) -> 0 | AK32: =IF(OR(G32=3600,G32=4400,G32=4500,G32=5400),0,IF(G32=0,0,'Empolyees Details'!AN29)) -> 0 | AL32: =IF(OR(G32=3600,G32=4400,G32=4500,G32=5400),0,IF(G32=0,0,'Empolyees Details'!AO29)) -> 0 | AM32: 0
B33: 17 | C33: ='Empolyees Details'!C30 -> 0 | D33: ='Empolyees Details'!D30 -> 0 | E33: ='Empolyees Details'!F30 -> 0 | F33: ='Empolyees Details'!G30 -> 0 | G33: =ROUND('Empolyees Details'!O30*Code!P71/Code!O71,0) -> 0 | H33: =IF(OR(G33=3600,G33=4400,G33=4500,G33=5400,G33=0),0,ROUND('Empolyees Details'!P30*Code!AA71,0)) -> 0 | J33: =IF(G33=0,0,ROUND('Empolyees Details'!R30*Code!AA71,0)) -> 0 | L33: =IF(OR(G33=3600,G33=4400,G33=4500,G33=5400,G33=0),0,ROUND('Empolyees Details'!Q30*Code!AA71,0)) -> 0 | N33: =IF(OR(G33=3600,G33=4400,G33=4500,G33=5400),0,'Empolyees Details'!S30) -> 0 | P33: =IF(G33<5500,0,ROUND('Empolyees Details'!O30*Code!AA71*Code!$H$13,0)) -> 0 | Q33: =IF(G33<5500,0,ROUND('Empolyees Details'!O30*Code!AA71*Code!$H$14,0)) -> 0 | S33: 0 | T33: =IF(OR(G33=3600,G33=4400,G33=4500,G33=5400),0,IF(G33=0,0,'Empolyees Details'!W30)) -> 0 | U33: =IF(OR(G33=3600,G33=4400,G33=4500,G33=5400),0,IF(G33=0,0,'Empolyees Details'!X30)) -> 0 | V33: =IF(OR(G33=3600,G33=4400,G33=4500,G33=5400),0,IF(G33=0,0,'Empolyees Details'!AA30)) -> 0 | W33: 0 | X33: =IF(OR(G33=3600,G33=4400,G33=4500,G33=5400),0,IF(G33=0,0,'Empolyees Details'!Y30)) -> 0 | Y33: =IF(OR(G33=3600,G33=4400,G33=4500,G33=5400),0,IF(G33=0,0,'Empolyees Details'!AB30)) -> 0 | Z33: =IF(OR(G33=3600,G33=4400,G33=4500,G33=5400),0,IF(G33=0,0,'Empolyees Details'!AC30)) -> 0 | AA33: =IF(OR(G33=3600,G33=4400,G33=4500,G33=5400),0,IF(G33=0,0,'Empolyees Details'!AD30)) -> 0 | AB33: =IF(OR(G33=3600,G33=4400,G33=4500,G33=5400),0,IF(G33=0,0,'Empolyees Details'!AF30)) -> 0 | AC33: =IF(OR(G33=3600,G33=4400,G33=4500,G33=5400),0,IF(G33=0,0,'Empolyees Details'!AH30)) -> 0 | AD33: =IF(OR(G33=3600,G33=4400,G33=4500,G33=5400),0,IF(G33=0,0,CPS!L49)) -> 0 | AE33: =IF(OR(G33=3600,G33=4400,G33=4500,G33=5400),0,IF(G33=0,0,'Empolyees Details'!AK30)) -> 0 | AF33: =IF(OR(G33=3600,G33=4400,G33=4500,G33=5400),0,IF(G33=0,0,'Empolyees Details'!AL30)) -> 0 | AG33: 0 | AH33: 0 | AI33: =IF(OR(G33=3600,G33=4400,G33=4500,G33=5400),0,'Empolyees Details'!AM30) -> 0 | AJ33: =IF(G33=0,0,'Empolyees Details'!AP30) -> 0 | AK33: =IF(OR(G33=3600,G33=4400,G33=4500,G33=5400),0,IF(G33=0,0,'Empolyees Details'!AN30)) -> 0 | AL33: =IF(OR(G33=3600,G33=4400,G33=4500,G33=5400),0,IF(G33=0,0,'Empolyees Details'!AO30)) -> 0 | AM33: 0
B34: 17 | C34: ='Empolyees Details'!C31 -> 0 | D34: ='Empolyees Details'!D31 -> 0 | E34: ='Empolyees Details'!F31 -> 0 | F34: ='Empolyees Details'!G31 -> 0 | G34: =ROUND('Empolyees Details'!O31*Code!P72/Code!O72,0) -> 0 | H34: =IF(OR(G34=3600,G34=4400,G34=4500,G34=5400,G34=0),0,ROUND('Empolyees Details'!P31*Code!AA72,0)) -> 0 | J34: =IF(G34=0,0,ROUND('Empolyees Details'!R31*Code!AA72,0)) -> 0 | L34: =IF(OR(G34=3600,G34=4400,G34=4500,G34=5400,G34=0),0,ROUND('Empolyees Details'!Q31*Code!AA72,0)) -> 0 | N34: =IF(OR(G34=3600,G34=4400,G34=4500,G34=5400),0,'Empolyees Details'!S31) -> 0 | P34: =IF(G34<5500,0,ROUND('Empolyees Details'!O31*Code!AA72*Code!$H$13,0)) -> 0 | Q34: =IF(G34<5500,0,ROUND('Empolyees Details'!O31*Code!AA72*Code!$H$14,0)) -> 0 | S34: 0 | T34: =IF(OR(G34=3600,G34=4400,G34=4500,G34=5400),0,IF(G34=0,0,'Empolyees Details'!W31)) -> 0 | U34: =IF(OR(G34=3600,G34=4400,G34=4500,G34=5400),0,IF(G34=0,0,'Empolyees Details'!X31)) -> 0 | V34: =IF(OR(G34=3600,G34=4400,G34=4500,G34=5400),0,IF(G34=0,0,'Empolyees Details'!AA31)) -> 0 | W34: 0 | X34: =IF(OR(G34=3600,G34=4400,G34=4500,G34=5400),0,IF(G34=0,0,'Empolyees Details'!Y31)) -> 0 | Y34: =IF(OR(G34=3600,G34=4400,G34=4500,G34=5400),0,IF(G34=0,0,'Empolyees Details'!AB31)) -> 0 | Z34: =IF(OR(G34=3600,G34=4400,G34=4500,G34=5400),0,IF(G34=0,0,'Empolyees Details'!AC31)) -> 0 | AA34: =IF(OR(G34=3600,G34=4400,G34=4500,G34=5400),0,IF(G34=0,0,'Empolyees Details'!AD31)) -> 0 | AB34: =IF(OR(G34=3600,G34=4400,G34=4500,G34=5400),0,IF(G34=0,0,'Empolyees Details'!AF31)) -> 0 | AC34: =IF(OR(G34=3600,G34=4400,G34=4500,G34=5400),0,IF(G34=0,0,'Empolyees Details'!AH31)) -> 0 | AD34: =IF(OR(G34=3600,G34=4400,G34=4500,G34=5400),0,IF(G34=0,0,CPS!L50)) -> 0 | AE34: =IF(OR(G34=3600,G34=4400,G34=4500,G34=5400),0,IF(G34=0,0,'Empolyees Details'!AK31)) -> 0 | AF34: =IF(OR(G34=3600,G34=4400,G34=4500,G34=5400),0,IF(G34=0,0,'Empolyees Details'!AL31)) -> 0 | AG34: 0 | AH34: 0 | AI34: =IF(OR(G34=3600,G34=4400,G34=4500,G34=5400),0,'Empolyees Details'!AM31) -> 0 | AJ34: =IF(G34=0,0,'Empolyees Details'!AP31) -> 0 | AK34: =IF(OR(G34=3600,G34=4400,G34=4500,G34=5400),0,IF(G34=0,0,'Empolyees Details'!AN31)) -> 0 | AL34: =IF(OR(G34=3600,G34=4400,G34=4500,G34=5400),0,IF(G34=0,0,'Empolyees Details'!AO31)) -> 0 | AM34: 0
B35: 17 | C35: ='Empolyees Details'!C32 -> 0 | D35: ='Empolyees Details'!D32 -> 0 | E35: ='Empolyees Details'!F32 -> 0 | F35: ='Empolyees Details'!G32 -> 0 | G35: =ROUND('Empolyees Details'!O32*Code!P73/Code!O73,0) -> 0 | H35: =IF(OR(G35=3600,G35=4400,G35=4500,G35=5400,G35=0),0,ROUND('Empolyees Details'!P32*Code!AA73,0)) -> 0 | J35: =IF(G35=0,0,ROUND('Empolyees Details'!R32*Code!AA73,0)) -> 0 | L35: =IF(OR(G35=3600,G35=4400,G35=4500,G35=5400,G35=0),0,ROUND('Empolyees Details'!Q32*Code!AA73,0)) -> 0 | N35: =IF(OR(G35=3600,G35=4400,G35=4500,G35=5400),0,'Empolyees Details'!S32) -> 0 | P35: =IF(G35<5500,0,ROUND('Empolyees Details'!O32*Code!AA73*Code!$H$13,0)) -> 0 | Q35: =IF(G35<5500,0,ROUND('Empolyees Details'!O32*Code!AA73*Code!$H$14,0)) -> 0 | S35: 0 | T35: =IF(OR(G35=3600,G35=4400,G35=4500,G35=5400),0,IF(G35=0,0,'Empolyees Details'!W32)) -> 0 | U35: =IF(OR(G35=3600,G35=4400,G35=4500,G35=5400),0,IF(G35=0,0,'Empolyees Details'!X32)) -> 0 | V35: =IF(OR(G35=3600,G35=4400,G35=4500,G35=5400),0,IF(G35=0,0,'Empolyees Details'!AA32)) -> 0 | W35: 0 | X35: =IF(OR(G35=3600,G35=4400,G35=4500,G35=5400),0,IF(G35=0,0,'Empolyees Details'!Y32)) -> 0 | Y35: =IF(OR(G35=3600,G35=4400,G35=4500,G35=5400),0,IF(G35=0,0,'Empolyees Details'!AB32)) -> 0 | Z35: =IF(OR(G35=3600,G35=4400,G35=4500,G35=5400),0,IF(G35=0,0,'Empolyees Details'!AC32)) -> 0 | AA35: =IF(OR(G35=3600,G35=4400,G35=4500,G35=5400),0,IF(G35=0,0,'Empolyees Details'!AD32)) -> 0 | AB35: =IF(OR(G35=3600,G35=4400,G35=4500,G35=5400),0,IF(G35=0,0,'Empolyees Details'!AF32)) -> 0 | AC35: =IF(OR(G35=3600,G35=4400,G35=4500,G35=5400),0,IF(G35=0,0,'Empolyees Details'!AH32)) -> 0 | AD35: =IF(OR(G35=3600,G35=4400,G35=4500,G35=5400),0,IF(G35=0,0,CPS!L51)) -> 0 | AE35: =IF(OR(G35=3600,G35=4400,G35=4500,G35=5400),0,IF(G35=0,0,'Empolyees Details'!AK32)) -> 0 | AF35: =IF(OR(G35=3600,G35=4400,G35=4500,G35=5400),0,IF(G35=0,0,'Empolyees Details'!AL32)) -> 0 | AG35: 0 | AH35: 0 | AI35: =IF(OR(G35=3600,G35=4400,G35=4500,G35=5400),0,'Empolyees Details'!AM32) -> 0 | AJ35: =IF(G35=0,0,'Empolyees Details'!AP32) -> 0 | AK35: =IF(OR(G35=3600,G35=4400,G35=4500,G35=5400),0,IF(G35=0,0,'Empolyees Details'!AN32)) -> 0 | AL35: =IF(OR(G35=3600,G35=4400,G35=4500,G35=5400),0,IF(G35=0,0,'Empolyees Details'!AO32)) -> 0 | AM35: 0
B36: 17 | C36: ='Empolyees Details'!C33 -> 0 | D36: ='Empolyees Details'!D33 -> 0 | E36: ='Empolyees Details'!F33 -> 0 | F36: ='Empolyees Details'!G33 -> 0 | G36: =ROUND('Empolyees Details'!O33*Code!P74/Code!O74,0) -> 0 | H36: =IF(OR(G36=3600,G36=4400,G36=4500,G36=5400,G36=0),0,ROUND('Empolyees Details'!P33*Code!AA74,0)) -> 0 | J36: =IF(G36=0,0,ROUND('Empolyees Details'!R33*Code!AA74,0)) -> 0 | L36: =IF(OR(G36=3600,G36=4400,G36=4500,G36=5400,G36=0),0,ROUND('Empolyees Details'!Q33*Code!AA74,0)) -> 0 | N36: =IF(OR(G36=3600,G36=4400,G36=4500,G36=5400),0,'Empolyees Details'!S33) -> 0 | P36: =IF(G36<5500,0,ROUND('Empolyees Details'!O33*Code!AA74*Code!$H$13,0)) -> 0 | Q36: =IF(G36<5500,0,ROUND('Empolyees Details'!O33*Code!AA74*Code!$H$14,0)) -> 0 | S36: 0 | T36: =IF(OR(G36=3600,G36=4400,G36=4500,G36=5400),0,IF(G36=0,0,'Empolyees Details'!W33)) -> 0 | U36: =IF(OR(G36=3600,G36=4400,G36=4500,G36=5400),0,IF(G36=0,0,'Empolyees Details'!X33)) -> 0 | V36: =IF(OR(G36=3600,G36=4400,G36=4500,G36=5400),0,IF(G36=0,0,'Empolyees Details'!AA33)) -> 0 | W36: 0 | X36: =IF(OR(G36=3600,G36=4400,G36=4500,G36=5400),0,IF(G36=0,0,'Empolyees Details'!Y33)) -> 0 | Y36: =IF(OR(G36=3600,G36=4400,G36=4500,G36=5400),0,IF(G36=0,0,'Empolyees Details'!AB33)) -> 0 | Z36: =IF(OR(G36=3600,G36=4400,G36=4500,G36=5400),0,IF(G36=0,0,'Empolyees Details'!AC33)) -> 0 | AA36: =IF(OR(G36=3600,G36=4400,G36=4500,G36=5400),0,IF(G36=0,0,'Empolyees Details'!AD33)) -> 0 | AB36: =IF(OR(G36=3600,G36=4400,G36=4500,G36=5400),0,IF(G36=0,0,'Empolyees Details'!AF33)) -> 0 | AC36: =IF(OR(G36=3600,G36=4400,G36=4500,G36=5400),0,IF(G36=0,0,'Empolyees Details'!AH33)) -> 0 | AD36: =IF(OR(G36=3600,G36=4400,G36=4500,G36=5400),0,IF(G36=0,0,CPS!L52)) -> 0 | AE36: =IF(OR(G36=3600,G36=4400,G36=4500,G36=5400),0,IF(G36=0,0,'Empolyees Details'!AK33)) -> 0 | AF36: =IF(OR(G36=3600,G36=4400,G36=4500,G36=5400),0,IF(G36=0,0,'Empolyees Details'!AL33)) -> 0 | AG36: 0 | AH36: 0 | AI36: =IF(OR(G36=3600,G36=4400,G36=4500,G36=5400),0,'Empolyees Details'!AM33) -> 0 | AJ36: =IF(G36=0,0,'Empolyees Details'!AP33) -> 0 | AK36: =IF(OR(G36=3600,G36=4400,G36=4500,G36=5400),0,IF(G36=0,0,'Empolyees Details'!AN33)) -> 0 | AL36: =IF(OR(G36=3600,G36=4400,G36=4500,G36=5400),0,IF(G36=0,0,'Empolyees Details'!AO33)) -> 0 | AM36: 0
B37: 17 | C37: ='Empolyees Details'!C34 -> 0 | D37: ='Empolyees Details'!D34 -> 0 | E37: ='Empolyees Details'!F34 -> 0 | F37: ='Empolyees Details'!G34 -> 0 | G37: =ROUND('Empolyees Details'!O34*Code!P75/Code!O75,0) -> 0 | H37: =IF(OR(G37=3600,G37=4400,G37=4500,G37=5400,G37=0),0,ROUND('Empolyees Details'!P34*Code!AA75,0)) -> 0 | J37: =IF(G37=0,0,ROUND('Empolyees Details'!R34*Code!AA75,0)) -> 0 | L37: =IF(OR(G37=3600,G37=4400,G37=4500,G37=5400,G37=0),0,ROUND('Empolyees Details'!Q34*Code!AA75,0)) -> 0 | N37: =IF(OR(G37=3600,G37=4400,G37=4500,G37=5400),0,'Empolyees Details'!S34) -> 0 | P37: =IF(G37<5500,0,ROUND('Empolyees Details'!O34*Code!AA75*Code!$H$13,0)) -> 0 | Q37: =IF(G37<5500,0,ROUND('Empolyees Details'!O34*Code!AA75*Code!$H$14,0)) -> 0 | S37: 0 | T37: =IF(OR(G37=3600,G37=4400,G37=4500,G37=5400),0,IF(G37=0,0,'Empolyees Details'!W34)) -> 0 | U37: =IF(OR(G37=3600,G37=4400,G37=4500,G37=5400),0,IF(G37=0,0,'Empolyees Details'!X34)) -> 0 | V37: =IF(OR(G37=3600,G37=4400,G37=4500,G37=5400),0,IF(G37=0,0,'Empolyees Details'!AA34)) -> 0 | W37: 0 | X37: =IF(OR(G37=3600,G37=4400,G37=4500,G37=5400),0,IF(G37=0,0,'Empolyees Details'!Y34)) -> 0 | Y37: =IF(OR(G37=3600,G37=4400,G37=4500,G37=5400),0,IF(G37=0,0,'Empolyees Details'!AB34)) -> 0 | Z37: =IF(OR(G37=3600,G37=4400,G37=4500,G37=5400),0,IF(G37=0,0,'Empolyees Details'!AC34)) -> 0 | AA37: =IF(OR(G37=3600,G37=4400,G37=4500,G37=5400),0,IF(G37=0,0,'Empolyees Details'!AD34)) -> 0 | AB37: =IF(OR(G37=3600,G37=4400,G37=4500,G37=5400),0,IF(G37=0,0,'Empolyees Details'!AF34)) -> 0 | AC37: =IF(OR(G37=3600,G37=4400,G37=4500,G37=5400),0,IF(G37=0,0,'Empolyees Details'!AH34)) -> 0 | AD37: =IF(OR(G37=3600,G37=4400,G37=4500,G37=5400),0,IF(G37=0,0,CPS!L53)) -> 0 | AE37: =IF(OR(G37=3600,G37=4400,G37=4500,G37=5400),0,IF(G37=0,0,'Empolyees Details'!AK34)) -> 0 | AF37: =IF(OR(G37=3600,G37=4400,G37=4500,G37=5400),0,IF(G37=0,0,'Empolyees Details'!AL34)) -> 0 | AG37: 0 | AH37: 0 | AI37: =IF(OR(G37=3600,G37=4400,G37=4500,G37=5400),0,'Empolyees Details'!AM34) -> 0 | AJ37: =IF(G37=0,0,'Empolyees Details'!AP34) -> 0 | AK37: =IF(OR(G37=3600,G37=4400,G37=4500,G37=5400),0,IF(G37=0,0,'Empolyees Details'!AN34)) -> 0 | AL37: =IF(OR(G37=3600,G37=4400,G37=4500,G37=5400),0,IF(G37=0,0,'Empolyees Details'!AO34)) -> 0 | AM37: 0
B38: 17 | C38: ='Empolyees Details'!C35 -> 0 | D38: ='Empolyees Details'!D35 -> 0 | E38: ='Empolyees Details'!F35 -> 0 | F38: ='Empolyees Details'!G35 -> 0 | G38: =ROUND('Empolyees Details'!O35*Code!P76/Code!O76,0) -> 0 | H38: =IF(OR(G38=3600,G38=4400,G38=4500,G38=5400,G38=0),0,ROUND('Empolyees Details'!P35*Code!AA76,0)) -> 0 | J38: =IF(G38=0,0,ROUND('Empolyees Details'!R35*Code!AA76,0)) -> 0 | L38: =IF(OR(G38=3600,G38=4400,G38=4500,G38=5400,G38=0),0,ROUND('Empolyees Details'!Q35*Code!AA76,0)) -> 0 | N38: =IF(OR(G38=3600,G38=4400,G38=4500,G38=5400),0,'Empolyees Details'!S35) -> 0 | P38: =IF(G38<5500,0,ROUND('Empolyees Details'!O35*Code!AA76*Code!$H$13,0)) -> 0 | Q38: =IF(G38<5500,0,ROUND('Empolyees Details'!O35*Code!AA76*Code!$H$14,0)) -> 0 | S38: 0 | T38: =IF(OR(G38=3600,G38=4400,G38=4500,G38=5400),0,IF(G38=0,0,'Empolyees Details'!W35)) -> 0 | U38: =IF(OR(G38=3600,G38=4400,G38=4500,G38=5400),0,IF(G38=0,0,'Empolyees Details'!X35)) -> 0 | V38: =IF(OR(G38=3600,G38=4400,G38=4500,G38=5400),0,IF(G38=0,0,'Empolyees Details'!AA35)) -> 0 | W38: 0 | X38: =IF(OR(G38=3600,G38=4400,G38=4500,G38=5400),0,IF(G38=0,0,'Empolyees Details'!Y35)) -> 0 | Y38: =IF(OR(G38=3600,G38=4400,G38=4500,G38=5400),0,IF(G38=0,0,'Empolyees Details'!AB35)) -> 0 | Z38: =IF(OR(G38=3600,G38=4400,G38=4500,G38=5400),0,IF(G38=0,0,'Empolyees Details'!AC35)) -> 0 | AA38: =IF(OR(G38=3600,G38=4400,G38=4500,G38=5400),0,IF(G38=0,0,'Empolyees Details'!AD35)) -> 0 | AB38: =IF(OR(G38=3600,G38=4400,G38=4500,G38=5400),0,IF(G38=0,0,'Empolyees Details'!AF35)) -> 0 | AC38: =IF(OR(G38=3600,G38=4400,G38=4500,G38=5400),0,IF(G38=0,0,'Empolyees Details'!AH35)) -> 0 | AD38: =IF(OR(G38=3600,G38=4400,G38=4500,G38=5400),0,IF(G38=0,0,CPS!L54)) -> 0 | AE38: =IF(OR(G38=3600,G38=4400,G38=4500,G38=5400),0,IF(G38=0,0,'Empolyees Details'!AK35)) -> 0 | AF38: =IF(OR(G38=3600,G38=4400,G38=4500,G38=5400),0,IF(G38=0,0,'Empolyees Details'!AL35)) -> 0 | AG38: 0 | AH38: 0 | AI38: =IF(OR(G38=3600,G38=4400,G38=4500,G38=5400),0,'Empolyees Details'!AM35) -> 0 | AJ38: =IF(G38=0,0,'Empolyees Details'!AP35) -> 0 | AK38: =IF(OR(G38=3600,G38=4400,G38=4500,G38=5400),0,IF(G38=0,0,'Empolyees Details'!AN35)) -> 0 | AL38: =IF(OR(G38=3600,G38=4400,G38=4500,G38=5400),0,IF(G38=0,0,'Empolyees Details'!AO35)) -> 0 | AM38: 0
B39: 17 | C39: ='Empolyees Details'!C36 -> 0 | D39: ='Empolyees Details'!D36 -> 0 | E39: ='Empolyees Details'!F36 -> 0 | F39: ='Empolyees Details'!G36 -> 0 | G39: =ROUND('Empolyees Details'!O36*Code!P77/Code!O77,0) -> 0 | H39: =IF(OR(G39=3600,G39=4400,G39=4500,G39=5400,G39=0),0,ROUND('Empolyees Details'!P36*Code!AA77,0)) -> 0 | J39: =IF(G39=0,0,ROUND('Empolyees Details'!R36*Code!AA77,0)) -> 0 | L39: =IF(OR(G39=3600,G39=4400,G39=4500,G39=5400,G39=0),0,ROUND('Empolyees Details'!Q36*Code!AA77,0)) -> 0 | N39: =IF(OR(G39=3600,G39=4400,G39=4500,G39=5400),0,'Empolyees Details'!S36) -> 0 | P39: =IF(G39<5500,0,ROUND('Empolyees Details'!O36*Code!AA77*Code!$H$13,0)) -> 0 | Q39: =IF(G39<5500,0,ROUND('Empolyees Details'!O36*Code!AA77*Code!$H$14,0)) -> 0 | S39: 0 | T39: =IF(OR(G39=3600,G39=4400,G39=4500,G39=5400),0,IF(G39=0,0,'Empolyees Details'!W36)) -> 0 | U39: =IF(OR(G39=3600,G39=4400,G39=4500,G39=5400),0,IF(G39=0,0,'Empolyees Details'!X36)) -> 0 | V39: =IF(OR(G39=3600,G39=4400,G39=4500,G39=5400),0,IF(G39=0,0,'Empolyees Details'!AA36)) -> 0 | W39: 0 | X39: =IF(OR(G39=3600,G39=4400,G39=4500,G39=5400),0,IF(G39=0,0,'Empolyees Details'!Y36)) -> 0 | Y39: =IF(OR(G39=3600,G39=4400,G39=4500,G39=5400),0,IF(G39=0,0,'Empolyees Details'!AB36)) -> 0 | Z39: =IF(OR(G39=3600,G39=4400,G39=4500,G39=5400),0,IF(G39=0,0,'Empolyees Details'!AC36)) -> 0 | AA39: =IF(OR(G39=3600,G39=4400,G39=4500,G39=5400),0,IF(G39=0,0,'Empolyees Details'!AD36)) -> 0 | AB39: =IF(OR(G39=3600,G39=4400,G39=4500,G39=5400),0,IF(G39=0,0,'Empolyees Details'!AF36)) -> 0 | AC39: =IF(OR(G39=3600,G39=4400,G39=4500,G39=5400),0,IF(G39=0,0,'Empolyees Details'!AH36)) -> 0 | AD39: =IF(OR(G39=3600,G39=4400,G39=4500,G39=5400),0,IF(G39=0,0,CPS!L55)) -> 0 | AE39: =IF(OR(G39=3600,G39=4400,G39=4500,G39=5400),0,IF(G39=0,0,'Empolyees Details'!AK36)) -> 0 | AF39: =IF(OR(G39=3600,G39=4400,G39=4500,G39=5400),0,IF(G39=0,0,'Empolyees Details'!AL36)) -> 0 | AG39: 0 | AH39: 0 | AI39: =IF(OR(G39=3600,G39=4400,G39=4500,G39=5400),0,'Empolyees Details'!AM36) -> 0 | AJ39: =IF(G39=0,0,'Empolyees Details'!AP36) -> 0 | AK39: =IF(OR(G39=3600,G39=4400,G39=4500,G39=5400),0,IF(G39=0,0,'Empolyees Details'!AN36)) -> 0 | AL39: =IF(OR(G39=3600,G39=4400,G39=4500,G39=5400),0,IF(G39=0,0,'Empolyees Details'!AO36)) -> 0 | AM39: 0
B40: 17 | C40: ='Empolyees Details'!C37 -> 0 | D40: ='Empolyees Details'!D37 -> 0 | E40: ='Empolyees Details'!F37 -> 0 | F40: ='Empolyees Details'!G37 -> 0 | G40: =ROUND('Empolyees Details'!O37*Code!P78/Code!O78,0) -> 0 | H40: =IF(OR(G40=3600,G40=4400,G40=4500,G40=5400,G40=0),0,ROUND('Empolyees Details'!P37*Code!AA78,0)) -> 0 | J40: =IF(G40=0,0,ROUND('Empolyees Details'!R37*Code!AA78,0)) -> 0 | L40: =IF(OR(G40=3600,G40=4400,G40=4500,G40=5400,G40=0),0,ROUND('Empolyees Details'!Q37*Code!AA78,0)) -> 0 | N40: =IF(OR(G40=3600,G40=4400,G40=4500,G40=5400),0,'Empolyees Details'!S37) -> 0 | P40: =IF(G40<5500,0,ROUND('Empolyees Details'!O37*Code!AA78*Code!$H$13,0)) -> 0 | Q40: =IF(G40<5500,0,ROUND('Empolyees Details'!O37*Code!AA78*Code!$H$14,0)) -> 0 | S40: 0 | T40: =IF(OR(G40=3600,G40=4400,G40=4500,G40=5400),0,IF(G40=0,0,'Empolyees Details'!W37)) -> 0 | U40: =IF(OR(G40=3600,G40=4400,G40=4500,G40=5400),0,IF(G40=0,0,'Empolyees Details'!X37)) -> 0 | V40: =IF(OR(G40=3600,G40=4400,G40=4500,G40=5400),0,IF(G40=0,0,'Empolyees Details'!AA37)) -> 0 | W40: 0 | X40: =IF(OR(G40=3600,G40=4400,G40=4500,G40=5400),0,IF(G40=0,0,'Empolyees Details'!Y37)) -> 0 | Y40: =IF(OR(G40=3600,G40=4400,G40=4500,G40=5400),0,IF(G40=0,0,'Empolyees Details'!AB37)) -> 0 | Z40: =IF(OR(G40=3600,G40=4400,G40=4500,G40=5400),0,IF(G40=0,0,'Empolyees Details'!AC37)) -> 0 | AA40: =IF(OR(G40=3600,G40=4400,G40=4500,G40=5400),0,IF(G40=0,0,'Empolyees Details'!AD37)) -> 0 | AB40: =IF(OR(G40=3600,G40=4400,G40=4500,G40=5400),0,IF(G40=0,0,'Empolyees Details'!AF37)) -> 0 | AC40: =IF(OR(G40=3600,G40=4400,G40=4500,G40=5400),0,IF(G40=0,0,'Empolyees Details'!AH37)) -> 0 | AD40: =IF(OR(G40=3600,G40=4400,G40=4500,G40=5400),0,IF(G40=0,0,CPS!L56)) -> 0 | AE40: =IF(OR(G40=3600,G40=4400,G40=4500,G40=5400),0,IF(G40=0,0,'Empolyees Details'!AK37)) -> 0 | AF40: =IF(OR(G40=3600,G40=4400,G40=4500,G40=5400),0,IF(G40=0,0,'Empolyees Details'!AL37)) -> 0 | AG40: 0 | AH40: 0 | AI40: =IF(OR(G40=3600,G40=4400,G40=4500,G40=5400),0,'Empolyees Details'!AM37) -> 0 | AJ40: =IF(G40=0,0,'Empolyees Details'!AP37) -> 0 | AK40: =IF(OR(G40=3600,G40=4400,G40=4500,G40=5400),0,IF(G40=0,0,'Empolyees Details'!AN37)) -> 0 | AL40: =IF(OR(G40=3600,G40=4400,G40=4500,G40=5400),0,IF(G40=0,0,'Empolyees Details'!AO37)) -> 0 | AM40: 0
B41: 17 | C41: ='Empolyees Details'!C38 -> 0 | D41: ='Empolyees Details'!D38 -> 0 | E41: ='Empolyees Details'!F38 -> 0 | F41: ='Empolyees Details'!G38 -> 0 | G41: =ROUND('Empolyees Details'!O38*Code!P79/Code!O79,0) -> 0 | H41: =IF(OR(G41=3600,G41=4400,G41=4500,G41=5400,G41=0),0,ROUND('Empolyees Details'!P38*Code!AA79,0)) -> 0 | J41: =IF(G41=0,0,ROUND('Empolyees Details'!R38*Code!AA79,0)) -> 0 | L41: =IF(OR(G41=3600,G41=4400,G41=4500,G41=5400,G41=0),0,ROUND('Empolyees Details'!Q38*Code!AA79,0)) -> 0 | N41: =IF(OR(G41=3600,G41=4400,G41=4500,G41=5400),0,'Empolyees Details'!S38) -> 0 | P41: =IF(G41<5500,0,ROUND('Empolyees Details'!O38*Code!AA79*Code!$H$13,0)) -> 0 | Q41: =IF(G41<5500,0,ROUND('Empolyees Details'!O38*Code!AA79*Code!$H$14,0)) -> 0 | S41: 0 | T41: =IF(OR(G41=3600,G41=4400,G41=4500,G41=5400),0,IF(G41=0,0,'Empolyees Details'!W38)) -> 0 | U41: =IF(OR(G41=3600,G41=4400,G41=4500,G41=5400),0,IF(G41=0,0,'Empolyees Details'!X38)) -> 0 | V41: =IF(OR(G41=3600,G41=4400,G41=4500,G41=5400),0,IF(G41=0,0,'Empolyees Details'!AA38)) -> 0 | W41: 0 | X41: =IF(OR(G41=3600,G41=4400,G41=4500,G41=5400),0,IF(G41=0,0,'Empolyees Details'!Y38)) -> 0 | Y41: =IF(OR(G41=3600,G41=4400,G41=4500,G41=5400),0,IF(G41=0,0,'Empolyees Details'!AB38)) -> 0 | Z41: =IF(OR(G41=3600,G41=4400,G41=4500,G41=5400),0,IF(G41=0,0,'Empolyees Details'!AC38)) -> 0 | AA41: =IF(OR(G41=3600,G41=4400,G41=4500,G41=5400),0,IF(G41=0,0,'Empolyees Details'!AD38)) -> 0 | AB41: =IF(OR(G41=3600,G41=4400,G41=4500,G41=5400),0,IF(G41=0,0,'Empolyees Details'!AF38)) -> 0 | AC41: =IF(OR(G41=3600,G41=4400,G41=4500,G41=5400),0,IF(G41=0,0,'Empolyees Details'!AH38)) -> 0 | AD41: =IF(OR(G41=3600,G41=4400,G41=4500,G41=5400),0,IF(G41=0,0,CPS!L57)) -> 0 | AE41: =IF(OR(G41=3600,G41=4400,G41=4500,G41=5400),0,IF(G41=0,0,'Empolyees Details'!AK38)) -> 0 | AF41: =IF(OR(G41=3600,G41=4400,G41=4500,G41=5400),0,IF(G41=0,0,'Empolyees Details'!AL38)) -> 0 | AG41: 0 | AH41: 0 | AI41: =IF(OR(G41=3600,G41=4400,G41=4500,G41=5400),0,'Empolyees Details'!AM38) -> 0 | AJ41: =IF(G41=0,0,'Empolyees Details'!AP38) -> 0 | AK41: =IF(OR(G41=3600,G41=4400,G41=4500,G41=5400),0,IF(G41=0,0,'Empolyees Details'!AN38)) -> 0 | AL41: =IF(OR(G41=3600,G41=4400,G41=4500,G41=5400),0,IF(G41=0,0,'Empolyees Details'!AO38)) -> 0 | AM41: 0
B42: 17 | C42: ='Empolyees Details'!C39 -> 0 | D42: ='Empolyees Details'!D39 -> 0 | E42: ='Empolyees Details'!F39 -> 0 | F42: ='Empolyees Details'!G39 -> 0 | G42: =ROUND('Empolyees Details'!O39*Code!P80/Code!O80,0) -> 0 | H42: =IF(OR(G42=3600,G42=4400,G42=4500,G42=5400,G42=0),0,ROUND('Empolyees Details'!P39*Code!AA80,0)) -> 0 | J42: =IF(G42=0,0,ROUND('Empolyees Details'!R39*Code!AA80,0)) -> 0 | L42: =IF(OR(G42=3600,G42=4400,G42=4500,G42=5400,G42=0),0,ROUND('Empolyees Details'!Q39*Code!AA80,0)) -> 0 | N42: =IF(OR(G42=3600,G42=4400,G42=4500,G42=5400),0,'Empolyees Details'!S39) -> 0 | P42: =IF(G42<5500,0,ROUND('Empolyees Details'!O39*Code!AA80*Code!$H$13,0)) -> 0 | Q42: =IF(G42<5500,0,ROUND('Empolyees Details'!O39*Code!AA80*Code!$H$14,0)) -> 0 | S42: 0 | T42: =IF(OR(G42=3600,G42=4400,G42=4500,G42=5400),0,IF(G42=0,0,'Empolyees Details'!W39)) -> 0 | U42: =IF(OR(G42=3600,G42=4400,G42=4500,G42=5400),0,IF(G42=0,0,'Empolyees Details'!X39)) -> 0 | V42: =IF(OR(G42=3600,G42=4400,G42=4500,G42=5400),0,IF(G42=0,0,'Empolyees Details'!AA39)) -> 0 | W42: 0 | X42: =IF(OR(G42=3600,G42=4400,G42=4500,G42=5400),0,IF(G42=0,0,'Empolyees Details'!Y39)) -> 0 | Y42: =IF(OR(G42=3600,G42=4400,G42=4500,G42=5400),0,IF(G42=0,0,'Empolyees Details'!AB39)) -> 0 | Z42: =IF(OR(G42=3600,G42=4400,G42=4500,G42=5400),0,IF(G42=0,0,'Empolyees Details'!AC39)) -> 0 | AA42: =IF(OR(G42=3600,G42=4400,G42=4500,G42=5400),0,IF(G42=0,0,'Empolyees Details'!AD39)) -> 0 | AB42: =IF(OR(G42=3600,G42=4400,G42=4500,G42=5400),0,IF(G42=0,0,'Empolyees Details'!AF39)) -> 0 | AC42: =IF(OR(G42=3600,G42=4400,G42=4500,G42=5400),0,IF(G42=0,0,'Empolyees Details'!AH39)) -> 0 | AD42: =IF(OR(G42=3600,G42=4400,G42=4500,G42=5400),0,IF(G42=0,0,CPS!L58)) -> 0 | AE42: =IF(OR(G42=3600,G42=4400,G42=4500,G42=5400),0,IF(G42=0,0,'Empolyees Details'!AK39)) -> 0 | AF42: =IF(OR(G42=3600,G42=4400,G42=4500,G42=5400),0,IF(G42=0,0,'Empolyees Details'!AL39)) -> 0 | AG42: 0 | AH42: 0 | AI42: =IF(OR(G42=3600,G42=4400,G42=4500,G42=5400),0,'Empolyees Details'!AM39) -> 0 | AJ42: =IF(G42=0,0,'Empolyees Details'!AP39) -> 0 | AK42: =IF(OR(G42=3600,G42=4400,G42=4500,G42=5400),0,IF(G42=0,0,'Empolyees Details'!AN39)) -> 0 | AL42: =IF(OR(G42=3600,G42=4400,G42=4500,G42=5400),0,IF(G42=0,0,'Empolyees Details'!AO39)) -> 0 | AM42: 0
B43: 17 | C43: ='Empolyees Details'!C40 -> 0 | D43: ='Empolyees Details'!D40 -> 0 | E43: ='Empolyees Details'!F40 -> 0 | F43: ='Empolyees Details'!G40 -> 0 | G43: =ROUND('Empolyees Details'!O40*Code!P81/Code!O81,0) -> 0 | H43: =IF(OR(G43=3600,G43=4400,G43=4500,G43=5400,G43=0),0,ROUND('Empolyees Details'!P40*Code!AA81,0)) -> 0 | J43: =IF(G43=0,0,ROUND('Empolyees Details'!R40*Code!AA81,0)) -> 0 | L43: =IF(OR(G43=3600,G43=4400,G43=4500,G43=5400,G43=0),0,ROUND('Empolyees Details'!Q40*Code!AA81,0)) -> 0 | N43: =IF(OR(G43=3600,G43=4400,G43=4500,G43=5400),0,'Empolyees Details'!S40) -> 0 | P43: =IF(G43<5500,0,ROUND('Empolyees Details'!O40*Code!AA81*Code!$H$13,0)) -> 0 | Q43: =IF(G43<5500,0,ROUND('Empolyees Details'!O40*Code!AA81*Code!$H$14,0)) -> 0 | S43: 0 | T43: =IF(OR(G43=3600,G43=4400,G43=4500,G43=5400),0,IF(G43=0,0,'Empolyees Details'!W40)) -> 0 | U43: =IF(OR(G43=3600,G43=4400,G43=4500,G43=5400),0,IF(G43=0,0,'Empolyees Details'!X40)) -> 0 | V43: =IF(OR(G43=3600,G43=4400,G43=4500,G43=5400),0,IF(G43=0,0,'Empolyees Details'!AA40)) -> 0 | W43: 0 | X43: =IF(OR(G43=3600,G43=4400,G43=4500,G43=5400),0,IF(G43=0,0,'Empolyees Details'!Y40)) -> 0 | Y43: =IF(OR(G43=3600,G43=4400,G43=4500,G43=5400),0,IF(G43=0,0,'Empolyees Details'!AB40)) -> 0 | Z43: =IF(OR(G43=3600,G43=4400,G43=4500,G43=5400),0,IF(G43=0,0,'Empolyees Details'!AC40)) -> 0 | AA43: =IF(OR(G43=3600,G43=4400,G43=4500,G43=5400),0,IF(G43=0,0,'Empolyees Details'!AD40)) -> 0 | AB43: =IF(OR(G43=3600,G43=4400,G43=4500,G43=5400),0,IF(G43=0,0,'Empolyees Details'!AF40)) -> 0 | AC43: =IF(OR(G43=3600,G43=4400,G43=4500,G43=5400),0,IF(G43=0,0,'Empolyees Details'!AH40)) -> 0 | AD43: =IF(OR(G43=3600,G43=4400,G43=4500,G43=5400),0,IF(G43=0,0,CPS!L59)) -> 0 | AE43: =IF(OR(G43=3600,G43=4400,G43=4500,G43=5400),0,IF(G43=0,0,'Empolyees Details'!AK40)) -> 0 | AF43: =IF(OR(G43=3600,G43=4400,G43=4500,G43=5400),0,IF(G43=0,0,'Empolyees Details'!AL40)) -> 0 | AG43: 0 | AH43: 0 | AI43: =IF(OR(G43=3600,G43=4400,G43=4500,G43=5400),0,'Empolyees Details'!AM40) -> 0 | AJ43: =IF(G43=0,0,'Empolyees Details'!AP40) -> 0 | AK43: =IF(OR(G43=3600,G43=4400,G43=4500,G43=5400),0,IF(G43=0,0,'Empolyees Details'!AN40)) -> 0 | AL43: =IF(OR(G43=3600,G43=4400,G43=4500,G43=5400),0,IF(G43=0,0,'Empolyees Details'!AO40)) -> 0 | AM43: 0
B44: 17 | C44: ='Empolyees Details'!C41 -> 0 | D44: ='Empolyees Details'!D41 -> 0 | E44: ='Empolyees Details'!F41 -> 0 | F44: ='Empolyees Details'!G41 -> 0 | G44: =ROUND('Empolyees Details'!O41*Code!P82/Code!O82,0) -> 0 | H44: =IF(OR(G44=3600,G44=4400,G44=4500,G44=5400,G44=0),0,ROUND('Empolyees Details'!P41*Code!AA82,0)) -> 0 | J44: =IF(G44=0,0,ROUND('Empolyees Details'!R41*Code!AA82,0)) -> 0 | L44: =IF(OR(G44=3600,G44=4400,G44=4500,G44=5400,G44=0),0,ROUND('Empolyees Details'!Q41*Code!AA82,0)) -> 0 | N44: =IF(OR(G44=3600,G44=4400,G44=4500,G44=5400),0,'Empolyees Details'!S41) -> 0 | P44: =IF(G44<5500,0,ROUND('Empolyees Details'!O41*Code!AA82*Code!$H$13,0)) -> 0 | Q44: =IF(G44<5500,0,ROUND('Empolyees Details'!O41*Code!AA82*Code!$H$14,0)) -> 0 | S44: 0 | T44: =IF(OR(G44=3600,G44=4400,G44=4500,G44=5400),0,IF(G44=0,0,'Empolyees Details'!W41)) -> 0 | U44: =IF(OR(G44=3600,G44=4400,G44=4500,G44=5400),0,IF(G44=0,0,'Empolyees Details'!X41)) -> 0 | V44: =IF(OR(G44=3600,G44=4400,G44=4500,G44=5400),0,IF(G44=0,0,'Empolyees Details'!AA41)) -> 0 | W44: 0 | X44: =IF(OR(G44=3600,G44=4400,G44=4500,G44=5400),0,IF(G44=0,0,'Empolyees Details'!Y41)) -> 0 | Y44: =IF(OR(G44=3600,G44=4400,G44=4500,G44=5400),0,IF(G44=0,0,'Empolyees Details'!AB41)) -> 0 | Z44: =IF(OR(G44=3600,G44=4400,G44=4500,G44=5400),0,IF(G44=0,0,'Empolyees Details'!AC41)) -> 0 | AA44: =IF(OR(G44=3600,G44=4400,G44=4500,G44=5400),0,IF(G44=0,0,'Empolyees Details'!AD41)) -> 0 | AB44: =IF(OR(G44=3600,G44=4400,G44=4500,G44=5400),0,IF(G44=0,0,'Empolyees Details'!AF41)) -> 0 | AC44: =IF(OR(G44=3600,G44=4400,G44=4500,G44=5400),0,IF(G44=0,0,'Empolyees Details'!AH41)) -> 0 | AD44: =IF(OR(G44=3600,G44=4400,G44=4500,G44=5400),0,IF(G44=0,0,CPS!L60)) -> 0 | AE44: =IF(OR(G44=3600,G44=4400,G44=4500,G44=5400),0,IF(G44=0,0,'Empolyees Details'!AK41)) -> 0 | AF44: =IF(OR(G44=3600,G44=4400,G44=4500,G44=5400),0,IF(G44=0,0,'Empolyees Details'!AL41)) -> 0 | AG44: 0 | AH44: 0 | AI44: =IF(OR(G44=3600,G44=4400,G44=4500,G44=5400),0,'Empolyees Details'!AM41) -> 0 | AJ44: =IF(G44=0,0,'Empolyees Details'!AP41) -> 0 | AK44: =IF(OR(G44=3600,G44=4400,G44=4500,G44=5400),0,IF(G44=0,0,'Empolyees Details'!AN41)) -> 0 | AL44: =IF(OR(G44=3600,G44=4400,G44=4500,G44=5400),0,IF(G44=0,0,'Empolyees Details'!AO41)) -> 0 | AM44: 0
B45: 17 | C45: ='Empolyees Details'!C42 -> 0 | D45: ='Empolyees Details'!D42 -> 0 | E45: ='Empolyees Details'!F42 -> 0 | F45: ='Empolyees Details'!G42 -> 0 | G45: =ROUND('Empolyees Details'!O42*Code!P83/Code!O83,0) -> 0 | H45: =IF(OR(G45=3600,G45=4400,G45=4500,G45=5400,G45=0),0,ROUND('Empolyees Details'!P42*Code!AA83,0)) -> 0 | J45: =IF(G45=0,0,ROUND('Empolyees Details'!R42*Code!AA83,0)) -> 0 | L45: =IF(OR(G45=3600,G45=4400,G45=4500,G45=5400,G45=0),0,ROUND('Empolyees Details'!Q42*Code!AA83,0)) -> 0 | N45: =IF(OR(G45=3600,G45=4400,G45=4500,G45=5400),0,'Empolyees Details'!S42) -> 0 | P45: =IF(G45<5500,0,ROUND('Empolyees Details'!O42*Code!AA83*Code!$H$13,0)) -> 0 | Q45: =IF(G45<5500,0,ROUND('Empolyees Details'!O42*Code!AA83*Code!$H$14,0)) -> 0 | S45: 0 | T45: =IF(OR(G45=3600,G45=4400,G45=4500,G45=5400),0,IF(G45=0,0,'Empolyees Details'!W42)) -> 0 | U45: =IF(OR(G45=3600,G45=4400,G45=4500,G45=5400),0,IF(G45=0,0,'Empolyees Details'!X42)) -> 0 | V45: =IF(OR(G45=3600,G45=4400,G45=4500,G45=5400),0,IF(G45=0,0,'Empolyees Details'!AA42)) -> 0 | W45: 0 | X45: =IF(OR(G45=3600,G45=4400,G45=4500,G45=5400),0,IF(G45=0,0,'Empolyees Details'!Y42)) -> 0 | Y45: =IF(OR(G45=3600,G45=4400,G45=4500,G45=5400),0,IF(G45=0,0,'Empolyees Details'!AB42)) -> 0 | Z45: =IF(OR(G45=3600,G45=4400,G45=4500,G45=5400),0,IF(G45=0,0,'Empolyees Details'!AC42)) -> 0 | AA45: =IF(OR(G45=3600,G45=4400,G45=4500,G45=5400),0,IF(G45=0,0,'Empolyees Details'!AD42)) -> 0 | AB45: =IF(OR(G45=3600,G45=4400,G45=4500,G45=5400),0,IF(G45=0,0,'Empolyees Details'!AF42)) -> 0 | AC45: =IF(OR(G45=3600,G45=4400,G45=4500,G45=5400),0,IF(G45=0,0,'Empolyees Details'!AH42)) -> 0 | AD45: =IF(OR(G45=3600,G45=4400,G45=4500,G45=5400),0,IF(G45=0,0,CPS!L61)) -> 0 | AE45: =IF(OR(G45=3600,G45=4400,G45=4500,G45=5400),0,IF(G45=0,0,'Empolyees Details'!AK42)) -> 0 | AF45: =IF(OR(G45=3600,G45=4400,G45=4500,G45=5400),0,IF(G45=0,0,'Empolyees Details'!AL42)) -> 0 | AG45: 0 | AH45: 0 | AI45: =IF(OR(G45=3600,G45=4400,G45=4500,G45=5400),0,'Empolyees Details'!AM42) -> 0 | AJ45: =IF(G45=0,0,'Empolyees Details'!AP42) -> 0 | AK45: =IF(OR(G45=3600,G45=4400,G45=4500,G45=5400),0,IF(G45=0,0,'Empolyees Details'!AN42)) -> 0 | AL45: =IF(OR(G45=3600,G45=4400,G45=4500,G45=5400),0,IF(G45=0,0,'Empolyees Details'!AO42)) -> 0 | AM45: 0
B46: 17 | C46: ='Empolyees Details'!C43 -> 0 | D46: ='Empolyees Details'!D43 -> 0 | E46: ='Empolyees Details'!F43 -> 0 | F46: ='Empolyees Details'!G43 -> 0 | G46: =ROUND('Empolyees Details'!O43*Code!P84/Code!O84,0) -> 0 | H46: =IF(OR(G46=3600,G46=4400,G46=4500,G46=5400,G46=0),0,ROUND('Empolyees Details'!P43*Code!AA84,0)) -> 0 | J46: =IF(G46=0,0,ROUND('Empolyees Details'!R43*Code!AA84,0)) -> 0 | L46: =IF(OR(G46=3600,G46=4400,G46=4500,G46=5400,G46=0),0,ROUND('Empolyees Details'!Q43*Code!AA84,0)) -> 0 | N46: =IF(OR(G46=3600,G46=4400,G46=4500,G46=5400),0,'Empolyees Details'!S43) -> 0 | P46: =IF(G46<5500,0,ROUND('Empolyees Details'!O43*Code!AA84*Code!$H$13,0)) -> 0 | Q46: =IF(G46<5500,0,ROUND('Empolyees Details'!O43*Code!AA84*Code!$H$14,0)) -> 0 | S46: 0 | T46: =IF(OR(G46=3600,G46=4400,G46=4500,G46=5400),0,IF(G46=0,0,'Empolyees Details'!W43)) -> 0 | U46: =IF(OR(G46=3600,G46=4400,G46=4500,G46=5400),0,IF(G46=0,0,'Empolyees Details'!X43)) -> 0 | V46: =IF(OR(G46=3600,G46=4400,G46=4500,G46=5400),0,IF(G46=0,0,'Empolyees Details'!AA43)) -> 0 | W46: 0 | X46: =IF(OR(G46=3600,G46=4400,G46=4500,G46=5400),0,IF(G46=0,0,'Empolyees Details'!Y43)) -> 0 | Y46: =IF(OR(G46=3600,G46=4400,G46=4500,G46=5400),0,IF(G46=0,0,'Empolyees Details'!AB43)) -> 0 | Z46: =IF(OR(G46=3600,G46=4400,G46=4500,G46=5400),0,IF(G46=0,0,'Empolyees Details'!AC43)) -> 0 | AA46: =IF(OR(G46=3600,G46=4400,G46=4500,G46=5400),0,IF(G46=0,0,'Empolyees Details'!AD43)) -> 0 | AB46: =IF(OR(G46=3600,G46=4400,G46=4500,G46=5400),0,IF(G46=0,0,'Empolyees Details'!AF43)) -> 0 | AC46: =IF(OR(G46=3600,G46=4400,G46=4500,G46=5400),0,IF(G46=0,0,'Empolyees Details'!AH43)) -> 0 | AD46: =IF(OR(G46=3600,G46=4400,G46=4500,G46=5400),0,IF(G46=0,0,CPS!L62)) -> 0 | AE46: =IF(OR(G46=3600,G46=4400,G46=4500,G46=5400),0,IF(G46=0,0,'Empolyees Details'!AK43)) -> 0 | AF46: =IF(OR(G46=3600,G46=4400,G46=4500,G46=5400),0,IF(G46=0,0,'Empolyees Details'!AL43)) -> 0 | AG46: 0 | AH46: 0 | AI46: =IF(OR(G46=3600,G46=4400,G46=4500,G46=5400),0,'Empolyees Details'!AM43) -> 0 | AJ46: =IF(G46=0,0,'Empolyees Details'!AP43) -> 0 | AK46: =IF(OR(G46=3600,G46=4400,G46=4500,G46=5400),0,IF(G46=0,0,'Empolyees Details'!AN43)) -> 0 | AL46: =IF(OR(G46=3600,G46=4400,G46=4500,G46=5400),0,IF(G46=0,0,'Empolyees Details'!AO43)) -> 0 | AM46: 0
B47: 17 | C47: ='Empolyees Details'!C44 -> 0 | D47: ='Empolyees Details'!D44 -> 0 | E47: ='Empolyees Details'!F44 -> 0 | F47: ='Empolyees Details'!G44 -> 0 | G47: =ROUND('Empolyees Details'!O44*Code!P85/Code!O85,0) -> 0 | H47: =IF(OR(G47=3600,G47=4400,G47=4500,G47=5400,G47=0),0,ROUND('Empolyees Details'!P44*Code!AA85,0)) -> 0 | J47: =IF(G47=0,0,ROUND('Empolyees Details'!R44*Code!AA85,0)) -> 0 | L47: =IF(OR(G47=3600,G47=4400,G47=4500,G47=5400,G47=0),0,ROUND('Empolyees Details'!Q44*Code!AA85,0)) -> 0 | N47: =IF(OR(G47=3600,G47=4400,G47=4500,G47=5400),0,'Empolyees Details'!S44) -> 0 | P47: =IF(G47<5500,0,ROUND('Empolyees Details'!O44*Code!AA85*Code!$H$13,0)) -> 0 | Q47: =IF(G47<5500,0,ROUND('Empolyees Details'!O44*Code!AA85*Code!$H$14,0)) -> 0 | S47: 0 | T47: =IF(OR(G47=3600,G47=4400,G47=4500,G47=5400),0,IF(G47=0,0,'Empolyees Details'!W44)) -> 0 | U47: =IF(OR(G47=3600,G47=4400,G47=4500,G47=5400),0,IF(G47=0,0,'Empolyees Details'!X44)) -> 0 | V47: =IF(OR(G47=3600,G47=4400,G47=4500,G47=5400),0,IF(G47=0,0,'Empolyees Details'!AA44)) -> 0 | W47: 0 | X47: =IF(OR(G47=3600,G47=4400,G47=4500,G47=5400),0,IF(G47=0,0,'Empolyees Details'!Y44)) -> 0 | Y47: =IF(OR(G47=3600,G47=4400,G47=4500,G47=5400),0,IF(G47=0,0,'Empolyees Details'!AB44)) -> 0 | Z47: =IF(OR(G47=3600,G47=4400,G47=4500,G47=5400),0,IF(G47=0,0,'Empolyees Details'!AC44)) -> 0 | AA47: =IF(OR(G47=3600,G47=4400,G47=4500,G47=5400),0,IF(G47=0,0,'Empolyees Details'!AD44)) -> 0 | AB47: =IF(OR(G47=3600,G47=4400,G47=4500,G47=5400),0,IF(G47=0,0,'Empolyees Details'!AF44)) -> 0 | AC47: =IF(OR(G47=3600,G47=4400,G47=4500,G47=5400),0,IF(G47=0,0,'Empolyees Details'!AH44)) -> 0 | AD47: =IF(OR(G47=3600,G47=4400,G47=4500,G47=5400),0,IF(G47=0,0,CPS!L63)) -> 0 | AE47: =IF(OR(G47=3600,G47=4400,G47=4500,G47=5400),0,IF(G47=0,0,'Empolyees Details'!AK44)) -> 0 | AF47: =IF(OR(G47=3600,G47=4400,G47=4500,G47=5400),0,IF(G47=0,0,'Empolyees Details'!AL44)) -> 0 | AG47: 0 | AH47: 0 | AI47: =IF(OR(G47=3600,G47=4400,G47=4500,G47=5400),0,'Empolyees Details'!AM44) -> 0 | AJ47: =IF(G47=0,0,'Empolyees Details'!AP44) -> 0 | AK47: =IF(OR(G47=3600,G47=4400,G47=4500,G47=5400),0,IF(G47=0,0,'Empolyees Details'!AN44)) -> 0 | AL47: =IF(OR(G47=3600,G47=4400,G47=4500,G47=5400),0,IF(G47=0,0,'Empolyees Details'!AO44)) -> 0 | AM47: 0
B48: 17 | C48: ='Empolyees Details'!C45 -> 0 | D48: ='Empolyees Details'!D45 -> 0 | E48: ='Empolyees Details'!F45 -> 0 | F48: ='Empolyees Details'!G45 -> 0 | G48: =ROUND('Empolyees Details'!O45*Code!P86/Code!O86,0) -> 0 | H48: =IF(OR(G48=3600,G48=4400,G48=4500,G48=5400,G48=0),0,ROUND('Empolyees Details'!P45*Code!AA86,0)) -> 0 | J48: =IF(G48=0,0,ROUND('Empolyees Details'!R45*Code!AA86,0)) -> 0 | L48: =IF(OR(G48=3600,G48=4400,G48=4500,G48=5400,G48=0),0,ROUND('Empolyees Details'!Q45*Code!AA86,0)) -> 0 | N48: =IF(OR(G48=3600,G48=4400,G48=4500,G48=5400),0,'Empolyees Details'!S45) -> 0 | P48: =IF(G48<5500,0,ROUND('Empolyees Details'!O45*Code!AA86*Code!$H$13,0)) -> 0 | Q48: =IF(G48<5500,0,ROUND('Empolyees Details'!O45*Code!AA86*Code!$H$14,0)) -> 0 | S48: 0 | T48: =IF(OR(G48=3600,G48=4400,G48=4500,G48=5400),0,IF(G48=0,0,'Empolyees Details'!W45)) -> 0 | U48: =IF(OR(G48=3600,G48=4400,G48=4500,G48=5400),0,IF(G48=0,0,'Empolyees Details'!X45)) -> 0 | V48: =IF(OR(G48=3600,G48=4400,G48=4500,G48=5400),0,IF(G48=0,0,'Empolyees Details'!AA45)) -> 0 | W48: 0 | X48: =IF(OR(G48=3600,G48=4400,G48=4500,G48=5400),0,IF(G48=0,0,'Empolyees Details'!Y45)) -> 0 | Y48: =IF(OR(G48=3600,G48=4400,G48=4500,G48=5400),0,IF(G48=0,0,'Empolyees Details'!AB45)) -> 0 | Z48: =IF(OR(G48=3600,G48=4400,G48=4500,G48=5400),0,IF(G48=0,0,'Empolyees Details'!AC45)) -> 0 | AA48: =IF(OR(G48=3600,G48=4400,G48=4500,G48=5400),0,IF(G48=0,0,'Empolyees Details'!AD45)) -> 0 | AB48: =IF(OR(G48=3600,G48=4400,G48=4500,G48=5400),0,IF(G48=0,0,'Empolyees Details'!AF45)) -> 0 | AC48: =IF(OR(G48=3600,G48=4400,G48=4500,G48=5400),0,IF(G48=0,0,'Empolyees Details'!AH45)) -> 0 | AD48: =IF(OR(G48=3600,G48=4400,G48=4500,G48=5400),0,IF(G48=0,0,CPS!L64)) -> 0 | AE48: =IF(OR(G48=3600,G48=4400,G48=4500,G48=5400),0,IF(G48=0,0,'Empolyees Details'!AK45)) -> 0 | AF48: =IF(OR(G48=3600,G48=4400,G48=4500,G48=5400),0,IF(G48=0,0,'Empolyees Details'!AL45)) -> 0 | AG48: 0 | AH48: 0 | AI48: =IF(OR(G48=3600,G48=4400,G48=4500,G48=5400),0,'Empolyees Details'!AM45) -> 0 | AJ48: =IF(G48=0,0,'Empolyees Details'!AP45) -> 0 | AK48: =IF(OR(G48=3600,G48=4400,G48=4500,G48=5400),0,IF(G48=0,0,'Empolyees Details'!AN45)) -> 0 | AL48: =IF(OR(G48=3600,G48=4400,G48=4500,G48=5400),0,IF(G48=0,0,'Empolyees Details'!AO45)) -> 0 | AM48: 0
B49: 17 | C49: ='Empolyees Details'!C46 -> 0 | D49: ='Empolyees Details'!D46 -> 0 | E49: ='Empolyees Details'!F46 -> 0 | F49: ='Empolyees Details'!G46 -> 0 | G49: =ROUND('Empolyees Details'!O46*Code!P87/Code!O87,0) -> 0 | H49: =IF(OR(G49=3600,G49=4400,G49=4500,G49=5400,G49=0),0,ROUND('Empolyees Details'!P46*Code!AA87,0)) -> 0 | J49: =IF(G49=0,0,ROUND('Empolyees Details'!R46*Code!AA87,0)) -> 0 | L49: =IF(OR(G49=3600,G49=4400,G49=4500,G49=5400,G49=0),0,ROUND('Empolyees Details'!Q46*Code!AA87,0)) -> 0 | N49: =IF(OR(G49=3600,G49=4400,G49=4500,G49=5400),0,'Empolyees Details'!S46) -> 0 | P49: =IF(G49<5500,0,ROUND('Empolyees Details'!O46*Code!AA87*Code!$H$13,0)) -> 0 | Q49: =IF(G49<5500,0,ROUND('Empolyees Details'!O46*Code!AA87*Code!$H$14,0)) -> 0 | S49: 0 | T49: =IF(OR(G49=3600,G49=4400,G49=4500,G49=5400),0,IF(G49=0,0,'Empolyees Details'!W46)) -> 0 | U49: =IF(OR(G49=3600,G49=4400,G49=4500,G49=5400),0,IF(G49=0,0,'Empolyees Details'!X46)) -> 0 | V49: =IF(OR(G49=3600,G49=4400,G49=4500,G49=5400),0,IF(G49=0,0,'Empolyees Details'!AA46)) -> 0 | W49: 0 | X49: =IF(OR(G49=3600,G49=4400,G49=4500,G49=5400),0,IF(G49=0,0,'Empolyees Details'!Y46)) -> 0 | Y49: =IF(OR(G49=3600,G49=4400,G49=4500,G49=5400),0,IF(G49=0,0,'Empolyees Details'!AB46)) -> 0 | Z49: =IF(OR(G49=3600,G49=4400,G49=4500,G49=5400),0,IF(G49=0,0,'Empolyees Details'!AC46)) -> 0 | AA49: =IF(OR(G49=3600,G49=4400,G49=4500,G49=5400),0,IF(G49=0,0,'Empolyees Details'!AD46)) -> 0 | AB49: =IF(OR(G49=3600,G49=4400,G49=4500,G49=5400),0,IF(G49=0,0,'Empolyees Details'!AF46)) -> 0 | AC49: =IF(OR(G49=3600,G49=4400,G49=4500,G49=5400),0,IF(G49=0,0,'Empolyees Details'!AH46)) -> 0 | AD49: =IF(OR(G49=3600,G49=4400,G49=4500,G49=5400),0,IF(G49=0,0,CPS!L65)) -> 0 | AE49: =IF(OR(G49=3600,G49=4400,G49=4500,G49=5400),0,IF(G49=0,0,'Empolyees Details'!AK46)) -> 0 | AF49: =IF(OR(G49=3600,G49=4400,G49=4500,G49=5400),0,IF(G49=0,0,'Empolyees Details'!AL46)) -> 0 | AG49: 0 | AH49: 0 | AI49: =IF(OR(G49=3600,G49=4400,G49=4500,G49=5400),0,'Empolyees Details'!AM46) -> 0 | AJ49: =IF(G49=0,0,'Empolyees Details'!AP46) -> 0 | AK49: =IF(OR(G49=3600,G49=4400,G49=4500,G49=5400),0,IF(G49=0,0,'Empolyees Details'!AN46)) -> 0 | AL49: =IF(OR(G49=3600,G49=4400,G49=4500,G49=5400),0,IF(G49=0,0,'Empolyees Details'!AO46)) -> 0 | AM49: 0
B50: 17 | C50: ='Empolyees Details'!C47 -> 0 | D50: ='Empolyees Details'!D47 -> 0 | E50: ='Empolyees Details'!F47 -> 0 | F50: ='Empolyees Details'!G47 -> 0 | G50: =ROUND('Empolyees Details'!O47*Code!P88/Code!O88,0) -> 0 | H50: =IF(OR(G50=3600,G50=4400,G50=4500,G50=5400,G50=0),0,ROUND('Empolyees Details'!P47*Code!AA88,0)) -> 0 | J50: =IF(G50=0,0,ROUND('Empolyees Details'!R47*Code!AA88,0)) -> 0 | L50: =IF(OR(G50=3600,G50=4400,G50=4500,G50=5400,G50=0),0,ROUND('Empolyees Details'!Q47*Code!AA88,0)) -> 0 | N50: =IF(OR(G50=3600,G50=4400,G50=4500,G50=5400),0,'Empolyees Details'!S47) -> 0 | P50: =IF(G50<5500,0,ROUND('Empolyees Details'!O47*Code!AA88*Code!$H$13,0)) -> 0 | Q50: =IF(G50<5500,0,ROUND('Empolyees Details'!O47*Code!AA88*Code!$H$14,0)) -> 0 | S50: 0 | T50: =IF(OR(G50=3600,G50=4400,G50=4500,G50=5400),0,IF(G50=0,0,'Empolyees Details'!W47)) -> 0 | U50: =IF(OR(G50=3600,G50=4400,G50=4500,G50=5400),0,IF(G50=0,0,'Empolyees Details'!X47)) -> 0 | V50: =IF(OR(G50=3600,G50=4400,G50=4500,G50=5400),0,IF(G50=0,0,'Empolyees Details'!AA47)) -> 0 | W50: 0 | X50: =IF(OR(G50=3600,G50=4400,G50=4500,G50=5400),0,IF(G50=0,0,'Empolyees Details'!Y47)) -> 0 | Y50: =IF(OR(G50=3600,G50=4400,G50=4500,G50=5400),0,IF(G50=0,0,'Empolyees Details'!AB47)) -> 0 | Z50: =IF(OR(G50=3600,G50=4400,G50=4500,G50=5400),0,IF(G50=0,0,'Empolyees Details'!AC47)) -> 0 | AA50: =IF(OR(G50=3600,G50=4400,G50=4500,G50=5400),0,IF(G50=0,0,'Empolyees Details'!AD47)) -> 0 | AB50: =IF(OR(G50=3600,G50=4400,G50=4500,G50=5400),0,IF(G50=0,0,'Empolyees Details'!AF47)) -> 0 | AC50: =IF(OR(G50=3600,G50=4400,G50=4500,G50=5400),0,IF(G50=0,0,'Empolyees Details'!AH47)) -> 0 | AD50: =IF(OR(G50=3600,G50=4400,G50=4500,G50=5400),0,IF(G50=0,0,CPS!L66)) -> 0 | AE50: =IF(OR(G50=3600,G50=4400,G50=4500,G50=5400),0,IF(G50=0,0,'Empolyees Details'!AK47)) -> 0 | AF50: =IF(OR(G50=3600,G50=4400,G50=4500,G50=5400),0,IF(G50=0,0,'Empolyees Details'!AL47)) -> 0 | AG50: 0 | AH50: 0 | AI50: =IF(OR(G50=3600,G50=4400,G50=4500,G50=5400),0,'Empolyees Details'!AM47) -> 0 | AJ50: =IF(G50=0,0,'Empolyees Details'!AP47) -> 0 | AK50: =IF(OR(G50=3600,G50=4400,G50=4500,G50=5400),0,IF(G50=0,0,'Empolyees Details'!AN47)) -> 0 | AL50: =IF(OR(G50=3600,G50=4400,G50=4500,G50=5400),0,IF(G50=0,0,'Empolyees Details'!AO47)) -> 0 | AM50: 0
B51: 17 | C51: ='Empolyees Details'!C48 -> 0 | D51: ='Empolyees Details'!D48 -> 0 | E51: ='Empolyees Details'!F48 -> 0 | F51: ='Empolyees Details'!G48 -> 0 | G51: =ROUND('Empolyees Details'!O48*Code!P89/Code!O89,0) -> 0 | H51: =IF(OR(G51=3600,G51=4400,G51=4500,G51=5400,G51=0),0,ROUND('Empolyees Details'!P48*Code!AA89,0)) -> 0 | J51: =IF(G51=0,0,ROUND('Empolyees Details'!R48*Code!AA89,0)) -> 0 | L51: =IF(OR(G51=3600,G51=4400,G51=4500,G51=5400,G51=0),0,ROUND('Empolyees Details'!Q48*Code!AA89,0)) -> 0 | N51: =IF(OR(G51=3600,G51=4400,G51=4500,G51=5400),0,'Empolyees Details'!S48) -> 0 | P51: =IF(G51<5500,0,ROUND('Empolyees Details'!O48*Code!AA89*Code!$H$13,0)) -> 0 | Q51: =IF(G51<5500,0,ROUND('Empolyees Details'!O48*Code!AA89*Code!$H$14,0)) -> 0 | S51: 0 | T51: =IF(OR(G51=3600,G51=4400,G51=4500,G51=5400),0,IF(G51=0,0,'Empolyees Details'!W48)) -> 0 | U51: =IF(OR(G51=3600,G51=4400,G51=4500,G51=5400),0,IF(G51=0,0,'Empolyees Details'!X48)) -> 0 | V51: =IF(OR(G51=3600,G51=4400,G51=4500,G51=5400),0,IF(G51=0,0,'Empolyees Details'!AA48)) -> 0 | W51: 0 | X51: =IF(OR(G51=3600,G51=4400,G51=4500,G51=5400),0,IF(G51=0,0,'Empolyees Details'!Y48)) -> 0 | Y51: =IF(OR(G51=3600,G51=4400,G51=4500,G51=5400),0,IF(G51=0,0,'Empolyees Details'!AB48)) -> 0 | Z51: =IF(OR(G51=3600,G51=4400,G51=4500,G51=5400),0,IF(G51=0,0,'Empolyees Details'!AC48)) -> 0 | AA51: =IF(OR(G51=3600,G51=4400,G51=4500,G51=5400),0,IF(G51=0,0,'Empolyees Details'!AD48)) -> 0 | AB51: =IF(OR(G51=3600,G51=4400,G51=4500,G51=5400),0,IF(G51=0,0,'Empolyees Details'!AF48)) -> 0 | AC51: =IF(OR(G51=3600,G51=4400,G51=4500,G51=5400),0,IF(G51=0,0,'Empolyees Details'!AH48)) -> 0 | AD51: =IF(OR(G51=3600,G51=4400,G51=4500,G51=5400),0,IF(G51=0,0,CPS!L67)) -> 0 | AE51: =IF(OR(G51=3600,G51=4400,G51=4500,G51=5400),0,IF(G51=0,0,'Empolyees Details'!AK48)) -> 0 | AF51: =IF(OR(G51=3600,G51=4400,G51=4500,G51=5400),0,IF(G51=0,0,'Empolyees Details'!AL48)) -> 0 | AG51: 0 | AH51: 0 | AI51: =IF(OR(G51=3600,G51=4400,G51=4500,G51=5400),0,'Empolyees Details'!AM48) -> 0 | AJ51: =IF(G51=0,0,'Empolyees Details'!AP48) -> 0 | AK51: =IF(OR(G51=3600,G51=4400,G51=4500,G51=5400),0,IF(G51=0,0,'Empolyees Details'!AN48)) -> 0 | AL51: =IF(OR(G51=3600,G51=4400,G51=4500,G51=5400),0,IF(G51=0,0,'Empolyees Details'!AO48)) -> 0 | AM51: 0
B52: 17 | C52: ='Empolyees Details'!C49 -> 0 | D52: ='Empolyees Details'!D49 -> 0 | E52: ='Empolyees Details'!F49 -> 0 | F52: ='Empolyees Details'!G49 -> 0 | G52: =ROUND('Empolyees Details'!O49*Code!P90/Code!O90,0) -> 0 | H52: =IF(OR(G52=3600,G52=4400,G52=4500,G52=5400,G52=0),0,ROUND('Empolyees Details'!P49*Code!AA90,0)) -> 0 | J52: =IF(G52=0,0,ROUND('Empolyees Details'!R49*Code!AA90,0)) -> 0 | L52: =IF(OR(G52=3600,G52=4400,G52=4500,G52=5400,G52=0),0,ROUND('Empolyees Details'!Q49*Code!AA90,0)) -> 0 | N52: =IF(OR(G52=3600,G52=4400,G52=4500,G52=5400),0,'Empolyees Details'!S49) -> 0 | P52: =IF(G52<5500,0,ROUND('Empolyees Details'!O49*Code!AA90*Code!$H$13,0)) -> 0 | Q52: =IF(G52<5500,0,ROUND('Empolyees Details'!O49*Code!AA90*Code!$H$14,0)) -> 0 | S52: 0 | T52: =IF(OR(G52=3600,G52=4400,G52=4500,G52=5400),0,IF(G52=0,0,'Empolyees Details'!W49)) -> 0 | U52: =IF(OR(G52=3600,G52=4400,G52=4500,G52=5400),0,IF(G52=0,0,'Empolyees Details'!X49)) -> 0 | V52: =IF(OR(G52=3600,G52=4400,G52=4500,G52=5400),0,IF(G52=0,0,'Empolyees Details'!AA49)) -> 0 | W52: 0 | X52: =IF(OR(G52=3600,G52=4400,G52=4500,G52=5400),0,IF(G52=0,0,'Empolyees Details'!Y49)) -> 0 | Y52: =IF(OR(G52=3600,G52=4400,G52=4500,G52=5400),0,IF(G52=0,0,'Empolyees Details'!AB49)) -> 0 | Z52: =IF(OR(G52=3600,G52=4400,G52=4500,G52=5400),0,IF(G52=0,0,'Empolyees Details'!AC49)) -> 0 | AA52: =IF(OR(G52=3600,G52=4400,G52=4500,G52=5400),0,IF(G52=0,0,'Empolyees Details'!AD49)) -> 0 | AB52: =IF(OR(G52=3600,G52=4400,G52=4500,G52=5400),0,IF(G52=0,0,'Empolyees Details'!AF49)) -> 0 | AC52: =IF(OR(G52=3600,G52=4400,G52=4500,G52=5400),0,IF(G52=0,0,'Empolyees Details'!AH49)) -> 0 | AD52: =IF(OR(G52=3600,G52=4400,G52=4500,G52=5400),0,IF(G52=0,0,CPS!L68)) -> 0 | AE52: =IF(OR(G52=3600,G52=4400,G52=4500,G52=5400),0,IF(G52=0,0,'Empolyees Details'!AK49)) -> 0 | AF52: =IF(OR(G52=3600,G52=4400,G52=4500,G52=5400),0,IF(G52=0,0,'Empolyees Details'!AL49)) -> 0 | AG52: 0 | AH52: 0 | AI52: =IF(OR(G52=3600,G52=4400,G52=4500,G52=5400),0,'Empolyees Details'!AM49) -> 0 | AJ52: =IF(G52=0,0,'Empolyees Details'!AP49) -> 0 | AK52: =IF(OR(G52=3600,G52=4400,G52=4500,G52=5400),0,IF(G52=0,0,'Empolyees Details'!AN49)) -> 0 | AL52: =IF(OR(G52=3600,G52=4400,G52=4500,G52=5400),0,IF(G52=0,0,'Empolyees Details'!AO49)) -> 0 | AM52: 0
B53: 17 | C53: ='Empolyees Details'!C50 -> 0 | D53: ='Empolyees Details'!D50 -> 0 | E53: ='Empolyees Details'!F50 -> 0 | F53: ='Empolyees Details'!G50 -> 0 | G53: =ROUND('Empolyees Details'!O50*Code!P91/Code!O91,0) -> 0 | H53: =IF(OR(G53=3600,G53=4400,G53=4500,G53=5400,G53=0),0,ROUND('Empolyees Details'!P50*Code!AA91,0)) -> 0 | J53: =IF(G53=0,0,ROUND('Empolyees Details'!R50*Code!AA91,0)) -> 0 | L53: =IF(OR(G53=3600,G53=4400,G53=4500,G53=5400,G53=0),0,ROUND('Empolyees Details'!Q50*Code!AA91,0)) -> 0 | N53: =IF(OR(G53=3600,G53=4400,G53=4500,G53=5400),0,'Empolyees Details'!S50) -> 0 | P53: =IF(G53<5500,0,ROUND('Empolyees Details'!O50*Code!AA91*Code!$H$13,0)) -> 0 | Q53: =IF(G53<5500,0,ROUND('Empolyees Details'!O50*Code!AA91*Code!$H$14,0)) -> 0 | S53: 0 | T53: =IF(OR(G53=3600,G53=4400,G53=4500,G53=5400),0,IF(G53=0,0,'Empolyees Details'!W50)) -> 0 | U53: =IF(OR(G53=3600,G53=4400,G53=4500,G53=5400),0,IF(G53=0,0,'Empolyees Details'!X50)) -> 0 | V53: =IF(OR(G53=3600,G53=4400,G53=4500,G53=5400),0,IF(G53=0,0,'Empolyees Details'!AA50)) -> 0 | W53: 0 | X53: =IF(OR(G53=3600,G53=4400,G53=4500,G53=5400),0,IF(G53=0,0,'Empolyees Details'!Y50)) -> 0 | Y53: =IF(OR(G53=3600,G53=4400,G53=4500,G53=5400),0,IF(G53=0,0,'Empolyees Details'!AB50)) -> 0 | Z53: =IF(OR(G53=3600,G53=4400,G53=4500,G53=5400),0,IF(G53=0,0,'Empolyees Details'!AC50)) -> 0 | AA53: =IF(OR(G53=3600,G53=4400,G53=4500,G53=5400),0,IF(G53=0,0,'Empolyees Details'!AD50)) -> 0 | AB53: =IF(OR(G53=3600,G53=4400,G53=4500,G53=5400),0,IF(G53=0,0,'Empolyees Details'!AF50)) -> 0 | AC53: =IF(OR(G53=3600,G53=4400,G53=4500,G53=5400),0,IF(G53=0,0,'Empolyees Details'!AH50)) -> 0 | AD53: =IF(OR(G53=3600,G53=4400,G53=4500,G53=5400),0,IF(G53=0,0,CPS!L69)) -> 0 | AE53: =IF(OR(G53=3600,G53=4400,G53=4500,G53=5400),0,IF(G53=0,0,'Empolyees Details'!AK50)) -> 0 | AF53: =IF(OR(G53=3600,G53=4400,G53=4500,G53=5400),0,IF(G53=0,0,'Empolyees Details'!AL50)) -> 0 | AG53: 0 | AH53: 0 | AI53: =IF(OR(G53=3600,G53=4400,G53=4500,G53=5400),0,'Empolyees Details'!AM50) -> 0 | AJ53: =IF(G53=0,0,'Empolyees Details'!AP50) -> 0 | AK53: =IF(OR(G53=3600,G53=4400,G53=4500,G53=5400),0,IF(G53=0,0,'Empolyees Details'!AN50)) -> 0 | AL53: =IF(OR(G53=3600,G53=4400,G53=4500,G53=5400),0,IF(G53=0,0,'Empolyees Details'!AO50)) -> 0 | AM53: 0
B54: 17 | C54: ='Empolyees Details'!C51 -> 0 | D54: ='Empolyees Details'!D51 -> 0 | E54: ='Empolyees Details'!F51 -> 0 | F54: ='Empolyees Details'!G51 -> 0 | G54: =ROUND('Empolyees Details'!O51*Code!P92/Code!O92,0) -> 0 | H54: =IF(OR(G54=3600,G54=4400,G54=4500,G54=5400,G54=0),0,ROUND('Empolyees Details'!P51*Code!AA92,0)) -> 0 | J54: =IF(G54=0,0,ROUND('Empolyees Details'!R51*Code!AA92,0)) -> 0 | L54: =IF(OR(G54=3600,G54=4400,G54=4500,G54=5400,G54=0),0,ROUND('Empolyees Details'!Q51*Code!AA92,0)) -> 0 | N54: =IF(OR(G54=3600,G54=4400,G54=4500,G54=5400),0,'Empolyees Details'!S51) -> 0 | P54: =IF(G54<5500,0,ROUND('Empolyees Details'!O51*Code!AA92*Code!$H$13,0)) -> 0 | Q54: =IF(G54<5500,0,ROUND('Empolyees Details'!O51*Code!AA92*Code!$H$14,0)) -> 0 | S54: 0 | T54: =IF(OR(G54=3600,G54=4400,G54=4500,G54=5400),0,IF(G54=0,0,'Empolyees Details'!W51)) -> 0 | U54: =IF(OR(G54=3600,G54=4400,G54=4500,G54=5400),0,IF(G54=0,0,'Empolyees Details'!X51)) -> 0 | V54: =IF(OR(G54=3600,G54=4400,G54=4500,G54=5400),0,IF(G54=0,0,'Empolyees Details'!AA51)) -> 0 | W54: 0 | X54: =IF(OR(G54=3600,G54=4400,G54=4500,G54=5400),0,IF(G54=0,0,'Empolyees Details'!Y51)) -> 0 | Y54: =IF(OR(G54=3600,G54=4400,G54=4500,G54=5400),0,IF(G54=0,0,'Empolyees Details'!AB51)) -> 0 | Z54: =IF(OR(G54=3600,G54=4400,G54=4500,G54=5400),0,IF(G54=0,0,'Empolyees Details'!AC51)) -> 0 | AA54: =IF(OR(G54=3600,G54=4400,G54=4500,G54=5400),0,IF(G54=0,0,'Empolyees Details'!AD51)) -> 0 | AB54: =IF(OR(G54=3600,G54=4400,G54=4500,G54=5400),0,IF(G54=0,0,'Empolyees Details'!AF51)) -> 0 | AC54: =IF(OR(G54=3600,G54=4400,G54=4500,G54=5400),0,IF(G54=0,0,'Empolyees Details'!AH51)) -> 0 | AD54: =IF(OR(G54=3600,G54=4400,G54=4500,G54=5400),0,IF(G54=0,0,CPS!L70)) -> 0 | AE54: =IF(OR(G54=3600,G54=4400,G54=4500,G54=5400),0,IF(G54=0,0,'Empolyees Details'!AK51)) -> 0 | AF54: =IF(OR(G54=3600,G54=4400,G54=4500,G54=5400),0,IF(G54=0,0,'Empolyees Details'!AL51)) -> 0 | AG54: 0 | AH54: 0 | AI54: =IF(OR(G54=3600,G54=4400,G54=4500,G54=5400),0,'Empolyees Details'!AM51) -> 0 | AJ54: =IF(G54=0,0,'Empolyees Details'!AP51) -> 0 | AK54: =IF(OR(G54=3600,G54=4400,G54=4500,G54=5400),0,IF(G54=0,0,'Empolyees Details'!AN51)) -> 0 | AL54: =IF(OR(G54=3600,G54=4400,G54=4500,G54=5400),0,IF(G54=0,0,'Empolyees Details'!AO51)) -> 0 | AM54: 0
B55: 17 | C55: ='Empolyees Details'!C52 -> 0 | D55: ='Empolyees Details'!D52 -> 0 | E55: ='Empolyees Details'!F52 -> 0 | F55: ='Empolyees Details'!G52 -> 0 | G55: =ROUND('Empolyees Details'!O52*Code!P93/Code!O93,0) -> 0 | H55: =IF(OR(G55=3600,G55=4400,G55=4500,G55=5400,G55=0),0,ROUND('Empolyees Details'!P52*Code!AA93,0)) -> 0 | J55: =IF(G55=0,0,ROUND('Empolyees Details'!R52*Code!AA93,0)) -> 0 | L55: =IF(OR(G55=3600,G55=4400,G55=4500,G55=5400,G55=0),0,ROUND('Empolyees Details'!Q52*Code!AA93,0)) -> 0 | N55: =IF(OR(G55=3600,G55=4400,G55=4500,G55=5400),0,'Empolyees Details'!S52) -> 0 | P55: =IF(G55<5500,0,ROUND('Empolyees Details'!O52*Code!AA93*Code!$H$13,0)) -> 0 | Q55: =IF(G55<5500,0,ROUND('Empolyees Details'!O52*Code!AA93*Code!$H$14,0)) -> 0 | S55: 0 | T55: =IF(OR(G55=3600,G55=4400,G55=4500,G55=5400),0,IF(G55=0,0,'Empolyees Details'!W52)) -> 0 | U55: =IF(OR(G55=3600,G55=4400,G55=4500,G55=5400),0,IF(G55=0,0,'Empolyees Details'!X52)) -> 0 | V55: =IF(OR(G55=3600,G55=4400,G55=4500,G55=5400),0,IF(G55=0,0,'Empolyees Details'!AA52)) -> 0 | W55: 0 | X55: =IF(OR(G55=3600,G55=4400,G55=4500,G55=5400),0,IF(G55=0,0,'Empolyees Details'!Y52)) -> 0 | Y55: =IF(OR(G55=3600,G55=4400,G55=4500,G55=5400),0,IF(G55=0,0,'Empolyees Details'!AB52)) -> 0 | Z55: =IF(OR(G55=3600,G55=4400,G55=4500,G55=5400),0,IF(G55=0,0,'Empolyees Details'!AC52)) -> 0 | AA55: =IF(OR(G55=3600,G55=4400,G55=4500,G55=5400),0,IF(G55=0,0,'Empolyees Details'!AD52)) -> 0 | AB55: =IF(OR(G55=3600,G55=4400,G55=4500,G55=5400),0,IF(G55=0,0,'Empolyees Details'!AF52)) -> 0 | AC55: =IF(OR(G55=3600,G55=4400,G55=4500,G55=5400),0,IF(G55=0,0,'Empolyees Details'!AH52)) -> 0 | AD55: =IF(OR(G55=3600,G55=4400,G55=4500,G55=5400),0,IF(G55=0,0,CPS!L71)) -> 0 | AE55: =IF(OR(G55=3600,G55=4400,G55=4500,G55=5400),0,IF(G55=0,0,'Empolyees Details'!AK52)) -> 0 | AF55: =IF(OR(G55=3600,G55=4400,G55=4500,G55=5400),0,IF(G55=0,0,'Empolyees Details'!AL52)) -> 0 | AG55: 0 | AH55: 0 | AI55: =IF(OR(G55=3600,G55=4400,G55=4500,G55=5400),0,'Empolyees Details'!AM52) -> 0 | AJ55: =IF(G55=0,0,'Empolyees Details'!AP52) -> 0 | AK55: =IF(OR(G55=3600,G55=4400,G55=4500,G55=5400),0,IF(G55=0,0,'Empolyees Details'!AN52)) -> 0 | AL55: =IF(OR(G55=3600,G55=4400,G55=4500,G55=5400),0,IF(G55=0,0,'Empolyees Details'!AO52)) -> 0 | AM55: 0
B56: 17 | C56: ='Empolyees Details'!C53 -> 0 | D56: ='Empolyees Details'!D53 -> 0 | E56: ='Empolyees Details'!F53 -> 0 | F56: ='Empolyees Details'!G53 -> 0 | G56: =ROUND('Empolyees Details'!O53*Code!P94/Code!O94,0) -> 0 | H56: =IF(OR(G56=3600,G56=4400,G56=4500,G56=5400,G56=0),0,ROUND('Empolyees Details'!P53*Code!AA94,0)) -> 0 | J56: =IF(G56=0,0,ROUND('Empolyees Details'!R53*Code!AA94,0)) -> 0 | L56: =IF(OR(G56=3600,G56=4400,G56=4500,G56=5400,G56=0),0,ROUND('Empolyees Details'!Q53*Code!AA94,0)) -> 0 | N56: =IF(OR(G56=3600,G56=4400,G56=4500,G56=5400),0,'Empolyees Details'!S53) -> 0 | P56: =IF(G56<5500,0,ROUND('Empolyees Details'!O53*Code!AA94*Code!$H$13,0)) -> 0 | Q56: =IF(G56<5500,0,ROUND('Empolyees Details'!O53*Code!AA94*Code!$H$14,0)) -> 0 | S56: 0 | T56: =IF(OR(G56=3600,G56=4400,G56=4500,G56=5400),0,IF(G56=0,0,'Empolyees Details'!W53)) -> 0 | U56: =IF(OR(G56=3600,G56=4400,G56=4500,G56=5400),0,IF(G56=0,0,'Empolyees Details'!X53)) -> 0 | V56: =IF(OR(G56=3600,G56=4400,G56=4500,G56=5400),0,IF(G56=0,0,'Empolyees Details'!AA53)) -> 0 | W56: 0 | X56: =IF(OR(G56=3600,G56=4400,G56=4500,G56=5400),0,IF(G56=0,0,'Empolyees Details'!Y53)) -> 0 | Y56: =IF(OR(G56=3600,G56=4400,G56=4500,G56=5400),0,IF(G56=0,0,'Empolyees Details'!AB53)) -> 0 | Z56: =IF(OR(G56=3600,G56=4400,G56=4500,G56=5400),0,IF(G56=0,0,'Empolyees Details'!AC53)) -> 0 | AA56: =IF(OR(G56=3600,G56=4400,G56=4500,G56=5400),0,IF(G56=0,0,'Empolyees Details'!AD53)) -> 0 | AB56: =IF(OR(G56=3600,G56=4400,G56=4500,G56=5400),0,IF(G56=0,0,'Empolyees Details'!AF53)) -> 0 | AC56: =IF(OR(G56=3600,G56=4400,G56=4500,G56=5400),0,IF(G56=0,0,'Empolyees Details'!AH53)) -> 0 | AD56: =IF(OR(G56=3600,G56=4400,G56=4500,G56=5400),0,IF(G56=0,0,CPS!L72)) -> 0 | AE56: =IF(OR(G56=3600,G56=4400,G56=4500,G56=5400),0,IF(G56=0,0,'Empolyees Details'!AK53)) -> 0 | AF56: =IF(OR(G56=3600,G56=4400,G56=4500,G56=5400),0,IF(G56=0,0,'Empolyees Details'!AL53)) -> 0 | AG56: 0 | AH56: 0 | AI56: =IF(OR(G56=3600,G56=4400,G56=4500,G56=5400),0,'Empolyees Details'!AM53) -> 0 | AJ56: =IF(G56=0,0,'Empolyees Details'!AP53) -> 0 | AK56: =IF(OR(G56=3600,G56=4400,G56=4500,G56=5400),0,IF(G56=0,0,'Empolyees Details'!AN53)) -> 0 | AL56: =IF(OR(G56=3600,G56=4400,G56=4500,G56=5400),0,IF(G56=0,0,'Empolyees Details'!AO53)) -> 0 | AM56: 0
B57: 17 | C57: ='Empolyees Details'!C54 -> 0 | D57: ='Empolyees Details'!D54 -> 0 | E57: ='Empolyees Details'!F54 -> 0 | F57: ='Empolyees Details'!G54 -> 0 | G57: =ROUND('Empolyees Details'!O54*Code!P95/Code!O95,0) -> 0 | H57: =IF(OR(G57=3600,G57=4400,G57=4500,G57=5400,G57=0),0,ROUND('Empolyees Details'!P54*Code!AA95,0)) -> 0 | J57: =IF(G57=0,0,ROUND('Empolyees Details'!R54*Code!AA95,0)) -> 0 | L57: =IF(OR(G57=3600,G57=4400,G57=4500,G57=5400,G57=0),0,ROUND('Empolyees Details'!Q54*Code!AA95,0)) -> 0 | N57: =IF(OR(G57=3600,G57=4400,G57=4500,G57=5400),0,'Empolyees Details'!S54) -> 0 | P57: =IF(G57<5500,0,ROUND('Empolyees Details'!O54*Code!AA95*Code!$H$13,0)) -> 0 | Q57: =IF(G57<5500,0,ROUND('Empolyees Details'!O54*Code!AA95*Code!$H$14,0)) -> 0 | S57: 0 | T57: =IF(OR(G57=3600,G57=4400,G57=4500,G57=5400),0,IF(G57=0,0,'Empolyees Details'!W54)) -> 0 | U57: =IF(OR(G57=3600,G57=4400,G57=4500,G57=5400),0,IF(G57=0,0,'Empolyees Details'!X54)) -> 0 | V57: =IF(OR(G57=3600,G57=4400,G57=4500,G57=5400),0,IF(G57=0,0,'Empolyees Details'!AA54)) -> 0 | W57: 0 | X57: =IF(OR(G57=3600,G57=4400,G57=4500,G57=5400),0,IF(G57=0,0,'Empolyees Details'!Y54)) -> 0 | Y57: =IF(OR(G57=3600,G57=4400,G57=4500,G57=5400),0,IF(G57=0,0,'Empolyees Details'!AB54)) -> 0 | Z57: =IF(OR(G57=3600,G57=4400,G57=4500,G57=5400),0,IF(G57=0,0,'Empolyees Details'!AC54)) -> 0 | AA57: =IF(OR(G57=3600,G57=4400,G57=4500,G57=5400),0,IF(G57=0,0,'Empolyees Details'!AD54)) -> 0 | AB57: =IF(OR(G57=3600,G57=4400,G57=4500,G57=5400),0,IF(G57=0,0,'Empolyees Details'!AF54)) -> 0 | AC57: =IF(OR(G57=3600,G57=4400,G57=4500,G57=5400),0,IF(G57=0,0,'Empolyees Details'!AH54)) -> 0 | AD57: =IF(OR(G57=3600,G57=4400,G57=4500,G57=5400),0,IF(G57=0,0,CPS!L73)) -> 0 | AE57: =IF(OR(G57=3600,G57=4400,G57=4500,G57=5400),0,IF(G57=0,0,'Empolyees Details'!AK54)) -> 0 | AF57: =IF(OR(G57=3600,G57=4400,G57=4500,G57=5400),0,IF(G57=0,0,'Empolyees Details'!AL54)) -> 0 | AG57: 0 | AH57: 0 | AI57: =IF(OR(G57=3600,G57=4400,G57=4500,G57=5400),0,'Empolyees Details'!AM54) -> 0 | AJ57: =IF(G57=0,0,'Empolyees Details'!AP54) -> 0 | AK57: =IF(OR(G57=3600,G57=4400,G57=4500,G57=5400),0,IF(G57=0,0,'Empolyees Details'!AN54)) -> 0 | AL57: =IF(OR(G57=3600,G57=4400,G57=4500,G57=5400),0,IF(G57=0,0,'Empolyees Details'!AO54)) -> 0 | AM57: 0
B58: 17 | C58: ='Empolyees Details'!C55 -> 0 | D58: ='Empolyees Details'!D55 -> 0 | E58: ='Empolyees Details'!F55 -> 0 | F58: ='Empolyees Details'!G55 -> 0 | G58: =ROUND('Empolyees Details'!O55*Code!P96/Code!O96,0) -> 0 | H58: =IF(OR(G58=3600,G58=4400,G58=4500,G58=5400,G58=0),0,ROUND('Empolyees Details'!P55*Code!AA96,0)) -> 0 | J58: =IF(G58=0,0,ROUND('Empolyees Details'!R55*Code!AA96,0)) -> 0 | L58: =IF(OR(G58=3600,G58=4400,G58=4500,G58=5400,G58=0),0,ROUND('Empolyees Details'!Q55*Code!AA96,0)) -> 0 | N58: =IF(OR(G58=3600,G58=4400,G58=4500,G58=5400),0,'Empolyees Details'!S55) -> 0 | P58: =IF(G58<5500,0,ROUND('Empolyees Details'!O55*Code!AA96*Code!$H$13,0)) -> 0 | Q58: =IF(G58<5500,0,ROUND('Empolyees Details'!O55*Code!AA96*Code!$H$14,0)) -> 0 | S58: 0 | T58: =IF(OR(G58=3600,G58=4400,G58=4500,G58=5400),0,IF(G58=0,0,'Empolyees Details'!W55)) -> 0 | U58: =IF(OR(G58=3600,G58=4400,G58=4500,G58=5400),0,IF(G58=0,0,'Empolyees Details'!X55)) -> 0 | V58: =IF(OR(G58=3600,G58=4400,G58=4500,G58=5400),0,IF(G58=0,0,'Empolyees Details'!AA55)) -> 0 | W58: 0 | X58: =IF(OR(G58=3600,G58=4400,G58=4500,G58=5400),0,IF(G58=0,0,'Empolyees Details'!Y55)) -> 0 | Y58: =IF(OR(G58=3600,G58=4400,G58=4500,G58=5400),0,IF(G58=0,0,'Empolyees Details'!AB55)) -> 0 | Z58: =IF(OR(G58=3600,G58=4400,G58=4500,G58=5400),0,IF(G58=0,0,'Empolyees Details'!AC55)) -> 0 | AA58: =IF(OR(G58=3600,G58=4400,G58=4500,G58=5400),0,IF(G58=0,0,'Empolyees Details'!AD55)) -> 0 | AB58: =IF(OR(G58=3600,G58=4400,G58=4500,G58=5400),0,IF(G58=0,0,'Empolyees Details'!AF55)) -> 0 | AC58: =IF(OR(G58=3600,G58=4400,G58=4500,G58=5400),0,IF(G58=0,0,'Empolyees Details'!AH55)) -> 0 | AD58: =IF(OR(G58=3600,G58=4400,G58=4500,G58=5400),0,IF(G58=0,0,CPS!L74)) -> 0 | AE58: =IF(OR(G58=3600,G58=4400,G58=4500,G58=5400),0,IF(G58=0,0,'Empolyees Details'!AK55)) -> 0 | AF58: =IF(OR(G58=3600,G58=4400,G58=4500,G58=5400),0,IF(G58=0,0,'Empolyees Details'!AL55)) -> 0 | AG58: 0 | AH58: 0 | AI58: =IF(OR(G58=3600,G58=4400,G58=4500,G58=5400),0,'Empolyees Details'!AM55) -> 0 | AJ58: =IF(G58=0,0,'Empolyees Details'!AP55) -> 0 | AK58: =IF(OR(G58=3600,G58=4400,G58=4500,G58=5400),0,IF(G58=0,0,'Empolyees Details'!AN55)) -> 0 | AL58: =IF(OR(G58=3600,G58=4400,G58=4500,G58=5400),0,IF(G58=0,0,'Empolyees Details'!AO55)) -> 0 | AM58: 0
B59: 17 | C59: ='Empolyees Details'!C56 -> 0 | D59: ='Empolyees Details'!D56 -> 0 | E59: ='Empolyees Details'!F56 -> 0 | F59: ='Empolyees Details'!G56 -> 0 | G59: =ROUND('Empolyees Details'!O56*Code!P97/Code!O97,0) -> 0 | H59: =IF(OR(G59=3600,G59=4400,G59=4500,G59=5400,G59=0),0,ROUND('Empolyees Details'!P56*Code!AA97,0)) -> 0 | J59: =IF(G59=0,0,ROUND('Empolyees Details'!R56*Code!AA97,0)) -> 0 | L59: =IF(OR(G59=3600,G59=4400,G59=4500,G59=5400,G59=0),0,ROUND('Empolyees Details'!Q56*Code!AA97,0)) -> 0 | N59: =IF(OR(G59=3600,G59=4400,G59=4500,G59=5400),0,'Empolyees Details'!S56) -> 0 | P59: =IF(G59<5500,0,ROUND('Empolyees Details'!O56*Code!AA97*Code!$H$13,0)) -> 0 | Q59: =IF(G59<5500,0,ROUND('Empolyees Details'!O56*Code!AA97*Code!$H$14,0)) -> 0 | S59: 0 | T59: =IF(OR(G59=3600,G59=4400,G59=4500,G59=5400),0,IF(G59=0,0,'Empolyees Details'!W56)) -> 0 | U59: =IF(OR(G59=3600,G59=4400,G59=4500,G59=5400),0,IF(G59=0,0,'Empolyees Details'!X56)) -> 0 | V59: =IF(OR(G59=3600,G59=4400,G59=4500,G59=5400),0,IF(G59=0,0,'Empolyees Details'!AA56)) -> 0 | W59: 0 | X59: =IF(OR(G59=3600,G59=4400,G59=4500,G59=5400),0,IF(G59=0,0,'Empolyees Details'!Y56)) -> 0 | Y59: =IF(OR(G59=3600,G59=4400,G59=4500,G59=5400),0,IF(G59=0,0,'Empolyees Details'!AB56)) -> 0 | Z59: =IF(OR(G59=3600,G59=4400,G59=4500,G59=5400),0,IF(G59=0,0,'Empolyees Details'!AC56)) -> 0 | AA59: =IF(OR(G59=3600,G59=4400,G59=4500,G59=5400),0,IF(G59=0,0,'Empolyees Details'!AD56)) -> 0 | AB59: =IF(OR(G59=3600,G59=4400,G59=4500,G59=5400),0,IF(G59=0,0,'Empolyees Details'!AF56)) -> 0 | AC59: =IF(OR(G59=3600,G59=4400,G59=4500,G59=5400),0,IF(G59=0,0,'Empolyees Details'!AH56)) -> 0 | AD59: =IF(OR(G59=3600,G59=4400,G59=4500,G59=5400),0,IF(G59=0,0,CPS!L75)) -> 0 | AE59: =IF(OR(G59=3600,G59=4400,G59=4500,G59=5400),0,IF(G59=0,0,'Empolyees Details'!AK56)) -> 0 | AF59: =IF(OR(G59=3600,G59=4400,G59=4500,G59=5400),0,IF(G59=0,0,'Empolyees Details'!AL56)) -> 0 | AG59: 0 | AH59: 0 | AI59: =IF(OR(G59=3600,G59=4400,G59=4500,G59=5400),0,'Empolyees Details'!AM56) -> 0 | AJ59: =IF(G59=0,0,'Empolyees Details'!AP56) -> 0 | AK59: =IF(OR(G59=3600,G59=4400,G59=4500,G59=5400),0,IF(G59=0,0,'Empolyees Details'!AN56)) -> 0 | AL59: =IF(OR(G59=3600,G59=4400,G59=4500,G59=5400),0,IF(G59=0,0,'Empolyees Details'!AO56)) -> 0 | AM59: 0
B60: 17 | C60: ='Empolyees Details'!C57 -> 0 | D60: ='Empolyees Details'!D57 -> 0 | E60: ='Empolyees Details'!F57 -> 0 | F60: ='Empolyees Details'!G57 -> 0 | G60: =ROUND('Empolyees Details'!O57*Code!P98/Code!O98,0) -> 0 | H60: =IF(OR(G60=3600,G60=4400,G60=4500,G60=5400,G60=0),0,ROUND('Empolyees Details'!P57*Code!AA98,0)) -> 0 | J60: =IF(G60=0,0,ROUND('Empolyees Details'!R57*Code!AA98,0)) -> 0 | L60: =IF(OR(G60=3600,G60=4400,G60=4500,G60=5400,G60=0),0,ROUND('Empolyees Details'!Q57*Code!AA98,0)) -> 0 | N60: =IF(OR(G60=3600,G60=4400,G60=4500,G60=5400),0,'Empolyees Details'!S57) -> 0 | P60: =IF(G60<5500,0,ROUND('Empolyees Details'!O57*Code!AA98*Code!$H$13,0)) -> 0 | Q60: =IF(G60<5500,0,ROUND('Empolyees Details'!O57*Code!AA98*Code!$H$14,0)) -> 0 | S60: 0 | T60: =IF(OR(G60=3600,G60=4400,G60=4500,G60=5400),0,IF(G60=0,0,'Empolyees Details'!W57)) -> 0 | U60: =IF(OR(G60=3600,G60=4400,G60=4500,G60=5400),0,IF(G60=0,0,'Empolyees Details'!X57)) -> 0 | V60: =IF(OR(G60=3600,G60=4400,G60=4500,G60=5400),0,IF(G60=0,0,'Empolyees Details'!AA57)) -> 0 | W60: 0 | X60: =IF(OR(G60=3600,G60=4400,G60=4500,G60=5400),0,IF(G60=0,0,'Empolyees Details'!Y57)) -> 0 | Y60: =IF(OR(G60=3600,G60=4400,G60=4500,G60=5400),0,IF(G60=0,0,'Empolyees Details'!AB57)) -> 0 | Z60: =IF(OR(G60=3600,G60=4400,G60=4500,G60=5400),0,IF(G60=0,0,'Empolyees Details'!AC57)) -> 0 | AA60: =IF(OR(G60=3600,G60=4400,G60=4500,G60=5400),0,IF(G60=0,0,'Empolyees Details'!AD57)) -> 0 | AB60: =IF(OR(G60=3600,G60=4400,G60=4500,G60=5400),0,IF(G60=0,0,'Empolyees Details'!AF57)) -> 0 | AC60: =IF(OR(G60=3600,G60=4400,G60=4500,G60=5400),0,IF(G60=0,0,'Empolyees Details'!AH57)) -> 0 | AD60: =IF(OR(G60=3600,G60=4400,G60=4500,G60=5400),0,IF(G60=0,0,CPS!L76)) -> 0 | AE60: =IF(OR(G60=3600,G60=4400,G60=4500,G60=5400),0,IF(G60=0,0,'Empolyees Details'!AK57)) -> 0 | AF60: =IF(OR(G60=3600,G60=4400,G60=4500,G60=5400),0,IF(G60=0,0,'Empolyees Details'!AL57)) -> 0 | AG60: 0 | AH60: 0 | AI60: =IF(OR(G60=3600,G60=4400,G60=4500,G60=5400),0,'Empolyees Details'!AM57) -> 0 | AJ60: =IF(G60=0,0,'Empolyees Details'!AP57) -> 0 | AK60: =IF(OR(G60=3600,G60=4400,G60=4500,G60=5400),0,IF(G60=0,0,'Empolyees Details'!AN57)) -> 0 | AL60: =IF(OR(G60=3600,G60=4400,G60=4500,G60=5400),0,IF(G60=0,0,'Empolyees Details'!AO57)) -> 0 | AM60: 0
B61: 17 | C61: ='Empolyees Details'!C58 -> 0 | D61: ='Empolyees Details'!D58 -> 0 | E61: ='Empolyees Details'!F58 -> 0 | F61: ='Empolyees Details'!G58 -> 0 | G61: =ROUND('Empolyees Details'!O58*Code!P99/Code!O99,0) -> 0 | H61: =IF(OR(G61=3600,G61=4400,G61=4500,G61=5400,G61=0),0,ROUND('Empolyees Details'!P58*Code!AA99,0)) -> 0 | J61: =IF(G61=0,0,ROUND('Empolyees Details'!R58*Code!AA99,0)) -> 0 | L61: =IF(OR(G61=3600,G61=4400,G61=4500,G61=5400,G61=0),0,ROUND('Empolyees Details'!Q58*Code!AA99,0)) -> 0 | N61: =IF(OR(G61=3600,G61=4400,G61=4500,G61=5400),0,'Empolyees Details'!S58) -> 0 | P61: =IF(G61<5500,0,ROUND('Empolyees Details'!O58*Code!AA99*Code!$H$13,0)) -> 0 | Q61: =IF(G61<5500,0,ROUND('Empolyees Details'!O58*Code!AA99*Code!$H$14,0)) -> 0 | S61: 0 | T61: =IF(OR(G61=3600,G61=4400,G61=4500,G61=5400),0,IF(G61=0,0,'Empolyees Details'!W58)) -> 0 | U61: =IF(OR(G61=3600,G61=4400,G61=4500,G61=5400),0,IF(G61=0,0,'Empolyees Details'!X58)) -> 0 | V61: =IF(OR(G61=3600,G61=4400,G61=4500,G61=5400),0,IF(G61=0,0,'Empolyees Details'!AA58)) -> 0 | W61: 0 | X61: =IF(OR(G61=3600,G61=4400,G61=4500,G61=5400),0,IF(G61=0,0,'Empolyees Details'!Y58)) -> 0 | Y61: =IF(OR(G61=3600,G61=4400,G61=4500,G61=5400),0,IF(G61=0,0,'Empolyees Details'!AB58)) -> 0 | Z61: =IF(OR(G61=3600,G61=4400,G61=4500,G61=5400),0,IF(G61=0,0,'Empolyees Details'!AC58)) -> 0 | AA61: =IF(OR(G61=3600,G61=4400,G61=4500,G61=5400),0,IF(G61=0,0,'Empolyees Details'!AD58)) -> 0 | AB61: =IF(OR(G61=3600,G61=4400,G61=4500,G61=5400),0,IF(G61=0,0,'Empolyees Details'!AF58)) -> 0 | AC61: =IF(OR(G61=3600,G61=4400,G61=4500,G61=5400),0,IF(G61=0,0,'Empolyees Details'!AH58)) -> 0 | AD61: =IF(OR(G61=3600,G61=4400,G61=4500,G61=5400),0,IF(G61=0,0,CPS!L77)) -> 0 | AE61: =IF(OR(G61=3600,G61=4400,G61=4500,G61=5400),0,IF(G61=0,0,'Empolyees Details'!AK58)) -> 0 | AF61: =IF(OR(G61=3600,G61=4400,G61=4500,G61=5400),0,IF(G61=0,0,'Empolyees Details'!AL58)) -> 0 | AG61: 0 | AH61: 0 | AI61: =IF(OR(G61=3600,G61=4400,G61=4500,G61=5400),0,'Empolyees Details'!AM58) -> 0 | AJ61: =IF(G61=0,0,'Empolyees Details'!AP58) -> 0 | AK61: =IF(OR(G61=3600,G61=4400,G61=4500,G61=5400),0,IF(G61=0,0,'Empolyees Details'!AN58)) -> 0 | AL61: =IF(OR(G61=3600,G61=4400,G61=4500,G61=5400),0,IF(G61=0,0,'Empolyees Details'!AO58)) -> 0 | AM61: 0
B62: 17 | C62: ='Empolyees Details'!C59 -> 0 | D62: ='Empolyees Details'!D59 -> 0 | E62: ='Empolyees Details'!F59 -> 0 | F62: ='Empolyees Details'!G59 -> 0 | G62: =ROUND('Empolyees Details'!O59*Code!P100/Code!O100,0) -> 0 | H62: =IF(OR(G62=3600,G62=4400,G62=4500,G62=5400,G62=0),0,ROUND('Empolyees Details'!P59*Code!AA100,0)) -> 0 | J62: =IF(G62=0,0,ROUND('Empolyees Details'!R59*Code!AA100,0)) -> 0 | L62: =IF(OR(G62=3600,G62=4400,G62=4500,G62=5400,G62=0),0,ROUND('Empolyees Details'!Q59*Code!AA100,0)) -> 0 | N62: =IF(OR(G62=3600,G62=4400,G62=4500,G62=5400),0,'Empolyees Details'!S59) -> 0 | P62: =IF(G62<5500,0,ROUND('Empolyees Details'!O59*Code!AA100*Code!$H$13,0)) -> 0 | Q62: =IF(G62<5500,0,ROUND('Empolyees Details'!O59*Code!AA100*Code!$H$14,0)) -> 0 | S62: 0 | T62: =IF(OR(G62=3600,G62=4400,G62=4500,G62=5400),0,IF(G62=0,0,'Empolyees Details'!W59)) -> 0 | U62: =IF(OR(G62=3600,G62=4400,G62=4500,G62=5400),0,IF(G62=0,0,'Empolyees Details'!X59)) -> 0 | V62: =IF(OR(G62=3600,G62=4400,G62=4500,G62=5400),0,IF(G62=0,0,'Empolyees Details'!AA59)) -> 0 | W62: 0 | X62: =IF(OR(G62=3600,G62=4400,G62=4500,G62=5400),0,IF(G62=0,0,'Empolyees Details'!Y59)) -> 0 | Y62: =IF(OR(G62=3600,G62=4400,G62=4500,G62=5400),0,IF(G62=0,0,'Empolyees Details'!AB59)) -> 0 | Z62: =IF(OR(G62=3600,G62=4400,G62=4500,G62=5400),0,IF(G62=0,0,'Empolyees Details'!AC59)) -> 0 | AA62: =IF(OR(G62=3600,G62=4400,G62=4500,G62=5400),0,IF(G62=0,0,'Empolyees Details'!AD59)) -> 0 | AB62: =IF(OR(G62=3600,G62=4400,G62=4500,G62=5400),0,IF(G62=0,0,'Empolyees Details'!AF59)) -> 0 | AC62: =IF(OR(G62=3600,G62=4400,G62=4500,G62=5400),0,IF(G62=0,0,'Empolyees Details'!AH59)) -> 0 | AD62: =IF(OR(G62=3600,G62=4400,G62=4500,G62=5400),0,IF(G62=0,0,CPS!L78)) -> 0 | AE62: =IF(OR(G62=3600,G62=4400,G62=4500,G62=5400),0,IF(G62=0,0,'Empolyees Details'!AK59)) -> 0 | AF62: =IF(OR(G62=3600,G62=4400,G62=4500,G62=5400),0,IF(G62=0,0,'Empolyees Details'!AL59)) -> 0 | AG62: 0 | AH62: 0 | AI62: =IF(OR(G62=3600,G62=4400,G62=4500,G62=5400),0,'Empolyees Details'!AM59) -> 0 | AJ62: =IF(G62=0,0,'Empolyees Details'!AP59) -> 0 | AK62: =IF(OR(G62=3600,G62=4400,G62=4500,G62=5400),0,IF(G62=0,0,'Empolyees Details'!AN59)) -> 0 | AL62: =IF(OR(G62=3600,G62=4400,G62=4500,G62=5400),0,IF(G62=0,0,'Empolyees Details'!AO59)) -> 0 | AM62: 0
B63: 17 | C63: ='Empolyees Details'!C60 -> 0 | D63: ='Empolyees Details'!D60 -> 0 | E63: ='Empolyees Details'!F60 -> 0 | F63: ='Empolyees Details'!G60 -> 0 | G63: =ROUND('Empolyees Details'!O60*Code!P101/Code!O101,0) -> 0 | H63: =IF(OR(G63=3600,G63=4400,G63=4500,G63=5400,G63=0),0,ROUND('Empolyees Details'!P60*Code!AA101,0)) -> 0 | J63: =IF(G63=0,0,ROUND('Empolyees Details'!R60*Code!AA101,0)) -> 0 | L63: =IF(OR(G63=3600,G63=4400,G63=4500,G63=5400,G63=0),0,ROUND('Empolyees Details'!Q60*Code!AA101,0)) -> 0 | N63: =IF(OR(G63=3600,G63=4400,G63=4500,G63=5400),0,'Empolyees Details'!S60) -> 0 | P63: =IF(G63<5500,0,ROUND('Empolyees Details'!O60*Code!AA101*Code!$H$13,0)) -> 0 | Q63: =IF(G63<5500,0,ROUND('Empolyees Details'!O60*Code!AA101*Code!$H$14,0)) -> 0 | S63: 0 | T63: =IF(OR(G63=3600,G63=4400,G63=4500,G63=5400),0,IF(G63=0,0,'Empolyees Details'!W60)) -> 0 | U63: =IF(OR(G63=3600,G63=4400,G63=4500,G63=5400),0,IF(G63=0,0,'Empolyees Details'!X60)) -> 0 | V63: =IF(OR(G63=3600,G63=4400,G63=4500,G63=5400),0,IF(G63=0,0,'Empolyees Details'!AA60)) -> 0 | W63: 0 | X63: =IF(OR(G63=3600,G63=4400,G63=4500,G63=5400),0,IF(G63=0,0,'Empolyees Details'!Y60)) -> 0 | Y63: =IF(OR(G63=3600,G63=4400,G63=4500,G63=5400),0,IF(G63=0,0,'Empolyees Details'!AB60)) -> 0 | Z63: =IF(OR(G63=3600,G63=4400,G63=4500,G63=5400),0,IF(G63=0,0,'Empolyees Details'!AC60)) -> 0 | AA63: =IF(OR(G63=3600,G63=4400,G63=4500,G63=5400),0,IF(G63=0,0,'Empolyees Details'!AD60)) -> 0 | AB63: =IF(OR(G63=3600,G63=4400,G63=4500,G63=5400),0,IF(G63=0,0,'Empolyees Details'!AF60)) -> 0 | AC63: =IF(OR(G63=3600,G63=4400,G63=4500,G63=5400),0,IF(G63=0,0,'Empolyees Details'!AH60)) -> 0 | AD63: =IF(OR(G63=3600,G63=4400,G63=4500,G63=5400),0,IF(G63=0,0,CPS!L79)) -> 0 | AE63: =IF(OR(G63=3600,G63=4400,G63=4500,G63=5400),0,IF(G63=0,0,'Empolyees Details'!AK60)) -> 0 | AF63: =IF(OR(G63=3600,G63=4400,G63=4500,G63=5400),0,IF(G63=0,0,'Empolyees Details'!AL60)) -> 0 | AG63: 0 | AH63: 0 | AI63: =IF(OR(G63=3600,G63=4400,G63=4500,G63=5400),0,'Empolyees Details'!AM60) -> 0 | AJ63: =IF(G63=0,0,'Empolyees Details'!AP60) -> 0 | AK63: =IF(OR(G63=3600,G63=4400,G63=4500,G63=5400),0,IF(G63=0,0,'Empolyees Details'!AN60)) -> 0 | AL63: =IF(OR(G63=3600,G63=4400,G63=4500,G63=5400),0,IF(G63=0,0,'Empolyees Details'!AO60)) -> 0 | AM63: 0
B64: 17 | C64: ='Empolyees Details'!C61 -> 0 | D64: ='Empolyees Details'!D61 -> 0 | E64: ='Empolyees Details'!F61 -> 0 | F64: ='Empolyees Details'!G61 -> 0 | G64: =ROUND('Empolyees Details'!O61*Code!P102/Code!O102,0) -> 0 | H64: =IF(OR(G64=3600,G64=4400,G64=4500,G64=5400,G64=0),0,ROUND('Empolyees Details'!P61*Code!AA102,0)) -> 0 | J64: =IF(G64=0,0,ROUND('Empolyees Details'!R61*Code!AA102,0)) -> 0 | L64: =IF(OR(G64=3600,G64=4400,G64=4500,G64=5400,G64=0),0,ROUND('Empolyees Details'!Q61*Code!AA102,0)) -> 0 | N64: =IF(OR(G64=3600,G64=4400,G64=4500,G64=5400),0,'Empolyees Details'!S61) -> 0 | P64: =IF(G64<5500,0,ROUND('Empolyees Details'!O61*Code!AA102*Code!$H$13,0)) -> 0 | Q64: =IF(G64<5500,0,ROUND('Empolyees Details'!O61*Code!AA102*Code!$H$14,0)) -> 0 | S64: 0 | T64: =IF(OR(G64=3600,G64=4400,G64=4500,G64=5400),0,IF(G64=0,0,'Empolyees Details'!W61)) -> 0 | U64: =IF(OR(G64=3600,G64=4400,G64=4500,G64=5400),0,IF(G64=0,0,'Empolyees Details'!X61)) -> 0 | V64: =IF(OR(G64=3600,G64=4400,G64=4500,G64=5400),0,IF(G64=0,0,'Empolyees Details'!AA61)) -> 0 | W64: 0 | X64: =IF(OR(G64=3600,G64=4400,G64=4500,G64=5400),0,IF(G64=0,0,'Empolyees Details'!Y61)) -> 0 | Y64: =IF(OR(G64=3600,G64=4400,G64=4500,G64=5400),0,IF(G64=0,0,'Empolyees Details'!AB61)) -> 0 | Z64: =IF(OR(G64=3600,G64=4400,G64=4500,G64=5400),0,IF(G64=0,0,'Empolyees Details'!AC61)) -> 0 | AA64: =IF(OR(G64=3600,G64=4400,G64=4500,G64=5400),0,IF(G64=0,0,'Empolyees Details'!AD61)) -> 0 | AB64: =IF(OR(G64=3600,G64=4400,G64=4500,G64=5400),0,IF(G64=0,0,'Empolyees Details'!AF61)) -> 0 | AC64: =IF(OR(G64=3600,G64=4400,G64=4500,G64=5400),0,IF(G64=0,0,'Empolyees Details'!AH61)) -> 0 | AD64: =IF(OR(G64=3600,G64=4400,G64=4500,G64=5400),0,IF(G64=0,0,CPS!L80)) -> 0 | AE64: =IF(OR(G64=3600,G64=4400,G64=4500,G64=5400),0,IF(G64=0,0,'Empolyees Details'!AK61)) -> 0 | AF64: =IF(OR(G64=3600,G64=4400,G64=4500,G64=5400),0,IF(G64=0,0,'Empolyees Details'!AL61)) -> 0 | AG64: 0 | AH64: 0 | AI64: =IF(OR(G64=3600,G64=4400,G64=4500,G64=5400),0,'Empolyees Details'!AM61) -> 0 | AJ64: =IF(G64=0,0,'Empolyees Details'!AP61) -> 0 | AK64: =IF(OR(G64=3600,G64=4400,G64=4500,G64=5400),0,IF(G64=0,0,'Empolyees Details'!AN61)) -> 0 | AL64: =IF(OR(G64=3600,G64=4400,G64=4500,G64=5400),0,IF(G64=0,0,'Empolyees Details'!AO61)) -> 0 | AM64: 0
B65: 17 | C65: ='Empolyees Details'!C62 -> 0 | D65: ='Empolyees Details'!D62 -> 0 | E65: ='Empolyees Details'!F62 -> 0 | F65: ='Empolyees Details'!G62 -> 0 | G65: =ROUND('Empolyees Details'!O62*Code!P103/Code!O103,0) -> 0 | H65: =IF(OR(G65=3600,G65=4400,G65=4500,G65=5400,G65=0),0,ROUND('Empolyees Details'!P62*Code!AA103,0)) -> 0 | J65: =IF(G65=0,0,ROUND('Empolyees Details'!R62*Code!AA103,0)) -> 0 | L65: =IF(OR(G65=3600,G65=4400,G65=4500,G65=5400,G65=0),0,ROUND('Empolyees Details'!Q62*Code!AA103,0)) -> 0 | N65: =IF(OR(G65=3600,G65=4400,G65=4500,G65=5400),0,'Empolyees Details'!S62) -> 0 | P65: =IF(G65<5500,0,ROUND('Empolyees Details'!O62*Code!AA103*Code!$H$13,0)) -> 0 | Q65: =IF(G65<5500,0,ROUND('Empolyees Details'!O62*Code!AA103*Code!$H$14,0)) -> 0 | S65: 0 | T65: =IF(OR(G65=3600,G65=4400,G65=4500,G65=5400),0,IF(G65=0,0,'Empolyees Details'!W62)) -> 0 | U65: =IF(OR(G65=3600,G65=4400,G65=4500,G65=5400),0,IF(G65=0,0,'Empolyees Details'!X62)) -> 0 | V65: =IF(OR(G65=3600,G65=4400,G65=4500,G65=5400),0,IF(G65=0,0,'Empolyees Details'!AA62)) -> 0 | W65: 0 | X65: =IF(OR(G65=3600,G65=4400,G65=4500,G65=5400),0,IF(G65=0,0,'Empolyees Details'!Y62)) -> 0 | Y65: =IF(OR(G65=3600,G65=4400,G65=4500,G65=5400),0,IF(G65=0,0,'Empolyees Details'!AB62)) -> 0 | Z65: =IF(OR(G65=3600,G65=4400,G65=4500,G65=5400),0,IF(G65=0,0,'Empolyees Details'!AC62)) -> 0 | AA65: =IF(OR(G65=3600,G65=4400,G65=4500,G65=5400),0,IF(G65=0,0,'Empolyees Details'!AD62)) -> 0 | AB65: =IF(OR(G65=3600,G65=4400,G65=4500,G65=5400),0,IF(G65=0,0,'Empolyees Details'!AF62)) -> 0 | AC65: =IF(OR(G65=3600,G65=4400,G65=4500,G65=5400),0,IF(G65=0,0,'Empolyees Details'!AH62)) -> 0 | AD65: =IF(OR(G65=3600,G65=4400,G65=4500,G65=5400),0,IF(G65=0,0,CPS!L81)) -> 0 | AE65: =IF(OR(G65=3600,G65=4400,G65=4500,G65=5400),0,IF(G65=0,0,'Empolyees Details'!AK62)) -> 0 | AF65: =IF(OR(G65=3600,G65=4400,G65=4500,G65=5400),0,IF(G65=0,0,'Empolyees Details'!AL62)) -> 0 | AG65: 0 | AH65: 0 | AI65: =IF(OR(G65=3600,G65=4400,G65=4500,G65=5400),0,'Empolyees Details'!AM62) -> 0 | AJ65: =IF(G65=0,0,'Empolyees Details'!AP62) -> 0 | AK65: =IF(OR(G65=3600,G65=4400,G65=4500,G65=5400),0,IF(G65=0,0,'Empolyees Details'!AN62)) -> 0 | AL65: =IF(OR(G65=3600,G65=4400,G65=4500,G65=5400),0,IF(G65=0,0,'Empolyees Details'!AO62)) -> 0 | AM65: 0
B66: 17 | C66: ='Empolyees Details'!C63 -> 0 | D66: ='Empolyees Details'!D63 -> 0 | E66: ='Empolyees Details'!F63 -> 0 | F66: ='Empolyees Details'!G63 -> 0 | G66: =ROUND('Empolyees Details'!O63*Code!P104/Code!O104,0) -> 0 | H66: =IF(OR(G66=3600,G66=4400,G66=4500,G66=5400,G66=0),0,ROUND('Empolyees Details'!P63*Code!AA104,0)) -> 0 | J66: =IF(G66=0,0,ROUND('Empolyees Details'!R63*Code!AA104,0)) -> 0 | L66: =IF(OR(G66=3600,G66=4400,G66=4500,G66=5400,G66=0),0,ROUND('Empolyees Details'!Q63*Code!AA104,0)) -> 0 | N66: =IF(OR(G66=3600,G66=4400,G66=4500,G66=5400),0,'Empolyees Details'!S63) -> 0 | P66: =IF(G66<5500,0,ROUND('Empolyees Details'!O63*Code!AA104*Code!$H$13,0)) -> 0 | Q66: =IF(G66<5500,0,ROUND('Empolyees Details'!O63*Code!AA104*Code!$H$14,0)) -> 0 | S66: 0 | T66: =IF(OR(G66=3600,G66=4400,G66=4500,G66=5400),0,IF(G66=0,0,'Empolyees Details'!W63)) -> 0 | U66: =IF(OR(G66=3600,G66=4400,G66=4500,G66=5400),0,IF(G66=0,0,'Empolyees Details'!X63)) -> 0 | V66: =IF(OR(G66=3600,G66=4400,G66=4500,G66=5400),0,IF(G66=0,0,'Empolyees Details'!AA63)) -> 0 | W66: 0 | X66: =IF(OR(G66=3600,G66=4400,G66=4500,G66=5400),0,IF(G66=0,0,'Empolyees Details'!Y63)) -> 0 | Y66: =IF(OR(G66=3600,G66=4400,G66=4500,G66=5400),0,IF(G66=0,0,'Empolyees Details'!AB63)) -> 0 | Z66: =IF(OR(G66=3600,G66=4400,G66=4500,G66=5400),0,IF(G66=0,0,'Empolyees Details'!AC63)) -> 0 | AA66: =IF(OR(G66=3600,G66=4400,G66=4500,G66=5400),0,IF(G66=0,0,'Empolyees Details'!AD63)) -> 0 | AB66: =IF(OR(G66=3600,G66=4400,G66=4500,G66=5400),0,IF(G66=0,0,'Empolyees Details'!AF63)) -> 0 | AC66: =IF(OR(G66=3600,G66=4400,G66=4500,G66=5400),0,IF(G66=0,0,'Empolyees Details'!AH63)) -> 0 | AD66: =IF(OR(G66=3600,G66=4400,G66=4500,G66=5400),0,IF(G66=0,0,CPS!L82)) -> 0 | AE66: =IF(OR(G66=3600,G66=4400,G66=4500,G66=5400),0,IF(G66=0,0,'Empolyees Details'!AK63)) -> 0 | AF66: =IF(OR(G66=3600,G66=4400,G66=4500,G66=5400),0,IF(G66=0,0,'Empolyees Details'!AL63)) -> 0 | AG66: 0 | AH66: 0 | AI66: =IF(OR(G66=3600,G66=4400,G66=4500,G66=5400),0,'Empolyees Details'!AM63) -> 0 | AJ66: =IF(G66=0,0,'Empolyees Details'!AP63) -> 0 | AK66: =IF(OR(G66=3600,G66=4400,G66=4500,G66=5400),0,IF(G66=0,0,'Empolyees Details'!AN63)) -> 0 | AL66: =IF(OR(G66=3600,G66=4400,G66=4500,G66=5400),0,IF(G66=0,0,'Empolyees Details'!AO63)) -> 0 | AM66: 0
B67: 17 | C67: ='Empolyees Details'!C64 -> 0 | D67: ='Empolyees Details'!D64 -> 0 | E67: ='Empolyees Details'!F64 -> 0 | F67: ='Empolyees Details'!G64 -> 0 | G67: =ROUND('Empolyees Details'!O64*Code!P105/Code!O105,0) -> 0 | H67: =IF(OR(G67=3600,G67=4400,G67=4500,G67=5400,G67=0),0,ROUND('Empolyees Details'!P64*Code!AA105,0)) -> 0 | J67: =IF(G67=0,0,ROUND('Empolyees Details'!R64*Code!AA105,0)) -> 0 | L67: =IF(OR(G67=3600,G67=4400,G67=4500,G67=5400,G67=0),0,ROUND('Empolyees Details'!Q64*Code!AA105,0)) -> 0 | N67: =IF(OR(G67=3600,G67=4400,G67=4500,G67=5400),0,'Empolyees Details'!S64) -> 0 | P67: =IF(G67<5500,0,ROUND('Empolyees Details'!O64*Code!AA105*Code!$H$13,0)) -> 0 | Q67: =IF(G67<5500,0,ROUND('Empolyees Details'!O64*Code!AA105*Code!$H$14,0)) -> 0 | S67: 0 | T67: =IF(OR(G67=3600,G67=4400,G67=4500,G67=5400),0,IF(G67=0,0,'Empolyees Details'!W64)) -> 0 | U67: =IF(OR(G67=3600,G67=4400,G67=4500,G67=5400),0,IF(G67=0,0,'Empolyees Details'!X64)) -> 0 | V67: =IF(OR(G67=3600,G67=4400,G67=4500,G67=5400),0,IF(G67=0,0,'Empolyees Details'!AA64)) -> 0 | W67: 0 | X67: =IF(OR(G67=3600,G67=4400,G67=4500,G67=5400),0,IF(G67=0,0,'Empolyees Details'!Y64)) -> 0 | Y67: =IF(OR(G67=3600,G67=4400,G67=4500,G67=5400),0,IF(G67=0,0,'Empolyees Details'!AB64)) -> 0 | Z67: =IF(OR(G67=3600,G67=4400,G67=4500,G67=5400),0,IF(G67=0,0,'Empolyees Details'!AC64)) -> 0 | AA67: =IF(OR(G67=3600,G67=4400,G67=4500,G67=5400),0,IF(G67=0,0,'Empolyees Details'!AD64)) -> 0 | AB67: =IF(OR(G67=3600,G67=4400,G67=4500,G67=5400),0,IF(G67=0,0,'Empolyees Details'!AF64)) -> 0 | AC67: =IF(OR(G67=3600,G67=4400,G67=4500,G67=5400),0,IF(G67=0,0,'Empolyees Details'!AH64)) -> 0 | AD67: =IF(OR(G67=3600,G67=4400,G67=4500,G67=5400),0,IF(G67=0,0,CPS!L83)) -> 0 | AE67: =IF(OR(G67=3600,G67=4400,G67=4500,G67=5400),0,IF(G67=0,0,'Empolyees Details'!AK64)) -> 0 | AF67: =IF(OR(G67=3600,G67=4400,G67=4500,G67=5400),0,IF(G67=0,0,'Empolyees Details'!AL64)) -> 0 | AG67: 0 | AH67: 0 | AI67: =IF(OR(G67=3600,G67=4400,G67=4500,G67=5400),0,'Empolyees Details'!AM64) -> 0 | AJ67: =IF(G67=0,0,'Empolyees Details'!AP64) -> 0 | AK67: =IF(OR(G67=3600,G67=4400,G67=4500,G67=5400),0,IF(G67=0,0,'Empolyees Details'!AN64)) -> 0 | AL67: =IF(OR(G67=3600,G67=4400,G67=4500,G67=5400),0,IF(G67=0,0,'Empolyees Details'!AO64)) -> 0 | AM67: 0
B68: 17 | C68: ='Empolyees Details'!C65 -> 0 | D68: ='Empolyees Details'!D65 -> 0 | E68: ='Empolyees Details'!F65 -> 0 | F68: ='Empolyees Details'!G65 -> 0 | G68: =ROUND('Empolyees Details'!O65*Code!P106/Code!O106,0) -> 0 | H68: =IF(OR(G68=3600,G68=4400,G68=4500,G68=5400,G68=0),0,ROUND('Empolyees Details'!P65*Code!AA106,0)) -> 0 | J68: =IF(G68=0,0,ROUND('Empolyees Details'!R65*Code!AA106,0)) -> 0 | L68: =IF(OR(G68=3600,G68=4400,G68=4500,G68=5400,G68=0),0,ROUND('Empolyees Details'!Q65*Code!AA106,0)) -> 0 | N68: =IF(OR(G68=3600,G68=4400,G68=4500,G68=5400),0,'Empolyees Details'!S65) -> 0 | P68: =IF(G68<5500,0,ROUND('Empolyees Details'!O65*Code!AA106*Code!$H$13,0)) -> 0 | Q68: =IF(G68<5500,0,ROUND('Empolyees Details'!O65*Code!AA106*Code!$H$14,0)) -> 0 | S68: 0 | T68: =IF(OR(G68=3600,G68=4400,G68=4500,G68=5400),0,IF(G68=0,0,'Empolyees Details'!W65)) -> 0 | U68: =IF(OR(G68=3600,G68=4400,G68=4500,G68=5400),0,IF(G68=0,0,'Empolyees Details'!X65)) -> 0 | V68: =IF(OR(G68=3600,G68=4400,G68=4500,G68=5400),0,IF(G68=0,0,'Empolyees Details'!AA65)) -> 0 | W68: 0 | X68: =IF(OR(G68=3600,G68=4400,G68=4500,G68=5400),0,IF(G68=0,0,'Empolyees Details'!Y65)) -> 0 | Y68: =IF(OR(G68=3600,G68=4400,G68=4500,G68=5400),0,IF(G68=0,0,'Empolyees Details'!AB65)) -> 0 | Z68: =IF(OR(G68=3600,G68=4400,G68=4500,G68=5400),0,IF(G68=0,0,'Empolyees Details'!AC65)) -> 0 | AA68: =IF(OR(G68=3600,G68=4400,G68=4500,G68=5400),0,IF(G68=0,0,'Empolyees Details'!AD65)) -> 0 | AB68: =IF(OR(G68=3600,G68=4400,G68=4500,G68=5400),0,IF(G68=0,0,'Empolyees Details'!AF65)) -> 0 | AC68: =IF(OR(G68=3600,G68=4400,G68=4500,G68=5400),0,IF(G68=0,0,'Empolyees Details'!AH65)) -> 0 | AD68: =IF(OR(G68=3600,G68=4400,G68=4500,G68=5400),0,IF(G68=0,0,CPS!L84)) -> 0 | AE68: =IF(OR(G68=3600,G68=4400,G68=4500,G68=5400),0,IF(G68=0,0,'Empolyees Details'!AK65)) -> 0 | AF68: =IF(OR(G68=3600,G68=4400,G68=4500,G68=5400),0,IF(G68=0,0,'Empolyees Details'!AL65)) -> 0 | AG68: 0 | AH68: 0 | AI68: =IF(OR(G68=3600,G68=4400,G68=4500,G68=5400),0,'Empolyees Details'!AM65) -> 0 | AJ68: =IF(G68=0,0,'Empolyees Details'!AP65) -> 0 | AK68: =IF(OR(G68=3600,G68=4400,G68=4500,G68=5400),0,IF(G68=0,0,'Empolyees Details'!AN65)) -> 0 | AL68: =IF(OR(G68=3600,G68=4400,G68=4500,G68=5400),0,IF(G68=0,0,'Empolyees Details'!AO65)) -> 0 | AM68: 0
B69: 17 | C69: ='Empolyees Details'!C66 -> 0 | D69: ='Empolyees Details'!D66 -> 0 | E69: ='Empolyees Details'!F66 -> 0 | F69: ='Empolyees Details'!G66 -> 0 | G69: =ROUND('Empolyees Details'!O66*Code!P107/Code!O107,0) -> 0 | H69: =IF(OR(G69=3600,G69=4400,G69=4500,G69=5400,G69=0),0,ROUND('Empolyees Details'!P66*Code!AA107,0)) -> 0 | J69: =IF(G69=0,0,ROUND('Empolyees Details'!R66*Code!AA107,0)) -> 0 | L69: =IF(OR(G69=3600,G69=4400,G69=4500,G69=5400,G69=0),0,ROUND('Empolyees Details'!Q66*Code!AA107,0)) -> 0 | N69: =IF(OR(G69=3600,G69=4400,G69=4500,G69=5400),0,'Empolyees Details'!S66) -> 0 | P69: =IF(G69<5500,0,ROUND('Empolyees Details'!O66*Code!AA107*Code!$H$13,0)) -> 0 | Q69: =IF(G69<5500,0,ROUND('Empolyees Details'!O66*Code!AA107*Code!$H$14,0)) -> 0 | S69: 0 | T69: =IF(OR(G69=3600,G69=4400,G69=4500,G69=5400),0,IF(G69=0,0,'Empolyees Details'!W66)) -> 0 | U69: =IF(OR(G69=3600,G69=4400,G69=4500,G69=5400),0,IF(G69=0,0,'Empolyees Details'!X66)) -> 0 | V69: =IF(OR(G69=3600,G69=4400,G69=4500,G69=5400),0,IF(G69=0,0,'Empolyees Details'!AA66)) -> 0 | W69: 0 | X69: =IF(OR(G69=3600,G69=4400,G69=4500,G69=5400),0,IF(G69=0,0,'Empolyees Details'!Y66)) -> 0 | Y69: =IF(OR(G69=3600,G69=4400,G69=4500,G69=5400),0,IF(G69=0,0,'Empolyees Details'!AB66)) -> 0 | Z69: =IF(OR(G69=3600,G69=4400,G69=4500,G69=5400),0,IF(G69=0,0,'Empolyees Details'!AC66)) -> 0 | AA69: =IF(OR(G69=3600,G69=4400,G69=4500,G69=5400),0,IF(G69=0,0,'Empolyees Details'!AD66)) -> 0 | AB69: =IF(OR(G69=3600,G69=4400,G69=4500,G69=5400),0,IF(G69=0,0,'Empolyees Details'!AF66)) -> 0 | AC69: =IF(OR(G69=3600,G69=4400,G69=4500,G69=5400),0,IF(G69=0,0,'Empolyees Details'!AH66)) -> 0 | AD69: =IF(OR(G69=3600,G69=4400,G69=4500,G69=5400),0,IF(G69=0,0,CPS!L85)) -> 0 | AE69: =IF(OR(G69=3600,G69=4400,G69=4500,G69=5400),0,IF(G69=0,0,'Empolyees Details'!AK66)) -> 0 | AF69: =IF(OR(G69=3600,G69=4400,G69=4500,G69=5400),0,IF(G69=0,0,'Empolyees Details'!AL66)) -> 0 | AG69: 0 | AH69: 0 | AI69: =IF(OR(G69=3600,G69=4400,G69=4500,G69=5400),0,'Empolyees Details'!AM66) -> 0 | AJ69: =IF(G69=0,0,'Empolyees Details'!AP66) -> 0 | AK69: =IF(OR(G69=3600,G69=4400,G69=4500,G69=5400),0,IF(G69=0,0,'Empolyees Details'!AN66)) -> 0 | AL69: =IF(OR(G69=3600,G69=4400,G69=4500,G69=5400),0,IF(G69=0,0,'Empolyees Details'!AO66)) -> 0 | AM69: 0
B70: 17 | C70: ='Empolyees Details'!C67 -> 0 | D70: ='Empolyees Details'!D67 -> 0 | E70: ='Empolyees Details'!F67 -> 0 | F70: ='Empolyees Details'!G67 -> 0 | G70: =ROUND('Empolyees Details'!O67*Code!P108/Code!O108,0) -> 0 | H70: =IF(OR(G70=3600,G70=4400,G70=4500,G70=5400,G70=0),0,ROUND('Empolyees Details'!P67*Code!AA108,0)) -> 0 | J70: =IF(G70=0,0,ROUND('Empolyees Details'!R67*Code!AA108,0)) -> 0 | L70: =IF(OR(G70=3600,G70=4400,G70=4500,G70=5400,G70=0),0,ROUND('Empolyees Details'!Q67*Code!AA108,0)) -> 0 | N70: =IF(OR(G70=3600,G70=4400,G70=4500,G70=5400),0,'Empolyees Details'!S67) -> 0 | P70: =IF(G70<5500,0,ROUND('Empolyees Details'!O67*Code!AA108*Code!$H$13,0)) -> 0 | Q70: =IF(G70<5500,0,ROUND('Empolyees Details'!O67*Code!AA108*Code!$H$14,0)) -> 0 | S70: 0 | T70: =IF(OR(G70=3600,G70=4400,G70=4500,G70=5400),0,IF(G70=0,0,'Empolyees Details'!W67)) -> 0 | U70: =IF(OR(G70=3600,G70=4400,G70=4500,G70=5400),0,IF(G70=0,0,'Empolyees Details'!X67)) -> 0 | V70: =IF(OR(G70=3600,G70=4400,G70=4500,G70=5400),0,IF(G70=0,0,'Empolyees Details'!AA67)) -> 0 | W70: 0 | X70: =IF(OR(G70=3600,G70=4400,G70=4500,G70=5400),0,IF(G70=0,0,'Empolyees Details'!Y67)) -> 0 | Y70: =IF(OR(G70=3600,G70=4400,G70=4500,G70=5400),0,IF(G70=0,0,'Empolyees Details'!AB67)) -> 0 | Z70: =IF(OR(G70=3600,G70=4400,G70=4500,G70=5400),0,IF(G70=0,0,'Empolyees Details'!AC67)) -> 0 | AA70: =IF(OR(G70=3600,G70=4400,G70=4500,G70=5400),0,IF(G70=0,0,'Empolyees Details'!AD67)) -> 0 | AB70: =IF(OR(G70=3600,G70=4400,G70=4500,G70=5400),0,IF(G70=0,0,'Empolyees Details'!AF67)) -> 0 | AC70: =IF(OR(G70=3600,G70=4400,G70=4500,G70=5400),0,IF(G70=0,0,'Empolyees Details'!AH67)) -> 0 | AD70: =IF(OR(G70=3600,G70=4400,G70=4500,G70=5400),0,IF(G70=0,0,CPS!L86)) -> 0 | AE70: =IF(OR(G70=3600,G70=4400,G70=4500,G70=5400),0,IF(G70=0,0,'Empolyees Details'!AK67)) -> 0 | AF70: =IF(OR(G70=3600,G70=4400,G70=4500,G70=5400),0,IF(G70=0,0,'Empolyees Details'!AL67)) -> 0 | AG70: 0 | AH70: 0 | AI70: =IF(OR(G70=3600,G70=4400,G70=4500,G70=5400),0,'Empolyees Details'!AM67) -> 0 | AJ70: =IF(G70=0,0,'Empolyees Details'!AP67) -> 0 | AK70: =IF(OR(G70=3600,G70=4400,G70=4500,G70=5400),0,IF(G70=0,0,'Empolyees Details'!AN67)) -> 0 | AL70: =IF(OR(G70=3600,G70=4400,G70=4500,G70=5400),0,IF(G70=0,0,'Empolyees Details'!AO67)) -> 0 | AM70: 0
B71: 17 | C71: ='Empolyees Details'!C68 -> 0 | D71: ='Empolyees Details'!D68 -> 0 | E71: ='Empolyees Details'!F68 -> 0 | F71: ='Empolyees Details'!G68 -> 0 | G71: =ROUND('Empolyees Details'!O68*Code!P109/Code!O109,0) -> 0 | H71: =IF(OR(G71=3600,G71=4400,G71=4500,G71=5400,G71=0),0,ROUND('Empolyees Details'!P68*Code!AA109,0)) -> 0 | J71: =IF(G71=0,0,ROUND('Empolyees Details'!R68*Code!AA109,0)) -> 0 | L71: =IF(OR(G71=3600,G71=4400,G71=4500,G71=5400,G71=0),0,ROUND('Empolyees Details'!Q68*Code!AA109,0)) -> 0 | N71: =IF(OR(G71=3600,G71=4400,G71=4500,G71=5400),0,'Empolyees Details'!S68) -> 0 | P71: =IF(G71<5500,0,ROUND('Empolyees Details'!O68*Code!AA109*Code!$H$13,0)) -> 0 | Q71: =IF(G71<5500,0,ROUND('Empolyees Details'!O68*Code!AA109*Code!$H$14,0)) -> 0 | S71: 0 | T71: =IF(OR(G71=3600,G71=4400,G71=4500,G71=5400),0,IF(G71=0,0,'Empolyees Details'!W68)) -> 0 | U71: =IF(OR(G71=3600,G71=4400,G71=4500,G71=5400),0,IF(G71=0,0,'Empolyees Details'!X68)) -> 0 | V71: =IF(OR(G71=3600,G71=4400,G71=4500,G71=5400),0,IF(G71=0,0,'Empolyees Details'!AA68)) -> 0 | W71: 0 | X71: =IF(OR(G71=3600,G71=4400,G71=4500,G71=5400),0,IF(G71=0,0,'Empolyees Details'!Y68)) -> 0 | Y71: =IF(OR(G71=3600,G71=4400,G71=4500,G71=5400),0,IF(G71=0,0,'Empolyees Details'!AB68)) -> 0 | Z71: =IF(OR(G71=3600,G71=4400,G71=4500,G71=5400),0,IF(G71=0,0,'Empolyees Details'!AC68)) -> 0 | AA71: =IF(OR(G71=3600,G71=4400,G71=4500,G71=5400),0,IF(G71=0,0,'Empolyees Details'!AD68)) -> 0 | AB71: =IF(OR(G71=3600,G71=4400,G71=4500,G71=5400),0,IF(G71=0,0,'Empolyees Details'!AF68)) -> 0 | AC71: =IF(OR(G71=3600,G71=4400,G71=4500,G71=5400),0,IF(G71=0,0,'Empolyees Details'!AH68)) -> 0 | AD71: =IF(OR(G71=3600,G71=4400,G71=4500,G71=5400),0,IF(G71=0,0,CPS!L87)) -> 0 | AE71: =IF(OR(G71=3600,G71=4400,G71=4500,G71=5400),0,IF(G71=0,0,'Empolyees Details'!AK68)) -> 0 | AF71: =IF(OR(G71=3600,G71=4400,G71=4500,G71=5400),0,IF(G71=0,0,'Empolyees Details'!AL68)) -> 0 | AG71: 0 | AH71: 0 | AI71: =IF(OR(G71=3600,G71=4400,G71=4500,G71=5400),0,'Empolyees Details'!AM68) -> 0 | AJ71: =IF(G71=0,0,'Empolyees Details'!AP68) -> 0 | AK71: =IF(OR(G71=3600,G71=4400,G71=4500,G71=5400),0,IF(G71=0,0,'Empolyees Details'!AN68)) -> 0 | AL71: =IF(OR(G71=3600,G71=4400,G71=4500,G71=5400),0,IF(G71=0,0,'Empolyees Details'!AO68)) -> 0 | AM71: 0
B72: 17 | C72: ='Empolyees Details'!C69 -> 0 | D72: ='Empolyees Details'!D69 -> 0 | E72: ='Empolyees Details'!F69 -> 0 | F72: ='Empolyees Details'!G69 -> 0 | G72: =ROUND('Empolyees Details'!O69*Code!P110/Code!O110,0) -> 0 | H72: =IF(OR(G72=3600,G72=4400,G72=4500,G72=5400,G72=0),0,ROUND('Empolyees Details'!P69*Code!AA110,0)) -> 0 | J72: =IF(G72=0,0,ROUND('Empolyees Details'!R69*Code!AA110,0)) -> 0 | L72: =IF(OR(G72=3600,G72=4400,G72=4500,G72=5400,G72=0),0,ROUND('Empolyees Details'!Q69*Code!AA110,0)) -> 0 | N72: =IF(OR(G72=3600,G72=4400,G72=4500,G72=5400),0,'Empolyees Details'!S69) -> 0 | P72: =IF(G72<5500,0,ROUND('Empolyees Details'!O69*Code!AA110*Code!$H$13,0)) -> 0 | Q72: =IF(G72<5500,0,ROUND('Empolyees Details'!O69*Code!AA110*Code!$H$14,0)) -> 0 | S72: 0 | T72: =IF(OR(G72=3600,G72=4400,G72=4500,G72=5400),0,IF(G72=0,0,'Empolyees Details'!W69)) -> 0 | U72: =IF(OR(G72=3600,G72=4400,G72=4500,G72=5400),0,IF(G72=0,0,'Empolyees Details'!X69)) -> 0 | V72: =IF(OR(G72=3600,G72=4400,G72=4500,G72=5400),0,IF(G72=0,0,'Empolyees Details'!AA69)) -> 0 | W72: 0 | X72: =IF(OR(G72=3600,G72=4400,G72=4500,G72=5400),0,IF(G72=0,0,'Empolyees Details'!Y69)) -> 0 | Y72: =IF(OR(G72=3600,G72=4400,G72=4500,G72=5400),0,IF(G72=0,0,'Empolyees Details'!AB69)) -> 0 | Z72: =IF(OR(G72=3600,G72=4400,G72=4500,G72=5400),0,IF(G72=0,0,'Empolyees Details'!AC69)) -> 0 | AA72: =IF(OR(G72=3600,G72=4400,G72=4500,G72=5400),0,IF(G72=0,0,'Empolyees Details'!AD69)) -> 0 | AB72: =IF(OR(G72=3600,G72=4400,G72=4500,G72=5400),0,IF(G72=0,0,'Empolyees Details'!AF69)) -> 0 | AC72: =IF(OR(G72=3600,G72=4400,G72=4500,G72=5400),0,IF(G72=0,0,'Empolyees Details'!AH69)) -> 0 | AD72: =IF(OR(G72=3600,G72=4400,G72=4500,G72=5400),0,IF(G72=0,0,CPS!L88)) -> 0 | AE72: =IF(OR(G72=3600,G72=4400,G72=4500,G72=5400),0,IF(G72=0,0,'Empolyees Details'!AK69)) -> 0 | AF72: =IF(OR(G72=3600,G72=4400,G72=4500,G72=5400),0,IF(G72=0,0,'Empolyees Details'!AL69)) -> 0 | AG72: 0 | AH72: 0 | AI72: =IF(OR(G72=3600,G72=4400,G72=4500,G72=5400),0,'Empolyees Details'!AM69) -> 0 | AJ72: =IF(G72=0,0,'Empolyees Details'!AP69) -> 0 | AK72: =IF(OR(G72=3600,G72=4400,G72=4500,G72=5400),0,IF(G72=0,0,'Empolyees Details'!AN69)) -> 0 | AL72: =IF(OR(G72=3600,G72=4400,G72=4500,G72=5400),0,IF(G72=0,0,'Empolyees Details'!AO69)) -> 0 | AM72: 0
